{"text_format":"1","workbook":"xlsx","n_sheets":11,"sheets":["COVER","REPORTING INSTRUCTIONS","REMARKS","TABLES-FORMS","COLUMN","PREFILLED-ANNUAL","PREFILLED-MONTHLY","LoadedData","PrefilledData","Parameter_mapping","Parameters"],"not_rendered":{"charts":0,"images":1,"macros":1,"external_links":0,"defined_names":20,"comments":0,"pivot_tables":0},"unopened":[],"bounds":{"document_bytes":16777216,"sheet_cells":100000,"rows_first":2000,"rows_last":500,"rows_between":2000,"halvings":0,"cell_chars":16384,"cell_head_chars":4096},"cells_cut":0,"cells_raw":0,"read":"whole","date_system":"1900"}

{"sheet":"COVER","index":0,"n_rows":81,"n_cols":6,"rows_kept":81,"cut":false,"hidden":false,"merged":[[7,0,7,19]]}
["MINI-QUESTIONNAIRE"]
["SOLID FOSSIL FUELS & MANUFACTURED GASES"]
[{"$f":"COLUMN!Q1","v":2020}]
[{"$f":"COLUMN!R1","v":"ZZZZ"}]
[]
["EDAMIS dataset:",null,null,null,null,"ENERGY_MINICOA_A"]
[]
["Please transmit to Eurostat by 31 May 2021."]
["This reporting template is operational if and only if Visual Basic macros are operational."]
["Please click the START button to make other sheets visible."]
["If the START button does not work, please enable execution of Visual Basic macros."]
[]
[]
[]
[]
["Notes:"]
["123","- cells with white background should not be edited"]
["123","- cells in blue background can be edited (please enter new data here)"]
[{"$f":"A18+A17-A21","v":123},"- cells with bold font are formulas (and if with blue background, they can be edited)"]
["123","- cells with light green background show growth rates to pre-filled data"]
["123","- cells with dark green font are voluntary (consumption side of energy balance)"]
[]
[]
["If you have any questions or comments, please contact:"]
["Marek.Sturc@ec.europa.eu"]
[]
[]
[]
[]
[]
[]
[]
[]
[]
[]
[]
[]
[]
[]
["Albania","AL"]
["Austria","AT"]
["Belgium","BE"]
["Bosnia & Herzegovina","BA"]
["Bulgaria","BG"]
["Croatia","HR"]
["Cyprus","CY"]
["Czech Republic","CZ"]
["Denmark","DK"]
["Estonia","EE"]
["Finland","FI"]
["France","FR"]
["Georgia","GE"]
["Germany","DE"]
["Greece","EL"]
["Hungary","HU"]
["Iceland","IS"]
["Ireland","IE"]
["Italy","IT"]
["Kosovo (UNSCR 1244/99)","XK"]
["Latvia","LV"]
["Lithuania","LT"]
["Luxembourg","LU"]
["Malta","MT"]
["Moldova","MD"]
["Montenegro","ME"]
["Netherlands","NL"]
["North Macedonia","MK"]
["Norway","NO"]
["Poland","PL"]
["Portugal","PT"]
["Romania","RO"]
["Serbia","RS"]
["Slovak Republic","SK"]
["Slovenia","SI"]
["Spain","ES"]
["Sweden","SE"]
["Switzerland","CH"]
["Turkey","TR"]
["Ukraine","UA"]
["United Kingdom","UK"]
["ZZZ Other (code ZZ)","ZZ"]

{"sheet":"REPORTING INSTRUCTIONS","index":1,"n_rows":23,"n_cols":2,"rows_kept":23,"cut":false,"hidden":true,"merged":[[7,0,7,8]]}
["REPORTING INSTRUCTIONS"]
[]
["You can enter values or formulas. Please do not enter links to outside files."]
[]
["When completed, please transmit via EDAMIS to Eurostat: dataset ENERGY_MINICOA_A"]
[]
["All definitions and instructions as for annual coal questionnaire apply."]
["http://ec.europa.eu/eurostat/web/energy/methodology/annual"]
[]
["FLAGS - STATUS of data points"]
["Hierarchy of observation flags - STATUS of values provided:"]
[null,"\" \" normal value = real observation = final value; value with the highest accuracy and reliability"]
["P","\"P\" provisional value or preliminary value; default status"]
["E","\"E\" estimated value or experimental value; indicated lower accuracy and reliability than provisional/preliminary values"]
["U","\"U\" uncertain value or value with very low reliability; please limit the use of this flag as much as possible"]
["O","\"O\" missing value (ommited - not available) - the cell with value should be zero or empty"]
[]
["Notes for colours and highlighting"]
["123","- cells with white background cannot be edited"]
["123","- cells in blue background can be edited (please enter new data/information here)"]
[{"$f":"A20+A19-A23","v":123},"- cells with bold font are formulas (and if with blue background, they can be edited)"]
["123","- cells with light green background show growth rates to pre-filled data"]
["123","- cells with dark green font are voluntary (consumption side of energy balance)"]

{"sheet":"REMARKS","index":2,"n_rows":1,"n_cols":1,"rows_kept":1,"cut":false,"hidden":true,"merged":[]}
["REMARKS:"]

{"sheet":"TABLES-FORMS","index":3,"n_rows":20,"n_cols":19,"rows_kept":20,"cut":false,"hidden":true,"merged":[]}
[]
[null,"units:","kt","kt","kt","kt","kt","kt","kt","kt","kt","kt","TJ GCV","TJ GCV","TJ GCV","TJ GCV","kt","kt","kt"]
[null,{"$f":"COLUMN!Q1","v":2020},"Anthracite","Coking coal","Other bituminous coal","Sub-bituminous coal","Lignite","Patent fuel","Coke oven coke","Gas coke","Coal tar","BKB","Gas works gas","Coke oven gas","Blast furnace gas","Other recovered gases","Peat","Peat products","Oil shale and oil sands"]
[null,"Indigenous production",0,0,0,0,0,0,0,0,0,0,0,0,0,0,0,0,0]
[null,"From other sources",0,0,0,0,0,0,0,0,0,0,0,0,0,0,0,0,0]
[null,"Total imports (Balance)",0,0,0,0,0,0,0,0,0,0,0,0,0,0,0,0,0]
[null,"Total exports (Balance)",0,0,0,0,0,0,0,0,0,0,0,0,0,0,0,0,0]
[null,"Stock changes (National territory)",0,0,0,0,0,0,0,0,0,0,0,0,0,0,0,0,0]
[null,"Inland consumption (Calculated)",{"$f":"C4+C5+C6-C7+C8","v":0},0,0,0,0,0,0,0,0,0,0,0,0,0,0,0,0]
[null,"Statistical Difference",{"$f":"C9-C11","v":0},0,0,0,0,0,0,0,0,0,0,0,0,0,0,0,0]
[null,"Inland consumption (Observed)",{"$f":"C12+C13+C14+C15","v":0},0,0,0,0,0,0,0,0,0,0,0,0,0,0,0,0]
[null,"Transformation sector",0,0,0,0,0,0,0,0,0,0,0,0,0,0,0,0,0]
[null,"Energy sector",0,0,0,0,0,0,0,0,0,0,0,0,0,0,0,0,0]
[null,"Distribution losses",0,0,0,0,0,0,0,0,0,0,0,0,0,0,0,0,0]
[null,"Total final consumption",{"$f":"C16+C17","v":0},0,0,0,0,0,0,0,0,0,0,0,0,0,0,0,0]
[null,"Total final non-energy consumption",0,0,0,0,0,0,0,0,0,0,0,0,0,0,0,0,0]
[null,"Total final energy consumption",{"$f":"C18+C19+C20","v":0},0,0,0,0,0,0,0,0,0,0,0,0,0,0,0,0]
[null,"Industry sector",0,0,0,0,0,0,0,0,0,0,0,0,0,0,0,0,0]
[null,"Transport sector",0,0,0,0,0,0,0,0,0,0,0,0,0,0,0,0,0]
[null,"Other sectors",0,0,0,0,0,0,0,0,0,0,0,0,0,0,0,0,0]

{"sheet":"COLUMN","index":4,"n_rows":324,"n_cols":134,"rows_kept":324,"cut":false,"hidden":true,"merged":[]}
[null,null,null,"product_id_e","flow_id_e","product_id_i","flow_id_i",{"$f":"Q1-1&\" prefilled from annual data\"","v":"2019 prefilled from annual data"},{"$f":"Q1 & \" as sum of monthly data\"","v":"2020 as sum of monthly data"},{"$f":"Q1","v":2020},"STATUS","Growth rates\nto previous\nyear","Growth rates to sum of monthly","Observation Comment",null,null,2020,"ZZZZ",{"$f":"LOOKUP(R1,COVER!A40:A81,COVER!B40:B81)","v":"ZZ"},null,null,null,null,null,null,null,null,null,null,null,null,null,null,null,null,null,null,null,null,null,null,null,null,null,null,null,null,null,null,null,null,null,null,null,null,null,null,null,null,null,null,null,null,null,null,null,null,null,null,null,null,null,null,null,null,null,null,null,null,null,null,null,null,null,null,null,null,null,null,null,null,null,null,null,null,null,null,null,null,null,null,null,null,null,null,null,null,null,null,null,null,null,null,null,null,null,null,null,null,"VALUE","OBS_STATUS","OBS_COMMENT","REF_AREA","ENERGY_PRODUCT","MAIN_FLOW","FLOW_BREAKDOWN","PLANT_TECH","PLANT_TYPE","STOCKS","INFRASTRUCTURE_IND","VIS_A_VIS_AREA","MEASURE_VALUE_TYPE","FACILITY_ID","UNIT_MEASURE"]
["kt","Anthracite","Indigenous production","2115","B_100100","ANTCOAL","INDPROD",{"$f":"PrefilledData!D6","v":0},null,0,"P",{"$f":"IF(ISERROR(J2/H2),\"\",(J2/H2)-1)","v":""},{"$f":"IF(ISERROR(J2/I2),\"\",(J2/I2)-1)","v":""},null,null,null,null,null,null,null,null,null,null,null,null,null,null,null,null,null,null,null,null,null,null,null,null,null,null,null,null,null,null,null,null,null,null,null,null,null,null,null,null,null,null,null,null,null,null,null,null,null,null,null,null,null,null,null,null,null,null,null,null,null,null,null,null,null,null,null,null,null,null,null,null,null,null,null,null,null,null,null,null,null,null,null,null,null,null,null,null,null,null,null,null,null,null,null,null,null,null,null,null,null,null,null,null,null,null,{"$f":"IF(K2=\"O\",\"NaN\",ROUND(J2,3))","v":0},{"$f":"IF(K2=\"\",\"A\",K2)","v":"P"},{"$f":"LEFT(TRIM(N2),255)","v":""},{"$f":"$S$1","v":"ZZ"},"C0110","PRODUCT","INDPROD","_Z","_Z","_Z","_Z","_Z","WEIGHT","_Z","KT"]
["kt","Anthracite","From other sources","2115","B_100200","ANTCOAL","OSOURCES",{"$f":"PrefilledData!D7","v":0},null,0,"P",{"$f":"IF(ISERROR(J3/H3),\"\",(J3/H3)-1)","v":""},{"$f":"IF(ISERROR(J3/I3),\"\",(J3/I3)-1)","v":""},null,null,null,null,null,null,null,null,null,null,null,null,null,null,null,null,null,null,null,null,null,null,null,null,null,null,null,null,null,null,null,null,null,null,null,null,null,null,null,null,null,null,null,null,null,null,null,null,null,null,null,null,null,null,null,null,null,null,null,null,null,null,null,null,null,null,null,null,null,null,null,null,null,null,null,null,null,null,null,null,null,null,null,null,null,null,null,null,null,null,null,null,null,null,null,null,null,null,null,null,null,null,null,null,null,null,{"$f":"IF(K3=\"O\",\"NaN\",ROUND(J3,3))","v":0},{"$f":"IF(K3=\"\",\"A\",K3)","v":"P"},{"$f":"LEFT(TRIM(N3),255)","v":""},"ZZ","C0110","SUPPLY","OSOURCES","_Z","_Z","_Z","_Z","_Z","WEIGHT","_Z","KT"]
["kt","Anthracite","Total imports (Balance)","2115","B_100300","ANTCOAL","TOTIMPSB",{"$f":"PrefilledData!D8","v":0},null,0,"P","","",null,null,null,null,null,null,null,null,null,null,null,null,null,null,null,null,null,null,null,null,null,null,null,null,null,null,null,null,null,null,null,null,null,null,null,null,null,null,null,null,null,null,null,null,null,null,null,null,null,null,null,null,null,null,null,null,null,null,null,null,null,null,null,null,null,null,null,null,null,null,null,null,null,null,null,null,null,null,null,null,null,null,null,null,null,null,null,null,null,null,null,null,null,null,null,null,null,null,null,null,null,null,null,null,null,null,0,"P","","ZZ","C0110","IMPORTS","TOTIMPSB","_Z","_Z","_Z","_Z","_Z","WEIGHT","_Z","KT"]
["kt","Anthracite","Total exports (Balance)","2115","B_100500","ANTCOAL","TOTEXPSB",{"$f":"PrefilledData!D9","v":0},null,0,"P","","",null,null,null,null,null,null,null,null,null,null,null,null,null,null,null,null,null,null,null,null,null,null,null,null,null,null,null,null,null,null,null,null,null,null,null,null,null,null,null,null,null,null,null,null,null,null,null,null,null,null,null,null,null,null,null,null,null,null,null,null,null,null,null,null,null,null,null,null,null,null,null,null,null,null,null,null,null,null,null,null,null,null,null,null,null,null,null,null,null,null,null,null,null,null,null,null,null,null,null,null,null,null,null,null,null,null,0,"P","","ZZ","C0110","EXPORTS","TOTEXPSB","_Z","_Z","_Z","_Z","_Z","WEIGHT","_Z","KT"]
["kt","Anthracite","Stock changes (National territory)","2115","B_100400","ANTCOAL","STCHANAT",{"$f":"PrefilledData!D10","v":0},null,0,"P","","",null,null,null,null,null,null,null,null,null,null,null,null,null,null,null,null,null,null,null,null,null,null,null,null,null,null,null,null,null,null,null,null,null,null,null,null,null,null,null,null,null,null,null,null,null,null,null,null,null,null,null,null,null,null,null,null,null,null,null,null,null,null,null,null,null,null,null,null,null,null,null,null,null,null,null,null,null,null,null,null,null,null,null,null,null,null,null,null,null,null,null,null,null,null,null,null,null,null,null,null,null,null,null,null,null,null,0,"P","","ZZ","C0110","STOCKS","STOCKCH","_Z","_Z","NATTER","_Z","_Z","WEIGHT","_Z","KT"]
["kt","Anthracite","Inland consumption (Calculated)",null,null,null,null,{"$f":"H2+H3+H4-H5+H6","v":0},null,{"$f":"J2+J3+J4-J5+J6","v":0},"P","","",null,null,null,null,null,null,null,null,null,null,null,null,null,null,null,null,null,null,null,null,null,null,null,null,null,null,null,null,null,null,null,null,null,null,null,null,null,null,null,null,null,null,null,null,null,null,null,null,null,null,null,null,null,null,null,null,null,null,null,null,null,null,null,null,null,null,null,null,null,null,null,null,null,null,null,null,null,null,null,null,null,null,null,null,null,null,null,null,null,null,null,null,null,null,null,null,null,null,null,null,null,null,null,null,null,null,0,"P","","ZZ","C0110","SUPPLY","INLDEMC","_Z","_Z","_Z","_Z","_Z","WEIGHT","_Z","KT"]
["kt","Anthracite","Statistical Difference",null,null,null,null,{"$f":"H7-H9","v":0},null,{"$f":"J7-J9","v":0},"P",null,null,null,null,null,null,null,null,null,null,null,null,null,null,null,null,null,null,null,null,null,null,null,null,null,null,null,null,null,null,null,null,null,null,null,null,null,null,null,null,null,null,null,null,null,null,null,null,null,null,null,null,null,null,null,null,null,null,null,null,null,null,null,null,null,null,null,null,null,null,null,null,null,null,null,null,null,null,null,null,null,null,null,null,null,null,null,null,null,null,null,null,null,null,null,null,null,null,null,null,null,null,null,null,null,null,null,null,0,"P","","ZZ","C0110","STATDIFF","_Z","_Z","_Z","_Z","_Z","_Z","WEIGHT","_Z","KT"]
["kt","Anthracite","Inland consumption (Observed)",null,null,null,null,{"$f":"H10+H11+H12+H13","v":0},null,{"$f":"J10+J11+J12+J13","v":0},"P","","",null,null,null,null,null,null,null,null,null,null,null,null,null,null,null,null,null,null,null,null,null,null,null,null,null,null,null,null,null,null,null,null,null,null,null,null,null,null,null,null,null,null,null,null,null,null,null,null,null,null,null,null,null,null,null,null,null,null,null,null,null,null,null,null,null,null,null,null,null,null,null,null,null,null,null,null,null,null,null,null,null,null,null,null,null,null,null,null,null,null,null,null,null,null,null,null,null,null,null,null,null,null,null,null,null,null,0,"P","","ZZ","C0110","DEMAND","INLDEMO","_Z","_Z","_Z","_Z","_Z","WEIGHT","_Z","KT"]
["kt","Anthracite","Transformation sector","2115","DB_101000","ANTCOAL","TOTTRANF",{"$f":"PrefilledData!D12","v":0},null,0,"P","","",null,null,null,null,null,null,null,null,null,null,null,null,null,null,null,null,null,null,null,null,null,null,null,null,null,null,null,null,null,null,null,null,null,null,null,null,null,null,null,null,null,null,null,null,null,null,null,null,null,null,null,null,null,null,null,null,null,null,null,null,null,null,null,null,null,null,null,null,null,null,null,null,null,null,null,null,null,null,null,null,null,null,null,null,null,null,null,null,null,null,null,null,null,null,null,null,null,null,null,null,null,null,null,null,null,null,0,"P","","ZZ","C0110","TRANSFOR","TOTRANSF","_Z","_Z","_Z","_Z","_Z","WEIGHT","_Z","KT"]
["kt","Anthracite","Energy sector","2115","DB_101300","ANTCOAL","TOTENGY",{"$f":"PrefilledData!D13","v":0},null,0,"P","","",null,null,null,null,null,null,null,null,null,null,null,null,null,null,null,null,null,null,null,null,null,null,null,null,null,null,null,null,null,null,null,null,null,null,null,null,null,null,null,null,null,null,null,null,null,null,null,null,null,null,null,null,null,null,null,null,null,null,null,null,null,null,null,null,null,null,null,null,null,null,null,null,null,null,null,null,null,null,null,null,null,null,null,null,null,null,null,null,null,null,null,null,null,null,null,null,null,null,null,null,null,null,null,null,null,null,0,"P","","ZZ","C0110","ENERGUSE","ENERSECT","_Z","_Z","_Z","_Z","_Z","WEIGHT","_Z","KT"]
["kt","Anthracite","Distribution losses","2115","B_101400","ANTCOAL","DISTLOSS",{"$f":"PrefilledData!D14","v":0},null,0,"P","","",null,null,null,null,null,null,null,null,null,null,null,null,null,null,null,null,null,null,null,null,null,null,null,null,null,null,null,null,null,null,null,null,null,null,null,null,null,null,null,null,null,null,null,null,null,null,null,null,null,null,null,null,null,null,null,null,null,null,null,null,null,null,null,null,null,null,null,null,null,null,null,null,null,null,null,null,null,null,null,null,null,null,null,null,null,null,null,null,null,null,null,null,null,null,null,null,null,null,null,null,null,null,null,null,null,null,0,"P","","ZZ","C0110","LOSSES","DISTLOSS","_Z","_Z","_Z","_Z","_Z","WEIGHT","_Z","KT"]
["kt","Anthracite","Total final consumption",null,null,null,null,{"$f":"H14+H15","v":0},null,{"$f":"J14+J15","v":0},"P","","",null,null,null,null,null,null,null,null,null,null,null,null,null,null,null,null,null,null,null,null,null,null,null,null,null,null,null,null,null,null,null,null,null,null,null,null,null,null,null,null,null,null,null,null,null,null,null,null,null,null,null,null,null,null,null,null,null,null,null,null,null,null,null,null,null,null,null,null,null,null,null,null,null,null,null,null,null,null,null,null,null,null,null,null,null,null,null,null,null,null,null,null,null,null,null,null,null,null,null,null,null,null,null,null,null,null,0,"P","","ZZ","C0110","CONSUMPT","FINCONS","_Z","_Z","_Z","_Z","_Z","WEIGHT","_Z","KT"]
["kt","Anthracite","Total final non-energy consumption","2115","B_101600","ANTCOAL","NONENUSE",{"$f":"PrefilledData!D16","v":0},null,0,"P","","",null,null,null,null,null,null,null,null,null,null,null,null,null,null,null,null,null,null,null,null,null,null,null,null,null,null,null,null,null,null,null,null,null,null,null,null,null,null,null,null,null,null,null,null,null,null,null,null,null,null,null,null,null,null,null,null,null,null,null,null,null,null,null,null,null,null,null,null,null,null,null,null,null,null,null,null,null,null,null,null,null,null,null,null,null,null,null,null,null,null,null,null,null,null,null,null,null,null,null,null,null,null,null,null,null,null,0,"P","","ZZ","C0110","NONENUSE","_T","_Z","_Z","_Z","_Z","_Z","WEIGHT","_Z","KT"]
["kt","Anthracite","Total final energy consumption",null,null,null,null,{"$f":"SUM(H16:H18)","v":0},null,{"$f":"J16+J17+J18","v":0},"P","","",null,null,null,null,null,null,null,null,null,null,null,null,null,null,null,null,null,null,null,null,null,null,null,null,null,null,null,null,null,null,null,null,null,null,null,null,null,null,null,null,null,null,null,null,null,null,null,null,null,null,null,null,null,null,null,null,null,null,null,null,null,null,null,null,null,null,null,null,null,null,null,null,null,null,null,null,null,null,null,null,null,null,null,null,null,null,null,null,null,null,null,null,null,null,null,null,null,null,null,null,null,null,null,null,null,null,0,"P","","ZZ","C0110","ENERGUSE","FINCONS","_Z","_Z","_Z","_Z","_Z","WEIGHT","_Z","KT"]
["kt","Anthracite","Industry sector","2115","DB_101800","ANTCOAL","TOTIND",{"$f":"PrefilledData!D18","v":0},null,0,"P","","",null,null,null,null,null,null,null,null,null,null,null,null,null,null,null,null,null,null,null,null,null,null,null,null,null,null,null,null,null,null,null,null,null,null,null,null,null,null,null,null,null,null,null,null,null,null,null,null,null,null,null,null,null,null,null,null,null,null,null,null,null,null,null,null,null,null,null,null,null,null,null,null,null,null,null,null,null,null,null,null,null,null,null,null,null,null,null,null,null,null,null,null,null,null,null,null,null,null,null,null,null,null,null,null,null,null,0,"P","","ZZ","C0110","ENERGUSE","INDUSTRY","_Z","_Z","_Z","_Z","_Z","WEIGHT","_Z","KT"]
["kt","Anthracite","Transport sector","2115","B_101900","ANTCOAL","TOTTRANS",{"$f":"PrefilledData!D19","v":0},null,0,"P","","",null,null,null,null,null,null,null,null,null,null,null,null,null,null,null,null,null,null,null,null,null,null,null,null,null,null,null,null,null,null,null,null,null,null,null,null,null,null,null,null,null,null,null,null,null,null,null,null,null,null,null,null,null,null,null,null,null,null,null,null,null,null,null,null,null,null,null,null,null,null,null,null,null,null,null,null,null,null,null,null,null,null,null,null,null,null,null,null,null,null,null,null,null,null,null,null,null,null,null,null,null,null,null,null,null,null,0,"P","","ZZ","C0110","ENERGUSE","TRANSPOR","_Z","_Z","_Z","_Z","_Z","WEIGHT","_Z","KT"]
["kt","Anthracite","Other sectors","2115","B_102000","ANTCOAL","TOTOTHER",{"$f":"PrefilledData!D20","v":0},null,0,"P","","",null,null,null,null,null,null,null,null,null,null,null,null,null,null,null,null,null,null,null,null,null,null,null,null,null,null,null,null,null,null,null,null,null,null,null,null,null,null,null,null,null,null,null,null,null,null,null,null,null,null,null,null,null,null,null,null,null,null,null,null,null,null,null,null,null,null,null,null,null,null,null,null,null,null,null,null,null,null,null,null,null,null,null,null,null,null,null,null,null,null,null,null,null,null,null,null,null,null,null,null,null,null,null,null,null,null,0,"P","","ZZ","C0110","ENERGUSE","OTHSECT","_Z","_Z","_Z","_Z","_Z","WEIGHT","_Z","KT"]
["kt","Coking coal","Indigenous production","2116","B_100100","COKCOAL","INDPROD",{"$f":"PrefilledData!E6","v":0},null,0,"P",{"$f":"IF(ISERROR(J19/H19),\"\",(J19/H19)-1)","v":""},{"$f":"IF(ISERROR(J19/I19),\"\",(J19/I19)-1)","v":""},null,null,null,null,null,null,null,null,null,null,null,null,null,null,null,null,null,null,null,null,null,null,null,null,null,null,null,null,null,null,null,null,null,null,null,null,null,null,null,null,null,null,null,null,null,null,null,null,null,null,null,null,null,null,null,null,null,null,null,null,null,null,null,null,null,null,null,null,null,null,null,null,null,null,null,null,null,null,null,null,null,null,null,null,null,null,null,null,null,null,null,null,null,null,null,null,null,null,null,null,null,null,null,null,null,null,0,"P","","ZZ","C0121","PRODUCT","INDPROD","_Z","_Z","_Z","_Z","_Z","WEIGHT","_Z","KT"]
["kt","Coking coal","From other sources","2116","B_100200","COKCOAL","OSOURCES",{"$f":"PrefilledData!E7","v":0},null,0,"P",{"$f":"IF(ISERROR(J20/H20),\"\",(J20/H20)-1)","v":""},{"$f":"IF(ISERROR(J20/I20),\"\",(J20/I20)-1)","v":""},null,null,null,null,null,null,null,null,null,null,null,null,null,null,null,null,null,null,null,null,null,null,null,null,null,null,null,null,null,null,null,null,null,null,null,null,null,null,null,null,null,null,null,null,null,null,null,null,null,null,null,null,null,null,null,null,null,null,null,null,null,null,null,null,null,null,null,null,null,null,null,null,null,null,null,null,null,null,null,null,null,null,null,null,null,null,null,null,null,null,null,null,null,null,null,null,null,null,null,null,null,null,null,null,null,null,0,"P","","ZZ","C0121","SUPPLY","OSOURCES","_Z","_Z","_Z","_Z","_Z","WEIGHT","_Z","KT"]
["kt","Coking coal","Total imports (Balance)","2116","B_100300","COKCOAL","TOTIMPSB",{"$f":"PrefilledData!E8","v":0},null,0,"P","","",null,null,null,null,null,null,null,null,null,null,null,null,null,null,null,null,null,null,null,null,null,null,null,null,null,null,null,null,null,null,null,null,null,null,null,null,null,null,null,null,null,null,null,null,null,null,null,null,null,null,null,null,null,null,null,null,null,null,null,null,null,null,null,null,null,null,null,null,null,null,null,null,null,null,null,null,null,null,null,null,null,null,null,null,null,null,null,null,null,null,null,null,null,null,null,null,null,null,null,null,null,null,null,null,null,null,0,"P","","ZZ","C0121","IMPORTS","TOTIMPSB","_Z","_Z","_Z","_Z","_Z","WEIGHT","_Z","KT"]
["kt","Coking coal","Total exports (Balance)","2116","B_100500","COKCOAL","TOTEXPSB",{"$f":"PrefilledData!E9","v":0},null,0,"P","","",null,null,null,null,null,null,null,null,null,null,null,null,null,null,null,null,null,null,null,null,null,null,null,null,null,null,null,null,null,null,null,null,null,null,null,null,null,null,null,null,null,null,null,null,null,null,null,null,null,null,null,null,null,null,null,null,null,null,null,null,null,null,null,null,null,null,null,null,null,null,null,null,null,null,null,null,null,null,null,null,null,null,null,null,null,null,null,null,null,null,null,null,null,null,null,null,null,null,null,null,null,null,null,null,null,null,0,"P","","ZZ","C0121","EXPORTS","TOTEXPSB","_Z","_Z","_Z","_Z","_Z","WEIGHT","_Z","KT"]
["kt","Coking coal","Stock changes (National territory)","2116","B_100400","COKCOAL","STCHANAT",{"$f":"PrefilledData!E10","v":0},null,0,"P","","",null,null,null,null,null,null,null,null,null,null,null,null,null,null,null,null,null,null,null,null,null,null,null,null,null,null,null,null,null,null,null,null,null,null,null,null,null,null,null,null,null,null,null,null,null,null,null,null,null,null,null,null,null,null,null,null,null,null,null,null,null,null,null,null,null,null,null,null,null,null,null,null,null,null,null,null,null,null,null,null,null,null,null,null,null,null,null,null,null,null,null,null,null,null,null,null,null,null,null,null,null,null,null,null,null,null,0,"P","","ZZ","C0121","STOCKS","STOCKCH","_Z","_Z","NATTER","_Z","_Z","WEIGHT","_Z","KT"]
["kt","Coking coal","Inland consumption (Calculated)",null,null,null,null,{"$f":"H19+H20+H21-H22+H23","v":0},null,{"$f":"J19+J20+J21-J22+J23","v":0},"P","","",null,null,null,null,null,null,null,null,null,null,null,null,null,null,null,null,null,null,null,null,null,null,null,null,null,null,null,null,null,null,null,null,null,null,null,null,null,null,null,null,null,null,null,null,null,null,null,null,null,null,null,null,null,null,null,null,null,null,null,null,null,null,null,null,null,null,null,null,null,null,null,null,null,null,null,null,null,null,null,null,null,null,null,null,null,null,null,null,null,null,null,null,null,null,null,null,null,null,null,null,null,null,null,null,null,null,0,"P","","ZZ","C0121","SUPPLY","INLDEMC","_Z","_Z","_Z","_Z","_Z","WEIGHT","_Z","KT"]
["kt","Coking coal","Statistical Difference",null,null,null,null,{"$f":"H24-H26","v":0},null,{"$f":"J24-J26","v":0},"P",null,null,null,null,null,null,null,null,null,null,null,null,null,null,null,null,null,null,null,null,null,null,null,null,null,null,null,null,null,null,null,null,null,null,null,null,null,null,null,null,null,null,null,null,null,null,null,null,null,null,null,null,null,null,null,null,null,null,null,null,null,null,null,null,null,null,null,null,null,null,null,null,null,null,null,null,null,null,null,null,null,null,null,null,null,null,null,null,null,null,null,null,null,null,null,null,null,null,null,null,null,null,null,null,null,null,null,null,0,"P","","ZZ","C0121","STATDIFF","_Z","_Z","_Z","_Z","_Z","_Z","WEIGHT","_Z","KT"]
["kt","Coking coal","Inland consumption (Observed)",null,null,null,null,{"$f":"H27+H28+H29+H30","v":0},null,{"$f":"J27+J28+J29+J30","v":0},"O","","",null,null,null,null,null,null,null,null,null,null,null,null,null,null,null,null,null,null,null,null,null,null,null,null,null,null,null,null,null,null,null,null,null,null,null,null,null,null,null,null,null,null,null,null,null,null,null,null,null,null,null,null,null,null,null,null,null,null,null,null,null,null,null,null,null,null,null,null,null,null,null,null,null,null,null,null,null,null,null,null,null,null,null,null,null,null,null,null,null,null,null,null,null,null,null,null,null,null,null,null,null,null,null,null,null,null,"NaN","O","","ZZ","C0121","DEMAND","INLDEMO","_Z","_Z","_Z","_Z","_Z","WEIGHT","_Z","KT"]
["kt","Coking coal","Transformation sector","2116","DB_101000","COKCOAL","TOTTRANF",{"$f":"PrefilledData!E12","v":0},null,0,"O","","",null,null,null,null,null,null,null,null,null,null,null,null,null,null,null,null,null,null,null,null,null,null,null,null,null,null,null,null,null,null,null,null,null,null,null,null,null,null,null,null,null,null,null,null,null,null,null,null,null,null,null,null,null,null,null,null,null,null,null,null,null,null,null,null,null,null,null,null,null,null,null,null,null,null,null,null,null,null,null,null,null,null,null,null,null,null,null,null,null,null,null,null,null,null,null,null,null,null,null,null,null,null,null,null,null,null,"NaN","O","","ZZ","C0121","TRANSFOR","TOTRANSF","_Z","_Z","_Z","_Z","_Z","WEIGHT","_Z","KT"]
["kt","Coking coal","Energy sector","2116","DB_101300","COKCOAL","TOTENGY",{"$f":"PrefilledData!E13","v":0},null,0,"O","","",null,null,null,null,null,null,null,null,null,null,null,null,null,null,null,null,null,null,null,null,null,null,null,null,null,null,null,null,null,null,null,null,null,null,null,null,null,null,null,null,null,null,null,null,null,null,null,null,null,null,null,null,null,null,null,null,null,null,null,null,null,null,null,null,null,null,null,null,null,null,null,null,null,null,null,null,null,null,null,null,null,null,null,null,null,null,null,null,null,null,null,null,null,null,null,null,null,null,null,null,null,null,null,null,null,null,"NaN","O","","ZZ","C0121","ENERGUSE","ENERSECT","_Z","_Z","_Z","_Z","_Z","WEIGHT","_Z","KT"]
["kt","Coking coal","Distribution losses","2116","B_101400","COKCOAL","DISTLOSS",{"$f":"PrefilledData!E14","v":0},null,0,"O","","",null,null,null,null,null,null,null,null,null,null,null,null,null,null,null,null,null,null,null,null,null,null,null,null,null,null,null,null,null,null,null,null,null,null,null,null,null,null,null,null,null,null,null,null,null,null,null,null,null,null,null,null,null,null,null,null,null,null,null,null,null,null,null,null,null,null,null,null,null,null,null,null,null,null,null,null,null,null,null,null,null,null,null,null,null,null,null,null,null,null,null,null,null,null,null,null,null,null,null,null,null,null,null,null,null,null,"NaN","O","","ZZ","C0121","LOSSES","DISTLOSS","_Z","_Z","_Z","_Z","_Z","WEIGHT","_Z","KT"]
["kt","Coking coal","Total final consumption",null,null,null,null,{"$f":"H31+H32","v":0},null,{"$f":"J31+J32","v":0},"O","","",null,null,null,null,null,null,null,null,null,null,null,null,null,null,null,null,null,null,null,null,null,null,null,null,null,null,null,null,null,null,null,null,null,null,null,null,null,null,null,null,null,null,null,null,null,null,null,null,null,null,null,null,null,null,null,null,null,null,null,null,null,null,null,null,null,null,null,null,null,null,null,null,null,null,null,null,null,null,null,null,null,null,null,null,null,null,null,null,null,null,null,null,null,null,null,null,null,null,null,null,null,null,null,null,null,null,"NaN","O","","ZZ","C0121","CONSUMPT","FINCONS","_Z","_Z","_Z","_Z","_Z","WEIGHT","_Z","KT"]
["kt","Coking coal","Total final non-energy consumption","2116","B_101600","COKCOAL","NONENUSE",{"$f":"PrefilledData!E16","v":0},null,0,"O","","",null,null,null,null,null,null,null,null,null,null,null,null,null,null,null,null,null,null,null,null,null,null,null,null,null,null,null,null,null,null,null,null,null,null,null,null,null,null,null,null,null,null,null,null,null,null,null,null,null,null,null,null,null,null,null,null,null,null,null,null,null,null,null,null,null,null,null,null,null,null,null,null,null,null,null,null,null,null,null,null,null,null,null,null,null,null,null,null,null,null,null,null,null,null,null,null,null,null,null,null,null,null,null,null,null,null,"NaN","O","","ZZ","C0121","NONENUSE","_T","_Z","_Z","_Z","_Z","_Z","WEIGHT","_Z","KT"]
["kt","Coking coal","Total final energy consumption",null,null,null,null,{"$f":"SUM(H33:H35)","v":0},null,{"$f":"J33+J34+J35","v":0},"O","","",null,null,null,null,null,null,null,null,null,null,null,null,null,null,null,null,null,null,null,null,null,null,null,null,null,null,null,null,null,null,null,null,null,null,null,null,null,null,null,null,null,null,null,null,null,null,null,null,null,null,null,null,null,null,null,null,null,null,null,null,null,null,null,null,null,null,null,null,null,null,null,null,null,null,null,null,null,null,null,null,null,null,null,null,null,null,null,null,null,null,null,null,null,null,null,null,null,null,null,null,null,null,null,null,null,null,"NaN","O","","ZZ","C0121","ENERGUSE","FINCONS","_Z","_Z","_Z","_Z","_Z","WEIGHT","_Z","KT"]
["kt","Coking coal","Industry sector","2116","DB_101800","COKCOAL","TOTIND",{"$f":"PrefilledData!E18","v":0},null,0,"O","","",null,null,null,null,null,null,null,null,null,null,null,null,null,null,null,null,null,null,null,null,null,null,null,null,null,null,null,null,null,null,null,null,null,null,null,null,null,null,null,null,null,null,null,null,null,null,null,null,null,null,null,null,null,null,null,null,null,null,null,null,null,null,null,null,null,null,null,null,null,null,null,null,null,null,null,null,null,null,null,null,null,null,null,null,null,null,null,null,null,null,null,null,null,null,null,null,null,null,null,null,null,null,null,null,null,null,"NaN","O","","ZZ","C0121","ENERGUSE","INDUSTRY","_Z","_Z","_Z","_Z","_Z","WEIGHT","_Z","KT"]
["kt","Coking coal","Transport sector","2116","B_101900","COKCOAL","TOTTRANS",{"$f":"PrefilledData!E19","v":0},null,0,"O","","",null,null,null,null,null,null,null,null,null,null,null,null,null,null,null,null,null,null,null,null,null,null,null,null,null,null,null,null,null,null,null,null,null,null,null,null,null,null,null,null,null,null,null,null,null,null,null,null,null,null,null,null,null,null,null,null,null,null,null,null,null,null,null,null,null,null,null,null,null,null,null,null,null,null,null,null,null,null,null,null,null,null,null,null,null,null,null,null,null,null,null,null,null,null,null,null,null,null,null,null,null,null,null,null,null,null,"NaN","O","","ZZ","C0121","ENERGUSE","TRANSPOR","_Z","_Z","_Z","_Z","_Z","WEIGHT","_Z","KT"]
["kt","Coking coal","Other sectors","2116","B_102000","COKCOAL","TOTOTHER",{"$f":"PrefilledData!E20","v":0},null,0,"O","","",null,null,null,null,null,null,null,null,null,null,null,null,null,null,null,null,null,null,null,null,null,null,null,null,null,null,null,null,null,null,null,null,null,null,null,null,null,null,null,null,null,null,null,null,null,null,null,null,null,null,null,null,null,null,null,null,null,null,null,null,null,null,null,null,null,null,null,null,null,null,null,null,null,null,null,null,null,null,null,null,null,null,null,null,null,null,null,null,null,null,null,null,null,null,null,null,null,null,null,null,null,null,null,null,null,null,"NaN","O","","ZZ","C0121","ENERGUSE","OTHSECT","_Z","_Z","_Z","_Z","_Z","WEIGHT","_Z","KT"]
["kt","Other bituminous coal","Indigenous production","2117","B_100100","BITCOAL","INDPROD",{"$f":"PrefilledData!F6","v":0},null,0,"P",{"$f":"IF(ISERROR(J36/H36),\"\",(J36/H36)-1)","v":""},{"$f":"IF(ISERROR(J36/I36),\"\",(J36/I36)-1)","v":""},null,null,null,null,null,null,null,null,null,null,null,null,null,null,null,null,null,null,null,null,null,null,null,null,null,null,null,null,null,null,null,null,null,null,null,null,null,null,null,null,null,null,null,null,null,null,null,null,null,null,null,null,null,null,null,null,null,null,null,null,null,null,null,null,null,null,null,null,null,null,null,null,null,null,null,null,null,null,null,null,null,null,null,null,null,null,null,null,null,null,null,null,null,null,null,null,null,null,null,null,null,null,null,null,null,null,0,"P","","ZZ","C0129","PRODUCT","INDPROD","_Z","_Z","_Z","_Z","_Z","WEIGHT","_Z","KT"]
["kt","Other bituminous coal","From other sources","2117","B_100200","BITCOAL","OSOURCES",{"$f":"PrefilledData!F7","v":0},null,0,"P",{"$f":"IF(ISERROR(J37/H37),\"\",(J37/H37)-1)","v":""},{"$f":"IF(ISERROR(J37/I37),\"\",(J37/I37)-1)","v":""},null,null,null,null,null,null,null,null,null,null,null,null,null,null,null,null,null,null,null,null,null,null,null,null,null,null,null,null,null,null,null,null,null,null,null,null,null,null,null,null,null,null,null,null,null,null,null,null,null,null,null,null,null,null,null,null,null,null,null,null,null,null,null,null,null,null,null,null,null,null,null,null,null,null,null,null,null,null,null,null,null,null,null,null,null,null,null,null,null,null,null,null,null,null,null,null,null,null,null,null,null,null,null,null,null,null,0,"P","","ZZ","C0129","SUPPLY","OSOURCES","_Z","_Z","_Z","_Z","_Z","WEIGHT","_Z","KT"]
["kt","Other bituminous coal","Total imports (Balance)","2117","B_100300","BITCOAL","TOTIMPSB",{"$f":"PrefilledData!F8","v":0},null,0,"P","","",null,null,null,null,null,null,null,null,null,null,null,null,null,null,null,null,null,null,null,null,null,null,null,null,null,null,null,null,null,null,null,null,null,null,null,null,null,null,null,null,null,null,null,null,null,null,null,null,null,null,null,null,null,null,null,null,null,null,null,null,null,null,null,null,null,null,null,null,null,null,null,null,null,null,null,null,null,null,null,null,null,null,null,null,null,null,null,null,null,null,null,null,null,null,null,null,null,null,null,null,null,null,null,null,null,null,0,"P","","ZZ","C0129","IMPORTS","TOTIMPSB","_Z","_Z","_Z","_Z","_Z","WEIGHT","_Z","KT"]
["kt","Other bituminous coal","Total exports (Balance)","2117","B_100500","BITCOAL","TOTEXPSB",{"$f":"PrefilledData!F9","v":0},null,0,"P","","",null,null,null,null,null,null,null,null,null,null,null,null,null,null,null,null,null,null,null,null,null,null,null,null,null,null,null,null,null,null,null,null,null,null,null,null,null,null,null,null,null,null,null,null,null,null,null,null,null,null,null,null,null,null,null,null,null,null,null,null,null,null,null,null,null,null,null,null,null,null,null,null,null,null,null,null,null,null,null,null,null,null,null,null,null,null,null,null,null,null,null,null,null,null,null,null,null,null,null,null,null,null,null,null,null,null,0,"P","","ZZ","C0129","EXPORTS","TOTEXPSB","_Z","_Z","_Z","_Z","_Z","WEIGHT","_Z","KT"]
["kt","Other bituminous coal","Stock changes (National territory)","2117","B_100400","BITCOAL","STCHANAT",{"$f":"PrefilledData!F10","v":0},null,0,"P","","",null,null,null,null,null,null,null,null,null,null,null,null,null,null,null,null,null,null,null,null,null,null,null,null,null,null,null,null,null,null,null,null,null,null,null,null,null,null,null,null,null,null,null,null,null,null,null,null,null,null,null,null,null,null,null,null,null,null,null,null,null,null,null,null,null,null,null,null,null,null,null,null,null,null,null,null,null,null,null,null,null,null,null,null,null,null,null,null,null,null,null,null,null,null,null,null,null,null,null,null,null,null,null,null,null,null,0,"P","","ZZ","C0129","STOCKS","STOCKCH","_Z","_Z","NATTER","_Z","_Z","WEIGHT","_Z","KT"]
["kt","Other bituminous coal","Inland consumption (Calculated)",null,null,null,null,{"$f":"H36+H37+H38-H39+H40","v":0},null,{"$f":"J36+J37+J38-J39+J40","v":0},"P","","",null,null,null,null,null,null,null,null,null,null,null,null,null,null,null,null,null,null,null,null,null,null,null,null,null,null,null,null,null,null,null,null,null,null,null,null,null,null,null,null,null,null,null,null,null,null,null,null,null,null,null,null,null,null,null,null,null,null,null,null,null,null,null,null,null,null,null,null,null,null,null,null,null,null,null,null,null,null,null,null,null,null,null,null,null,null,null,null,null,null,null,null,null,null,null,null,null,null,null,null,null,null,null,null,null,null,0,"P","","ZZ","C0129","SUPPLY","INLDEMC","_Z","_Z","_Z","_Z","_Z","WEIGHT","_Z","KT"]
["kt","Other bituminous coal","Statistical Difference",null,null,null,null,{"$f":"H41-H43","v":0},null,{"$f":"J41-J43","v":0},"P",null,null,null,null,null,null,null,null,null,null,null,null,null,null,null,null,null,null,null,null,null,null,null,null,null,null,null,null,null,null,null,null,null,null,null,null,null,null,null,null,null,null,null,null,null,null,null,null,null,null,null,null,null,null,null,null,null,null,null,null,null,null,null,null,null,null,null,null,null,null,null,null,null,null,null,null,null,null,null,null,null,null,null,null,null,null,null,null,null,null,null,null,null,null,null,null,null,null,null,null,null,null,null,null,null,null,null,null,0,"P","","ZZ","C0129","STATDIFF","_Z","_Z","_Z","_Z","_Z","_Z","WEIGHT","_Z","KT"]
["kt","Other bituminous coal","Inland consumption (Observed)",null,null,null,null,{"$f":"H44+H45+H46+H47","v":0},null,{"$f":"J44+J45+J46+J47","v":0},"P","","",null,null,null,null,null,null,null,null,null,null,null,null,null,null,null,null,null,null,null,null,null,null,null,null,null,null,null,null,null,null,null,null,null,null,null,null,null,null,null,null,null,null,null,null,null,null,null,null,null,null,null,null,null,null,null,null,null,null,null,null,null,null,null,null,null,null,null,null,null,null,null,null,null,null,null,null,null,null,null,null,null,null,null,null,null,null,null,null,null,null,null,null,null,null,null,null,null,null,null,null,null,null,null,null,null,null,0,"P","","ZZ","C0129","DEMAND","INLDEMO","_Z","_Z","_Z","_Z","_Z","WEIGHT","_Z","KT"]
["kt","Other bituminous coal","Transformation sector","2117","DB_101000","BITCOAL","TOTTRANF",{"$f":"PrefilledData!F12","v":0},null,0,"P","","",null,null,null,null,null,null,null,null,null,null,null,null,null,null,null,null,null,null,null,null,null,null,null,null,null,null,null,null,null,null,null,null,null,null,null,null,null,null,null,null,null,null,null,null,null,null,null,null,null,null,null,null,null,null,null,null,null,null,null,null,null,null,null,null,null,null,null,null,null,null,null,null,null,null,null,null,null,null,null,null,null,null,null,null,null,null,null,null,null,null,null,null,null,null,null,null,null,null,null,null,null,null,null,null,null,null,0,"P","","ZZ","C0129","TRANSFOR","TOTRANSF","_Z","_Z","_Z","_Z","_Z","WEIGHT","_Z","KT"]
["kt","Other bituminous coal","Energy sector","2117","DB_101300","BITCOAL","TOTENGY",{"$f":"PrefilledData!F13","v":0},null,0,"P","","",null,null,null,null,null,null,null,null,null,null,null,null,null,null,null,null,null,null,null,null,null,null,null,null,null,null,null,null,null,null,null,null,null,null,null,null,null,null,null,null,null,null,null,null,null,null,null,null,null,null,null,null,null,null,null,null,null,null,null,null,null,null,null,null,null,null,null,null,null,null,null,null,null,null,null,null,null,null,null,null,null,null,null,null,null,null,null,null,null,null,null,null,null,null,null,null,null,null,null,null,null,null,null,null,null,null,0,"P","","ZZ","C0129","ENERGUSE","ENERSECT","_Z","_Z","_Z","_Z","_Z","WEIGHT","_Z","KT"]
["kt","Other bituminous coal","Distribution losses","2117","B_101400","BITCOAL","DISTLOSS",{"$f":"PrefilledData!F14","v":0},null,0,"P","","",null,null,null,null,null,null,null,null,null,null,null,null,null,null,null,null,null,null,null,null,null,null,null,null,null,null,null,null,null,null,null,null,null,null,null,null,null,null,null,null,null,null,null,null,null,null,null,null,null,null,null,null,null,null,null,null,null,null,null,null,null,null,null,null,null,null,null,null,null,null,null,null,null,null,null,null,null,null,null,null,null,null,null,null,null,null,null,null,null,null,null,null,null,null,null,null,null,null,null,null,null,null,null,null,null,null,0,"P","","ZZ","C0129","LOSSES","DISTLOSS","_Z","_Z","_Z","_Z","_Z","WEIGHT","_Z","KT"]
["kt","Other bituminous coal","Total final consumption",null,null,null,null,{"$f":"H48+H49","v":0},null,{"$f":"J48+J49","v":0},"P","","",null,null,null,null,null,null,null,null,null,null,null,null,null,null,null,null,null,null,null,null,null,null,null,null,null,null,null,null,null,null,null,null,null,null,null,null,null,null,null,null,null,null,null,null,null,null,null,null,null,null,null,null,null,null,null,null,null,null,null,null,null,null,null,null,null,null,null,null,null,null,null,null,null,null,null,null,null,null,null,null,null,null,null,null,null,null,null,null,null,null,null,null,null,null,null,null,null,null,null,null,null,null,null,null,null,null,0,"P","","ZZ","C0129","CONSUMPT","FINCONS","_Z","_Z","_Z","_Z","_Z","WEIGHT","_Z","KT"]
["kt","Other bituminous coal","Total final non-energy consumption","2117","B_101600","BITCOAL","NONENUSE",{"$f":"PrefilledData!F16","v":0},null,0,"P","","",null,null,null,null,null,null,null,null,null,null,null,null,null,null,null,null,null,null,null,null,null,null,null,null,null,null,null,null,null,null,null,null,null,null,null,null,null,null,null,null,null,null,null,null,null,null,null,null,null,null,null,null,null,null,null,null,null,null,null,null,null,null,null,null,null,null,null,null,null,null,null,null,null,null,null,null,null,null,null,null,null,null,null,null,null,null,null,null,null,null,null,null,null,null,null,null,null,null,null,null,null,null,null,null,null,null,0,"P","","ZZ","C0129","NONENUSE","_T","_Z","_Z","_Z","_Z","_Z","WEIGHT","_Z","KT"]
["kt","Other bituminous coal","Total final energy consumption",null,null,null,null,{"$f":"SUM(H50:H52)","v":0},null,{"$f":"J50+J51+J52","v":0},"P","","",null,null,null,null,null,null,null,null,null,null,null,null,null,null,null,null,null,null,null,null,null,null,null,null,null,null,null,null,null,null,null,null,null,null,null,null,null,null,null,null,null,null,null,null,null,null,null,null,null,null,null,null,null,null,null,null,null,null,null,null,null,null,null,null,null,null,null,null,null,null,null,null,null,null,null,null,null,null,null,null,null,null,null,null,null,null,null,null,null,null,null,null,null,null,null,null,null,null,null,null,null,null,null,null,null,null,0,"P","","ZZ","C0129","ENERGUSE","FINCONS","_Z","_Z","_Z","_Z","_Z","WEIGHT","_Z","KT"]
["kt","Other bituminous coal","Industry sector","2117","DB_101800","BITCOAL","TOTIND",{"$f":"PrefilledData!F18","v":0},null,0,"P","","",null,null,null,null,null,null,null,null,null,null,null,null,null,null,null,null,null,null,null,null,null,null,null,null,null,null,null,null,null,null,null,null,null,null,null,null,null,null,null,null,null,null,null,null,null,null,null,null,null,null,null,null,null,null,null,null,null,null,null,null,null,null,null,null,null,null,null,null,null,null,null,null,null,null,null,null,null,null,null,null,null,null,null,null,null,null,null,null,null,null,null,null,null,null,null,null,null,null,null,null,null,null,null,null,null,null,0,"P","","ZZ","C0129","ENERGUSE","INDUSTRY","_Z","_Z","_Z","_Z","_Z","WEIGHT","_Z","KT"]
["kt","Other bituminous coal","Transport sector","2117","B_101900","BITCOAL","TOTTRANS",{"$f":"PrefilledData!F19","v":0},null,0,"P","","",null,null,null,null,null,null,null,null,null,null,null,null,null,null,null,null,null,null,null,null,null,null,null,null,null,null,null,null,null,null,null,null,null,null,null,null,null,null,null,null,null,null,null,null,null,null,null,null,null,null,null,null,null,null,null,null,null,null,null,null,null,null,null,null,null,null,null,null,null,null,null,null,null,null,null,null,null,null,null,null,null,null,null,null,null,null,null,null,null,null,null,null,null,null,null,null,null,null,null,null,null,null,null,null,null,null,0,"P","","ZZ","C0129","ENERGUSE","TRANSPOR","_Z","_Z","_Z","_Z","_Z","WEIGHT","_Z","KT"]
["kt","Other bituminous coal","Other sectors","2117","B_102000","BITCOAL","TOTOTHER",{"$f":"PrefilledData!F20","v":0},null,0,"P","","",null,null,null,null,null,null,null,null,null,null,null,null,null,null,null,null,null,null,null,null,null,null,null,null,null,null,null,null,null,null,null,null,null,null,null,null,null,null,null,null,null,null,null,null,null,null,null,null,null,null,null,null,null,null,null,null,null,null,null,null,null,null,null,null,null,null,null,null,null,null,null,null,null,null,null,null,null,null,null,null,null,null,null,null,null,null,null,null,null,null,null,null,null,null,null,null,null,null,null,null,null,null,null,null,null,null,0,"P","","ZZ","C0129","ENERGUSE","OTHSECT","_Z","_Z","_Z","_Z","_Z","WEIGHT","_Z","KT"]
["kt","Sub-bituminous coal","Indigenous production","2118","B_100100","SUBCOAL","INDPROD",{"$f":"PrefilledData!H6","v":0},null,0,"P",{"$f":"IF(ISERROR(J53/H53),\"\",(J53/H53)-1)","v":""},{"$f":"IF(ISERROR(J53/I53),\"\",(J53/I53)-1)","v":""},null,null,null,null,null,null,null,null,null,null,null,null,null,null,null,null,null,null,null,null,null,null,null,null,null,null,null,null,null,null,null,null,null,null,null,null,null,null,null,null,null,null,null,null,null,null,null,null,null,null,null,null,null,null,null,null,null,null,null,null,null,null,null,null,null,null,null,null,null,null,null,null,null,null,null,null,null,null,null,null,null,null,null,null,null,null,null,null,null,null,null,null,null,null,null,null,null,null,null,null,null,null,null,null,null,null,0,"P","","ZZ","C0210","PRODUCT","INDPROD","_Z","_Z","_Z","_Z","_Z","WEIGHT","_Z","KT"]
["kt","Sub-bituminous coal","From other sources","2118","B_100200","SUBCOAL","OSOURCES",{"$f":"PrefilledData!H7","v":0},null,0,"P",{"$f":"IF(ISERROR(J54/H54),\"\",(J54/H54)-1)","v":""},{"$f":"IF(ISERROR(J54/I54),\"\",(J54/I54)-1)","v":""},null,null,null,null,null,null,null,null,null,null,null,null,null,null,null,null,null,null,null,null,null,null,null,null,null,null,null,null,null,null,null,null,null,null,null,null,null,null,null,null,null,null,null,null,null,null,null,null,null,null,null,null,null,null,null,null,null,null,null,null,null,null,null,null,null,null,null,null,null,null,null,null,null,null,null,null,null,null,null,null,null,null,null,null,null,null,null,null,null,null,null,null,null,null,null,null,null,null,null,null,null,null,null,null,null,null,0,"P","","ZZ","C0210","SUPPLY","OSOURCES","_Z","_Z","_Z","_Z","_Z","WEIGHT","_Z","KT"]
["kt","Sub-bituminous coal","Total imports (Balance)","2118","B_100300","SUBCOAL","TOTIMPSB",{"$f":"PrefilledData!H8","v":0},null,0,"P","","",null,null,null,null,null,null,null,null,null,null,null,null,null,null,null,null,null,null,null,null,null,null,null,null,null,null,null,null,null,null,null,null,null,null,null,null,null,null,null,null,null,null,null,null,null,null,null,null,null,null,null,null,null,null,null,null,null,null,null,null,null,null,null,null,null,null,null,null,null,null,null,null,null,null,null,null,null,null,null,null,null,null,null,null,null,null,null,null,null,null,null,null,null,null,null,null,null,null,null,null,null,null,null,null,null,null,0,"P","","ZZ","C0210","IMPORTS","TOTIMPSB","_Z","_Z","_Z","_Z","_Z","WEIGHT","_Z","KT"]
["kt","Sub-bituminous coal","Total exports (Balance)","2118","B_100500","SUBCOAL","TOTEXPSB",{"$f":"PrefilledData!H9","v":0},null,0,"P","","",null,null,null,null,null,null,null,null,null,null,null,null,null,null,null,null,null,null,null,null,null,null,null,null,null,null,null,null,null,null,null,null,null,null,null,null,null,null,null,null,null,null,null,null,null,null,null,null,null,null,null,null,null,null,null,null,null,null,null,null,null,null,null,null,null,null,null,null,null,null,null,null,null,null,null,null,null,null,null,null,null,null,null,null,null,null,null,null,null,null,null,null,null,null,null,null,null,null,null,null,null,null,null,null,null,null,0,"P","","ZZ","C0210","EXPORTS","TOTEXPSB","_Z","_Z","_Z","_Z","_Z","WEIGHT","_Z","KT"]
["kt","Sub-bituminous coal","Stock changes (National territory)","2118","B_100400","SUBCOAL","STCHANAT",{"$f":"PrefilledData!H10","v":0},null,0,"P","","",null,null,null,null,null,null,null,null,null,null,null,null,null,null,null,null,null,null,null,null,null,null,null,null,null,null,null,null,null,null,null,null,null,null,null,null,null,null,null,null,null,null,null,null,null,null,null,null,null,null,null,null,null,null,null,null,null,null,null,null,null,null,null,null,null,null,null,null,null,null,null,null,null,null,null,null,null,null,null,null,null,null,null,null,null,null,null,null,null,null,null,null,null,null,null,null,null,null,null,null,null,null,null,null,null,null,0,"P","","ZZ","C0210","STOCKS","STOCKCH","_Z","_Z","NATTER","_Z","_Z","WEIGHT","_Z","KT"]
["kt","Sub-bituminous coal","Inland consumption (Calculated)",null,null,null,null,{"$f":"H53+H54+H55-H56+H57","v":0},null,{"$f":"J53+J54+J55-J56+J57","v":0},"P","","",null,null,null,null,null,null,null,null,null,null,null,null,null,null,null,null,null,null,null,null,null,null,null,null,null,null,null,null,null,null,null,null,null,null,null,null,null,null,null,null,null,null,null,null,null,null,null,null,null,null,null,null,null,null,null,null,null,null,null,null,null,null,null,null,null,null,null,null,null,null,null,null,null,null,null,null,null,null,null,null,null,null,null,null,null,null,null,null,null,null,null,null,null,null,null,null,null,null,null,null,null,null,null,null,null,null,0,"P","","ZZ","C0210","SUPPLY","INLDEMC","_Z","_Z","_Z","_Z","_Z","WEIGHT","_Z","KT"]
["kt","Sub-bituminous coal","Statistical Difference",null,null,null,null,{"$f":"H58-H60","v":0},null,{"$f":"J58-J60","v":0},"P",null,null,null,null,null,null,null,null,null,null,null,null,null,null,null,null,null,null,null,null,null,null,null,null,null,null,null,null,null,null,null,null,null,null,null,null,null,null,null,null,null,null,null,null,null,null,null,null,null,null,null,null,null,null,null,null,null,null,null,null,null,null,null,null,null,null,null,null,null,null,null,null,null,null,null,null,null,null,null,null,null,null,null,null,null,null,null,null,null,null,null,null,null,null,null,null,null,null,null,null,null,null,null,null,null,null,null,null,0,"P","","ZZ","C0210","STATDIFF","_Z","_Z","_Z","_Z","_Z","_Z","WEIGHT","_Z","KT"]
["kt","Sub-bituminous coal","Inland consumption (Observed)",null,null,null,null,{"$f":"H61+H62+H63+H64","v":0},null,{"$f":"J61+J62+J63+J64","v":0},"P","","",null,null,null,null,null,null,null,null,null,null,null,null,null,null,null,null,null,null,null,null,null,null,null,null,null,null,null,null,null,null,null,null,null,null,null,null,null,null,null,null,null,null,null,null,null,null,null,null,null,null,null,null,null,null,null,null,null,null,null,null,null,null,null,null,null,null,null,null,null,null,null,null,null,null,null,null,null,null,null,null,null,null,null,null,null,null,null,null,null,null,null,null,null,null,null,null,null,null,null,null,null,null,null,null,null,null,0,"P","","ZZ","C0210","DEMAND","INLDEMO","_Z","_Z","_Z","_Z","_Z","WEIGHT","_Z","KT"]
["kt","Sub-bituminous coal","Transformation sector","2118","DB_101000","SUBCOAL","TOTTRANF",{"$f":"PrefilledData!H12","v":0},null,0,"P","","",null,null,null,null,null,null,null,null,null,null,null,null,null,null,null,null,null,null,null,null,null,null,null,null,null,null,null,null,null,null,null,null,null,null,null,null,null,null,null,null,null,null,null,null,null,null,null,null,null,null,null,null,null,null,null,null,null,null,null,null,null,null,null,null,null,null,null,null,null,null,null,null,null,null,null,null,null,null,null,null,null,null,null,null,null,null,null,null,null,null,null,null,null,null,null,null,null,null,null,null,null,null,null,null,null,null,0,"P","","ZZ","C0210","TRANSFOR","TOTRANSF","_Z","_Z","_Z","_Z","_Z","WEIGHT","_Z","KT"]
["kt","Sub-bituminous coal","Energy sector","2118","DB_101300","SUBCOAL","TOTENGY",{"$f":"PrefilledData!H13","v":0},null,0,"P","","",null,null,null,null,null,null,null,null,null,null,null,null,null,null,null,null,null,null,null,null,null,null,null,null,null,null,null,null,null,null,null,null,null,null,null,null,null,null,null,null,null,null,null,null,null,null,null,null,null,null,null,null,null,null,null,null,null,null,null,null,null,null,null,null,null,null,null,null,null,null,null,null,null,null,null,null,null,null,null,null,null,null,null,null,null,null,null,null,null,null,null,null,null,null,null,null,null,null,null,null,null,null,null,null,null,null,0,"P","","ZZ","C0210","ENERGUSE","ENERSECT","_Z","_Z","_Z","_Z","_Z","WEIGHT","_Z","KT"]
["kt","Sub-bituminous coal","Distribution losses","2118","B_101400","SUBCOAL","DISTLOSS",{"$f":"PrefilledData!H14","v":0},null,0,"P","","",null,null,null,null,null,null,null,null,null,null,null,null,null,null,null,null,null,null,null,null,null,null,null,null,null,null,null,null,null,null,null,null,null,null,null,null,null,null,null,null,null,null,null,null,null,null,null,null,null,null,null,null,null,null,null,null,null,null,null,null,null,null,null,null,null,null,null,null,null,null,null,null,null,null,null,null,null,null,null,null,null,null,null,null,null,null,null,null,null,null,null,null,null,null,null,null,null,null,null,null,null,null,null,null,null,null,0,"P","","ZZ","C0210","LOSSES","DISTLOSS","_Z","_Z","_Z","_Z","_Z","WEIGHT","_Z","KT"]
["kt","Sub-bituminous coal","Total final consumption",null,null,null,null,{"$f":"H65+H66","v":0},null,{"$f":"J65+J66","v":0},"P","","",null,null,null,null,null,null,null,null,null,null,null,null,null,null,null,null,null,null,null,null,null,null,null,null,null,null,null,null,null,null,null,null,null,null,null,null,null,null,null,null,null,null,null,null,null,null,null,null,null,null,null,null,null,null,null,null,null,null,null,null,null,null,null,null,null,null,null,null,null,null,null,null,null,null,null,null,null,null,null,null,null,null,null,null,null,null,null,null,null,null,null,null,null,null,null,null,null,null,null,null,null,null,null,null,null,null,0,"P","","ZZ","C0210","CONSUMPT","FINCONS","_Z","_Z","_Z","_Z","_Z","WEIGHT","_Z","KT"]
["kt","Sub-bituminous coal","Total final non-energy consumption","2118","B_101600","SUBCOAL","NONENUSE",{"$f":"PrefilledData!H16","v":0},null,0,"P","","",null,null,null,null,null,null,null,null,null,null,null,null,null,null,null,null,null,null,null,null,null,null,null,null,null,null,null,null,null,null,null,null,null,null,null,null,null,null,null,null,null,null,null,null,null,null,null,null,null,null,null,null,null,null,null,null,null,null,null,null,null,null,null,null,null,null,null,null,null,null,null,null,null,null,null,null,null,null,null,null,null,null,null,null,null,null,null,null,null,null,null,null,null,null,null,null,null,null,null,null,null,null,null,null,null,null,0,"P","","ZZ","C0210","NONENUSE","_T","_Z","_Z","_Z","_Z","_Z","WEIGHT","_Z","KT"]
["kt","Sub-bituminous coal","Total final energy consumption",null,null,null,null,{"$f":"SUM(H67:H69)","v":0},null,{"$f":"J67+J68+J69","v":0},"P","","",null,null,null,null,null,null,null,null,null,null,null,null,null,null,null,null,null,null,null,null,null,null,null,null,null,null,null,null,null,null,null,null,null,null,null,null,null,null,null,null,null,null,null,null,null,null,null,null,null,null,null,null,null,null,null,null,null,null,null,null,null,null,null,null,null,null,null,null,null,null,null,null,null,null,null,null,null,null,null,null,null,null,null,null,null,null,null,null,null,null,null,null,null,null,null,null,null,null,null,null,null,null,null,null,null,null,0,"P","",{"$f":"$S$1","v":"ZZ"},"C0210","ENERGUSE","FINCONS","_Z","_Z","_Z","_Z","_Z","WEIGHT","_Z","KT"]
["kt","Sub-bituminous coal","Industry sector","2118","DB_101800","SUBCOAL","TOTIND",{"$f":"PrefilledData!H18","v":0},null,0,"P","","",null,null,null,null,null,null,null,null,null,null,null,null,null,null,null,null,null,null,null,null,null,null,null,null,null,null,null,null,null,null,null,null,null,null,null,null,null,null,null,null,null,null,null,null,null,null,null,null,null,null,null,null,null,null,null,null,null,null,null,null,null,null,null,null,null,null,null,null,null,null,null,null,null,null,null,null,null,null,null,null,null,null,null,null,null,null,null,null,null,null,null,null,null,null,null,null,null,null,null,null,null,null,null,null,null,null,{"$f":"IF(K67=\"O\",\"NaN\",ROUND(J67,3))","v":0},{"$f":"IF(K67=\"\",\"A\",K67)","v":"P"},{"$f":"LEFT(TRIM(N67),255)","v":""},"ZZ","C0210","ENERGUSE","INDUSTRY","_Z","_Z","_Z","_Z","_Z","WEIGHT","_Z","KT"]
["kt","Sub-bituminous coal","Transport sector","2118","B_101900","SUBCOAL","TOTTRANS",{"$f":"PrefilledData!H19","v":0},null,0,"P","","",null,null,null,null,null,null,null,null,null,null,null,null,null,null,null,null,null,null,null,null,null,null,null,null,null,null,null,null,null,null,null,null,null,null,null,null,null,null,null,null,null,null,null,null,null,null,null,null,null,null,null,null,null,null,null,null,null,null,null,null,null,null,null,null,null,null,null,null,null,null,null,null,null,null,null,null,null,null,null,null,null,null,null,null,null,null,null,null,null,null,null,null,null,null,null,null,null,null,null,null,null,null,null,null,null,null,0,"P","","ZZ","C0210","ENERGUSE","TRANSPOR","_Z","_Z","_Z","_Z","_Z","WEIGHT","_Z","KT"]
["kt","Sub-bituminous coal","Other sectors","2118","B_102000","SUBCOAL","TOTOTHER",{"$f":"PrefilledData!H20","v":0},null,0,"P","","",null,null,null,null,null,null,null,null,null,null,null,null,null,null,null,null,null,null,null,null,null,null,null,null,null,null,null,null,null,null,null,null,null,null,null,null,null,null,null,null,null,null,null,null,null,null,null,null,null,null,null,null,null,null,null,null,null,null,null,null,null,null,null,null,null,null,null,null,null,null,null,null,null,null,null,null,null,null,null,null,null,null,null,null,null,null,null,null,null,null,null,null,null,null,null,null,null,null,null,null,null,null,null,null,null,null,0,"P","","ZZ","C0210","ENERGUSE","OTHSECT","_Z","_Z","_Z","_Z","_Z","WEIGHT","_Z","KT"]
["kt","Lignite","Indigenous production","2210","B_100100","LIGNITE","INDPROD",{"$f":"PrefilledData!I6","v":0},null,0,"P",{"$f":"IF(ISERROR(J70/H70),\"\",(J70/H70)-1)","v":""},{"$f":"IF(ISERROR(J70/I70),\"\",(J70/I70)-1)","v":""},null,null,null,null,null,null,null,null,null,null,null,null,null,null,null,null,null,null,null,null,null,null,null,null,null,null,null,null,null,null,null,null,null,null,null,null,null,null,null,null,null,null,null,null,null,null,null,null,null,null,null,null,null,null,null,null,null,null,null,null,null,null,null,null,null,null,null,null,null,null,null,null,null,null,null,null,null,null,null,null,null,null,null,null,null,null,null,null,null,null,null,null,null,null,null,null,null,null,null,null,null,null,null,null,null,null,0,"P","","ZZ","C0220","PRODUCT","INDPROD","_Z","_Z","_Z","_Z","_Z","WEIGHT","_Z","KT"]
["kt","Lignite","From other sources","2210","B_100200","LIGNITE","OSOURCES",{"$f":"PrefilledData!I7","v":0},null,0,"P",{"$f":"IF(ISERROR(J71/H71),\"\",(J71/H71)-1)","v":""},{"$f":"IF(ISERROR(J71/I71),\"\",(J71/I71)-1)","v":""},null,null,null,null,null,null,null,null,null,null,null,null,null,null,null,null,null,null,null,null,null,null,null,null,null,null,null,null,null,null,null,null,null,null,null,null,null,null,null,null,null,null,null,null,null,null,null,null,null,null,null,null,null,null,null,null,null,null,null,null,null,null,null,null,null,null,null,null,null,null,null,null,null,null,null,null,null,null,null,null,null,null,null,null,null,null,null,null,null,null,null,null,null,null,null,null,null,null,null,null,null,null,null,null,null,null,0,"P","","ZZ","C0220","SUPPLY","OSOURCES","_Z","_Z","_Z","_Z","_Z","WEIGHT","_Z","KT"]
["kt","Lignite","Total imports (Balance)","2210","B_100300","LIGNITE","TOTIMPSB",{"$f":"PrefilledData!I8","v":0},null,0,"P","","",null,null,null,null,null,null,null,null,null,null,null,null,null,null,null,null,null,null,null,null,null,null,null,null,null,null,null,null,null,null,null,null,null,null,null,null,null,null,null,null,null,null,null,null,null,null,null,null,null,null,null,null,null,null,null,null,null,null,null,null,null,null,null,null,null,null,null,null,null,null,null,null,null,null,null,null,null,null,null,null,null,null,null,null,null,null,null,null,null,null,null,null,null,null,null,null,null,null,null,null,null,null,null,null,null,null,0,"P","","ZZ","C0220","IMPORTS","TOTIMPSB","_Z","_Z","_Z","_Z","_Z","WEIGHT","_Z","KT"]
["kt","Lignite","Total exports (Balance)","2210","B_100500","LIGNITE","TOTEXPSB",{"$f":"PrefilledData!I9","v":0},null,0,"P","","",null,null,null,null,null,null,null,null,null,null,null,null,null,null,null,null,null,null,null,null,null,null,null,null,null,null,null,null,null,null,null,null,null,null,null,null,null,null,null,null,null,null,null,null,null,null,null,null,null,null,null,null,null,null,null,null,null,null,null,null,null,null,null,null,null,null,null,null,null,null,null,null,null,null,null,null,null,null,null,null,null,null,null,null,null,null,null,null,null,null,null,null,null,null,null,null,null,null,null,null,null,null,null,null,null,null,0,"P","","ZZ","C0220","EXPORTS","TOTEXPSB","_Z","_Z","_Z","_Z","_Z","WEIGHT","_Z","KT"]
["kt","Lignite","Stock changes (National territory)","2210","B_100400","LIGNITE","STCHANAT",{"$f":"PrefilledData!I10","v":0},null,0,"P","","",null,null,null,null,null,null,null,null,null,null,null,null,null,null,null,null,null,null,null,null,null,null,null,null,null,null,null,null,null,null,null,null,null,null,null,null,null,null,null,null,null,null,null,null,null,null,null,null,null,null,null,null,null,null,null,null,null,null,null,null,null,null,null,null,null,null,null,null,null,null,null,null,null,null,null,null,null,null,null,null,null,null,null,null,null,null,null,null,null,null,null,null,null,null,null,null,null,null,null,null,null,null,null,null,null,null,0,"P","","ZZ","C0220","STOCKS","STOCKCH","_Z","_Z","NATTER","_Z","_Z","WEIGHT","_Z","KT"]
["kt","Lignite","Inland consumption (Calculated)",null,null,null,null,{"$f":"H70+H71+H72-H73+H74","v":0},null,{"$f":"J70+J71+J72-J73+J74","v":0},"P","","",null,null,null,null,null,null,null,null,null,null,null,null,null,null,null,null,null,null,null,null,null,null,null,null,null,null,null,null,null,null,null,null,null,null,null,null,null,null,null,null,null,null,null,null,null,null,null,null,null,null,null,null,null,null,null,null,null,null,null,null,null,null,null,null,null,null,null,null,null,null,null,null,null,null,null,null,null,null,null,null,null,null,null,null,null,null,null,null,null,null,null,null,null,null,null,null,null,null,null,null,null,null,null,null,null,null,0,"P","","ZZ","C0220","SUPPLY","INLDEMC","_Z","_Z","_Z","_Z","_Z","WEIGHT","_Z","KT"]
["kt","Lignite","Statistical Difference",null,null,null,null,{"$f":"H75-H77","v":0},null,{"$f":"J75-J77","v":0},"P",null,null,null,null,null,null,null,null,null,null,null,null,null,null,null,null,null,null,null,null,null,null,null,null,null,null,null,null,null,null,null,null,null,null,null,null,null,null,null,null,null,null,null,null,null,null,null,null,null,null,null,null,null,null,null,null,null,null,null,null,null,null,null,null,null,null,null,null,null,null,null,null,null,null,null,null,null,null,null,null,null,null,null,null,null,null,null,null,null,null,null,null,null,null,null,null,null,null,null,null,null,null,null,null,null,null,null,null,0,"P","","ZZ","C0220","STATDIFF","_Z","_Z","_Z","_Z","_Z","_Z","WEIGHT","_Z","KT"]
["kt","Lignite","Inland consumption (Observed)",null,null,null,null,{"$f":"H78+H79+H80+H81","v":0},null,{"$f":"J78+J79+J80+J81","v":0},"P","","",null,null,null,null,null,null,null,null,null,null,null,null,null,null,null,null,null,null,null,null,null,null,null,null,null,null,null,null,null,null,null,null,null,null,null,null,null,null,null,null,null,null,null,null,null,null,null,null,null,null,null,null,null,null,null,null,null,null,null,null,null,null,null,null,null,null,null,null,null,null,null,null,null,null,null,null,null,null,null,null,null,null,null,null,null,null,null,null,null,null,null,null,null,null,null,null,null,null,null,null,null,null,null,null,null,null,0,"P","","ZZ","C0220","DEMAND","INLDEMO","_Z","_Z","_Z","_Z","_Z","WEIGHT","_Z","KT"]
["kt","Lignite","Transformation sector","2210","DB_101000","LIGNITE","TOTTRANF",{"$f":"PrefilledData!I12","v":0},null,0,"P","","",null,null,null,null,null,null,null,null,null,null,null,null,null,null,null,null,null,null,null,null,null,null,null,null,null,null,null,null,null,null,null,null,null,null,null,null,null,null,null,null,null,null,null,null,null,null,null,null,null,null,null,null,null,null,null,null,null,null,null,null,null,null,null,null,null,null,null,null,null,null,null,null,null,null,null,null,null,null,null,null,null,null,null,null,null,null,null,null,null,null,null,null,null,null,null,null,null,null,null,null,null,null,null,null,null,null,0,"P","","ZZ","C0220","TRANSFOR","TOTRANSF","_Z","_Z","_Z","_Z","_Z","WEIGHT","_Z","KT"]
["kt","Lignite","Energy sector","2210","DB_101300","LIGNITE","TOTENGY",{"$f":"PrefilledData!I13","v":0},null,0,"P","","",null,null,null,null,null,null,null,null,null,null,null,null,null,null,null,null,null,null,null,null,null,null,null,null,null,null,null,null,null,null,null,null,null,null,null,null,null,null,null,null,null,null,null,null,null,null,null,null,null,null,null,null,null,null,null,null,null,null,null,null,null,null,null,null,null,null,null,null,null,null,null,null,null,null,null,null,null,null,null,null,null,null,null,null,null,null,null,null,null,null,null,null,null,null,null,null,null,null,null,null,null,null,null,null,null,null,0,"P","","ZZ","C0220","ENERGUSE","ENERSECT","_Z","_Z","_Z","_Z","_Z","WEIGHT","_Z","KT"]
["kt","Lignite","Distribution losses","2210","B_101400","LIGNITE","DISTLOSS",{"$f":"PrefilledData!I14","v":0},null,0,"P","","",null,null,null,null,null,null,null,null,null,null,null,null,null,null,null,null,null,null,null,null,null,null,null,null,null,null,null,null,null,null,null,null,null,null,null,null,null,null,null,null,null,null,null,null,null,null,null,null,null,null,null,null,null,null,null,null,null,null,null,null,null,null,null,null,null,null,null,null,null,null,null,null,null,null,null,null,null,null,null,null,null,null,null,null,null,null,null,null,null,null,null,null,null,null,null,null,null,null,null,null,null,null,null,null,null,null,0,"P","","ZZ","C0220","LOSSES","DISTLOSS","_Z","_Z","_Z","_Z","_Z","WEIGHT","_Z","KT"]
["kt","Lignite","Total final consumption",null,null,null,null,{"$f":"H82+H83","v":0},null,{"$f":"J82+J83","v":0},"P","","",null,null,null,null,null,null,null,null,null,null,null,null,null,null,null,null,null,null,null,null,null,null,null,null,null,null,null,null,null,null,null,null,null,null,null,null,null,null,null,null,null,null,null,null,null,null,null,null,null,null,null,null,null,null,null,null,null,null,null,null,null,null,null,null,null,null,null,null,null,null,null,null,null,null,null,null,null,null,null,null,null,null,null,null,null,null,null,null,null,null,null,null,null,null,null,null,null,null,null,null,null,null,null,null,null,null,0,"P","","ZZ","C0220","CONSUMPT","FINCONS","_Z","_Z","_Z","_Z","_Z","WEIGHT","_Z","KT"]
["kt","Lignite","Total final non-energy consumption","2210","B_101600","LIGNITE","NONENUSE",{"$f":"PrefilledData!I16","v":0},null,0,"P","","",null,null,null,null,null,null,null,null,null,null,null,null,null,null,null,null,null,null,null,null,null,null,null,null,null,null,null,null,null,null,null,null,null,null,null,null,null,null,null,null,null,null,null,null,null,null,null,null,null,null,null,null,null,null,null,null,null,null,null,null,null,null,null,null,null,null,null,null,null,null,null,null,null,null,null,null,null,null,null,null,null,null,null,null,null,null,null,null,null,null,null,null,null,null,null,null,null,null,null,null,null,null,null,null,null,null,0,"P","","ZZ","C0220","NONENUSE","_T","_Z","_Z","_Z","_Z","_Z","WEIGHT","_Z","KT"]
["kt","Lignite","Total final energy consumption",null,null,null,null,{"$f":"SUM(H84:H86)","v":0},null,{"$f":"J84+J85+J86","v":0},"P","","",null,null,null,null,null,null,null,null,null,null,null,null,null,null,null,null,null,null,null,null,null,null,null,null,null,null,null,null,null,null,null,null,null,null,null,null,null,null,null,null,null,null,null,null,null,null,null,null,null,null,null,null,null,null,null,null,null,null,null,null,null,null,null,null,null,null,null,null,null,null,null,null,null,null,null,null,null,null,null,null,null,null,null,null,null,null,null,null,null,null,null,null,null,null,null,null,null,null,null,null,null,null,null,null,null,null,0,"P","","ZZ","C0220","ENERGUSE","FINCONS","_Z","_Z","_Z","_Z","_Z","WEIGHT","_Z","KT"]
["kt","Lignite","Industry sector","2210","DB_101800","LIGNITE","TOTIND",{"$f":"PrefilledData!I18","v":0},null,0,"P","","",null,null,null,null,null,null,null,null,null,null,null,null,null,null,null,null,null,null,null,null,null,null,null,null,null,null,null,null,null,null,null,null,null,null,null,null,null,null,null,null,null,null,null,null,null,null,null,null,null,null,null,null,null,null,null,null,null,null,null,null,null,null,null,null,null,null,null,null,null,null,null,null,null,null,null,null,null,null,null,null,null,null,null,null,null,null,null,null,null,null,null,null,null,null,null,null,null,null,null,null,null,null,null,null,null,null,0,"P","","ZZ","C0220","ENERGUSE","INDUSTRY","_Z","_Z","_Z","_Z","_Z","WEIGHT","_Z","KT"]
["kt","Lignite","Transport sector","2210","B_101900","LIGNITE","TOTTRANS",{"$f":"PrefilledData!I19","v":0},null,0,"P","","",null,null,null,null,null,null,null,null,null,null,null,null,null,null,null,null,null,null,null,null,null,null,null,null,null,null,null,null,null,null,null,null,null,null,null,null,null,null,null,null,null,null,null,null,null,null,null,null,null,null,null,null,null,null,null,null,null,null,null,null,null,null,null,null,null,null,null,null,null,null,null,null,null,null,null,null,null,null,null,null,null,null,null,null,null,null,null,null,null,null,null,null,null,null,null,null,null,null,null,null,null,null,null,null,null,null,0,"P","","ZZ","C0220","ENERGUSE","TRANSPOR","_Z","_Z","_Z","_Z","_Z","WEIGHT","_Z","KT"]
["kt","Lignite","Other sectors","2210","B_102000","LIGNITE","TOTOTHER",{"$f":"PrefilledData!I20","v":0},null,0,"P","","",null,null,null,null,null,null,null,null,null,null,null,null,null,null,null,null,null,null,null,null,null,null,null,null,null,null,null,null,null,null,null,null,null,null,null,null,null,null,null,null,null,null,null,null,null,null,null,null,null,null,null,null,null,null,null,null,null,null,null,null,null,null,null,null,null,null,null,null,null,null,null,null,null,null,null,null,null,null,null,null,null,null,null,null,null,null,null,null,null,null,null,null,null,null,null,null,null,null,null,null,null,null,null,null,null,null,0,"P","","ZZ","C0220","ENERGUSE","OTHSECT","_Z","_Z","_Z","_Z","_Z","WEIGHT","_Z","KT"]
["kt","Patent fuel","Indigenous production","2112","B_101100","PATFUEL","INDPROD",{"$f":"PrefilledData!L6","v":0},null,0,"P",{"$f":"IF(ISERROR(J87/H87),\"\",(J87/H87)-1)","v":""},{"$f":"IF(ISERROR(J87/I87),\"\",(J87/I87)-1)","v":""},null,null,null,null,null,null,null,null,null,null,null,null,null,null,null,null,null,null,null,null,null,null,null,null,null,null,null,null,null,null,null,null,null,null,null,null,null,null,null,null,null,null,null,null,null,null,null,null,null,null,null,null,null,null,null,null,null,null,null,null,null,null,null,null,null,null,null,null,null,null,null,null,null,null,null,null,null,null,null,null,null,null,null,null,null,null,null,null,null,null,null,null,null,null,null,null,null,null,null,null,null,null,null,null,null,null,0,"P","","ZZ","C0320","PRODUCT","INDPROD","_Z","_Z","_Z","_Z","_Z","WEIGHT","_Z","KT"]
["kt","Patent fuel","From other sources","2112","B_100200","PATFUEL","OSOURCES",{"$f":"PrefilledData!L7","v":0},null,0,"P",{"$f":"IF(ISERROR(J88/H88),\"\",(J88/H88)-1)","v":""},{"$f":"IF(ISERROR(J88/I88),\"\",(J88/I88)-1)","v":""},null,null,null,null,null,null,null,null,null,null,null,null,null,null,null,null,null,null,null,null,null,null,null,null,null,null,null,null,null,null,null,null,null,null,null,null,null,null,null,null,null,null,null,null,null,null,null,null,null,null,null,null,null,null,null,null,null,null,null,null,null,null,null,null,null,null,null,null,null,null,null,null,null,null,null,null,null,null,null,null,null,null,null,null,null,null,null,null,null,null,null,null,null,null,null,null,null,null,null,null,null,null,null,null,null,null,0,"P","","ZZ","C0320","SUPPLY","OSOURCES","_Z","_Z","_Z","_Z","_Z","WEIGHT","_Z","KT"]
["kt","Patent fuel","Total imports (Balance)","2112","B_100300","PATFUEL","TOTIMPSB",{"$f":"PrefilledData!L8","v":0},null,0,"P","","",null,null,null,null,null,null,null,null,null,null,null,null,null,null,null,null,null,null,null,null,null,null,null,null,null,null,null,null,null,null,null,null,null,null,null,null,null,null,null,null,null,null,null,null,null,null,null,null,null,null,null,null,null,null,null,null,null,null,null,null,null,null,null,null,null,null,null,null,null,null,null,null,null,null,null,null,null,null,null,null,null,null,null,null,null,null,null,null,null,null,null,null,null,null,null,null,null,null,null,null,null,null,null,null,null,null,0,"P","","ZZ","C0320","IMPORTS","TOTIMPSB","_Z","_Z","_Z","_Z","_Z","WEIGHT","_Z","KT"]
["kt","Patent fuel","Total exports (Balance)","2112","B_100500","PATFUEL","TOTEXPSB",{"$f":"PrefilledData!L9","v":0},null,0,"P","","",null,null,null,null,null,null,null,null,null,null,null,null,null,null,null,null,null,null,null,null,null,null,null,null,null,null,null,null,null,null,null,null,null,null,null,null,null,null,null,null,null,null,null,null,null,null,null,null,null,null,null,null,null,null,null,null,null,null,null,null,null,null,null,null,null,null,null,null,null,null,null,null,null,null,null,null,null,null,null,null,null,null,null,null,null,null,null,null,null,null,null,null,null,null,null,null,null,null,null,null,null,null,null,null,null,null,0,"P","","ZZ","C0320","EXPORTS","TOTEXPSB","_Z","_Z","_Z","_Z","_Z","WEIGHT","_Z","KT"]
["kt","Patent fuel","Stock changes (National territory)","2112","B_100400","PATFUEL","STCHANAT",{"$f":"PrefilledData!L10","v":0},null,0,"P","","",null,null,null,null,null,null,null,null,null,null,null,null,null,null,null,null,null,null,null,null,null,null,null,null,null,null,null,null,null,null,null,null,null,null,null,null,null,null,null,null,null,null,null,null,null,null,null,null,null,null,null,null,null,null,null,null,null,null,null,null,null,null,null,null,null,null,null,null,null,null,null,null,null,null,null,null,null,null,null,null,null,null,null,null,null,null,null,null,null,null,null,null,null,null,null,null,null,null,null,null,null,null,null,null,null,null,0,"P","","ZZ","C0320","STOCKS","STOCKCH","_Z","_Z","NATTER","_Z","_Z","WEIGHT","_Z","KT"]
["kt","Patent fuel","Inland consumption (Calculated)",null,null,null,null,{"$f":"H87+H88+H89-H90+H91","v":0},null,{"$f":"J87+J88+J89-J90+J91","v":0},"P","","",null,null,null,null,null,null,null,null,null,null,null,null,null,null,null,null,null,null,null,null,null,null,null,null,null,null,null,null,null,null,null,null,null,null,null,null,null,null,null,null,null,null,null,null,null,null,null,null,null,null,null,null,null,null,null,null,null,null,null,null,null,null,null,null,null,null,null,null,null,null,null,null,null,null,null,null,null,null,null,null,null,null,null,null,null,null,null,null,null,null,null,null,null,null,null,null,null,null,null,null,null,null,null,null,null,null,0,"P","","ZZ","C0320","SUPPLY","INLDEMC","_Z","_Z","_Z","_Z","_Z","WEIGHT","_Z","KT"]
["kt","Patent fuel","Statistical Difference",null,null,null,null,{"$f":"H92-H94","v":0},null,{"$f":"J92-J94","v":0},"P",null,null,null,null,null,null,null,null,null,null,null,null,null,null,null,null,null,null,null,null,null,null,null,null,null,null,null,null,null,null,null,null,null,null,null,null,null,null,null,null,null,null,null,null,null,null,null,null,null,null,null,null,null,null,null,null,null,null,null,null,null,null,null,null,null,null,null,null,null,null,null,null,null,null,null,null,null,null,null,null,null,null,null,null,null,null,null,null,null,null,null,null,null,null,null,null,null,null,null,null,null,null,null,null,null,null,null,null,0,"P","","ZZ","C0320","STATDIFF","_Z","_Z","_Z","_Z","_Z","_Z","WEIGHT","_Z","KT"]
["kt","Patent fuel","Inland consumption (Observed)",null,null,null,null,{"$f":"H95+H96+H97+H98","v":0},null,{"$f":"J95+J96+J97+J98","v":0},"P","","",null,null,null,null,null,null,null,null,null,null,null,null,null,null,null,null,null,null,null,null,null,null,null,null,null,null,null,null,null,null,null,null,null,null,null,null,null,null,null,null,null,null,null,null,null,null,null,null,null,null,null,null,null,null,null,null,null,null,null,null,null,null,null,null,null,null,null,null,null,null,null,null,null,null,null,null,null,null,null,null,null,null,null,null,null,null,null,null,null,null,null,null,null,null,null,null,null,null,null,null,null,null,null,null,null,null,0,"P","","ZZ","C0320","DEMAND","INLDEMO","_Z","_Z","_Z","_Z","_Z","WEIGHT","_Z","KT"]
["kt","Patent fuel","Transformation sector","2112","DB_101000","PATFUEL","TOTTRANF",{"$f":"PrefilledData!L12","v":0},null,0,"P","","",null,null,null,null,null,null,null,null,null,null,null,null,null,null,null,null,null,null,null,null,null,null,null,null,null,null,null,null,null,null,null,null,null,null,null,null,null,null,null,null,null,null,null,null,null,null,null,null,null,null,null,null,null,null,null,null,null,null,null,null,null,null,null,null,null,null,null,null,null,null,null,null,null,null,null,null,null,null,null,null,null,null,null,null,null,null,null,null,null,null,null,null,null,null,null,null,null,null,null,null,null,null,null,null,null,null,0,"P","","ZZ","C0320","TRANSFOR","TOTRANSF","_Z","_Z","_Z","_Z","_Z","WEIGHT","_Z","KT"]
["kt","Patent fuel","Energy sector","2112","DB_101300","PATFUEL","TOTENGY",{"$f":"PrefilledData!L13","v":0},null,0,"P","","",null,null,null,null,null,null,null,null,null,null,null,null,null,null,null,null,null,null,null,null,null,null,null,null,null,null,null,null,null,null,null,null,null,null,null,null,null,null,null,null,null,null,null,null,null,null,null,null,null,null,null,null,null,null,null,null,null,null,null,null,null,null,null,null,null,null,null,null,null,null,null,null,null,null,null,null,null,null,null,null,null,null,null,null,null,null,null,null,null,null,null,null,null,null,null,null,null,null,null,null,null,null,null,null,null,null,0,"P","","ZZ","C0320","ENERGUSE","ENERSECT","_Z","_Z","_Z","_Z","_Z","WEIGHT","_Z","KT"]
["kt","Patent fuel","Distribution losses","2112","B_101400","PATFUEL","DISTLOSS",{"$f":"PrefilledData!L14","v":0},null,0,"P","","",null,null,null,null,null,null,null,null,null,null,null,null,null,null,null,null,null,null,null,null,null,null,null,null,null,null,null,null,null,null,null,null,null,null,null,null,null,null,null,null,null,null,null,null,null,null,null,null,null,null,null,null,null,null,null,null,null,null,null,null,null,null,null,null,null,null,null,null,null,null,null,null,null,null,null,null,null,null,null,null,null,null,null,null,null,null,null,null,null,null,null,null,null,null,null,null,null,null,null,null,null,null,null,null,null,null,0,"P","","ZZ","C0320","LOSSES","DISTLOSS","_Z","_Z","_Z","_Z","_Z","WEIGHT","_Z","KT"]
["kt","Patent fuel","Total final consumption",null,null,null,null,{"$f":"H99+H100","v":0},null,{"$f":"J99+J100","v":0},"P","","",null,null,null,null,null,null,null,null,null,null,null,null,null,null,null,null,null,null,null,null,null,null,null,null,null,null,null,null,null,null,null,null,null,null,null,null,null,null,null,null,null,null,null,null,null,null,null,null,null,null,null,null,null,null,null,null,null,null,null,null,null,null,null,null,null,null,null,null,null,null,null,null,null,null,null,null,null,null,null,null,null,null,null,null,null,null,null,null,null,null,null,null,null,null,null,null,null,null,null,null,null,null,null,null,null,null,0,"P","","ZZ","C0320","CONSUMPT","FINCONS","_Z","_Z","_Z","_Z","_Z","WEIGHT","_Z","KT"]
["kt","Patent fuel","Total final non-energy consumption","2112","B_101600","PATFUEL","NONENUSE",{"$f":"PrefilledData!L16","v":0},null,0,"P","","",null,null,null,null,null,null,null,null,null,null,null,null,null,null,null,null,null,null,null,null,null,null,null,null,null,null,null,null,null,null,null,null,null,null,null,null,null,null,null,null,null,null,null,null,null,null,null,null,null,null,null,null,null,null,null,null,null,null,null,null,null,null,null,null,null,null,null,null,null,null,null,null,null,null,null,null,null,null,null,null,null,null,null,null,null,null,null,null,null,null,null,null,null,null,null,null,null,null,null,null,null,null,null,null,null,null,0,"P","","ZZ","C0320","NONENUSE","_T","_Z","_Z","_Z","_Z","_Z","WEIGHT","_Z","KT"]
["kt","Patent fuel","Total final energy consumption",null,null,null,null,{"$f":"SUM(H101:H103)","v":0},null,{"$f":"J101+J102+J103","v":0},"P","","",null,null,null,null,null,null,null,null,null,null,null,null,null,null,null,null,null,null,null,null,null,null,null,null,null,null,null,null,null,null,null,null,null,null,null,null,null,null,null,null,null,null,null,null,null,null,null,null,null,null,null,null,null,null,null,null,null,null,null,null,null,null,null,null,null,null,null,null,null,null,null,null,null,null,null,null,null,null,null,null,null,null,null,null,null,null,null,null,null,null,null,null,null,null,null,null,null,null,null,null,null,null,null,null,null,null,0,"P","","ZZ","C0320","ENERGUSE","FINCONS","_Z","_Z","_Z","_Z","_Z","WEIGHT","_Z","KT"]
["kt","Patent fuel","Industry sector","2112","DB_101800","PATFUEL","TOTIND",{"$f":"PrefilledData!L18","v":0},null,0,"P","","",null,null,null,null,null,null,null,null,null,null,null,null,null,null,null,null,null,null,null,null,null,null,null,null,null,null,null,null,null,null,null,null,null,null,null,null,null,null,null,null,null,null,null,null,null,null,null,null,null,null,null,null,null,null,null,null,null,null,null,null,null,null,null,null,null,null,null,null,null,null,null,null,null,null,null,null,null,null,null,null,null,null,null,null,null,null,null,null,null,null,null,null,null,null,null,null,null,null,null,null,null,null,null,null,null,null,0,"P","","ZZ","C0320","ENERGUSE","INDUSTRY","_Z","_Z","_Z","_Z","_Z","WEIGHT","_Z","KT"]
["kt","Patent fuel","Transport sector","2112","B_101900","PATFUEL","TOTTRANS",{"$f":"PrefilledData!L19","v":0},null,0,"P","","",null,null,null,null,null,null,null,null,null,null,null,null,null,null,null,null,null,null,null,null,null,null,null,null,null,null,null,null,null,null,null,null,null,null,null,null,null,null,null,null,null,null,null,null,null,null,null,null,null,null,null,null,null,null,null,null,null,null,null,null,null,null,null,null,null,null,null,null,null,null,null,null,null,null,null,null,null,null,null,null,null,null,null,null,null,null,null,null,null,null,null,null,null,null,null,null,null,null,null,null,null,null,null,null,null,null,0,"P","","ZZ","C0320","ENERGUSE","TRANSPOR","_Z","_Z","_Z","_Z","_Z","WEIGHT","_Z","KT"]
["kt","Patent fuel","Other sectors","2112","B_102000","PATFUEL","TOTOTHER",{"$f":"PrefilledData!L20","v":0},null,0,"P","","",null,null,null,null,null,null,null,null,null,null,null,null,null,null,null,null,null,null,null,null,null,null,null,null,null,null,null,null,null,null,null,null,null,null,null,null,null,null,null,null,null,null,null,null,null,null,null,null,null,null,null,null,null,null,null,null,null,null,null,null,null,null,null,null,null,null,null,null,null,null,null,null,null,null,null,null,null,null,null,null,null,null,null,null,null,null,null,null,null,null,null,null,null,null,null,null,null,null,null,null,null,null,null,null,null,null,0,"P","","ZZ","C0320","ENERGUSE","OTHSECT","_Z","_Z","_Z","_Z","_Z","WEIGHT","_Z","KT"]
["kt","Coke oven coke","Indigenous production","2121","B_101100","OVENCOKE","INDPROD",{"$f":"PrefilledData!J6","v":0},{"$f":"SUM(PrefilledData!C76:N76)","v":0},0,"P",{"$f":"IF(ISERROR(J104/H104),\"\",(J104/H104)-1)","v":""},{"$f":"IF(ISERROR(J104/I104),\"\",(J104/I104)-1)","v":""},null,null,null,null,null,null,null,null,null,null,null,null,null,null,null,null,null,null,null,null,null,null,null,null,null,null,null,null,null,null,null,null,null,null,null,null,null,null,null,null,null,null,null,null,null,null,null,null,null,null,null,null,null,null,null,null,null,null,null,null,null,null,null,null,null,null,null,null,null,null,null,null,null,null,null,null,null,null,null,null,null,null,null,null,null,null,null,null,null,null,null,null,null,null,null,null,null,null,null,null,null,null,null,null,null,null,0,"P","","ZZ","C0311","PRODUCT","INDPROD","_Z","_Z","_Z","_Z","_Z","WEIGHT","_Z","KT"]
["kt","Coke oven coke","From other sources","2121","B_100200","OVENCOKE","OSOURCES",{"$f":"PrefilledData!J7","v":0},{"$f":"SUM(PrefilledData!C77:N77)","v":0},0,"P",{"$f":"IF(ISERROR(J105/H105),\"\",(J105/H105)-1)","v":""},{"$f":"IF(ISERROR(J105/I105),\"\",(J105/I105)-1)","v":""},null,null,null,null,null,null,null,null,null,null,null,null,null,null,null,null,null,null,null,null,null,null,null,null,null,null,null,null,null,null,null,null,null,null,null,null,null,null,null,null,null,null,null,null,null,null,null,null,null,null,null,null,null,null,null,null,null,null,null,null,null,null,null,null,null,null,null,null,null,null,null,null,null,null,null,null,null,null,null,null,null,null,null,null,null,null,null,null,null,null,null,null,null,null,null,null,null,null,null,null,null,null,null,null,null,null,0,"P","","ZZ","C0311","SUPPLY","OSOURCES","_Z","_Z","_Z","_Z","_Z","WEIGHT","_Z","KT"]
["kt","Coke oven coke","Total imports (Balance)","2121","B_100300","OVENCOKE","TOTIMPSB",{"$f":"PrefilledData!J8","v":0},{"$f":"SUM(PrefilledData!C78:N78)","v":0},0,"P","","",null,null,null,null,null,null,null,null,null,null,null,null,null,null,null,null,null,null,null,null,null,null,null,null,null,null,null,null,null,null,null,null,null,null,null,null,null,null,null,null,null,null,null,null,null,null,null,null,null,null,null,null,null,null,null,null,null,null,null,null,null,null,null,null,null,null,null,null,null,null,null,null,null,null,null,null,null,null,null,null,null,null,null,null,null,null,null,null,null,null,null,null,null,null,null,null,null,null,null,null,null,null,null,null,null,null,0,"P","","ZZ","C0311","IMPORTS","TOTIMPSB","_Z","_Z","_Z","_Z","_Z","WEIGHT","_Z","KT"]
["kt","Coke oven coke","Total exports (Balance)","2121","B_100500","OVENCOKE","TOTEXPSB",{"$f":"PrefilledData!J9","v":0},{"$f":"SUM(PrefilledData!C79:N79)","v":0},0,"P","","",null,null,null,null,null,null,null,null,null,null,null,null,null,null,null,null,null,null,null,null,null,null,null,null,null,null,null,null,null,null,null,null,null,null,null,null,null,null,null,null,null,null,null,null,null,null,null,null,null,null,null,null,null,null,null,null,null,null,null,null,null,null,null,null,null,null,null,null,null,null,null,null,null,null,null,null,null,null,null,null,null,null,null,null,null,null,null,null,null,null,null,null,null,null,null,null,null,null,null,null,null,null,null,null,null,null,0,"P","","ZZ","C0311","EXPORTS","TOTEXPSB","_Z","_Z","_Z","_Z","_Z","WEIGHT","_Z","KT"]
["kt","Coke oven coke","Stock changes (National territory)","2121","B_100400","OVENCOKE","STCHANAT",{"$f":"PrefilledData!J10","v":0},{"$f":"SUM(PrefilledData!C80:N80)","v":0},0,"P","","",null,null,null,null,null,null,null,null,null,null,null,null,null,null,null,null,null,null,null,null,null,null,null,null,null,null,null,null,null,null,null,null,null,null,null,null,null,null,null,null,null,null,null,null,null,null,null,null,null,null,null,null,null,null,null,null,null,null,null,null,null,null,null,null,null,null,null,null,null,null,null,null,null,null,null,null,null,null,null,null,null,null,null,null,null,null,null,null,null,null,null,null,null,null,null,null,null,null,null,null,null,null,null,null,null,null,0,"P","","ZZ","C0311","STOCKS","STOCKCH","_Z","_Z","NATTER","_Z","_Z","WEIGHT","_Z","KT"]
["kt","Coke oven coke","Inland consumption (Calculated)",null,null,null,null,{"$f":"H104+H105+H106-H107+H108","v":0},{"$f":"I104+I105+I106-I107+I108","v":0},{"$f":"J104+J105+J106-J107+J108","v":0},"P","","",null,null,null,null,null,null,null,null,null,null,null,null,null,null,null,null,null,null,null,null,null,null,null,null,null,null,null,null,null,null,null,null,null,null,null,null,null,null,null,null,null,null,null,null,null,null,null,null,null,null,null,null,null,null,null,null,null,null,null,null,null,null,null,null,null,null,null,null,null,null,null,null,null,null,null,null,null,null,null,null,null,null,null,null,null,null,null,null,null,null,null,null,null,null,null,null,null,null,null,null,null,null,null,null,null,null,0,"P","","ZZ","C0311","SUPPLY","INLDEMC","_Z","_Z","_Z","_Z","_Z","WEIGHT","_Z","KT"]
["kt","Coke oven coke","Statistical Difference",null,null,null,null,{"$f":"H109-H111","v":0},null,{"$f":"J109-J111","v":0},"P",null,null,null,null,null,null,null,null,null,null,null,null,null,null,null,null,null,null,null,null,null,null,null,null,null,null,null,null,null,null,null,null,null,null,null,null,null,null,null,null,null,null,null,null,null,null,null,null,null,null,null,null,null,null,null,null,null,null,null,null,null,null,null,null,null,null,null,null,null,null,null,null,null,null,null,null,null,null,null,null,null,null,null,null,null,null,null,null,null,null,null,null,null,null,null,null,null,null,null,null,null,null,null,null,null,null,null,null,0,"P","","ZZ","C0311","STATDIFF","_Z","_Z","_Z","_Z","_Z","_Z","WEIGHT","_Z","KT"]
["kt","Coke oven coke","Inland consumption (Observed)",null,null,null,null,{"$f":"H112+H113+H114+H115","v":0},null,{"$f":"J112+J113+J114+J115","v":0},"P","","",null,null,null,null,null,null,null,null,null,null,null,null,null,null,null,null,null,null,null,null,null,null,null,null,null,null,null,null,null,null,null,null,null,null,null,null,null,null,null,null,null,null,null,null,null,null,null,null,null,null,null,null,null,null,null,null,null,null,null,null,null,null,null,null,null,null,null,null,null,null,null,null,null,null,null,null,null,null,null,null,null,null,null,null,null,null,null,null,null,null,null,null,null,null,null,null,null,null,null,null,null,null,null,null,null,null,0,"P","","ZZ","C0311","DEMAND","INLDEMO","_Z","_Z","_Z","_Z","_Z","WEIGHT","_Z","KT"]
["kt","Coke oven coke","Transformation sector","2121","DB_101000","OVENCOKE","TOTTRANF",{"$f":"PrefilledData!J12","v":0},null,0,"P","","",null,null,null,null,null,null,null,null,null,null,null,null,null,null,null,null,null,null,null,null,null,null,null,null,null,null,null,null,null,null,null,null,null,null,null,null,null,null,null,null,null,null,null,null,null,null,null,null,null,null,null,null,null,null,null,null,null,null,null,null,null,null,null,null,null,null,null,null,null,null,null,null,null,null,null,null,null,null,null,null,null,null,null,null,null,null,null,null,null,null,null,null,null,null,null,null,null,null,null,null,null,null,null,null,null,null,0,"P","","ZZ","C0311","TRANSFOR","TOTRANSF","_Z","_Z","_Z","_Z","_Z","WEIGHT","_Z","KT"]
["kt","Coke oven coke","Energy sector","2121","DB_101300","OVENCOKE","TOTENGY",{"$f":"PrefilledData!J13","v":0},null,0,"P","","",null,null,null,null,null,null,null,null,null,null,null,null,null,null,null,null,null,null,null,null,null,null,null,null,null,null,null,null,null,null,null,null,null,null,null,null,null,null,null,null,null,null,null,null,null,null,null,null,null,null,null,null,null,null,null,null,null,null,null,null,null,null,null,null,null,null,null,null,null,null,null,null,null,null,null,null,null,null,null,null,null,null,null,null,null,null,null,null,null,null,null,null,null,null,null,null,null,null,null,null,null,null,null,null,null,null,0,"P","","ZZ","C0311","ENERGUSE","ENERSECT","_Z","_Z","_Z","_Z","_Z","WEIGHT","_Z","KT"]
["kt","Coke oven coke","Distribution losses","2121","B_101400","OVENCOKE","DISTLOSS",{"$f":"PrefilledData!J14","v":0},null,0,"P","","",null,null,null,null,null,null,null,null,null,null,null,null,null,null,null,null,null,null,null,null,null,null,null,null,null,null,null,null,null,null,null,null,null,null,null,null,null,null,null,null,null,null,null,null,null,null,null,null,null,null,null,null,null,null,null,null,null,null,null,null,null,null,null,null,null,null,null,null,null,null,null,null,null,null,null,null,null,null,null,null,null,null,null,null,null,null,null,null,null,null,null,null,null,null,null,null,null,null,null,null,null,null,null,null,null,null,0,"P","","ZZ","C0311","LOSSES","DISTLOSS","_Z","_Z","_Z","_Z","_Z","WEIGHT","_Z","KT"]
["kt","Coke oven coke","Total final consumption",null,null,null,null,{"$f":"H116+H117","v":0},null,{"$f":"J116+J117","v":0},"P","","",null,null,null,null,null,null,null,null,null,null,null,null,null,null,null,null,null,null,null,null,null,null,null,null,null,null,null,null,null,null,null,null,null,null,null,null,null,null,null,null,null,null,null,null,null,null,null,null,null,null,null,null,null,null,null,null,null,null,null,null,null,null,null,null,null,null,null,null,null,null,null,null,null,null,null,null,null,null,null,null,null,null,null,null,null,null,null,null,null,null,null,null,null,null,null,null,null,null,null,null,null,null,null,null,null,null,0,"P","","ZZ","C0311","CONSUMPT","FINCONS","_Z","_Z","_Z","_Z","_Z","WEIGHT","_Z","KT"]
["kt","Coke oven coke","Total final non-energy consumption","2121","B_101600","OVENCOKE","NONENUSE",{"$f":"PrefilledData!J16","v":0},null,0,"P","","",null,null,null,null,null,null,null,null,null,null,null,null,null,null,null,null,null,null,null,null,null,null,null,null,null,null,null,null,null,null,null,null,null,null,null,null,null,null,null,null,null,null,null,null,null,null,null,null,null,null,null,null,null,null,null,null,null,null,null,null,null,null,null,null,null,null,null,null,null,null,null,null,null,null,null,null,null,null,null,null,null,null,null,null,null,null,null,null,null,null,null,null,null,null,null,null,null,null,null,null,null,null,null,null,null,null,0,"P","","ZZ","C0311","NONENUSE","_T","_Z","_Z","_Z","_Z","_Z","WEIGHT","_Z","KT"]
["kt","Coke oven coke","Total final energy consumption",null,null,null,null,{"$f":"SUM(H118:H120)","v":0},null,{"$f":"J118+J119+J120","v":0},"P","","",null,null,null,null,null,null,null,null,null,null,null,null,null,null,null,null,null,null,null,null,null,null,null,null,null,null,null,null,null,null,null,null,null,null,null,null,null,null,null,null,null,null,null,null,null,null,null,null,null,null,null,null,null,null,null,null,null,null,null,null,null,null,null,null,null,null,null,null,null,null,null,null,null,null,null,null,null,null,null,null,null,null,null,null,null,null,null,null,null,null,null,null,null,null,null,null,null,null,null,null,null,null,null,null,null,null,0,"P","","ZZ","C0311","ENERGUSE","FINCONS","_Z","_Z","_Z","_Z","_Z","WEIGHT","_Z","KT"]
["kt","Coke oven coke","Industry sector","2121","DB_101800","OVENCOKE","TOTIND",{"$f":"PrefilledData!J18","v":0},null,0,"P","","",null,null,null,null,null,null,null,null,null,null,null,null,null,null,null,null,null,null,null,null,null,null,null,null,null,null,null,null,null,null,null,null,null,null,null,null,null,null,null,null,null,null,null,null,null,null,null,null,null,null,null,null,null,null,null,null,null,null,null,null,null,null,null,null,null,null,null,null,null,null,null,null,null,null,null,null,null,null,null,null,null,null,null,null,null,null,null,null,null,null,null,null,null,null,null,null,null,null,null,null,null,null,null,null,null,null,0,"P","","ZZ","C0311","ENERGUSE","INDUSTRY","_Z","_Z","_Z","_Z","_Z","WEIGHT","_Z","KT"]
["kt","Coke oven coke","Transport sector","2121","B_101900","OVENCOKE","TOTTRANS",{"$f":"PrefilledData!J19","v":0},null,0,"P","","",null,null,null,null,null,null,null,null,null,null,null,null,null,null,null,null,null,null,null,null,null,null,null,null,null,null,null,null,null,null,null,null,null,null,null,null,null,null,null,null,null,null,null,null,null,null,null,null,null,null,null,null,null,null,null,null,null,null,null,null,null,null,null,null,null,null,null,null,null,null,null,null,null,null,null,null,null,null,null,null,null,null,null,null,null,null,null,null,null,null,null,null,null,null,null,null,null,null,null,null,null,null,null,null,null,null,0,"P","","ZZ","C0311","ENERGUSE","TRANSPOR","_Z","_Z","_Z","_Z","_Z","WEIGHT","_Z","KT"]
["kt","Coke oven coke","Other sectors","2121","B_102000","OVENCOKE","TOTOTHER",{"$f":"PrefilledData!J20","v":0},null,0,"P","","",null,null,null,null,null,null,null,null,null,null,null,null,null,null,null,null,null,null,null,null,null,null,null,null,null,null,null,null,null,null,null,null,null,null,null,null,null,null,null,null,null,null,null,null,null,null,null,null,null,null,null,null,null,null,null,null,null,null,null,null,null,null,null,null,null,null,null,null,null,null,null,null,null,null,null,null,null,null,null,null,null,null,null,null,null,null,null,null,null,null,null,null,null,null,null,null,null,null,null,null,null,null,null,null,null,null,0,"P","","ZZ","C0311","ENERGUSE","OTHSECT","_Z","_Z","_Z","_Z","_Z","WEIGHT","_Z","KT"]
["kt","Gas coke","Indigenous production","2122","B_101100","GASCOKE","INDPROD",{"$f":"PrefilledData!K6","v":0},null,0,"P",{"$f":"IF(ISERROR(J121/H121),\"\",(J121/H121)-1)","v":""},{"$f":"IF(ISERROR(J121/I121),\"\",(J121/I121)-1)","v":""},null,null,null,null,null,null,null,null,null,null,null,null,null,null,null,null,null,null,null,null,null,null,null,null,null,null,null,null,null,null,null,null,null,null,null,null,null,null,null,null,null,null,null,null,null,null,null,null,null,null,null,null,null,null,null,null,null,null,null,null,null,null,null,null,null,null,null,null,null,null,null,null,null,null,null,null,null,null,null,null,null,null,null,null,null,null,null,null,null,null,null,null,null,null,null,null,null,null,null,null,null,null,null,null,null,null,0,"P","","ZZ","C0312","PRODUCT","INDPROD","_Z","_Z","_Z","_Z","_Z","WEIGHT","_Z","KT"]
["kt","Gas coke","From other sources","2122","B_100200","GASCOKE","OSOURCES",{"$f":"PrefilledData!K7","v":0},null,0,"P",{"$f":"IF(ISERROR(J122/H122),\"\",(J122/H122)-1)","v":""},{"$f":"IF(ISERROR(J122/I122),\"\",(J122/I122)-1)","v":""},null,null,null,null,null,null,null,null,null,null,null,null,null,null,null,null,null,null,null,null,null,null,null,null,null,null,null,null,null,null,null,null,null,null,null,null,null,null,null,null,null,null,null,null,null,null,null,null,null,null,null,null,null,null,null,null,null,null,null,null,null,null,null,null,null,null,null,null,null,null,null,null,null,null,null,null,null,null,null,null,null,null,null,null,null,null,null,null,null,null,null,null,null,null,null,null,null,null,null,null,null,null,null,null,null,null,0,"P","","ZZ","C0312","SUPPLY","OSOURCES","_Z","_Z","_Z","_Z","_Z","WEIGHT","_Z","KT"]
["kt","Gas coke","Total imports (Balance)","2122","B_100300","GASCOKE","TOTIMPSB",{"$f":"PrefilledData!K8","v":0},null,0,"P","","",null,null,null,null,null,null,null,null,null,null,null,null,null,null,null,null,null,null,null,null,null,null,null,null,null,null,null,null,null,null,null,null,null,null,null,null,null,null,null,null,null,null,null,null,null,null,null,null,null,null,null,null,null,null,null,null,null,null,null,null,null,null,null,null,null,null,null,null,null,null,null,null,null,null,null,null,null,null,null,null,null,null,null,null,null,null,null,null,null,null,null,null,null,null,null,null,null,null,null,null,null,null,null,null,null,null,0,"P","","ZZ","C0312","IMPORTS","TOTIMPSB","_Z","_Z","_Z","_Z","_Z","WEIGHT","_Z","KT"]
["kt","Gas coke","Total exports (Balance)","2122","B_100500","GASCOKE","TOTEXPSB",{"$f":"PrefilledData!K9","v":0},null,0,"P","","",null,null,null,null,null,null,null,null,null,null,null,null,null,null,null,null,null,null,null,null,null,null,null,null,null,null,null,null,null,null,null,null,null,null,null,null,null,null,null,null,null,null,null,null,null,null,null,null,null,null,null,null,null,null,null,null,null,null,null,null,null,null,null,null,null,null,null,null,null,null,null,null,null,null,null,null,null,null,null,null,null,null,null,null,null,null,null,null,null,null,null,null,null,null,null,null,null,null,null,null,null,null,null,null,null,null,0,"P","","ZZ","C0312","EXPORTS","TOTEXPSB","_Z","_Z","_Z","_Z","_Z","WEIGHT","_Z","KT"]
["kt","Gas coke","Stock changes (National territory)","2122","B_100400","GASCOKE","STCHANAT",{"$f":"PrefilledData!K10","v":0},null,0,"P","","",null,null,null,null,null,null,null,null,null,null,null,null,null,null,null,null,null,null,null,null,null,null,null,null,null,null,null,null,null,null,null,null,null,null,null,null,null,null,null,null,null,null,null,null,null,null,null,null,null,null,null,null,null,null,null,null,null,null,null,null,null,null,null,null,null,null,null,null,null,null,null,null,null,null,null,null,null,null,null,null,null,null,null,null,null,null,null,null,null,null,null,null,null,null,null,null,null,null,null,null,null,null,null,null,null,null,0,"P","","ZZ","C0312","STOCKS","STOCKCH","_Z","_Z","NATTER","_Z","_Z","WEIGHT","_Z","KT"]
["kt","Gas coke","Inland consumption (Calculated)",null,null,null,null,{"$f":"H121+H122+H123-H124+H125","v":0},null,{"$f":"J121+J122+J123-J124+J125","v":0},"P","","",null,null,null,null,null,null,null,null,null,null,null,null,null,null,null,null,null,null,null,null,null,null,null,null,null,null,null,null,null,null,null,null,null,null,null,null,null,null,null,null,null,null,null,null,null,null,null,null,null,null,null,null,null,null,null,null,null,null,null,null,null,null,null,null,null,null,null,null,null,null,null,null,null,null,null,null,null,null,null,null,null,null,null,null,null,null,null,null,null,null,null,null,null,null,null,null,null,null,null,null,null,null,null,null,null,null,0,"P","","ZZ","C0312","SUPPLY","INLDEMC","_Z","_Z","_Z","_Z","_Z","WEIGHT","_Z","KT"]
["kt","Gas coke","Statistical Difference",null,null,null,null,{"$f":"H126-H128","v":0},null,{"$f":"J126-J128","v":0},"P",null,null,null,null,null,null,null,null,null,null,null,null,null,null,null,null,null,null,null,null,null,null,null,null,null,null,null,null,null,null,null,null,null,null,null,null,null,null,null,null,null,null,null,null,null,null,null,null,null,null,null,null,null,null,null,null,null,null,null,null,null,null,null,null,null,null,null,null,null,null,null,null,null,null,null,null,null,null,null,null,null,null,null,null,null,null,null,null,null,null,null,null,null,null,null,null,null,null,null,null,null,null,null,null,null,null,null,null,0,"P","","ZZ","C0312","STATDIFF","_Z","_Z","_Z","_Z","_Z","_Z","WEIGHT","_Z","KT"]
["kt","Gas coke","Inland consumption (Observed)",null,null,null,null,{"$f":"H129+H130+H131+H132","v":0},null,{"$f":"J129+J130+J131+J132","v":0},"P","","",null,null,null,null,null,null,null,null,null,null,null,null,null,null,null,null,null,null,null,null,null,null,null,null,null,null,null,null,null,null,null,null,null,null,null,null,null,null,null,null,null,null,null,null,null,null,null,null,null,null,null,null,null,null,null,null,null,null,null,null,null,null,null,null,null,null,null,null,null,null,null,null,null,null,null,null,null,null,null,null,null,null,null,null,null,null,null,null,null,null,null,null,null,null,null,null,null,null,null,null,null,null,null,null,null,null,0,"P","","ZZ","C0312","DEMAND","INLDEMO","_Z","_Z","_Z","_Z","_Z","WEIGHT","_Z","KT"]
["kt","Gas coke","Transformation sector","2122","DB_101000","GASCOKE","TOTTRANF",{"$f":"PrefilledData!K12","v":0},null,0,"P","","",null,null,null,null,null,null,null,null,null,null,null,null,null,null,null,null,null,null,null,null,null,null,null,null,null,null,null,null,null,null,null,null,null,null,null,null,null,null,null,null,null,null,null,null,null,null,null,null,null,null,null,null,null,null,null,null,null,null,null,null,null,null,null,null,null,null,null,null,null,null,null,null,null,null,null,null,null,null,null,null,null,null,null,null,null,null,null,null,null,null,null,null,null,null,null,null,null,null,null,null,null,null,null,null,null,null,0,"P","","ZZ","C0312","TRANSFOR","TOTRANSF","_Z","_Z","_Z","_Z","_Z","WEIGHT","_Z","KT"]
["kt","Gas coke","Energy sector","2122","DB_101300","GASCOKE","TOTENGY",{"$f":"PrefilledData!K13","v":0},null,0,"P","","",null,null,null,null,null,null,null,null,null,null,null,null,null,null,null,null,null,null,null,null,null,null,null,null,null,null,null,null,null,null,null,null,null,null,null,null,null,null,null,null,null,null,null,null,null,null,null,null,null,null,null,null,null,null,null,null,null,null,null,null,null,null,null,null,null,null,null,null,null,null,null,null,null,null,null,null,null,null,null,null,null,null,null,null,null,null,null,null,null,null,null,null,null,null,null,null,null,null,null,null,null,null,null,null,null,null,0,"P","",{"$f":"$S$1","v":"ZZ"},"C0312","ENERGUSE","ENERSECT","_Z","_Z","_Z","_Z","_Z","WEIGHT","_Z","KT"]
["kt","Gas coke","Distribution losses","2122","B_101400","GASCOKE","DISTLOSS",{"$f":"PrefilledData!K14","v":0},null,0,"P","","",null,null,null,null,null,null,null,null,null,null,null,null,null,null,null,null,null,null,null,null,null,null,null,null,null,null,null,null,null,null,null,null,null,null,null,null,null,null,null,null,null,null,null,null,null,null,null,null,null,null,null,null,null,null,null,null,null,null,null,null,null,null,null,null,null,null,null,null,null,null,null,null,null,null,null,null,null,null,null,null,null,null,null,null,null,null,null,null,null,null,null,null,null,null,null,null,null,null,null,null,null,null,null,null,null,null,{"$f":"IF(K131=\"O\",\"NaN\",ROUND(J131,3))","v":0},{"$f":"IF(K131=\"\",\"A\",K131)","v":"P"},{"$f":"LEFT(TRIM(N131),255)","v":""},"ZZ","C0312","LOSSES","DISTLOSS","_Z","_Z","_Z","_Z","_Z","WEIGHT","_Z","KT"]
["kt","Gas coke","Total final consumption",null,null,null,null,{"$f":"H133+H134","v":0},null,{"$f":"J133+J134","v":0},"P","","",null,null,null,null,null,null,null,null,null,null,null,null,null,null,null,null,null,null,null,null,null,null,null,null,null,null,null,null,null,null,null,null,null,null,null,null,null,null,null,null,null,null,null,null,null,null,null,null,null,null,null,null,null,null,null,null,null,null,null,null,null,null,null,null,null,null,null,null,null,null,null,null,null,null,null,null,null,null,null,null,null,null,null,null,null,null,null,null,null,null,null,null,null,null,null,null,null,null,null,null,null,null,null,null,null,null,0,"P","","ZZ","C0312","CONSUMPT","FINCONS","_Z","_Z","_Z","_Z","_Z","WEIGHT","_Z","KT"]
["kt","Gas coke","Total final non-energy consumption","2122","B_101600","GASCOKE","NONENUSE",{"$f":"PrefilledData!K16","v":0},null,0,"P","","",null,null,null,null,null,null,null,null,null,null,null,null,null,null,null,null,null,null,null,null,null,null,null,null,null,null,null,null,null,null,null,null,null,null,null,null,null,null,null,null,null,null,null,null,null,null,null,null,null,null,null,null,null,null,null,null,null,null,null,null,null,null,null,null,null,null,null,null,null,null,null,null,null,null,null,null,null,null,null,null,null,null,null,null,null,null,null,null,null,null,null,null,null,null,null,null,null,null,null,null,null,null,null,null,null,null,0,"P","","ZZ","C0312","NONENUSE","_T","_Z","_Z","_Z","_Z","_Z","WEIGHT","_Z","KT"]
["kt","Gas coke","Total final energy consumption",null,null,null,null,{"$f":"SUM(H135:H137)","v":0},null,{"$f":"J135+J136+J137","v":0},"P","","",null,null,null,null,null,null,null,null,null,null,null,null,null,null,null,null,null,null,null,null,null,null,null,null,null,null,null,null,null,null,null,null,null,null,null,null,null,null,null,null,null,null,null,null,null,null,null,null,null,null,null,null,null,null,null,null,null,null,null,null,null,null,null,null,null,null,null,null,null,null,null,null,null,null,null,null,null,null,null,null,null,null,null,null,null,null,null,null,null,null,null,null,null,null,null,null,null,null,null,null,null,null,null,null,null,null,0,"P","","ZZ","C0312","ENERGUSE","FINCONS","_Z","_Z","_Z","_Z","_Z","WEIGHT","_Z","KT"]
["kt","Gas coke","Industry sector","2122","DB_101800","GASCOKE","TOTIND",{"$f":"PrefilledData!K18","v":0},null,0,"P","","",null,null,null,null,null,null,null,null,null,null,null,null,null,null,null,null,null,null,null,null,null,null,null,null,null,null,null,null,null,null,null,null,null,null,null,null,null,null,null,null,null,null,null,null,null,null,null,null,null,null,null,null,null,null,null,null,null,null,null,null,null,null,null,null,null,null,null,null,null,null,null,null,null,null,null,null,null,null,null,null,null,null,null,null,null,null,null,null,null,null,null,null,null,null,null,null,null,null,null,null,null,null,null,null,null,null,0,"P","","ZZ","C0312","ENERGUSE","INDUSTRY","_Z","_Z","_Z","_Z","_Z","WEIGHT","_Z","KT"]
["kt","Gas coke","Transport sector","2122","B_101900","GASCOKE","TOTTRANS",{"$f":"PrefilledData!K19","v":0},null,0,"P","","",null,null,null,null,null,null,null,null,null,null,null,null,null,null,null,null,null,null,null,null,null,null,null,null,null,null,null,null,null,null,null,null,null,null,null,null,null,null,null,null,null,null,null,null,null,null,null,null,null,null,null,null,null,null,null,null,null,null,null,null,null,null,null,null,null,null,null,null,null,null,null,null,null,null,null,null,null,null,null,null,null,null,null,null,null,null,null,null,null,null,null,null,null,null,null,null,null,null,null,null,null,null,null,null,null,null,0,"P","","ZZ","C0312","ENERGUSE","TRANSPOR","_Z","_Z","_Z","_Z","_Z","WEIGHT","_Z","KT"]
["kt","Gas coke","Other sectors","2122","B_102000","GASCOKE","TOTOTHER",{"$f":"PrefilledData!K20","v":0},null,0,"P","","",null,null,null,null,null,null,null,null,null,null,null,null,null,null,null,null,null,null,null,null,null,null,null,null,null,null,null,null,null,null,null,null,null,null,null,null,null,null,null,null,null,null,null,null,null,null,null,null,null,null,null,null,null,null,null,null,null,null,null,null,null,null,null,null,null,null,null,null,null,null,null,null,null,null,null,null,null,null,null,null,null,null,null,null,null,null,null,null,null,null,null,null,null,null,null,null,null,null,null,null,null,null,null,null,null,null,0,"P","","ZZ","C0312","ENERGUSE","OTHSECT","_Z","_Z","_Z","_Z","_Z","WEIGHT","_Z","KT"]
["kt","Coal tar","Indigenous production","2130","B_101100","COALTAR","INDPROD",{"$f":"PrefilledData!N6","v":0},null,0,"P",{"$f":"IF(ISERROR(J138/H138),\"\",(J138/H138)-1)","v":""},{"$f":"IF(ISERROR(J138/I138),\"\",(J138/I138)-1)","v":""},null,null,null,null,null,null,null,null,null,null,null,null,null,null,null,null,null,null,null,null,null,null,null,null,null,null,null,null,null,null,null,null,null,null,null,null,null,null,null,null,null,null,null,null,null,null,null,null,null,null,null,null,null,null,null,null,null,null,null,null,null,null,null,null,null,null,null,null,null,null,null,null,null,null,null,null,null,null,null,null,null,null,null,null,null,null,null,null,null,null,null,null,null,null,null,null,null,null,null,null,null,null,null,null,null,null,0,"P","","ZZ","C0340","PRODUCT","INDPROD","_Z","_Z","_Z","_Z","_Z","WEIGHT","_Z","KT"]
["kt","Coal tar","From other sources","2130","B_100200","COALTAR","OSOURCES",{"$f":"PrefilledData!N7","v":0},null,0,"P",{"$f":"IF(ISERROR(J139/H139),\"\",(J139/H139)-1)","v":""},{"$f":"IF(ISERROR(J139/I139),\"\",(J139/I139)-1)","v":""},null,null,null,null,null,null,null,null,null,null,null,null,null,null,null,null,null,null,null,null,null,null,null,null,null,null,null,null,null,null,null,null,null,null,null,null,null,null,null,null,null,null,null,null,null,null,null,null,null,null,null,null,null,null,null,null,null,null,null,null,null,null,null,null,null,null,null,null,null,null,null,null,null,null,null,null,null,null,null,null,null,null,null,null,null,null,null,null,null,null,null,null,null,null,null,null,null,null,null,null,null,null,null,null,null,null,0,"P","","ZZ","C0340","SUPPLY","OSOURCES","_Z","_Z","_Z","_Z","_Z","WEIGHT","_Z","KT"]
["kt","Coal tar","Total imports (Balance)","2130","B_100300","COALTAR","TOTIMPSB",{"$f":"PrefilledData!N8","v":0},null,0,"P","","",null,null,null,null,null,null,null,null,null,null,null,null,null,null,null,null,null,null,null,null,null,null,null,null,null,null,null,null,null,null,null,null,null,null,null,null,null,null,null,null,null,null,null,null,null,null,null,null,null,null,null,null,null,null,null,null,null,null,null,null,null,null,null,null,null,null,null,null,null,null,null,null,null,null,null,null,null,null,null,null,null,null,null,null,null,null,null,null,null,null,null,null,null,null,null,null,null,null,null,null,null,null,null,null,null,null,0,"P","","ZZ","C0340","IMPORTS","TOTIMPSB","_Z","_Z","_Z","_Z","_Z","WEIGHT","_Z","KT"]
["kt","Coal tar","Total exports (Balance)","2130","B_100500","COALTAR","TOTEXPSB",{"$f":"PrefilledData!N9","v":0},null,0,"P","","",null,null,null,null,null,null,null,null,null,null,null,null,null,null,null,null,null,null,null,null,null,null,null,null,null,null,null,null,null,null,null,null,null,null,null,null,null,null,null,null,null,null,null,null,null,null,null,null,null,null,null,null,null,null,null,null,null,null,null,null,null,null,null,null,null,null,null,null,null,null,null,null,null,null,null,null,null,null,null,null,null,null,null,null,null,null,null,null,null,null,null,null,null,null,null,null,null,null,null,null,null,null,null,null,null,null,0,"P","","ZZ","C0340","EXPORTS","TOTEXPSB","_Z","_Z","_Z","_Z","_Z","WEIGHT","_Z","KT"]
["kt","Coal tar","Stock changes (National territory)","2130","B_100400","COALTAR","STCHANAT",{"$f":"PrefilledData!N10","v":0},null,0,"P","","",null,null,null,null,null,null,null,null,null,null,null,null,null,null,null,null,null,null,null,null,null,null,null,null,null,null,null,null,null,null,null,null,null,null,null,null,null,null,null,null,null,null,null,null,null,null,null,null,null,null,null,null,null,null,null,null,null,null,null,null,null,null,null,null,null,null,null,null,null,null,null,null,null,null,null,null,null,null,null,null,null,null,null,null,null,null,null,null,null,null,null,null,null,null,null,null,null,null,null,null,null,null,null,null,null,null,0,"P","","ZZ","C0340","STOCKS","STOCKCH","_Z","_Z","NATTER","_Z","_Z","WEIGHT","_Z","KT"]
["kt","Coal tar","Inland consumption (Calculated)",null,null,null,null,{"$f":"H138+H139+H140-H141+H142","v":0},null,{"$f":"J138+J139+J140-J141+J142","v":0},"P","","",null,null,null,null,null,null,null,null,null,null,null,null,null,null,null,null,null,null,null,null,null,null,null,null,null,null,null,null,null,null,null,null,null,null,null,null,null,null,null,null,null,null,null,null,null,null,null,null,null,null,null,null,null,null,null,null,null,null,null,null,null,null,null,null,null,null,null,null,null,null,null,null,null,null,null,null,null,null,null,null,null,null,null,null,null,null,null,null,null,null,null,null,null,null,null,null,null,null,null,null,null,null,null,null,null,null,0,"P","","ZZ","C0340","SUPPLY","INLDEMC","_Z","_Z","_Z","_Z","_Z","WEIGHT","_Z","KT"]
["kt","Coal tar","Statistical Difference",null,null,null,null,{"$f":"H143-H145","v":0},null,{"$f":"J143-J145","v":0},"P",null,null,null,null,null,null,null,null,null,null,null,null,null,null,null,null,null,null,null,null,null,null,null,null,null,null,null,null,null,null,null,null,null,null,null,null,null,null,null,null,null,null,null,null,null,null,null,null,null,null,null,null,null,null,null,null,null,null,null,null,null,null,null,null,null,null,null,null,null,null,null,null,null,null,null,null,null,null,null,null,null,null,null,null,null,null,null,null,null,null,null,null,null,null,null,null,null,null,null,null,null,null,null,null,null,null,null,null,0,"P","","ZZ","C0340","STATDIFF","_Z","_Z","_Z","_Z","_Z","_Z","WEIGHT","_Z","KT"]
["kt","Coal tar","Inland consumption (Observed)",null,null,null,null,{"$f":"H146+H147+H148+H149","v":0},null,{"$f":"J146+J147+J148+J149","v":0},"P","","",null,null,null,null,null,null,null,null,null,null,null,null,null,null,null,null,null,null,null,null,null,null,null,null,null,null,null,null,null,null,null,null,null,null,null,null,null,null,null,null,null,null,null,null,null,null,null,null,null,null,null,null,null,null,null,null,null,null,null,null,null,null,null,null,null,null,null,null,null,null,null,null,null,null,null,null,null,null,null,null,null,null,null,null,null,null,null,null,null,null,null,null,null,null,null,null,null,null,null,null,null,null,null,null,null,null,0,"P","","ZZ","C0340","DEMAND","INLDEMO","_Z","_Z","_Z","_Z","_Z","WEIGHT","_Z","KT"]
["kt","Coal tar","Transformation sector","2130","DB_101000","COALTAR","TOTTRANF",{"$f":"PrefilledData!N12","v":0},null,0,"P","","",null,null,null,null,null,null,null,null,null,null,null,null,null,null,null,null,null,null,null,null,null,null,null,null,null,null,null,null,null,null,null,null,null,null,null,null,null,null,null,null,null,null,null,null,null,null,null,null,null,null,null,null,null,null,null,null,null,null,null,null,null,null,null,null,null,null,null,null,null,null,null,null,null,null,null,null,null,null,null,null,null,null,null,null,null,null,null,null,null,null,null,null,null,null,null,null,null,null,null,null,null,null,null,null,null,null,0,"P","","ZZ","C0340","TRANSFOR","TOTRANSF","_Z","_Z","_Z","_Z","_Z","WEIGHT","_Z","KT"]
["kt","Coal tar","Energy sector","2130","DB_101300","COALTAR","TOTENGY",{"$f":"PrefilledData!N13","v":0},null,0,"P","","",null,null,null,null,null,null,null,null,null,null,null,null,null,null,null,null,null,null,null,null,null,null,null,null,null,null,null,null,null,null,null,null,null,null,null,null,null,null,null,null,null,null,null,null,null,null,null,null,null,null,null,null,null,null,null,null,null,null,null,null,null,null,null,null,null,null,null,null,null,null,null,null,null,null,null,null,null,null,null,null,null,null,null,null,null,null,null,null,null,null,null,null,null,null,null,null,null,null,null,null,null,null,null,null,null,null,0,"P","","ZZ","C0340","ENERGUSE","ENERSECT","_Z","_Z","_Z","_Z","_Z","WEIGHT","_Z","KT"]
["kt","Coal tar","Distribution losses","2130","B_101400","COALTAR","DISTLOSS",{"$f":"PrefilledData!N14","v":0},null,0,"P","","",null,null,null,null,null,null,null,null,null,null,null,null,null,null,null,null,null,null,null,null,null,null,null,null,null,null,null,null,null,null,null,null,null,null,null,null,null,null,null,null,null,null,null,null,null,null,null,null,null,null,null,null,null,null,null,null,null,null,null,null,null,null,null,null,null,null,null,null,null,null,null,null,null,null,null,null,null,null,null,null,null,null,null,null,null,null,null,null,null,null,null,null,null,null,null,null,null,null,null,null,null,null,null,null,null,null,0,"P","","ZZ","C0340","LOSSES","DISTLOSS","_Z","_Z","_Z","_Z","_Z","WEIGHT","_Z","KT"]
["kt","Coal tar","Total final consumption",null,null,null,null,{"$f":"H150+H151","v":0},null,{"$f":"J150+J151","v":0},"P","","",null,null,null,null,null,null,null,null,null,null,null,null,null,null,null,null,null,null,null,null,null,null,null,null,null,null,null,null,null,null,null,null,null,null,null,null,null,null,null,null,null,null,null,null,null,null,null,null,null,null,null,null,null,null,null,null,null,null,null,null,null,null,null,null,null,null,null,null,null,null,null,null,null,null,null,null,null,null,null,null,null,null,null,null,null,null,null,null,null,null,null,null,null,null,null,null,null,null,null,null,null,null,null,null,null,null,0,"P","","ZZ","C0340","CONSUMPT","FINCONS","_Z","_Z","_Z","_Z","_Z","WEIGHT","_Z","KT"]
["kt","Coal tar","Total final non-energy consumption","2130","B_101600","COALTAR","NONENUSE",{"$f":"PrefilledData!N16","v":0},null,0,"P","","",null,null,null,null,null,null,null,null,null,null,null,null,null,null,null,null,null,null,null,null,null,null,null,null,null,null,null,null,null,null,null,null,null,null,null,null,null,null,null,null,null,null,null,null,null,null,null,null,null,null,null,null,null,null,null,null,null,null,null,null,null,null,null,null,null,null,null,null,null,null,null,null,null,null,null,null,null,null,null,null,null,null,null,null,null,null,null,null,null,null,null,null,null,null,null,null,null,null,null,null,null,null,null,null,null,null,0,"P","","ZZ","C0340","NONENUSE","_T","_Z","_Z","_Z","_Z","_Z","WEIGHT","_Z","KT"]
["kt","Coal tar","Total final energy consumption",null,null,null,null,{"$f":"SUM(H152:H154)","v":0},null,{"$f":"J152+J153+J154","v":0},"P","","",null,null,null,null,null,null,null,null,null,null,null,null,null,null,null,null,null,null,null,null,null,null,null,null,null,null,null,null,null,null,null,null,null,null,null,null,null,null,null,null,null,null,null,null,null,null,null,null,null,null,null,null,null,null,null,null,null,null,null,null,null,null,null,null,null,null,null,null,null,null,null,null,null,null,null,null,null,null,null,null,null,null,null,null,null,null,null,null,null,null,null,null,null,null,null,null,null,null,null,null,null,null,null,null,null,null,0,"P","","ZZ","C0340","ENERGUSE","FINCONS","_Z","_Z","_Z","_Z","_Z","WEIGHT","_Z","KT"]
["kt","Coal tar","Industry sector","2130","DB_101800","COALTAR","TOTIND",{"$f":"PrefilledData!N18","v":0},null,0,"P","","",null,null,null,null,null,null,null,null,null,null,null,null,null,null,null,null,null,null,null,null,null,null,null,null,null,null,null,null,null,null,null,null,null,null,null,null,null,null,null,null,null,null,null,null,null,null,null,null,null,null,null,null,null,null,null,null,null,null,null,null,null,null,null,null,null,null,null,null,null,null,null,null,null,null,null,null,null,null,null,null,null,null,null,null,null,null,null,null,null,null,null,null,null,null,null,null,null,null,null,null,null,null,null,null,null,null,0,"P","","ZZ","C0340","ENERGUSE","INDUSTRY","_Z","_Z","_Z","_Z","_Z","WEIGHT","_Z","KT"]
["kt","Coal tar","Transport sector","2130","B_101900","COALTAR","TOTTRANS",{"$f":"PrefilledData!N19","v":0},null,0,"P","","",null,null,null,null,null,null,null,null,null,null,null,null,null,null,null,null,null,null,null,null,null,null,null,null,null,null,null,null,null,null,null,null,null,null,null,null,null,null,null,null,null,null,null,null,null,null,null,null,null,null,null,null,null,null,null,null,null,null,null,null,null,null,null,null,null,null,null,null,null,null,null,null,null,null,null,null,null,null,null,null,null,null,null,null,null,null,null,null,null,null,null,null,null,null,null,null,null,null,null,null,null,null,null,null,null,null,0,"P","","ZZ","C0340","ENERGUSE","TRANSPOR","_Z","_Z","_Z","_Z","_Z","WEIGHT","_Z","KT"]
["kt","Coal tar","Other sectors","2130","B_102000","COALTAR","TOTOTHER",{"$f":"PrefilledData!N20","v":0},null,0,"P","","",null,null,null,null,null,null,null,null,null,null,null,null,null,null,null,null,null,null,null,null,null,null,null,null,null,null,null,null,null,null,null,null,null,null,null,null,null,null,null,null,null,null,null,null,null,null,null,null,null,null,null,null,null,null,null,null,null,null,null,null,null,null,null,null,null,null,null,null,null,null,null,null,null,null,null,null,null,null,null,null,null,null,null,null,null,null,null,null,null,null,null,null,null,null,null,null,null,null,null,null,null,null,null,null,null,null,0,"P","","ZZ","C0340","ENERGUSE","OTHSECT","_Z","_Z","_Z","_Z","_Z","WEIGHT","_Z","KT"]
["kt","BKB","Indigenous production","2230","B_101100","BKB","INDPROD",{"$f":"PrefilledData!M6","v":0},null,0,"P",{"$f":"IF(ISERROR(J155/H155),\"\",(J155/H155)-1)","v":""},{"$f":"IF(ISERROR(J155/I155),\"\",(J155/I155)-1)","v":""},null,null,null,null,null,null,null,null,null,null,null,null,null,null,null,null,null,null,null,null,null,null,null,null,null,null,null,null,null,null,null,null,null,null,null,null,null,null,null,null,null,null,null,null,null,null,null,null,null,null,null,null,null,null,null,null,null,null,null,null,null,null,null,null,null,null,null,null,null,null,null,null,null,null,null,null,null,null,null,null,null,null,null,null,null,null,null,null,null,null,null,null,null,null,null,null,null,null,null,null,null,null,null,null,null,null,0,"P","","ZZ","C0330","PRODUCT","INDPROD","_Z","_Z","_Z","_Z","_Z","WEIGHT","_Z","KT"]
["kt","BKB","From other sources","2230","B_100200","BKB","OSOURCES",{"$f":"PrefilledData!M7","v":0},null,0,"P",{"$f":"IF(ISERROR(J156/H156),\"\",(J156/H156)-1)","v":""},{"$f":"IF(ISERROR(J156/I156),\"\",(J156/I156)-1)","v":""},null,null,null,null,null,null,null,null,null,null,null,null,null,null,null,null,null,null,null,null,null,null,null,null,null,null,null,null,null,null,null,null,null,null,null,null,null,null,null,null,null,null,null,null,null,null,null,null,null,null,null,null,null,null,null,null,null,null,null,null,null,null,null,null,null,null,null,null,null,null,null,null,null,null,null,null,null,null,null,null,null,null,null,null,null,null,null,null,null,null,null,null,null,null,null,null,null,null,null,null,null,null,null,null,null,null,0,"P","","ZZ","C0330","SUPPLY","OSOURCES","_Z","_Z","_Z","_Z","_Z","WEIGHT","_Z","KT"]
["kt","BKB","Total imports (Balance)","2230","B_100300","BKB","TOTIMPSB",{"$f":"PrefilledData!M8","v":0},null,0,"P","","",null,null,null,null,null,null,null,null,null,null,null,null,null,null,null,null,null,null,null,null,null,null,null,null,null,null,null,null,null,null,null,null,null,null,null,null,null,null,null,null,null,null,null,null,null,null,null,null,null,null,null,null,null,null,null,null,null,null,null,null,null,null,null,null,null,null,null,null,null,null,null,null,null,null,null,null,null,null,null,null,null,null,null,null,null,null,null,null,null,null,null,null,null,null,null,null,null,null,null,null,null,null,null,null,null,null,0,"P","","ZZ","C0330","IMPORTS","TOTIMPSB","_Z","_Z","_Z","_Z","_Z","WEIGHT","_Z","KT"]
["kt","BKB","Total exports (Balance)","2230","B_100500","BKB","TOTEXPSB",{"$f":"PrefilledData!M9","v":0},null,0,"P","","",null,null,null,null,null,null,null,null,null,null,null,null,null,null,null,null,null,null,null,null,null,null,null,null,null,null,null,null,null,null,null,null,null,null,null,null,null,null,null,null,null,null,null,null,null,null,null,null,null,null,null,null,null,null,null,null,null,null,null,null,null,null,null,null,null,null,null,null,null,null,null,null,null,null,null,null,null,null,null,null,null,null,null,null,null,null,null,null,null,null,null,null,null,null,null,null,null,null,null,null,null,null,null,null,null,null,0,"P","","ZZ","C0330","EXPORTS","TOTEXPSB","_Z","_Z","_Z","_Z","_Z","WEIGHT","_Z","KT"]
["kt","BKB","Stock changes (National territory)","2230","B_100400","BKB","STCHANAT",{"$f":"PrefilledData!M10","v":0},null,0,"P","","",null,null,null,null,null,null,null,null,null,null,null,null,null,null,null,null,null,null,null,null,null,null,null,null,null,null,null,null,null,null,null,null,null,null,null,null,null,null,null,null,null,null,null,null,null,null,null,null,null,null,null,null,null,null,null,null,null,null,null,null,null,null,null,null,null,null,null,null,null,null,null,null,null,null,null,null,null,null,null,null,null,null,null,null,null,null,null,null,null,null,null,null,null,null,null,null,null,null,null,null,null,null,null,null,null,null,0,"P","","ZZ","C0330","STOCKS","STOCKCH","_Z","_Z","NATTER","_Z","_Z","WEIGHT","_Z","KT"]
["kt","BKB","Inland consumption (Calculated)",null,null,null,null,{"$f":"H155+H156+H157-H158+H159","v":0},null,{"$f":"J155+J156+J157-J158+J159","v":0},"P","","",null,null,null,null,null,null,null,null,null,null,null,null,null,null,null,null,null,null,null,null,null,null,null,null,null,null,null,null,null,null,null,null,null,null,null,null,null,null,null,null,null,null,null,null,null,null,null,null,null,null,null,null,null,null,null,null,null,null,null,null,null,null,null,null,null,null,null,null,null,null,null,null,null,null,null,null,null,null,null,null,null,null,null,null,null,null,null,null,null,null,null,null,null,null,null,null,null,null,null,null,null,null,null,null,null,null,0,"P","","ZZ","C0330","SUPPLY","INLDEMC","_Z","_Z","_Z","_Z","_Z","WEIGHT","_Z","KT"]
["kt","BKB","Statistical Difference",null,null,null,null,{"$f":"H160-H162","v":0},null,{"$f":"J160-J162","v":0},"P",null,null,null,null,null,null,null,null,null,null,null,null,null,null,null,null,null,null,null,null,null,null,null,null,null,null,null,null,null,null,null,null,null,null,null,null,null,null,null,null,null,null,null,null,null,null,null,null,null,null,null,null,null,null,null,null,null,null,null,null,null,null,null,null,null,null,null,null,null,null,null,null,null,null,null,null,null,null,null,null,null,null,null,null,null,null,null,null,null,null,null,null,null,null,null,null,null,null,null,null,null,null,null,null,null,null,null,null,0,"P","","ZZ","C0330","STATDIFF","_Z","_Z","_Z","_Z","_Z","_Z","WEIGHT","_Z","KT"]
["kt","BKB","Inland consumption (Observed)",null,null,null,null,{"$f":"H163+H164+H165+H166","v":0},null,{"$f":"J163+J164+J165+J166","v":0},"P","","",null,null,null,null,null,null,null,null,null,null,null,null,null,null,null,null,null,null,null,null,null,null,null,null,null,null,null,null,null,null,null,null,null,null,null,null,null,null,null,null,null,null,null,null,null,null,null,null,null,null,null,null,null,null,null,null,null,null,null,null,null,null,null,null,null,null,null,null,null,null,null,null,null,null,null,null,null,null,null,null,null,null,null,null,null,null,null,null,null,null,null,null,null,null,null,null,null,null,null,null,null,null,null,null,null,null,0,"P","","ZZ","C0330","DEMAND","INLDEMO","_Z","_Z","_Z","_Z","_Z","WEIGHT","_Z","KT"]
["kt","BKB","Transformation sector","2230","DB_101000","BKB","TOTTRANF",{"$f":"PrefilledData!M12","v":0},null,0,"P","","",null,null,null,null,null,null,null,null,null,null,null,null,null,null,null,null,null,null,null,null,null,null,null,null,null,null,null,null,null,null,null,null,null,null,null,null,null,null,null,null,null,null,null,null,null,null,null,null,null,null,null,null,null,null,null,null,null,null,null,null,null,null,null,null,null,null,null,null,null,null,null,null,null,null,null,null,null,null,null,null,null,null,null,null,null,null,null,null,null,null,null,null,null,null,null,null,null,null,null,null,null,null,null,null,null,null,0,"P","","ZZ","C0330","TRANSFOR","TOTRANSF","_Z","_Z","_Z","_Z","_Z","WEIGHT","_Z","KT"]
["kt","BKB","Energy sector","2230","DB_101300","BKB","TOTENGY",{"$f":"PrefilledData!M13","v":0},null,0,"P","","",null,null,null,null,null,null,null,null,null,null,null,null,null,null,null,null,null,null,null,null,null,null,null,null,null,null,null,null,null,null,null,null,null,null,null,null,null,null,null,null,null,null,null,null,null,null,null,null,null,null,null,null,null,null,null,null,null,null,null,null,null,null,null,null,null,null,null,null,null,null,null,null,null,null,null,null,null,null,null,null,null,null,null,null,null,null,null,null,null,null,null,null,null,null,null,null,null,null,null,null,null,null,null,null,null,null,0,"P","","ZZ","C0330","ENERGUSE","ENERSECT","_Z","_Z","_Z","_Z","_Z","WEIGHT","_Z","KT"]
["kt","BKB","Distribution losses","2230","B_101400","BKB","DISTLOSS",{"$f":"PrefilledData!M14","v":0},null,0,"P","","",null,null,null,null,null,null,null,null,null,null,null,null,null,null,null,null,null,null,null,null,null,null,null,null,null,null,null,null,null,null,null,null,null,null,null,null,null,null,null,null,null,null,null,null,null,null,null,null,null,null,null,null,null,null,null,null,null,null,null,null,null,null,null,null,null,null,null,null,null,null,null,null,null,null,null,null,null,null,null,null,null,null,null,null,null,null,null,null,null,null,null,null,null,null,null,null,null,null,null,null,null,null,null,null,null,null,0,"P","","ZZ","C0330","LOSSES","DISTLOSS","_Z","_Z","_Z","_Z","_Z","WEIGHT","_Z","KT"]
["kt","BKB","Total final consumption",null,null,null,null,{"$f":"H167+H168","v":0},null,{"$f":"J167+J168","v":0},"P","","",null,null,null,null,null,null,null,null,null,null,null,null,null,null,null,null,null,null,null,null,null,null,null,null,null,null,null,null,null,null,null,null,null,null,null,null,null,null,null,null,null,null,null,null,null,null,null,null,null,null,null,null,null,null,null,null,null,null,null,null,null,null,null,null,null,null,null,null,null,null,null,null,null,null,null,null,null,null,null,null,null,null,null,null,null,null,null,null,null,null,null,null,null,null,null,null,null,null,null,null,null,null,null,null,null,null,0,"P","","ZZ","C0330","CONSUMPT","FINCONS","_Z","_Z","_Z","_Z","_Z","WEIGHT","_Z","KT"]
["kt","BKB","Total final non-energy consumption","2230","B_101600","BKB","NONENUSE",{"$f":"PrefilledData!M16","v":0},null,0,"P","","",null,null,null,null,null,null,null,null,null,null,null,null,null,null,null,null,null,null,null,null,null,null,null,null,null,null,null,null,null,null,null,null,null,null,null,null,null,null,null,null,null,null,null,null,null,null,null,null,null,null,null,null,null,null,null,null,null,null,null,null,null,null,null,null,null,null,null,null,null,null,null,null,null,null,null,null,null,null,null,null,null,null,null,null,null,null,null,null,null,null,null,null,null,null,null,null,null,null,null,null,null,null,null,null,null,null,0,"P","","ZZ","C0330","NONENUSE","_T","_Z","_Z","_Z","_Z","_Z","WEIGHT","_Z","KT"]
["kt","BKB","Total final energy consumption",null,null,null,null,{"$f":"SUM(H169:H171)","v":0},null,{"$f":"J169+J170+J171","v":0},"P","","",null,null,null,null,null,null,null,null,null,null,null,null,null,null,null,null,null,null,null,null,null,null,null,null,null,null,null,null,null,null,null,null,null,null,null,null,null,null,null,null,null,null,null,null,null,null,null,null,null,null,null,null,null,null,null,null,null,null,null,null,null,null,null,null,null,null,null,null,null,null,null,null,null,null,null,null,null,null,null,null,null,null,null,null,null,null,null,null,null,null,null,null,null,null,null,null,null,null,null,null,null,null,null,null,null,null,0,"P","","ZZ","C0330","ENERGUSE","FINCONS","_Z","_Z","_Z","_Z","_Z","WEIGHT","_Z","KT"]
["kt","BKB","Industry sector","2230","DB_101800","BKB","TOTIND",{"$f":"PrefilledData!M18","v":0},null,0,"P","","",null,null,null,null,null,null,null,null,null,null,null,null,null,null,null,null,null,null,null,null,null,null,null,null,null,null,null,null,null,null,null,null,null,null,null,null,null,null,null,null,null,null,null,null,null,null,null,null,null,null,null,null,null,null,null,null,null,null,null,null,null,null,null,null,null,null,null,null,null,null,null,null,null,null,null,null,null,null,null,null,null,null,null,null,null,null,null,null,null,null,null,null,null,null,null,null,null,null,null,null,null,null,null,null,null,null,0,"P","","ZZ","C0330","ENERGUSE","INDUSTRY","_Z","_Z","_Z","_Z","_Z","WEIGHT","_Z","KT"]
["kt","BKB","Transport sector","2230","B_101900","BKB","TOTTRANS",{"$f":"PrefilledData!M19","v":0},null,0,"P","","",null,null,null,null,null,null,null,null,null,null,null,null,null,null,null,null,null,null,null,null,null,null,null,null,null,null,null,null,null,null,null,null,null,null,null,null,null,null,null,null,null,null,null,null,null,null,null,null,null,null,null,null,null,null,null,null,null,null,null,null,null,null,null,null,null,null,null,null,null,null,null,null,null,null,null,null,null,null,null,null,null,null,null,null,null,null,null,null,null,null,null,null,null,null,null,null,null,null,null,null,null,null,null,null,null,null,0,"P","","ZZ","C0330","ENERGUSE","TRANSPOR","_Z","_Z","_Z","_Z","_Z","WEIGHT","_Z","KT"]
["kt","BKB","Other sectors","2230","B_102000","BKB","TOTOTHER",{"$f":"PrefilledData!M20","v":0},null,0,"P","","",null,null,null,null,null,null,null,null,null,null,null,null,null,null,null,null,null,null,null,null,null,null,null,null,null,null,null,null,null,null,null,null,null,null,null,null,null,null,null,null,null,null,null,null,null,null,null,null,null,null,null,null,null,null,null,null,null,null,null,null,null,null,null,null,null,null,null,null,null,null,null,null,null,null,null,null,null,null,null,null,null,null,null,null,null,null,null,null,null,null,null,null,null,null,null,null,null,null,null,null,null,null,null,null,null,null,0,"P","","ZZ","C0330","ENERGUSE","OTHSECT","_Z","_Z","_Z","_Z","_Z","WEIGHT","_Z","KT"]
["TJ GCV","Gas works gas","Indigenous production","4230","B_101100","GASWKGS","INDPROD",{"$f":"PrefilledData!C35","v":0},null,0,"P",{"$f":"IF(ISERROR(J172/H172),\"\",(J172/H172)-1)","v":""},{"$f":"IF(ISERROR(J172/I172),\"\",(J172/I172)-1)","v":""},null,null,null,null,null,null,null,null,null,null,null,null,null,null,null,null,null,null,null,null,null,null,null,null,null,null,null,null,null,null,null,null,null,null,null,null,null,null,null,null,null,null,null,null,null,null,null,null,null,null,null,null,null,null,null,null,null,null,null,null,null,null,null,null,null,null,null,null,null,null,null,null,null,null,null,null,null,null,null,null,null,null,null,null,null,null,null,null,null,null,null,null,null,null,null,null,null,null,null,null,null,null,null,null,null,null,0,"P","","ZZ","C0360","PRODUCT","INDPROD","_Z","_Z","_Z","_Z","_Z","ENERGY","_Z","TJ_GCV"]
["TJ GCV","Gas works gas","From other sources","4230","B_100200","GASWKGS","OSOURCES",{"$f":"PrefilledData!C36","v":0},null,0,"P",{"$f":"IF(ISERROR(J173/H173),\"\",(J173/H173)-1)","v":""},{"$f":"IF(ISERROR(J173/I173),\"\",(J173/I173)-1)","v":""},null,null,null,null,null,null,null,null,null,null,null,null,null,null,null,null,null,null,null,null,null,null,null,null,null,null,null,null,null,null,null,null,null,null,null,null,null,null,null,null,null,null,null,null,null,null,null,null,null,null,null,null,null,null,null,null,null,null,null,null,null,null,null,null,null,null,null,null,null,null,null,null,null,null,null,null,null,null,null,null,null,null,null,null,null,null,null,null,null,null,null,null,null,null,null,null,null,null,null,null,null,null,null,null,null,null,0,"P","","ZZ","C0360","SUPPLY","OSOURCES","_Z","_Z","_Z","_Z","_Z","ENERGY","_Z","TJ_GCV"]
["TJ GCV","Gas works gas","Total imports (Balance)","4230","B_100300","GASWKGS","TOTIMPSB",{"$f":"PrefilledData!C37","v":0},null,0,"P","","",null,null,null,null,null,null,null,null,null,null,null,null,null,null,null,null,null,null,null,null,null,null,null,null,null,null,null,null,null,null,null,null,null,null,null,null,null,null,null,null,null,null,null,null,null,null,null,null,null,null,null,null,null,null,null,null,null,null,null,null,null,null,null,null,null,null,null,null,null,null,null,null,null,null,null,null,null,null,null,null,null,null,null,null,null,null,null,null,null,null,null,null,null,null,null,null,null,null,null,null,null,null,null,null,null,null,0,"P","","ZZ","C0360","IMPORTS","TOTIMPSB","_Z","_Z","_Z","_Z","_Z","ENERGY","_Z","TJ_GCV"]
["TJ GCV","Gas works gas","Total exports (Balance)","4230","B_100500","GASWKGS","TOTEXPSB",{"$f":"PrefilledData!C38","v":0},null,0,"P","","",null,null,null,null,null,null,null,null,null,null,null,null,null,null,null,null,null,null,null,null,null,null,null,null,null,null,null,null,null,null,null,null,null,null,null,null,null,null,null,null,null,null,null,null,null,null,null,null,null,null,null,null,null,null,null,null,null,null,null,null,null,null,null,null,null,null,null,null,null,null,null,null,null,null,null,null,null,null,null,null,null,null,null,null,null,null,null,null,null,null,null,null,null,null,null,null,null,null,null,null,null,null,null,null,null,null,0,"P","","ZZ","C0360","EXPORTS","TOTEXPSB","_Z","_Z","_Z","_Z","_Z","ENERGY","_Z","TJ_GCV"]
["TJ GCV","Gas works gas","Stock changes (National territory)","4230","B_100400","GASWKGS","STCHANAT",{"$f":"PrefilledData!C39","v":0},null,0,"P","","",null,null,null,null,null,null,null,null,null,null,null,null,null,null,null,null,null,null,null,null,null,null,null,null,null,null,null,null,null,null,null,null,null,null,null,null,null,null,null,null,null,null,null,null,null,null,null,null,null,null,null,null,null,null,null,null,null,null,null,null,null,null,null,null,null,null,null,null,null,null,null,null,null,null,null,null,null,null,null,null,null,null,null,null,null,null,null,null,null,null,null,null,null,null,null,null,null,null,null,null,null,null,null,null,null,null,0,"P","","ZZ","C0360","STOCKS","STOCKCH","_Z","_Z","NATTER","_Z","_Z","ENERGY","_Z","TJ_GCV"]
["TJ GCV","Gas works gas","Inland consumption (Calculated)",null,null,null,null,{"$f":"H172+H173+H174-H175+H176","v":0},null,{"$f":"J172+J173+J174-J175+J176","v":0},"P","","",null,null,null,null,null,null,null,null,null,null,null,null,null,null,null,null,null,null,null,null,null,null,null,null,null,null,null,null,null,null,null,null,null,null,null,null,null,null,null,null,null,null,null,null,null,null,null,null,null,null,null,null,null,null,null,null,null,null,null,null,null,null,null,null,null,null,null,null,null,null,null,null,null,null,null,null,null,null,null,null,null,null,null,null,null,null,null,null,null,null,null,null,null,null,null,null,null,null,null,null,null,null,null,null,null,null,0,"P","","ZZ","C0360","SUPPLY","INLDEMC","_Z","_Z","_Z","_Z","_Z","ENERGY","_Z","TJ_GCV"]
["TJ GCV","Gas works gas","Statistical Difference",null,null,null,null,{"$f":"H177-H179","v":0},null,{"$f":"J177-J179","v":0},"P",null,null,null,null,null,null,null,null,null,null,null,null,null,null,null,null,null,null,null,null,null,null,null,null,null,null,null,null,null,null,null,null,null,null,null,null,null,null,null,null,null,null,null,null,null,null,null,null,null,null,null,null,null,null,null,null,null,null,null,null,null,null,null,null,null,null,null,null,null,null,null,null,null,null,null,null,null,null,null,null,null,null,null,null,null,null,null,null,null,null,null,null,null,null,null,null,null,null,null,null,null,null,null,null,null,null,null,null,0,"P","","ZZ","C0360","STATDIFF","_Z","_Z","_Z","_Z","_Z","_Z","ENERGY","_Z","TJ_GCV"]
["TJ GCV","Gas works gas","Inland consumption (Observed)",null,null,null,null,{"$f":"H180+H181+H182+H183","v":0},null,{"$f":"J180+J181+J182+J183","v":0},"P","","",null,null,null,null,null,null,null,null,null,null,null,null,null,null,null,null,null,null,null,null,null,null,null,null,null,null,null,null,null,null,null,null,null,null,null,null,null,null,null,null,null,null,null,null,null,null,null,null,null,null,null,null,null,null,null,null,null,null,null,null,null,null,null,null,null,null,null,null,null,null,null,null,null,null,null,null,null,null,null,null,null,null,null,null,null,null,null,null,null,null,null,null,null,null,null,null,null,null,null,null,null,null,null,null,null,null,0,"P","","ZZ","C0360","DEMAND","INLDEMO","_Z","_Z","_Z","_Z","_Z","ENERGY","_Z","TJ_GCV"]
["TJ GCV","Gas works gas","Transformation sector","4230","DB_101000","GASWKGS","TOTTRANF",{"$f":"PrefilledData!C41","v":0},null,0,"P","","",null,null,null,null,null,null,null,null,null,null,null,null,null,null,null,null,null,null,null,null,null,null,null,null,null,null,null,null,null,null,null,null,null,null,null,null,null,null,null,null,null,null,null,null,null,null,null,null,null,null,null,null,null,null,null,null,null,null,null,null,null,null,null,null,null,null,null,null,null,null,null,null,null,null,null,null,null,null,null,null,null,null,null,null,null,null,null,null,null,null,null,null,null,null,null,null,null,null,null,null,null,null,null,null,null,null,0,"P","","ZZ","C0360","TRANSFOR","TOTRANSF","_Z","_Z","_Z","_Z","_Z","ENERGY","_Z","TJ_GCV"]
["TJ GCV","Gas works gas","Energy sector","4230","DB_101300","GASWKGS","TOTENGY",{"$f":"PrefilledData!C42","v":0},null,0,"P","","",null,null,null,null,null,null,null,null,null,null,null,null,null,null,null,null,null,null,null,null,null,null,null,null,null,null,null,null,null,null,null,null,null,null,null,null,null,null,null,null,null,null,null,null,null,null,null,null,null,null,null,null,null,null,null,null,null,null,null,null,null,null,null,null,null,null,null,null,null,null,null,null,null,null,null,null,null,null,null,null,null,null,null,null,null,null,null,null,null,null,null,null,null,null,null,null,null,null,null,null,null,null,null,null,null,null,0,"P","","ZZ","C0360","ENERGUSE","ENERSECT","_Z","_Z","_Z","_Z","_Z","ENERGY","_Z","TJ_GCV"]
["TJ GCV","Gas works gas","Distribution losses","4230","B_101400","GASWKGS","DISTLOSS",{"$f":"PrefilledData!C43","v":0},null,0,"P","","",null,null,null,null,null,null,null,null,null,null,null,null,null,null,null,null,null,null,null,null,null,null,null,null,null,null,null,null,null,null,null,null,null,null,null,null,null,null,null,null,null,null,null,null,null,null,null,null,null,null,null,null,null,null,null,null,null,null,null,null,null,null,null,null,null,null,null,null,null,null,null,null,null,null,null,null,null,null,null,null,null,null,null,null,null,null,null,null,null,null,null,null,null,null,null,null,null,null,null,null,null,null,null,null,null,null,0,"P","","ZZ","C0360","LOSSES","DISTLOSS","_Z","_Z","_Z","_Z","_Z","ENERGY","_Z","TJ_GCV"]
["TJ GCV","Gas works gas","Total final consumption",null,null,null,null,{"$f":"H184+H185","v":0},null,{"$f":"J184+J185","v":0},"P","","",null,null,null,null,null,null,null,null,null,null,null,null,null,null,null,null,null,null,null,null,null,null,null,null,null,null,null,null,null,null,null,null,null,null,null,null,null,null,null,null,null,null,null,null,null,null,null,null,null,null,null,null,null,null,null,null,null,null,null,null,null,null,null,null,null,null,null,null,null,null,null,null,null,null,null,null,null,null,null,null,null,null,null,null,null,null,null,null,null,null,null,null,null,null,null,null,null,null,null,null,null,null,null,null,null,null,0,"P","","ZZ","C0360","CONSUMPT","FINCONS","_Z","_Z","_Z","_Z","_Z","ENERGY","_Z","TJ_GCV"]
["TJ GCV","Gas works gas","Total final non-energy consumption","4230","B_101600","GASWKGS","NONENUSE",{"$f":"PrefilledData!C45","v":0},null,0,"P","","",null,null,null,null,null,null,null,null,null,null,null,null,null,null,null,null,null,null,null,null,null,null,null,null,null,null,null,null,null,null,null,null,null,null,null,null,null,null,null,null,null,null,null,null,null,null,null,null,null,null,null,null,null,null,null,null,null,null,null,null,null,null,null,null,null,null,null,null,null,null,null,null,null,null,null,null,null,null,null,null,null,null,null,null,null,null,null,null,null,null,null,null,null,null,null,null,null,null,null,null,null,null,null,null,null,null,0,"P","","ZZ","C0360","NONENUSE","_T","_Z","_Z","_Z","_Z","_Z","ENERGY","_Z","TJ_GCV"]
["TJ GCV","Gas works gas","Total final energy consumption",null,null,null,null,{"$f":"SUM(H186:H188)","v":0},null,{"$f":"J186+J187+J188","v":0},"P","","",null,null,null,null,null,null,null,null,null,null,null,null,null,null,null,null,null,null,null,null,null,null,null,null,null,null,null,null,null,null,null,null,null,null,null,null,null,null,null,null,null,null,null,null,null,null,null,null,null,null,null,null,null,null,null,null,null,null,null,null,null,null,null,null,null,null,null,null,null,null,null,null,null,null,null,null,null,null,null,null,null,null,null,null,null,null,null,null,null,null,null,null,null,null,null,null,null,null,null,null,null,null,null,null,null,null,0,"P","","ZZ","C0360","ENERGUSE","FINCONS","_Z","_Z","_Z","_Z","_Z","ENERGY","_Z","TJ_GCV"]
["TJ GCV","Gas works gas","Industry sector","4230","DB_101800","GASWKGS","TOTIND",{"$f":"PrefilledData!C47","v":0},null,0,"P","","",null,null,null,null,null,null,null,null,null,null,null,null,null,null,null,null,null,null,null,null,null,null,null,null,null,null,null,null,null,null,null,null,null,null,null,null,null,null,null,null,null,null,null,null,null,null,null,null,null,null,null,null,null,null,null,null,null,null,null,null,null,null,null,null,null,null,null,null,null,null,null,null,null,null,null,null,null,null,null,null,null,null,null,null,null,null,null,null,null,null,null,null,null,null,null,null,null,null,null,null,null,null,null,null,null,null,0,"P","","ZZ","C0360","ENERGUSE","INDUSTRY","_Z","_Z","_Z","_Z","_Z","ENERGY","_Z","TJ_GCV"]
["TJ GCV","Gas works gas","Transport sector","4230","B_101900","GASWKGS","TOTTRANS",{"$f":"PrefilledData!C48","v":0},null,0,"P","","",null,null,null,null,null,null,null,null,null,null,null,null,null,null,null,null,null,null,null,null,null,null,null,null,null,null,null,null,null,null,null,null,null,null,null,null,null,null,null,null,null,null,null,null,null,null,null,null,null,null,null,null,null,null,null,null,null,null,null,null,null,null,null,null,null,null,null,null,null,null,null,null,null,null,null,null,null,null,null,null,null,null,null,null,null,null,null,null,null,null,null,null,null,null,null,null,null,null,null,null,null,null,null,null,null,null,0,"P","","ZZ","C0360","ENERGUSE","TRANSPOR","_Z","_Z","_Z","_Z","_Z","ENERGY","_Z","TJ_GCV"]
["TJ GCV","Gas works gas","Other sectors","4230","B_102000","GASWKGS","TOTOTHER",{"$f":"PrefilledData!C49","v":0},null,0,"P","","",null,null,null,null,null,null,null,null,null,null,null,null,null,null,null,null,null,null,null,null,null,null,null,null,null,null,null,null,null,null,null,null,null,null,null,null,null,null,null,null,null,null,null,null,null,null,null,null,null,null,null,null,null,null,null,null,null,null,null,null,null,null,null,null,null,null,null,null,null,null,null,null,null,null,null,null,null,null,null,null,null,null,null,null,null,null,null,null,null,null,null,null,null,null,null,null,null,null,null,null,null,null,null,null,null,null,0,"P","","ZZ","C0360","ENERGUSE","OTHSECT","_Z","_Z","_Z","_Z","_Z","ENERGY","_Z","TJ_GCV"]
["TJ GCV","Coke oven gas","Indigenous production","4210","B_101100","COKEOVGS","INDPROD",{"$f":"PrefilledData!B35","v":0},null,0,"P",{"$f":"IF(ISERROR(J189/H189),\"\",(J189/H189)-1)","v":""},{"$f":"IF(ISERROR(J189/I189),\"\",(J189/I189)-1)","v":""},null,null,null,null,null,null,null,null,null,null,null,null,null,null,null,null,null,null,null,null,null,null,null,null,null,null,null,null,null,null,null,null,null,null,null,null,null,null,null,null,null,null,null,null,null,null,null,null,null,null,null,null,null,null,null,null,null,null,null,null,null,null,null,null,null,null,null,null,null,null,null,null,null,null,null,null,null,null,null,null,null,null,null,null,null,null,null,null,null,null,null,null,null,null,null,null,null,null,null,null,null,null,null,null,null,null,0,"P","","ZZ","C0350","PRODUCT","INDPROD","_Z","_Z","_Z","_Z","_Z","ENERGY","_Z","TJ_GCV"]
["TJ GCV","Coke oven gas","From other sources","4210","B_100200","COKEOVGS","OSOURCES",{"$f":"PrefilledData!B36","v":0},null,0,"P",{"$f":"IF(ISERROR(J190/H190),\"\",(J190/H190)-1)","v":""},{"$f":"IF(ISERROR(J190/I190),\"\",(J190/I190)-1)","v":""},null,null,null,null,null,null,null,null,null,null,null,null,null,null,null,null,null,null,null,null,null,null,null,null,null,null,null,null,null,null,null,null,null,null,null,null,null,null,null,null,null,null,null,null,null,null,null,null,null,null,null,null,null,null,null,null,null,null,null,null,null,null,null,null,null,null,null,null,null,null,null,null,null,null,null,null,null,null,null,null,null,null,null,null,null,null,null,null,null,null,null,null,null,null,null,null,null,null,null,null,null,null,null,null,null,null,0,"P","","ZZ","C0350","SUPPLY","OSOURCES","_Z","_Z","_Z","_Z","_Z","ENERGY","_Z","TJ_GCV"]
["TJ GCV","Coke oven gas","Total imports (Balance)","4210","B_100300","COKEOVGS","TOTIMPSB",{"$f":"PrefilledData!B37","v":0},null,0,"P","","",null,null,null,null,null,null,null,null,null,null,null,null,null,null,null,null,null,null,null,null,null,null,null,null,null,null,null,null,null,null,null,null,null,null,null,null,null,null,null,null,null,null,null,null,null,null,null,null,null,null,null,null,null,null,null,null,null,null,null,null,null,null,null,null,null,null,null,null,null,null,null,null,null,null,null,null,null,null,null,null,null,null,null,null,null,null,null,null,null,null,null,null,null,null,null,null,null,null,null,null,null,null,null,null,null,null,0,"P","","ZZ","C0350","IMPORTS","TOTIMPSB","_Z","_Z","_Z","_Z","_Z","ENERGY","_Z","TJ_GCV"]
["TJ GCV","Coke oven gas","Total exports (Balance)","4210","B_100500","COKEOVGS","TOTEXPSB",{"$f":"PrefilledData!B38","v":0},null,0,"P","","",null,null,null,null,null,null,null,null,null,null,null,null,null,null,null,null,null,null,null,null,null,null,null,null,null,null,null,null,null,null,null,null,null,null,null,null,null,null,null,null,null,null,null,null,null,null,null,null,null,null,null,null,null,null,null,null,null,null,null,null,null,null,null,null,null,null,null,null,null,null,null,null,null,null,null,null,null,null,null,null,null,null,null,null,null,null,null,null,null,null,null,null,null,null,null,null,null,null,null,null,null,null,null,null,null,null,0,"P","","ZZ","C0350","EXPORTS","TOTEXPSB","_Z","_Z","_Z","_Z","_Z","ENERGY","_Z","TJ_GCV"]
["TJ GCV","Coke oven gas","Stock changes (National territory)","4210","B_100400","COKEOVGS","STCHANAT",{"$f":"PrefilledData!B39","v":0},null,0,"P","","",null,null,null,null,null,null,null,null,null,null,null,null,null,null,null,null,null,null,null,null,null,null,null,null,null,null,null,null,null,null,null,null,null,null,null,null,null,null,null,null,null,null,null,null,null,null,null,null,null,null,null,null,null,null,null,null,null,null,null,null,null,null,null,null,null,null,null,null,null,null,null,null,null,null,null,null,null,null,null,null,null,null,null,null,null,null,null,null,null,null,null,null,null,null,null,null,null,null,null,null,null,null,null,null,null,null,0,"P","","ZZ","C0350","STOCKS","STOCKCH","_Z","_Z","NATTER","_Z","_Z","ENERGY","_Z","TJ_GCV"]
["TJ GCV","Coke oven gas","Inland consumption (Calculated)",null,null,null,null,{"$f":"H189+H190+H191-H192+H193","v":0},null,{"$f":"J189+J190+J191-J192+J193","v":0},"P","","",null,null,null,null,null,null,null,null,null,null,null,null,null,null,null,null,null,null,null,null,null,null,null,null,null,null,null,null,null,null,null,null,null,null,null,null,null,null,null,null,null,null,null,null,null,null,null,null,null,null,null,null,null,null,null,null,null,null,null,null,null,null,null,null,null,null,null,null,null,null,null,null,null,null,null,null,null,null,null,null,null,null,null,null,null,null,null,null,null,null,null,null,null,null,null,null,null,null,null,null,null,null,null,null,null,null,0,"P","",{"$f":"$S$1","v":"ZZ"},"C0350","SUPPLY","INLDEMC","_Z","_Z","_Z","_Z","_Z","ENERGY","_Z","TJ_GCV"]
["TJ GCV","Coke oven gas","Statistical Difference",null,null,null,null,{"$f":"H194-H196","v":0},null,{"$f":"J194-J196","v":0},"P",null,null,null,null,null,null,null,null,null,null,null,null,null,null,null,null,null,null,null,null,null,null,null,null,null,null,null,null,null,null,null,null,null,null,null,null,null,null,null,null,null,null,null,null,null,null,null,null,null,null,null,null,null,null,null,null,null,null,null,null,null,null,null,null,null,null,null,null,null,null,null,null,null,null,null,null,null,null,null,null,null,null,null,null,null,null,null,null,null,null,null,null,null,null,null,null,null,null,null,null,null,null,null,null,null,null,null,null,{"$f":"IF(K195=\"O\",\"NaN\",ROUND(J195,3))","v":0},{"$f":"IF(K195=\"\",\"A\",K195)","v":"P"},{"$f":"LEFT(TRIM(N195),255)","v":""},"ZZ","C0350","STATDIFF","_Z","_Z","_Z","_Z","_Z","_Z","ENERGY","_Z","TJ_GCV"]
["TJ GCV","Coke oven gas","Inland consumption (Observed)",null,null,null,null,{"$f":"H197+H198+H199+H200","v":0},null,{"$f":"J197+J198+J199+J200","v":0},"P","","",null,null,null,null,null,null,null,null,null,null,null,null,null,null,null,null,null,null,null,null,null,null,null,null,null,null,null,null,null,null,null,null,null,null,null,null,null,null,null,null,null,null,null,null,null,null,null,null,null,null,null,null,null,null,null,null,null,null,null,null,null,null,null,null,null,null,null,null,null,null,null,null,null,null,null,null,null,null,null,null,null,null,null,null,null,null,null,null,null,null,null,null,null,null,null,null,null,null,null,null,null,null,null,null,null,null,0,"P","","ZZ","C0350","DEMAND","INLDEMO","_Z","_Z","_Z","_Z","_Z","ENERGY","_Z","TJ_GCV"]
["TJ GCV","Coke oven gas","Transformation sector","4210","DB_101000","COKEOVGS","TOTTRANF",{"$f":"PrefilledData!B41","v":0},null,0,"P","","",null,null,null,null,null,null,null,null,null,null,null,null,null,null,null,null,null,null,null,null,null,null,null,null,null,null,null,null,null,null,null,null,null,null,null,null,null,null,null,null,null,null,null,null,null,null,null,null,null,null,null,null,null,null,null,null,null,null,null,null,null,null,null,null,null,null,null,null,null,null,null,null,null,null,null,null,null,null,null,null,null,null,null,null,null,null,null,null,null,null,null,null,null,null,null,null,null,null,null,null,null,null,null,null,null,null,0,"P","","ZZ","C0350","TRANSFOR","TOTRANSF","_Z","_Z","_Z","_Z","_Z","ENERGY","_Z","TJ_GCV"]
["TJ GCV","Coke oven gas","Energy sector","4210","DB_101300","COKEOVGS","TOTENGY",{"$f":"PrefilledData!B42","v":0},null,0,"P","","",null,null,null,null,null,null,null,null,null,null,null,null,null,null,null,null,null,null,null,null,null,null,null,null,null,null,null,null,null,null,null,null,null,null,null,null,null,null,null,null,null,null,null,null,null,null,null,null,null,null,null,null,null,null,null,null,null,null,null,null,null,null,null,null,null,null,null,null,null,null,null,null,null,null,null,null,null,null,null,null,null,null,null,null,null,null,null,null,null,null,null,null,null,null,null,null,null,null,null,null,null,null,null,null,null,null,0,"P","","ZZ","C0350","ENERGUSE","ENERSECT","_Z","_Z","_Z","_Z","_Z","ENERGY","_Z","TJ_GCV"]
["TJ GCV","Coke oven gas","Distribution losses","4210","B_101400","COKEOVGS","DISTLOSS",{"$f":"PrefilledData!B43","v":0},null,0,"P","","",null,null,null,null,null,null,null,null,null,null,null,null,null,null,null,null,null,null,null,null,null,null,null,null,null,null,null,null,null,null,null,null,null,null,null,null,null,null,null,null,null,null,null,null,null,null,null,null,null,null,null,null,null,null,null,null,null,null,null,null,null,null,null,null,null,null,null,null,null,null,null,null,null,null,null,null,null,null,null,null,null,null,null,null,null,null,null,null,null,null,null,null,null,null,null,null,null,null,null,null,null,null,null,null,null,null,0,"P","","ZZ","C0350","LOSSES","DISTLOSS","_Z","_Z","_Z","_Z","_Z","ENERGY","_Z","TJ_GCV"]
["TJ GCV","Coke oven gas","Total final consumption",null,null,null,null,{"$f":"H201+H202","v":0},null,{"$f":"J201+J202","v":0},"P","","",null,null,null,null,null,null,null,null,null,null,null,null,null,null,null,null,null,null,null,null,null,null,null,null,null,null,null,null,null,null,null,null,null,null,null,null,null,null,null,null,null,null,null,null,null,null,null,null,null,null,null,null,null,null,null,null,null,null,null,null,null,null,null,null,null,null,null,null,null,null,null,null,null,null,null,null,null,null,null,null,null,null,null,null,null,null,null,null,null,null,null,null,null,null,null,null,null,null,null,null,null,null,null,null,null,null,0,"P","","ZZ","C0350","CONSUMPT","FINCONS","_Z","_Z","_Z","_Z","_Z","ENERGY","_Z","TJ_GCV"]
["TJ GCV","Coke oven gas","Total final non-energy consumption","4210","B_101600","COKEOVGS","NONENUSE",{"$f":"PrefilledData!B45","v":0},null,0,"P","","",null,null,null,null,null,null,null,null,null,null,null,null,null,null,null,null,null,null,null,null,null,null,null,null,null,null,null,null,null,null,null,null,null,null,null,null,null,null,null,null,null,null,null,null,null,null,null,null,null,null,null,null,null,null,null,null,null,null,null,null,null,null,null,null,null,null,null,null,null,null,null,null,null,null,null,null,null,null,null,null,null,null,null,null,null,null,null,null,null,null,null,null,null,null,null,null,null,null,null,null,null,null,null,null,null,null,0,"P","","ZZ","C0350","NONENUSE","_T","_Z","_Z","_Z","_Z","_Z","ENERGY","_Z","TJ_GCV"]
["TJ GCV","Coke oven gas","Total final energy consumption",null,null,null,null,{"$f":"SUM(H203:H205)","v":0},null,{"$f":"J203+J204+J205","v":0},"P","","",null,null,null,null,null,null,null,null,null,null,null,null,null,null,null,null,null,null,null,null,null,null,null,null,null,null,null,null,null,null,null,null,null,null,null,null,null,null,null,null,null,null,null,null,null,null,null,null,null,null,null,null,null,null,null,null,null,null,null,null,null,null,null,null,null,null,null,null,null,null,null,null,null,null,null,null,null,null,null,null,null,null,null,null,null,null,null,null,null,null,null,null,null,null,null,null,null,null,null,null,null,null,null,null,null,null,0,"P","","ZZ","C0350","ENERGUSE","FINCONS","_Z","_Z","_Z","_Z","_Z","ENERGY","_Z","TJ_GCV"]
["TJ GCV","Coke oven gas","Industry sector","4210","DB_101800","COKEOVGS","TOTIND",{"$f":"PrefilledData!B47","v":0},null,0,"P","","",null,null,null,null,null,null,null,null,null,null,null,null,null,null,null,null,null,null,null,null,null,null,null,null,null,null,null,null,null,null,null,null,null,null,null,null,null,null,null,null,null,null,null,null,null,null,null,null,null,null,null,null,null,null,null,null,null,null,null,null,null,null,null,null,null,null,null,null,null,null,null,null,null,null,null,null,null,null,null,null,null,null,null,null,null,null,null,null,null,null,null,null,null,null,null,null,null,null,null,null,null,null,null,null,null,null,0,"P","","ZZ","C0350","ENERGUSE","INDUSTRY","_Z","_Z","_Z","_Z","_Z","ENERGY","_Z","TJ_GCV"]
["TJ GCV","Coke oven gas","Transport sector","4210","B_101900","COKEOVGS","TOTTRANS",{"$f":"PrefilledData!B48","v":0},null,0,"P","","",null,null,null,null,null,null,null,null,null,null,null,null,null,null,null,null,null,null,null,null,null,null,null,null,null,null,null,null,null,null,null,null,null,null,null,null,null,null,null,null,null,null,null,null,null,null,null,null,null,null,null,null,null,null,null,null,null,null,null,null,null,null,null,null,null,null,null,null,null,null,null,null,null,null,null,null,null,null,null,null,null,null,null,null,null,null,null,null,null,null,null,null,null,null,null,null,null,null,null,null,null,null,null,null,null,null,0,"P","","ZZ","C0350","ENERGUSE","TRANSPOR","_Z","_Z","_Z","_Z","_Z","ENERGY","_Z","TJ_GCV"]
["TJ GCV","Coke oven gas","Other sectors","4210","B_102000","COKEOVGS","TOTOTHER",{"$f":"PrefilledData!B49","v":0},null,0,"P","","",null,null,null,null,null,null,null,null,null,null,null,null,null,null,null,null,null,null,null,null,null,null,null,null,null,null,null,null,null,null,null,null,null,null,null,null,null,null,null,null,null,null,null,null,null,null,null,null,null,null,null,null,null,null,null,null,null,null,null,null,null,null,null,null,null,null,null,null,null,null,null,null,null,null,null,null,null,null,null,null,null,null,null,null,null,null,null,null,null,null,null,null,null,null,null,null,null,null,null,null,null,null,null,null,null,null,0,"P","","ZZ","C0350","ENERGUSE","OTHSECT","_Z","_Z","_Z","_Z","_Z","ENERGY","_Z","TJ_GCV"]
["TJ GCV","Blast furnace gas","Indigenous production","4220","B_101100","BLFURGS","INDPROD",{"$f":"PrefilledData!D35","v":0},null,0,"P",{"$f":"IF(ISERROR(J206/H206),\"\",(J206/H206)-1)","v":""},{"$f":"IF(ISERROR(J206/I206),\"\",(J206/I206)-1)","v":""},null,null,null,null,null,null,null,null,null,null,null,null,null,null,null,null,null,null,null,null,null,null,null,null,null,null,null,null,null,null,null,null,null,null,null,null,null,null,null,null,null,null,null,null,null,null,null,null,null,null,null,null,null,null,null,null,null,null,null,null,null,null,null,null,null,null,null,null,null,null,null,null,null,null,null,null,null,null,null,null,null,null,null,null,null,null,null,null,null,null,null,null,null,null,null,null,null,null,null,null,null,null,null,null,null,null,0,"P","","ZZ","C0371","PRODUCT","INDPROD","_Z","_Z","_Z","_Z","_Z","ENERGY","_Z","TJ_GCV"]
["TJ GCV","Blast furnace gas","From other sources","4220","B_100200","BLFURGS","OSOURCES",{"$f":"PrefilledData!D36","v":0},null,0,"P",{"$f":"IF(ISERROR(J207/H207),\"\",(J207/H207)-1)","v":""},{"$f":"IF(ISERROR(J207/I207),\"\",(J207/I207)-1)","v":""},null,null,null,null,null,null,null,null,null,null,null,null,null,null,null,null,null,null,null,null,null,null,null,null,null,null,null,null,null,null,null,null,null,null,null,null,null,null,null,null,null,null,null,null,null,null,null,null,null,null,null,null,null,null,null,null,null,null,null,null,null,null,null,null,null,null,null,null,null,null,null,null,null,null,null,null,null,null,null,null,null,null,null,null,null,null,null,null,null,null,null,null,null,null,null,null,null,null,null,null,null,null,null,null,null,null,0,"P","","ZZ","C0371","SUPPLY","OSOURCES","_Z","_Z","_Z","_Z","_Z","ENERGY","_Z","TJ_GCV"]
["TJ GCV","Blast furnace gas","Total imports (Balance)","4220","B_100300","BLFURGS","TOTIMPSB",{"$f":"PrefilledData!D37","v":0},null,0,"P","","",null,null,null,null,null,null,null,null,null,null,null,null,null,null,null,null,null,null,null,null,null,null,null,null,null,null,null,null,null,null,null,null,null,null,null,null,null,null,null,null,null,null,null,null,null,null,null,null,null,null,null,null,null,null,null,null,null,null,null,null,null,null,null,null,null,null,null,null,null,null,null,null,null,null,null,null,null,null,null,null,null,null,null,null,null,null,null,null,null,null,null,null,null,null,null,null,null,null,null,null,null,null,null,null,null,null,0,"P","","ZZ","C0371","IMPORTS","TOTIMPSB","_Z","_Z","_Z","_Z","_Z","ENERGY","_Z","TJ_GCV"]
["TJ GCV","Blast furnace gas","Total exports (Balance)","4220","B_100500","BLFURGS","TOTEXPSB",{"$f":"PrefilledData!D38","v":0},null,0,"P","","",null,null,null,null,null,null,null,null,null,null,null,null,null,null,null,null,null,null,null,null,null,null,null,null,null,null,null,null,null,null,null,null,null,null,null,null,null,null,null,null,null,null,null,null,null,null,null,null,null,null,null,null,null,null,null,null,null,null,null,null,null,null,null,null,null,null,null,null,null,null,null,null,null,null,null,null,null,null,null,null,null,null,null,null,null,null,null,null,null,null,null,null,null,null,null,null,null,null,null,null,null,null,null,null,null,null,0,"P","","ZZ","C0371","EXPORTS","TOTEXPSB","_Z","_Z","_Z","_Z","_Z","ENERGY","_Z","TJ_GCV"]
["TJ GCV","Blast furnace gas","Stock changes (National territory)","4220","B_100400","BLFURGS","STCHANAT",{"$f":"PrefilledData!D39","v":0},null,0,"P","","",null,null,null,null,null,null,null,null,null,null,null,null,null,null,null,null,null,null,null,null,null,null,null,null,null,null,null,null,null,null,null,null,null,null,null,null,null,null,null,null,null,null,null,null,null,null,null,null,null,null,null,null,null,null,null,null,null,null,null,null,null,null,null,null,null,null,null,null,null,null,null,null,null,null,null,null,null,null,null,null,null,null,null,null,null,null,null,null,null,null,null,null,null,null,null,null,null,null,null,null,null,null,null,null,null,null,0,"P","","ZZ","C0371","STOCKS","STOCKCH","_Z","_Z","NATTER","_Z","_Z","ENERGY","_Z","TJ_GCV"]
["TJ GCV","Blast furnace gas","Inland consumption (Calculated)",null,null,null,null,{"$f":"H206+H207+H208-H209+H210","v":0},null,{"$f":"J206+J207+J208-J209+J210","v":0},"P","","",null,null,null,null,null,null,null,null,null,null,null,null,null,null,null,null,null,null,null,null,null,null,null,null,null,null,null,null,null,null,null,null,null,null,null,null,null,null,null,null,null,null,null,null,null,null,null,null,null,null,null,null,null,null,null,null,null,null,null,null,null,null,null,null,null,null,null,null,null,null,null,null,null,null,null,null,null,null,null,null,null,null,null,null,null,null,null,null,null,null,null,null,null,null,null,null,null,null,null,null,null,null,null,null,null,null,0,"P","","ZZ","C0371","SUPPLY","INLDEMC","_Z","_Z","_Z","_Z","_Z","ENERGY","_Z","TJ_GCV"]
["TJ GCV","Blast furnace gas","Statistical Difference",null,null,null,null,{"$f":"H211-H213","v":0},null,{"$f":"J211-J213","v":0},"P",null,null,null,null,null,null,null,null,null,null,null,null,null,null,null,null,null,null,null,null,null,null,null,null,null,null,null,null,null,null,null,null,null,null,null,null,null,null,null,null,null,null,null,null,null,null,null,null,null,null,null,null,null,null,null,null,null,null,null,null,null,null,null,null,null,null,null,null,null,null,null,null,null,null,null,null,null,null,null,null,null,null,null,null,null,null,null,null,null,null,null,null,null,null,null,null,null,null,null,null,null,null,null,null,null,null,null,null,0,"P","","ZZ","C0371","STATDIFF","_Z","_Z","_Z","_Z","_Z","_Z","ENERGY","_Z","TJ_GCV"]
["TJ GCV","Blast furnace gas","Inland consumption (Observed)",null,null,null,null,{"$f":"H214+H215+H216+H217","v":0},null,{"$f":"J214+J215+J216+J217","v":0},"P","","",null,null,null,null,null,null,null,null,null,null,null,null,null,null,null,null,null,null,null,null,null,null,null,null,null,null,null,null,null,null,null,null,null,null,null,null,null,null,null,null,null,null,null,null,null,null,null,null,null,null,null,null,null,null,null,null,null,null,null,null,null,null,null,null,null,null,null,null,null,null,null,null,null,null,null,null,null,null,null,null,null,null,null,null,null,null,null,null,null,null,null,null,null,null,null,null,null,null,null,null,null,null,null,null,null,null,0,"P","","ZZ","C0371","DEMAND","INLDEMO","_Z","_Z","_Z","_Z","_Z","ENERGY","_Z","TJ_GCV"]
["TJ GCV","Blast furnace gas","Transformation sector","4220","DB_101000","BLFURGS","TOTTRANF",{"$f":"PrefilledData!D41","v":0},null,0,"P","","",null,null,null,null,null,null,null,null,null,null,null,null,null,null,null,null,null,null,null,null,null,null,null,null,null,null,null,null,null,null,null,null,null,null,null,null,null,null,null,null,null,null,null,null,null,null,null,null,null,null,null,null,null,null,null,null,null,null,null,null,null,null,null,null,null,null,null,null,null,null,null,null,null,null,null,null,null,null,null,null,null,null,null,null,null,null,null,null,null,null,null,null,null,null,null,null,null,null,null,null,null,null,null,null,null,null,0,"P","","ZZ","C0371","TRANSFOR","TOTRANSF","_Z","_Z","_Z","_Z","_Z","ENERGY","_Z","TJ_GCV"]
["TJ GCV","Blast furnace gas","Energy sector","4220","DB_101300","BLFURGS","TOTENGY",{"$f":"PrefilledData!D42","v":0},null,0,"P","","",null,null,null,null,null,null,null,null,null,null,null,null,null,null,null,null,null,null,null,null,null,null,null,null,null,null,null,null,null,null,null,null,null,null,null,null,null,null,null,null,null,null,null,null,null,null,null,null,null,null,null,null,null,null,null,null,null,null,null,null,null,null,null,null,null,null,null,null,null,null,null,null,null,null,null,null,null,null,null,null,null,null,null,null,null,null,null,null,null,null,null,null,null,null,null,null,null,null,null,null,null,null,null,null,null,null,0,"P","","ZZ","C0371","ENERGUSE","ENERSECT","_Z","_Z","_Z","_Z","_Z","ENERGY","_Z","TJ_GCV"]
["TJ GCV","Blast furnace gas","Distribution losses","4220","B_101400","BLFURGS","DISTLOSS",{"$f":"PrefilledData!D43","v":0},null,0,"P","","",null,null,null,null,null,null,null,null,null,null,null,null,null,null,null,null,null,null,null,null,null,null,null,null,null,null,null,null,null,null,null,null,null,null,null,null,null,null,null,null,null,null,null,null,null,null,null,null,null,null,null,null,null,null,null,null,null,null,null,null,null,null,null,null,null,null,null,null,null,null,null,null,null,null,null,null,null,null,null,null,null,null,null,null,null,null,null,null,null,null,null,null,null,null,null,null,null,null,null,null,null,null,null,null,null,null,0,"P","","ZZ","C0371","LOSSES","DISTLOSS","_Z","_Z","_Z","_Z","_Z","ENERGY","_Z","TJ_GCV"]
["TJ GCV","Blast furnace gas","Total final consumption",null,null,null,null,{"$f":"H218+H219","v":0},null,{"$f":"J218+J219","v":0},"P","","",null,null,null,null,null,null,null,null,null,null,null,null,null,null,null,null,null,null,null,null,null,null,null,null,null,null,null,null,null,null,null,null,null,null,null,null,null,null,null,null,null,null,null,null,null,null,null,null,null,null,null,null,null,null,null,null,null,null,null,null,null,null,null,null,null,null,null,null,null,null,null,null,null,null,null,null,null,null,null,null,null,null,null,null,null,null,null,null,null,null,null,null,null,null,null,null,null,null,null,null,null,null,null,null,null,null,0,"P","","ZZ","C0371","CONSUMPT","FINCONS","_Z","_Z","_Z","_Z","_Z","ENERGY","_Z","TJ_GCV"]
["TJ GCV","Blast furnace gas","Total final non-energy consumption","4220","B_101600","BLFURGS","NONENUSE",{"$f":"PrefilledData!D45","v":0},null,0,"P","","",null,null,null,null,null,null,null,null,null,null,null,null,null,null,null,null,null,null,null,null,null,null,null,null,null,null,null,null,null,null,null,null,null,null,null,null,null,null,null,null,null,null,null,null,null,null,null,null,null,null,null,null,null,null,null,null,null,null,null,null,null,null,null,null,null,null,null,null,null,null,null,null,null,null,null,null,null,null,null,null,null,null,null,null,null,null,null,null,null,null,null,null,null,null,null,null,null,null,null,null,null,null,null,null,null,null,0,"P","","ZZ","C0371","NONENUSE","_T","_Z","_Z","_Z","_Z","_Z","ENERGY","_Z","TJ_GCV"]
["TJ GCV","Blast furnace gas","Total final energy consumption",null,null,null,null,{"$f":"SUM(H220:H222)","v":0},null,{"$f":"J220+J221+J222","v":0},"P","","",null,null,null,null,null,null,null,null,null,null,null,null,null,null,null,null,null,null,null,null,null,null,null,null,null,null,null,null,null,null,null,null,null,null,null,null,null,null,null,null,null,null,null,null,null,null,null,null,null,null,null,null,null,null,null,null,null,null,null,null,null,null,null,null,null,null,null,null,null,null,null,null,null,null,null,null,null,null,null,null,null,null,null,null,null,null,null,null,null,null,null,null,null,null,null,null,null,null,null,null,null,null,null,null,null,null,0,"P","","ZZ","C0371","ENERGUSE","FINCONS","_Z","_Z","_Z","_Z","_Z","ENERGY","_Z","TJ_GCV"]
["TJ GCV","Blast furnace gas","Industry sector","4220","DB_101800","BLFURGS","TOTIND",{"$f":"PrefilledData!D47","v":0},null,0,"P","","",null,null,null,null,null,null,null,null,null,null,null,null,null,null,null,null,null,null,null,null,null,null,null,null,null,null,null,null,null,null,null,null,null,null,null,null,null,null,null,null,null,null,null,null,null,null,null,null,null,null,null,null,null,null,null,null,null,null,null,null,null,null,null,null,null,null,null,null,null,null,null,null,null,null,null,null,null,null,null,null,null,null,null,null,null,null,null,null,null,null,null,null,null,null,null,null,null,null,null,null,null,null,null,null,null,null,0,"P","","ZZ","C0371","ENERGUSE","INDUSTRY","_Z","_Z","_Z","_Z","_Z","ENERGY","_Z","TJ_GCV"]
["TJ GCV","Blast furnace gas","Transport sector","4220","B_101900","BLFURGS","TOTTRANS",{"$f":"PrefilledData!D48","v":0},null,0,"P","","",null,null,null,null,null,null,null,null,null,null,null,null,null,null,null,null,null,null,null,null,null,null,null,null,null,null,null,null,null,null,null,null,null,null,null,null,null,null,null,null,null,null,null,null,null,null,null,null,null,null,null,null,null,null,null,null,null,null,null,null,null,null,null,null,null,null,null,null,null,null,null,null,null,null,null,null,null,null,null,null,null,null,null,null,null,null,null,null,null,null,null,null,null,null,null,null,null,null,null,null,null,null,null,null,null,null,0,"P","","ZZ","C0371","ENERGUSE","TRANSPOR","_Z","_Z","_Z","_Z","_Z","ENERGY","_Z","TJ_GCV"]
["TJ GCV","Blast furnace gas","Other sectors","4220","B_102000","BLFURGS","TOTOTHER",{"$f":"PrefilledData!D49","v":0},null,0,"P","","",null,null,null,null,null,null,null,null,null,null,null,null,null,null,null,null,null,null,null,null,null,null,null,null,null,null,null,null,null,null,null,null,null,null,null,null,null,null,null,null,null,null,null,null,null,null,null,null,null,null,null,null,null,null,null,null,null,null,null,null,null,null,null,null,null,null,null,null,null,null,null,null,null,null,null,null,null,null,null,null,null,null,null,null,null,null,null,null,null,null,null,null,null,null,null,null,null,null,null,null,null,null,null,null,null,null,0,"P","","ZZ","C0371","ENERGUSE","OTHSECT","_Z","_Z","_Z","_Z","_Z","ENERGY","_Z","TJ_GCV"]
["TJ GCV","Other recovered gases","Indigenous production","4240","B_101100","OGAES","INDPROD",{"$f":"PrefilledData!E35","v":0},null,0,"P",{"$f":"IF(ISERROR(J223/H223),\"\",(J223/H223)-1)","v":""},{"$f":"IF(ISERROR(J223/I223),\"\",(J223/I223)-1)","v":""},null,null,null,null,null,null,null,null,null,null,null,null,null,null,null,null,null,null,null,null,null,null,null,null,null,null,null,null,null,null,null,null,null,null,null,null,null,null,null,null,null,null,null,null,null,null,null,null,null,null,null,null,null,null,null,null,null,null,null,null,null,null,null,null,null,null,null,null,null,null,null,null,null,null,null,null,null,null,null,null,null,null,null,null,null,null,null,null,null,null,null,null,null,null,null,null,null,null,null,null,null,null,null,null,null,null,0,"P","","ZZ","C0379","PRODUCT","INDPROD","_Z","_Z","_Z","_Z","_Z","ENERGY","_Z","TJ_GCV"]
["TJ GCV","Other recovered gases","From other sources","4240","B_100200","OGAES","OSOURCES",{"$f":"PrefilledData!E36","v":0},null,0,"P",{"$f":"IF(ISERROR(J224/H224),\"\",(J224/H224)-1)","v":""},{"$f":"IF(ISERROR(J224/I224),\"\",(J224/I224)-1)","v":""},null,null,null,null,null,null,null,null,null,null,null,null,null,null,null,null,null,null,null,null,null,null,null,null,null,null,null,null,null,null,null,null,null,null,null,null,null,null,null,null,null,null,null,null,null,null,null,null,null,null,null,null,null,null,null,null,null,null,null,null,null,null,null,null,null,null,null,null,null,null,null,null,null,null,null,null,null,null,null,null,null,null,null,null,null,null,null,null,null,null,null,null,null,null,null,null,null,null,null,null,null,null,null,null,null,null,0,"P","","ZZ","C0379","SUPPLY","OSOURCES","_Z","_Z","_Z","_Z","_Z","ENERGY","_Z","TJ_GCV"]
["TJ GCV","Other recovered gases","Total imports (Balance)","4240","B_100300","OGAES","TOTIMPSB",{"$f":"PrefilledData!E37","v":0},null,0,"P","","",null,null,null,null,null,null,null,null,null,null,null,null,null,null,null,null,null,null,null,null,null,null,null,null,null,null,null,null,null,null,null,null,null,null,null,null,null,null,null,null,null,null,null,null,null,null,null,null,null,null,null,null,null,null,null,null,null,null,null,null,null,null,null,null,null,null,null,null,null,null,null,null,null,null,null,null,null,null,null,null,null,null,null,null,null,null,null,null,null,null,null,null,null,null,null,null,null,null,null,null,null,null,null,null,null,null,0,"P","","ZZ","C0379","IMPORTS","TOTIMPSB","_Z","_Z","_Z","_Z","_Z","ENERGY","_Z","TJ_GCV"]
["TJ GCV","Other recovered gases","Total exports (Balance)","4240","B_100500","OGAES","TOTEXPSB",{"$f":"PrefilledData!E38","v":0},null,0,"P","","",null,null,null,null,null,null,null,null,null,null,null,null,null,null,null,null,null,null,null,null,null,null,null,null,null,null,null,null,null,null,null,null,null,null,null,null,null,null,null,null,null,null,null,null,null,null,null,null,null,null,null,null,null,null,null,null,null,null,null,null,null,null,null,null,null,null,null,null,null,null,null,null,null,null,null,null,null,null,null,null,null,null,null,null,null,null,null,null,null,null,null,null,null,null,null,null,null,null,null,null,null,null,null,null,null,null,0,"P","","ZZ","C0379","EXPORTS","TOTEXPSB","_Z","_Z","_Z","_Z","_Z","ENERGY","_Z","TJ_GCV"]
["TJ GCV","Other recovered gases","Stock changes (National territory)","4240","B_100400","OGAES","STCHANAT",{"$f":"PrefilledData!E39","v":0},null,0,"P","","",null,null,null,null,null,null,null,null,null,null,null,null,null,null,null,null,null,null,null,null,null,null,null,null,null,null,null,null,null,null,null,null,null,null,null,null,null,null,null,null,null,null,null,null,null,null,null,null,null,null,null,null,null,null,null,null,null,null,null,null,null,null,null,null,null,null,null,null,null,null,null,null,null,null,null,null,null,null,null,null,null,null,null,null,null,null,null,null,null,null,null,null,null,null,null,null,null,null,null,null,null,null,null,null,null,null,0,"P","","ZZ","C0379","STOCKS","STOCKCH","_Z","_Z","NATTER","_Z","_Z","ENERGY","_Z","TJ_GCV"]
["TJ GCV","Other recovered gases","Inland consumption (Calculated)",null,null,null,null,{"$f":"H223+H224+H225-H226+H227","v":0},null,{"$f":"J223+J224+J225-J226+J227","v":0},"P","","",null,null,null,null,null,null,null,null,null,null,null,null,null,null,null,null,null,null,null,null,null,null,null,null,null,null,null,null,null,null,null,null,null,null,null,null,null,null,null,null,null,null,null,null,null,null,null,null,null,null,null,null,null,null,null,null,null,null,null,null,null,null,null,null,null,null,null,null,null,null,null,null,null,null,null,null,null,null,null,null,null,null,null,null,null,null,null,null,null,null,null,null,null,null,null,null,null,null,null,null,null,null,null,null,null,null,0,"P","","ZZ","C0379","SUPPLY","INLDEMC","_Z","_Z","_Z","_Z","_Z","ENERGY","_Z","TJ_GCV"]
["TJ GCV","Other recovered gases","Statistical Difference",null,null,null,null,{"$f":"H228-H230","v":0},null,{"$f":"J228-J230","v":0},"P",null,null,null,null,null,null,null,null,null,null,null,null,null,null,null,null,null,null,null,null,null,null,null,null,null,null,null,null,null,null,null,null,null,null,null,null,null,null,null,null,null,null,null,null,null,null,null,null,null,null,null,null,null,null,null,null,null,null,null,null,null,null,null,null,null,null,null,null,null,null,null,null,null,null,null,null,null,null,null,null,null,null,null,null,null,null,null,null,null,null,null,null,null,null,null,null,null,null,null,null,null,null,null,null,null,null,null,null,0,"P","","ZZ","C0379","STATDIFF","_Z","_Z","_Z","_Z","_Z","_Z","ENERGY","_Z","TJ_GCV"]
["TJ GCV","Other recovered gases","Inland consumption (Observed)",null,null,null,null,{"$f":"H231+H232+H233+H234","v":0},null,{"$f":"J231+J232+J233+J234","v":0},"P","","",null,null,null,null,null,null,null,null,null,null,null,null,null,null,null,null,null,null,null,null,null,null,null,null,null,null,null,null,null,null,null,null,null,null,null,null,null,null,null,null,null,null,null,null,null,null,null,null,null,null,null,null,null,null,null,null,null,null,null,null,null,null,null,null,null,null,null,null,null,null,null,null,null,null,null,null,null,null,null,null,null,null,null,null,null,null,null,null,null,null,null,null,null,null,null,null,null,null,null,null,null,null,null,null,null,null,0,"P","","ZZ","C0379","DEMAND","INLDEMO","_Z","_Z","_Z","_Z","_Z","ENERGY","_Z","TJ_GCV"]
["TJ GCV","Other recovered gases","Transformation sector","4240","DB_101000","OGAES","TOTTRANF",{"$f":"PrefilledData!E41","v":0},null,0,"P","","",null,null,null,null,null,null,null,null,null,null,null,null,null,null,null,null,null,null,null,null,null,null,null,null,null,null,null,null,null,null,null,null,null,null,null,null,null,null,null,null,null,null,null,null,null,null,null,null,null,null,null,null,null,null,null,null,null,null,null,null,null,null,null,null,null,null,null,null,null,null,null,null,null,null,null,null,null,null,null,null,null,null,null,null,null,null,null,null,null,null,null,null,null,null,null,null,null,null,null,null,null,null,null,null,null,null,0,"P","","ZZ","C0379","TRANSFOR","TOTRANSF","_Z","_Z","_Z","_Z","_Z","ENERGY","_Z","TJ_GCV"]
["TJ GCV","Other recovered gases","Energy sector","4240","DB_101300","OGAES","TOTENGY",{"$f":"PrefilledData!E42","v":0},null,0,"P","","",null,null,null,null,null,null,null,null,null,null,null,null,null,null,null,null,null,null,null,null,null,null,null,null,null,null,null,null,null,null,null,null,null,null,null,null,null,null,null,null,null,null,null,null,null,null,null,null,null,null,null,null,null,null,null,null,null,null,null,null,null,null,null,null,null,null,null,null,null,null,null,null,null,null,null,null,null,null,null,null,null,null,null,null,null,null,null,null,null,null,null,null,null,null,null,null,null,null,null,null,null,null,null,null,null,null,0,"P","","ZZ","C0379","ENERGUSE","ENERSECT","_Z","_Z","_Z","_Z","_Z","ENERGY","_Z","TJ_GCV"]
["TJ GCV","Other recovered gases","Distribution losses","4240","B_101400","OGAES","DISTLOSS",{"$f":"PrefilledData!E43","v":0},null,0,"P","","",null,null,null,null,null,null,null,null,null,null,null,null,null,null,null,null,null,null,null,null,null,null,null,null,null,null,null,null,null,null,null,null,null,null,null,null,null,null,null,null,null,null,null,null,null,null,null,null,null,null,null,null,null,null,null,null,null,null,null,null,null,null,null,null,null,null,null,null,null,null,null,null,null,null,null,null,null,null,null,null,null,null,null,null,null,null,null,null,null,null,null,null,null,null,null,null,null,null,null,null,null,null,null,null,null,null,0,"P","","ZZ","C0379","LOSSES","DISTLOSS","_Z","_Z","_Z","_Z","_Z","ENERGY","_Z","TJ_GCV"]
["TJ GCV","Other recovered gases","Total final consumption",null,null,null,null,{"$f":"H235+H236","v":0},null,{"$f":"J235+J236","v":0},"P","","",null,null,null,null,null,null,null,null,null,null,null,null,null,null,null,null,null,null,null,null,null,null,null,null,null,null,null,null,null,null,null,null,null,null,null,null,null,null,null,null,null,null,null,null,null,null,null,null,null,null,null,null,null,null,null,null,null,null,null,null,null,null,null,null,null,null,null,null,null,null,null,null,null,null,null,null,null,null,null,null,null,null,null,null,null,null,null,null,null,null,null,null,null,null,null,null,null,null,null,null,null,null,null,null,null,null,0,"P","","ZZ","C0379","CONSUMPT","FINCONS","_Z","_Z","_Z","_Z","_Z","ENERGY","_Z","TJ_GCV"]
["TJ GCV","Other recovered gases","Total final non-energy consumption","4240","B_101600","OGAES","NONENUSE",{"$f":"PrefilledData!E45","v":0},null,0,"P","","",null,null,null,null,null,null,null,null,null,null,null,null,null,null,null,null,null,null,null,null,null,null,null,null,null,null,null,null,null,null,null,null,null,null,null,null,null,null,null,null,null,null,null,null,null,null,null,null,null,null,null,null,null,null,null,null,null,null,null,null,null,null,null,null,null,null,null,null,null,null,null,null,null,null,null,null,null,null,null,null,null,null,null,null,null,null,null,null,null,null,null,null,null,null,null,null,null,null,null,null,null,null,null,null,null,null,0,"P","","ZZ","C0379","NONENUSE","_T","_Z","_Z","_Z","_Z","_Z","ENERGY","_Z","TJ_GCV"]
["TJ GCV","Other recovered gases","Total final energy consumption",null,null,null,null,{"$f":"SUM(H237:H239)","v":0},null,{"$f":"J237+J238+J239","v":0},"P","","",null,null,null,null,null,null,null,null,null,null,null,null,null,null,null,null,null,null,null,null,null,null,null,null,null,null,null,null,null,null,null,null,null,null,null,null,null,null,null,null,null,null,null,null,null,null,null,null,null,null,null,null,null,null,null,null,null,null,null,null,null,null,null,null,null,null,null,null,null,null,null,null,null,null,null,null,null,null,null,null,null,null,null,null,null,null,null,null,null,null,null,null,null,null,null,null,null,null,null,null,null,null,null,null,null,null,0,"P","","ZZ","C0379","ENERGUSE","FINCONS","_Z","_Z","_Z","_Z","_Z","ENERGY","_Z","TJ_GCV"]
["TJ GCV","Other recovered gases","Industry sector","4240","DB_101800","OGAES","TOTIND",{"$f":"PrefilledData!E47","v":0},null,0,"P","","",null,null,null,null,null,null,null,null,null,null,null,null,null,null,null,null,null,null,null,null,null,null,null,null,null,null,null,null,null,null,null,null,null,null,null,null,null,null,null,null,null,null,null,null,null,null,null,null,null,null,null,null,null,null,null,null,null,null,null,null,null,null,null,null,null,null,null,null,null,null,null,null,null,null,null,null,null,null,null,null,null,null,null,null,null,null,null,null,null,null,null,null,null,null,null,null,null,null,null,null,null,null,null,null,null,null,0,"P","","ZZ","C0379","ENERGUSE","INDUSTRY","_Z","_Z","_Z","_Z","_Z","ENERGY","_Z","TJ_GCV"]
["TJ GCV","Other recovered gases","Transport sector","4240","B_101900","OGAES","TOTTRANS",{"$f":"PrefilledData!E48","v":0},null,0,"P","","",null,null,null,null,null,null,null,null,null,null,null,null,null,null,null,null,null,null,null,null,null,null,null,null,null,null,null,null,null,null,null,null,null,null,null,null,null,null,null,null,null,null,null,null,null,null,null,null,null,null,null,null,null,null,null,null,null,null,null,null,null,null,null,null,null,null,null,null,null,null,null,null,null,null,null,null,null,null,null,null,null,null,null,null,null,null,null,null,null,null,null,null,null,null,null,null,null,null,null,null,null,null,null,null,null,null,0,"P","","ZZ","C0379","ENERGUSE","TRANSPOR","_Z","_Z","_Z","_Z","_Z","ENERGY","_Z","TJ_GCV"]
["TJ GCV","Other recovered gases","Other sectors","4240","B_102000","OGAES","TOTOTHER",{"$f":"PrefilledData!E49","v":0},null,0,"P","","",null,null,null,null,null,null,null,null,null,null,null,null,null,null,null,null,null,null,null,null,null,null,null,null,null,null,null,null,null,null,null,null,null,null,null,null,null,null,null,null,null,null,null,null,null,null,null,null,null,null,null,null,null,null,null,null,null,null,null,null,null,null,null,null,null,null,null,null,null,null,null,null,null,null,null,null,null,null,null,null,null,null,null,null,null,null,null,null,null,null,null,null,null,null,null,null,null,null,null,null,null,null,null,null,null,null,0,"P","","ZZ","C0379","ENERGUSE","OTHSECT","_Z","_Z","_Z","_Z","_Z","ENERGY","_Z","TJ_GCV"]
["kt","Peat","Indigenous production","2310","B_100100","PEAT","INDPROD",{"$f":"PrefilledData!O6","v":0},{"$f":"SUM(PrefilledData!C82:N82)","v":0},0,"P",{"$f":"IF(ISERROR(J240/H240),\"\",(J240/H240)-1)","v":""},{"$f":"IF(ISERROR(J240/I240),\"\",(J240/I240)-1)","v":""},null,null,null,null,null,null,null,null,null,null,null,null,null,null,null,null,null,null,null,null,null,null,null,null,null,null,null,null,null,null,null,null,null,null,null,null,null,null,null,null,null,null,null,null,null,null,null,null,null,null,null,null,null,null,null,null,null,null,null,null,null,null,null,null,null,null,null,null,null,null,null,null,null,null,null,null,null,null,null,null,null,null,null,null,null,null,null,null,null,null,null,null,null,null,null,null,null,null,null,null,null,null,null,null,null,null,0,"P","","ZZ","P1100","PRODUCT","INDPROD","_Z","_Z","_Z","_Z","_Z","WEIGHT","_Z","KT"]
["kt","Peat","From other sources","2310","B_100200","PEAT","OSOURCES",{"$f":"PrefilledData!O7","v":0},{"$f":"SUM(PrefilledData!C83:N83)","v":0},0,"P",{"$f":"IF(ISERROR(J241/H241),\"\",(J241/H241)-1)","v":""},{"$f":"IF(ISERROR(J241/I241),\"\",(J241/I241)-1)","v":""},null,null,null,null,null,null,null,null,null,null,null,null,null,null,null,null,null,null,null,null,null,null,null,null,null,null,null,null,null,null,null,null,null,null,null,null,null,null,null,null,null,null,null,null,null,null,null,null,null,null,null,null,null,null,null,null,null,null,null,null,null,null,null,null,null,null,null,null,null,null,null,null,null,null,null,null,null,null,null,null,null,null,null,null,null,null,null,null,null,null,null,null,null,null,null,null,null,null,null,null,null,null,null,null,null,null,0,"P","","ZZ","P1100","SUPPLY","OSOURCES","_Z","_Z","_Z","_Z","_Z","WEIGHT","_Z","KT"]
["kt","Peat","Total imports (Balance)","2310","B_100300","PEAT","TOTIMPSB",{"$f":"PrefilledData!O8","v":0},{"$f":"SUM(PrefilledData!C84:N84)","v":0},0,"P","","",null,null,null,null,null,null,null,null,null,null,null,null,null,null,null,null,null,null,null,null,null,null,null,null,null,null,null,null,null,null,null,null,null,null,null,null,null,null,null,null,null,null,null,null,null,null,null,null,null,null,null,null,null,null,null,null,null,null,null,null,null,null,null,null,null,null,null,null,null,null,null,null,null,null,null,null,null,null,null,null,null,null,null,null,null,null,null,null,null,null,null,null,null,null,null,null,null,null,null,null,null,null,null,null,null,null,0,"P","","ZZ","P1100","IMPORTS","TOTIMPSB","_Z","_Z","_Z","_Z","_Z","WEIGHT","_Z","KT"]
["kt","Peat","Total exports (Balance)","2310","B_100500","PEAT","TOTEXPSB",{"$f":"PrefilledData!O9","v":0},{"$f":"SUM(PrefilledData!C85:N85)","v":0},0,"P","","",null,null,null,null,null,null,null,null,null,null,null,null,null,null,null,null,null,null,null,null,null,null,null,null,null,null,null,null,null,null,null,null,null,null,null,null,null,null,null,null,null,null,null,null,null,null,null,null,null,null,null,null,null,null,null,null,null,null,null,null,null,null,null,null,null,null,null,null,null,null,null,null,null,null,null,null,null,null,null,null,null,null,null,null,null,null,null,null,null,null,null,null,null,null,null,null,null,null,null,null,null,null,null,null,null,null,0,"P","","ZZ","P1100","EXPORTS","TOTEXPSB","_Z","_Z","_Z","_Z","_Z","WEIGHT","_Z","KT"]
["kt","Peat","Stock changes (National territory)","2310","B_100400","PEAT","STCHANAT",{"$f":"PrefilledData!O10","v":0},{"$f":"SUM(PrefilledData!C86:N86)","v":0},0,"P","","",null,null,null,null,null,null,null,null,null,null,null,null,null,null,null,null,null,null,null,null,null,null,null,null,null,null,null,null,null,null,null,null,null,null,null,null,null,null,null,null,null,null,null,null,null,null,null,null,null,null,null,null,null,null,null,null,null,null,null,null,null,null,null,null,null,null,null,null,null,null,null,null,null,null,null,null,null,null,null,null,null,null,null,null,null,null,null,null,null,null,null,null,null,null,null,null,null,null,null,null,null,null,null,null,null,null,0,"P","","ZZ","P1100","STOCKS","STOCKCH","_Z","_Z","NATTER","_Z","_Z","WEIGHT","_Z","KT"]
["kt","Peat","Inland consumption (Calculated)",null,null,null,null,{"$f":"H240+H241+H242-H243+H244","v":0},{"$f":"I240+I241+I242-I243+I244","v":0},{"$f":"J240+J241+J242-J243+J244","v":0},"P","","",null,null,null,null,null,null,null,null,null,null,null,null,null,null,null,null,null,null,null,null,null,null,null,null,null,null,null,null,null,null,null,null,null,null,null,null,null,null,null,null,null,null,null,null,null,null,null,null,null,null,null,null,null,null,null,null,null,null,null,null,null,null,null,null,null,null,null,null,null,null,null,null,null,null,null,null,null,null,null,null,null,null,null,null,null,null,null,null,null,null,null,null,null,null,null,null,null,null,null,null,null,null,null,null,null,null,0,"P","","ZZ","P1100","SUPPLY","INLDEMC","_Z","_Z","_Z","_Z","_Z","WEIGHT","_Z","KT"]
["kt","Peat","Statistical Difference",null,null,null,null,{"$f":"H245-H247","v":0},null,{"$f":"J245-J247","v":0},"P",null,null,null,null,null,null,null,null,null,null,null,null,null,null,null,null,null,null,null,null,null,null,null,null,null,null,null,null,null,null,null,null,null,null,null,null,null,null,null,null,null,null,null,null,null,null,null,null,null,null,null,null,null,null,null,null,null,null,null,null,null,null,null,null,null,null,null,null,null,null,null,null,null,null,null,null,null,null,null,null,null,null,null,null,null,null,null,null,null,null,null,null,null,null,null,null,null,null,null,null,null,null,null,null,null,null,null,null,0,"P","","ZZ","P1100","STATDIFF","_Z","_Z","_Z","_Z","_Z","_Z","WEIGHT","_Z","KT"]
["kt","Peat","Inland consumption (Observed)",null,null,null,null,{"$f":"H248+H249+H250+H251","v":0},null,{"$f":"J248+J249+J250+J251","v":0},"P","","",null,null,null,null,null,null,null,null,null,null,null,null,null,null,null,null,null,null,null,null,null,null,null,null,null,null,null,null,null,null,null,null,null,null,null,null,null,null,null,null,null,null,null,null,null,null,null,null,null,null,null,null,null,null,null,null,null,null,null,null,null,null,null,null,null,null,null,null,null,null,null,null,null,null,null,null,null,null,null,null,null,null,null,null,null,null,null,null,null,null,null,null,null,null,null,null,null,null,null,null,null,null,null,null,null,null,0,"P","","ZZ","P1100","DEMAND","INLDEMO","_Z","_Z","_Z","_Z","_Z","WEIGHT","_Z","KT"]
["kt","Peat","Transformation sector","2310","DB_101000","PEAT","TOTTRANF",{"$f":"PrefilledData!O12","v":0},null,0,"P","","",null,null,null,null,null,null,null,null,null,null,null,null,null,null,null,null,null,null,null,null,null,null,null,null,null,null,null,null,null,null,null,null,null,null,null,null,null,null,null,null,null,null,null,null,null,null,null,null,null,null,null,null,null,null,null,null,null,null,null,null,null,null,null,null,null,null,null,null,null,null,null,null,null,null,null,null,null,null,null,null,null,null,null,null,null,null,null,null,null,null,null,null,null,null,null,null,null,null,null,null,null,null,null,null,null,null,0,"P","","ZZ","P1100","TRANSFOR","TOTRANSF","_Z","_Z","_Z","_Z","_Z","WEIGHT","_Z","KT"]
["kt","Peat","Energy sector","2310","DB_101300","PEAT","TOTENGY",{"$f":"PrefilledData!O13","v":0},null,0,"P","","",null,null,null,null,null,null,null,null,null,null,null,null,null,null,null,null,null,null,null,null,null,null,null,null,null,null,null,null,null,null,null,null,null,null,null,null,null,null,null,null,null,null,null,null,null,null,null,null,null,null,null,null,null,null,null,null,null,null,null,null,null,null,null,null,null,null,null,null,null,null,null,null,null,null,null,null,null,null,null,null,null,null,null,null,null,null,null,null,null,null,null,null,null,null,null,null,null,null,null,null,null,null,null,null,null,null,0,"P","","ZZ","P1100","ENERGUSE","ENERSECT","_Z","_Z","_Z","_Z","_Z","WEIGHT","_Z","KT"]
["kt","Peat","Distribution losses","2310","B_101400","PEAT","DISTLOSS",{"$f":"PrefilledData!O14","v":0},null,0,"P","","",null,null,null,null,null,null,null,null,null,null,null,null,null,null,null,null,null,null,null,null,null,null,null,null,null,null,null,null,null,null,null,null,null,null,null,null,null,null,null,null,null,null,null,null,null,null,null,null,null,null,null,null,null,null,null,null,null,null,null,null,null,null,null,null,null,null,null,null,null,null,null,null,null,null,null,null,null,null,null,null,null,null,null,null,null,null,null,null,null,null,null,null,null,null,null,null,null,null,null,null,null,null,null,null,null,null,0,"P","","ZZ","P1100","LOSSES","DISTLOSS","_Z","_Z","_Z","_Z","_Z","WEIGHT","_Z","KT"]
["kt","Peat","Total final consumption",null,null,null,null,{"$f":"H252+H253","v":0},null,{"$f":"J252+J253","v":0},"P","","",null,null,null,null,null,null,null,null,null,null,null,null,null,null,null,null,null,null,null,null,null,null,null,null,null,null,null,null,null,null,null,null,null,null,null,null,null,null,null,null,null,null,null,null,null,null,null,null,null,null,null,null,null,null,null,null,null,null,null,null,null,null,null,null,null,null,null,null,null,null,null,null,null,null,null,null,null,null,null,null,null,null,null,null,null,null,null,null,null,null,null,null,null,null,null,null,null,null,null,null,null,null,null,null,null,null,0,"P","","ZZ","P1100","CONSUMPT","FINCONS","_Z","_Z","_Z","_Z","_Z","WEIGHT","_Z","KT"]
["kt","Peat","Total final non-energy consumption","2310","B_101600","PEAT","NONENUSE",{"$f":"PrefilledData!O16","v":0},null,0,"P","","",null,null,null,null,null,null,null,null,null,null,null,null,null,null,null,null,null,null,null,null,null,null,null,null,null,null,null,null,null,null,null,null,null,null,null,null,null,null,null,null,null,null,null,null,null,null,null,null,null,null,null,null,null,null,null,null,null,null,null,null,null,null,null,null,null,null,null,null,null,null,null,null,null,null,null,null,null,null,null,null,null,null,null,null,null,null,null,null,null,null,null,null,null,null,null,null,null,null,null,null,null,null,null,null,null,null,0,"P","","ZZ","P1100","NONENUSE","_T","_Z","_Z","_Z","_Z","_Z","WEIGHT","_Z","KT"]
["kt","Peat","Total final energy consumption",null,null,null,null,{"$f":"SUM(H254:H256)","v":0},null,{"$f":"J254+J255+J256","v":0},"P","","",null,null,null,null,null,null,null,null,null,null,null,null,null,null,null,null,null,null,null,null,null,null,null,null,null,null,null,null,null,null,null,null,null,null,null,null,null,null,null,null,null,null,null,null,null,null,null,null,null,null,null,null,null,null,null,null,null,null,null,null,null,null,null,null,null,null,null,null,null,null,null,null,null,null,null,null,null,null,null,null,null,null,null,null,null,null,null,null,null,null,null,null,null,null,null,null,null,null,null,null,null,null,null,null,null,null,0,"P","","ZZ","P1100","ENERGUSE","FINCONS","_Z","_Z","_Z","_Z","_Z","WEIGHT","_Z","KT"]
["kt","Peat","Industry sector","2310","DB_101800","PEAT","TOTIND",{"$f":"PrefilledData!O18","v":0},null,0,"P","","",null,null,null,null,null,null,null,null,null,null,null,null,null,null,null,null,null,null,null,null,null,null,null,null,null,null,null,null,null,null,null,null,null,null,null,null,null,null,null,null,null,null,null,null,null,null,null,null,null,null,null,null,null,null,null,null,null,null,null,null,null,null,null,null,null,null,null,null,null,null,null,null,null,null,null,null,null,null,null,null,null,null,null,null,null,null,null,null,null,null,null,null,null,null,null,null,null,null,null,null,null,null,null,null,null,null,0,"P","","ZZ","P1100","ENERGUSE","INDUSTRY","_Z","_Z","_Z","_Z","_Z","WEIGHT","_Z","KT"]
["kt","Peat","Transport sector","2310","B_101900","PEAT","TOTTRANS",{"$f":"PrefilledData!O19","v":0},null,0,"P","","",null,null,null,null,null,null,null,null,null,null,null,null,null,null,null,null,null,null,null,null,null,null,null,null,null,null,null,null,null,null,null,null,null,null,null,null,null,null,null,null,null,null,null,null,null,null,null,null,null,null,null,null,null,null,null,null,null,null,null,null,null,null,null,null,null,null,null,null,null,null,null,null,null,null,null,null,null,null,null,null,null,null,null,null,null,null,null,null,null,null,null,null,null,null,null,null,null,null,null,null,null,null,null,null,null,null,0,"P","","ZZ","P1100","ENERGUSE","TRANSPOR","_Z","_Z","_Z","_Z","_Z","WEIGHT","_Z","KT"]
["kt","Peat","Other sectors","2310","B_102000","PEAT","TOTOTHER",{"$f":"PrefilledData!O20","v":0},null,0,"P","","",null,null,null,null,null,null,null,null,null,null,null,null,null,null,null,null,null,null,null,null,null,null,null,null,null,null,null,null,null,null,null,null,null,null,null,null,null,null,null,null,null,null,null,null,null,null,null,null,null,null,null,null,null,null,null,null,null,null,null,null,null,null,null,null,null,null,null,null,null,null,null,null,null,null,null,null,null,null,null,null,null,null,null,null,null,null,null,null,null,null,null,null,null,null,null,null,null,null,null,null,null,null,null,null,null,null,0,"P","","ZZ","P1100","ENERGUSE","OTHSECT","_Z","_Z","_Z","_Z","_Z","WEIGHT","_Z","KT"]
["kt","Peat products","Indigenous production","2330","B_101100","PEATPROD","INDPROD",{"$f":"PrefilledData!P6","v":0},null,0,"P",{"$f":"IF(ISERROR(J257/H257),\"\",(J257/H257)-1)","v":""},{"$f":"IF(ISERROR(J257/I257),\"\",(J257/I257)-1)","v":""},null,null,null,null,null,null,null,null,null,null,null,null,null,null,null,null,null,null,null,null,null,null,null,null,null,null,null,null,null,null,null,null,null,null,null,null,null,null,null,null,null,null,null,null,null,null,null,null,null,null,null,null,null,null,null,null,null,null,null,null,null,null,null,null,null,null,null,null,null,null,null,null,null,null,null,null,null,null,null,null,null,null,null,null,null,null,null,null,null,null,null,null,null,null,null,null,null,null,null,null,null,null,null,null,null,null,0,"P","","ZZ","P1200","PRODUCT","INDPROD","_Z","_Z","_Z","_Z","_Z","WEIGHT","_Z","KT"]
["kt","Peat products","From other sources","2330","B_100200","PEATPROD","OSOURCES",{"$f":"PrefilledData!P7","v":0},null,0,"P",{"$f":"IF(ISERROR(J258/H258),\"\",(J258/H258)-1)","v":""},{"$f":"IF(ISERROR(J258/I258),\"\",(J258/I258)-1)","v":""},null,null,null,null,null,null,null,null,null,null,null,null,null,null,null,null,null,null,null,null,null,null,null,null,null,null,null,null,null,null,null,null,null,null,null,null,null,null,null,null,null,null,null,null,null,null,null,null,null,null,null,null,null,null,null,null,null,null,null,null,null,null,null,null,null,null,null,null,null,null,null,null,null,null,null,null,null,null,null,null,null,null,null,null,null,null,null,null,null,null,null,null,null,null,null,null,null,null,null,null,null,null,null,null,null,null,0,"P","",{"$f":"$S$1","v":"ZZ"},"P1200","SUPPLY","OSOURCES","_Z","_Z","_Z","_Z","_Z","WEIGHT","_Z","KT"]
["kt","Peat products","Total imports (Balance)","2330","B_100300","PEATPROD","TOTIMPSB",{"$f":"PrefilledData!P8","v":0},null,0,"P","","",null,null,null,null,null,null,null,null,null,null,null,null,null,null,null,null,null,null,null,null,null,null,null,null,null,null,null,null,null,null,null,null,null,null,null,null,null,null,null,null,null,null,null,null,null,null,null,null,null,null,null,null,null,null,null,null,null,null,null,null,null,null,null,null,null,null,null,null,null,null,null,null,null,null,null,null,null,null,null,null,null,null,null,null,null,null,null,null,null,null,null,null,null,null,null,null,null,null,null,null,null,null,null,null,null,null,{"$f":"IF(K259=\"O\",\"NaN\",ROUND(J259,3))","v":0},{"$f":"IF(K259=\"\",\"A\",K259)","v":"P"},{"$f":"LEFT(TRIM(N259),255)","v":""},"ZZ","P1200","IMPORTS","TOTIMPSB","_Z","_Z","_Z","_Z","_Z","WEIGHT","_Z","KT"]
["kt","Peat products","Total exports (Balance)","2330","B_100500","PEATPROD","TOTEXPSB",{"$f":"PrefilledData!P9","v":0},null,0,"P","","",null,null,null,null,null,null,null,null,null,null,null,null,null,null,null,null,null,null,null,null,null,null,null,null,null,null,null,null,null,null,null,null,null,null,null,null,null,null,null,null,null,null,null,null,null,null,null,null,null,null,null,null,null,null,null,null,null,null,null,null,null,null,null,null,null,null,null,null,null,null,null,null,null,null,null,null,null,null,null,null,null,null,null,null,null,null,null,null,null,null,null,null,null,null,null,null,null,null,null,null,null,null,null,null,null,null,0,"P","","ZZ","P1200","EXPORTS","TOTEXPSB","_Z","_Z","_Z","_Z","_Z","WEIGHT","_Z","KT"]
["kt","Peat products","Stock changes (National territory)","2330","B_100400","PEATPROD","STCHANAT",{"$f":"PrefilledData!P10","v":0},null,0,"P","","",null,null,null,null,null,null,null,null,null,null,null,null,null,null,null,null,null,null,null,null,null,null,null,null,null,null,null,null,null,null,null,null,null,null,null,null,null,null,null,null,null,null,null,null,null,null,null,null,null,null,null,null,null,null,null,null,null,null,null,null,null,null,null,null,null,null,null,null,null,null,null,null,null,null,null,null,null,null,null,null,null,null,null,null,null,null,null,null,null,null,null,null,null,null,null,null,null,null,null,null,null,null,null,null,null,null,0,"P","","ZZ","P1200","STOCKS","STOCKCH","_Z","_Z","NATTER","_Z","_Z","WEIGHT","_Z","KT"]
["kt","Peat products","Inland consumption (Calculated)",null,null,null,null,{"$f":"H257+H258+H259-H260+H261","v":0},null,{"$f":"J257+J258+J259-J260+J261","v":0},"P","","",null,null,null,null,null,null,null,null,null,null,null,null,null,null,null,null,null,null,null,null,null,null,null,null,null,null,null,null,null,null,null,null,null,null,null,null,null,null,null,null,null,null,null,null,null,null,null,null,null,null,null,null,null,null,null,null,null,null,null,null,null,null,null,null,null,null,null,null,null,null,null,null,null,null,null,null,null,null,null,null,null,null,null,null,null,null,null,null,null,null,null,null,null,null,null,null,null,null,null,null,null,null,null,null,null,null,0,"P","","ZZ","P1200","SUPPLY","INLDEMC","_Z","_Z","_Z","_Z","_Z","WEIGHT","_Z","KT"]
["kt","Peat products","Statistical Difference",null,null,null,null,{"$f":"H262-H264","v":0},null,{"$f":"J262-J264","v":0},"P",null,null,null,null,null,null,null,null,null,null,null,null,null,null,null,null,null,null,null,null,null,null,null,null,null,null,null,null,null,null,null,null,null,null,null,null,null,null,null,null,null,null,null,null,null,null,null,null,null,null,null,null,null,null,null,null,null,null,null,null,null,null,null,null,null,null,null,null,null,null,null,null,null,null,null,null,null,null,null,null,null,null,null,null,null,null,null,null,null,null,null,null,null,null,null,null,null,null,null,null,null,null,null,null,null,null,null,null,0,"P","","ZZ","P1200","STATDIFF","_Z","_Z","_Z","_Z","_Z","_Z","WEIGHT","_Z","KT"]
["kt","Peat products","Inland consumption (Observed)",null,null,null,null,{"$f":"H265+H266+H267+H268","v":0},null,{"$f":"J265+J266+J267+J268","v":0},"P","","",null,null,null,null,null,null,null,null,null,null,null,null,null,null,null,null,null,null,null,null,null,null,null,null,null,null,null,null,null,null,null,null,null,null,null,null,null,null,null,null,null,null,null,null,null,null,null,null,null,null,null,null,null,null,null,null,null,null,null,null,null,null,null,null,null,null,null,null,null,null,null,null,null,null,null,null,null,null,null,null,null,null,null,null,null,null,null,null,null,null,null,null,null,null,null,null,null,null,null,null,null,null,null,null,null,null,0,"P","","ZZ","P1200","DEMAND","INLDEMO","_Z","_Z","_Z","_Z","_Z","WEIGHT","_Z","KT"]
["kt","Peat products","Transformation sector","2330","DB_101000","PEATPROD","TOTTRANF",{"$f":"PrefilledData!P12","v":0},null,0,"P","","",null,null,null,null,null,null,null,null,null,null,null,null,null,null,null,null,null,null,null,null,null,null,null,null,null,null,null,null,null,null,null,null,null,null,null,null,null,null,null,null,null,null,null,null,null,null,null,null,null,null,null,null,null,null,null,null,null,null,null,null,null,null,null,null,null,null,null,null,null,null,null,null,null,null,null,null,null,null,null,null,null,null,null,null,null,null,null,null,null,null,null,null,null,null,null,null,null,null,null,null,null,null,null,null,null,null,0,"P","","ZZ","P1200","TRANSFOR","TOTRANSF","_Z","_Z","_Z","_Z","_Z","WEIGHT","_Z","KT"]
["kt","Peat products","Energy sector","2330","DB_101300","PEATPROD","TOTENGY",{"$f":"PrefilledData!P13","v":0},null,0,"P","","",null,null,null,null,null,null,null,null,null,null,null,null,null,null,null,null,null,null,null,null,null,null,null,null,null,null,null,null,null,null,null,null,null,null,null,null,null,null,null,null,null,null,null,null,null,null,null,null,null,null,null,null,null,null,null,null,null,null,null,null,null,null,null,null,null,null,null,null,null,null,null,null,null,null,null,null,null,null,null,null,null,null,null,null,null,null,null,null,null,null,null,null,null,null,null,null,null,null,null,null,null,null,null,null,null,null,0,"P","","ZZ","P1200","ENERGUSE","ENERSECT","_Z","_Z","_Z","_Z","_Z","WEIGHT","_Z","KT"]
["kt","Peat products","Distribution losses","2330","B_101400","PEATPROD","DISTLOSS",{"$f":"PrefilledData!P14","v":0},null,0,"P","","",null,null,null,null,null,null,null,null,null,null,null,null,null,null,null,null,null,null,null,null,null,null,null,null,null,null,null,null,null,null,null,null,null,null,null,null,null,null,null,null,null,null,null,null,null,null,null,null,null,null,null,null,null,null,null,null,null,null,null,null,null,null,null,null,null,null,null,null,null,null,null,null,null,null,null,null,null,null,null,null,null,null,null,null,null,null,null,null,null,null,null,null,null,null,null,null,null,null,null,null,null,null,null,null,null,null,0,"P","","ZZ","P1200","LOSSES","DISTLOSS","_Z","_Z","_Z","_Z","_Z","WEIGHT","_Z","KT"]
["kt","Peat products","Total final consumption",null,null,null,null,{"$f":"H269+H270","v":0},null,{"$f":"J269+J270","v":0},"P","","",null,null,null,null,null,null,null,null,null,null,null,null,null,null,null,null,null,null,null,null,null,null,null,null,null,null,null,null,null,null,null,null,null,null,null,null,null,null,null,null,null,null,null,null,null,null,null,null,null,null,null,null,null,null,null,null,null,null,null,null,null,null,null,null,null,null,null,null,null,null,null,null,null,null,null,null,null,null,null,null,null,null,null,null,null,null,null,null,null,null,null,null,null,null,null,null,null,null,null,null,null,null,null,null,null,null,0,"P","","ZZ","P1200","CONSUMPT","FINCONS","_Z","_Z","_Z","_Z","_Z","WEIGHT","_Z","KT"]
["kt","Peat products","Total final non-energy consumption","2330","B_101600","PEATPROD","NONENUSE",{"$f":"PrefilledData!P16","v":0},null,0,"P","","",null,null,null,null,null,null,null,null,null,null,null,null,null,null,null,null,null,null,null,null,null,null,null,null,null,null,null,null,null,null,null,null,null,null,null,null,null,null,null,null,null,null,null,null,null,null,null,null,null,null,null,null,null,null,null,null,null,null,null,null,null,null,null,null,null,null,null,null,null,null,null,null,null,null,null,null,null,null,null,null,null,null,null,null,null,null,null,null,null,null,null,null,null,null,null,null,null,null,null,null,null,null,null,null,null,null,0,"P","","ZZ","P1200","NONENUSE","_T","_Z","_Z","_Z","_Z","_Z","WEIGHT","_Z","KT"]
["kt","Peat products","Total final energy consumption",null,null,null,null,{"$f":"SUM(H271:H273)","v":0},null,{"$f":"J271+J272+J273","v":0},"P","","",null,null,null,null,null,null,null,null,null,null,null,null,null,null,null,null,null,null,null,null,null,null,null,null,null,null,null,null,null,null,null,null,null,null,null,null,null,null,null,null,null,null,null,null,null,null,null,null,null,null,null,null,null,null,null,null,null,null,null,null,null,null,null,null,null,null,null,null,null,null,null,null,null,null,null,null,null,null,null,null,null,null,null,null,null,null,null,null,null,null,null,null,null,null,null,null,null,null,null,null,null,null,null,null,null,null,0,"P","","ZZ","P1200","ENERGUSE","FINCONS","_Z","_Z","_Z","_Z","_Z","WEIGHT","_Z","KT"]
["kt","Peat products","Industry sector","2330","DB_101800","PEATPROD","TOTIND",{"$f":"PrefilledData!P18","v":0},null,0,"P","","",null,null,null,null,null,null,null,null,null,null,null,null,null,null,null,null,null,null,null,null,null,null,null,null,null,null,null,null,null,null,null,null,null,null,null,null,null,null,null,null,null,null,null,null,null,null,null,null,null,null,null,null,null,null,null,null,null,null,null,null,null,null,null,null,null,null,null,null,null,null,null,null,null,null,null,null,null,null,null,null,null,null,null,null,null,null,null,null,null,null,null,null,null,null,null,null,null,null,null,null,null,null,null,null,null,null,0,"P","","ZZ","P1200","ENERGUSE","INDUSTRY","_Z","_Z","_Z","_Z","_Z","WEIGHT","_Z","KT"]
["kt","Peat products","Transport sector","2330","B_101900","PEATPROD","TOTTRANS",{"$f":"PrefilledData!P19","v":0},null,0,"P","","",null,null,null,null,null,null,null,null,null,null,null,null,null,null,null,null,null,null,null,null,null,null,null,null,null,null,null,null,null,null,null,null,null,null,null,null,null,null,null,null,null,null,null,null,null,null,null,null,null,null,null,null,null,null,null,null,null,null,null,null,null,null,null,null,null,null,null,null,null,null,null,null,null,null,null,null,null,null,null,null,null,null,null,null,null,null,null,null,null,null,null,null,null,null,null,null,null,null,null,null,null,null,null,null,null,null,0,"P","","ZZ","P1200","ENERGUSE","TRANSPOR","_Z","_Z","_Z","_Z","_Z","WEIGHT","_Z","KT"]
["kt","Peat products","Other sectors","2330","B_102000","PEATPROD","TOTOTHER",{"$f":"PrefilledData!P20","v":0},null,0,"P","","",null,null,null,null,null,null,null,null,null,null,null,null,null,null,null,null,null,null,null,null,null,null,null,null,null,null,null,null,null,null,null,null,null,null,null,null,null,null,null,null,null,null,null,null,null,null,null,null,null,null,null,null,null,null,null,null,null,null,null,null,null,null,null,null,null,null,null,null,null,null,null,null,null,null,null,null,null,null,null,null,null,null,null,null,null,null,null,null,null,null,null,null,null,null,null,null,null,null,null,null,null,null,null,null,null,null,0,"P","","ZZ","P1200","ENERGUSE","OTHSECT","_Z","_Z","_Z","_Z","_Z","WEIGHT","_Z","KT"]
["kt","Oil shale and oil sands","Indigenous production","2410","B_100100","OILSHALE","INDPROD",{"$f":"PrefilledData!Q6","v":0},{"$f":"SUM(PrefilledData!C88:N88)","v":0},0,"P",{"$f":"IF(ISERROR(J274/H274),\"\",(J274/H274)-1)","v":""},{"$f":"IF(ISERROR(J274/I274),\"\",(J274/I274)-1)","v":""},null,null,null,null,null,null,null,null,null,null,null,null,null,null,null,null,null,null,null,null,null,null,null,null,null,null,null,null,null,null,null,null,null,null,null,null,null,null,null,null,null,null,null,null,null,null,null,null,null,null,null,null,null,null,null,null,null,null,null,null,null,null,null,null,null,null,null,null,null,null,null,null,null,null,null,null,null,null,null,null,null,null,null,null,null,null,null,null,null,null,null,null,null,null,null,null,null,null,null,null,null,null,null,null,null,null,0,"P","","ZZ","S2000","PRODUCT","INDPROD","_Z","_Z","_Z","_Z","_Z","WEIGHT","_Z","KT"]
["kt","Oil shale and oil sands","From other sources","2410","B_100200","OILSHALE","OSOURCES",{"$f":"PrefilledData!Q7","v":0},{"$f":"SUM(PrefilledData!C89:N89)","v":0},0,"P",{"$f":"IF(ISERROR(J275/H275),\"\",(J275/H275)-1)","v":""},{"$f":"IF(ISERROR(J275/I275),\"\",(J275/I275)-1)","v":""},null,null,null,null,null,null,null,null,null,null,null,null,null,null,null,null,null,null,null,null,null,null,null,null,null,null,null,null,null,null,null,null,null,null,null,null,null,null,null,null,null,null,null,null,null,null,null,null,null,null,null,null,null,null,null,null,null,null,null,null,null,null,null,null,null,null,null,null,null,null,null,null,null,null,null,null,null,null,null,null,null,null,null,null,null,null,null,null,null,null,null,null,null,null,null,null,null,null,null,null,null,null,null,null,null,null,0,"P","","ZZ","S2000","SUPPLY","OSOURCES","_Z","_Z","_Z","_Z","_Z","WEIGHT","_Z","KT"]
["kt","Oil shale and oil sands","Total imports (Balance)","2410","B_100300","OILSHALE","TOTIMPSB",{"$f":"PrefilledData!Q8","v":0},{"$f":"SUM(PrefilledData!C90:N90)","v":0},0,"P","","",null,null,null,null,null,null,null,null,null,null,null,null,null,null,null,null,null,null,null,null,null,null,null,null,null,null,null,null,null,null,null,null,null,null,null,null,null,null,null,null,null,null,null,null,null,null,null,null,null,null,null,null,null,null,null,null,null,null,null,null,null,null,null,null,null,null,null,null,null,null,null,null,null,null,null,null,null,null,null,null,null,null,null,null,null,null,null,null,null,null,null,null,null,null,null,null,null,null,null,null,null,null,null,null,null,null,0,"P","","ZZ","S2000","IMPORTS","TOTIMPSB","_Z","_Z","_Z","_Z","_Z","WEIGHT","_Z","KT"]
["kt","Oil shale and oil sands","Total exports (Balance)","2410","B_100500","OILSHALE","TOTEXPSB",{"$f":"PrefilledData!Q9","v":0},{"$f":"SUM(PrefilledData!C91:N91)","v":0},0,"P","","",null,null,null,null,null,null,null,null,null,null,null,null,null,null,null,null,null,null,null,null,null,null,null,null,null,null,null,null,null,null,null,null,null,null,null,null,null,null,null,null,null,null,null,null,null,null,null,null,null,null,null,null,null,null,null,null,null,null,null,null,null,null,null,null,null,null,null,null,null,null,null,null,null,null,null,null,null,null,null,null,null,null,null,null,null,null,null,null,null,null,null,null,null,null,null,null,null,null,null,null,null,null,null,null,null,null,0,"P","","ZZ","S2000","EXPORTS","TOTEXPSB","_Z","_Z","_Z","_Z","_Z","WEIGHT","_Z","KT"]
["kt","Oil shale and oil sands","Stock changes (National territory)","2410","B_100400","OILSHALE","STCHANAT",{"$f":"PrefilledData!Q10","v":0},{"$f":"SUM(PrefilledData!C92:N92)","v":0},0,"P","","",null,null,null,null,null,null,null,null,null,null,null,null,null,null,null,null,null,null,null,null,null,null,null,null,null,null,null,null,null,null,null,null,null,null,null,null,null,null,null,null,null,null,null,null,null,null,null,null,null,null,null,null,null,null,null,null,null,null,null,null,null,null,null,null,null,null,null,null,null,null,null,null,null,null,null,null,null,null,null,null,null,null,null,null,null,null,null,null,null,null,null,null,null,null,null,null,null,null,null,null,null,null,null,null,null,null,0,"P","","ZZ","S2000","STOCKS","STOCKCH","_Z","_Z","NATTER","_Z","_Z","WEIGHT","_Z","KT"]
["kt","Oil shale and oil sands","Inland consumption (Calculated)",null,null,null,null,{"$f":"H274+H275+H276-H277+H278","v":0},{"$f":"I274+I275+I276-I277+I278","v":0},{"$f":"J274+J275+J276-J277+J278","v":0},"P","","",null,null,null,null,null,null,null,null,null,null,null,null,null,null,null,null,null,null,null,null,null,null,null,null,null,null,null,null,null,null,null,null,null,null,null,null,null,null,null,null,null,null,null,null,null,null,null,null,null,null,null,null,null,null,null,null,null,null,null,null,null,null,null,null,null,null,null,null,null,null,null,null,null,null,null,null,null,null,null,null,null,null,null,null,null,null,null,null,null,null,null,null,null,null,null,null,null,null,null,null,null,null,null,null,null,null,0,"P","","ZZ","S2000","SUPPLY","INLDEMC","_Z","_Z","_Z","_Z","_Z","WEIGHT","_Z","KT"]
["kt","Oil shale and oil sands","Statistical Difference",null,null,null,null,{"$f":"H279-H281","v":0},null,{"$f":"J279-J281","v":0},"P",null,null,null,null,null,null,null,null,null,null,null,null,null,null,null,null,null,null,null,null,null,null,null,null,null,null,null,null,null,null,null,null,null,null,null,null,null,null,null,null,null,null,null,null,null,null,null,null,null,null,null,null,null,null,null,null,null,null,null,null,null,null,null,null,null,null,null,null,null,null,null,null,null,null,null,null,null,null,null,null,null,null,null,null,null,null,null,null,null,null,null,null,null,null,null,null,null,null,null,null,null,null,null,null,null,null,null,null,0,"P","","ZZ","S2000","STATDIFF","_Z","_Z","_Z","_Z","_Z","_Z","WEIGHT","_Z","KT"]
["kt","Oil shale and oil sands","Inland consumption (Observed)",null,null,null,null,{"$f":"H282+H283+H284+H285","v":0},null,{"$f":"J282+J283+J284+J285","v":0},"P","","",null,null,null,null,null,null,null,null,null,null,null,null,null,null,null,null,null,null,null,null,null,null,null,null,null,null,null,null,null,null,null,null,null,null,null,null,null,null,null,null,null,null,null,null,null,null,null,null,null,null,null,null,null,null,null,null,null,null,null,null,null,null,null,null,null,null,null,null,null,null,null,null,null,null,null,null,null,null,null,null,null,null,null,null,null,null,null,null,null,null,null,null,null,null,null,null,null,null,null,null,null,null,null,null,null,null,0,"P","","ZZ","S2000","DEMAND","INLDEMO","_Z","_Z","_Z","_Z","_Z","WEIGHT","_Z","KT"]
["kt","Oil shale and oil sands","Transformation sector","2410","DB_101000","OILSHALE","TOTTRANF",{"$f":"PrefilledData!Q12","v":0},null,0,"P","","",null,null,null,null,null,null,null,null,null,null,null,null,null,null,null,null,null,null,null,null,null,null,null,null,null,null,null,null,null,null,null,null,null,null,null,null,null,null,null,null,null,null,null,null,null,null,null,null,null,null,null,null,null,null,null,null,null,null,null,null,null,null,null,null,null,null,null,null,null,null,null,null,null,null,null,null,null,null,null,null,null,null,null,null,null,null,null,null,null,null,null,null,null,null,null,null,null,null,null,null,null,null,null,null,null,null,0,"P","","ZZ","S2000","TRANSFOR","TOTRANSF","_Z","_Z","_Z","_Z","_Z","WEIGHT","_Z","KT"]
["kt","Oil shale and oil sands","Energy sector","2410","DB_101300","OILSHALE","TOTENGY",{"$f":"PrefilledData!Q13","v":0},null,0,"P","","",null,null,null,null,null,null,null,null,null,null,null,null,null,null,null,null,null,null,null,null,null,null,null,null,null,null,null,null,null,null,null,null,null,null,null,null,null,null,null,null,null,null,null,null,null,null,null,null,null,null,null,null,null,null,null,null,null,null,null,null,null,null,null,null,null,null,null,null,null,null,null,null,null,null,null,null,null,null,null,null,null,null,null,null,null,null,null,null,null,null,null,null,null,null,null,null,null,null,null,null,null,null,null,null,null,null,0,"P","","ZZ","S2000","ENERGUSE","ENERSECT","_Z","_Z","_Z","_Z","_Z","WEIGHT","_Z","KT"]
["kt","Oil shale and oil sands","Distribution losses","2410","B_101400","OILSHALE","DISTLOSS",{"$f":"PrefilledData!Q14","v":0},null,0,"P","","",null,null,null,null,null,null,null,null,null,null,null,null,null,null,null,null,null,null,null,null,null,null,null,null,null,null,null,null,null,null,null,null,null,null,null,null,null,null,null,null,null,null,null,null,null,null,null,null,null,null,null,null,null,null,null,null,null,null,null,null,null,null,null,null,null,null,null,null,null,null,null,null,null,null,null,null,null,null,null,null,null,null,null,null,null,null,null,null,null,null,null,null,null,null,null,null,null,null,null,null,null,null,null,null,null,null,0,"P","","ZZ","S2000","LOSSES","DISTLOSS","_Z","_Z","_Z","_Z","_Z","WEIGHT","_Z","KT"]
["kt","Oil shale and oil sands","Total final consumption",null,null,null,null,{"$f":"H286+H287","v":0},null,{"$f":"J286+J287","v":0},"P","","",null,null,null,null,null,null,null,null,null,null,null,null,null,null,null,null,null,null,null,null,null,null,null,null,null,null,null,null,null,null,null,null,null,null,null,null,null,null,null,null,null,null,null,null,null,null,null,null,null,null,null,null,null,null,null,null,null,null,null,null,null,null,null,null,null,null,null,null,null,null,null,null,null,null,null,null,null,null,null,null,null,null,null,null,null,null,null,null,null,null,null,null,null,null,null,null,null,null,null,null,null,null,null,null,null,null,0,"P","","ZZ","S2000","CONSUMPT","FINCONS","_Z","_Z","_Z","_Z","_Z","WEIGHT","_Z","KT"]
["kt","Oil shale and oil sands","Total final non-energy consumption","2410","B_101600","OILSHALE","NONENUSE",{"$f":"PrefilledData!Q16","v":0},null,0,"P","","",null,null,null,null,null,null,null,null,null,null,null,null,null,null,null,null,null,null,null,null,null,null,null,null,null,null,null,null,null,null,null,null,null,null,null,null,null,null,null,null,null,null,null,null,null,null,null,null,null,null,null,null,null,null,null,null,null,null,null,null,null,null,null,null,null,null,null,null,null,null,null,null,null,null,null,null,null,null,null,null,null,null,null,null,null,null,null,null,null,null,null,null,null,null,null,null,null,null,null,null,null,null,null,null,null,null,0,"P","","ZZ","S2000","NONENUSE","_T","_Z","_Z","_Z","_Z","_Z","WEIGHT","_Z","KT"]
["kt","Oil shale and oil sands","Total final energy consumption",null,null,null,null,{"$f":"SUM(H288:H290)","v":0},null,{"$f":"J288+J289+J290","v":0},"P","","",null,null,null,null,null,null,null,null,null,null,null,null,null,null,null,null,null,null,null,null,null,null,null,null,null,null,null,null,null,null,null,null,null,null,null,null,null,null,null,null,null,null,null,null,null,null,null,null,null,null,null,null,null,null,null,null,null,null,null,null,null,null,null,null,null,null,null,null,null,null,null,null,null,null,null,null,null,null,null,null,null,null,null,null,null,null,null,null,null,null,null,null,null,null,null,null,null,null,null,null,null,null,null,null,null,null,0,"P","","ZZ","S2000","ENERGUSE","FINCONS","_Z","_Z","_Z","_Z","_Z","WEIGHT","_Z","KT"]
["kt","Oil shale and oil sands","Industry sector","2410","DB_101800","OILSHALE","TOTIND",{"$f":"PrefilledData!Q18","v":0},null,0,"P","","",null,null,null,null,null,null,null,null,null,null,null,null,null,null,null,null,null,null,null,null,null,null,null,null,null,null,null,null,null,null,null,null,null,null,null,null,null,null,null,null,null,null,null,null,null,null,null,null,null,null,null,null,null,null,null,null,null,null,null,null,null,null,null,null,null,null,null,null,null,null,null,null,null,null,null,null,null,null,null,null,null,null,null,null,null,null,null,null,null,null,null,null,null,null,null,null,null,null,null,null,null,null,null,null,null,null,0,"P","","ZZ","S2000","ENERGUSE","INDUSTRY","_Z","_Z","_Z","_Z","_Z","WEIGHT","_Z","KT"]
["kt","Oil shale and oil sands","Transport sector","2410","B_101900","OILSHALE","TOTTRANS",{"$f":"PrefilledData!Q19","v":0},null,0,"P","","",null,null,null,null,null,null,null,null,null,null,null,null,null,null,null,null,null,null,null,null,null,null,null,null,null,null,null,null,null,null,null,null,null,null,null,null,null,null,null,null,null,null,null,null,null,null,null,null,null,null,null,null,null,null,null,null,null,null,null,null,null,null,null,null,null,null,null,null,null,null,null,null,null,null,null,null,null,null,null,null,null,null,null,null,null,null,null,null,null,null,null,null,null,null,null,null,null,null,null,null,null,null,null,null,null,null,0,"P","","ZZ","S2000","ENERGUSE","TRANSPOR","_Z","_Z","_Z","_Z","_Z","WEIGHT","_Z","KT"]
["kt","Oil shale and oil sands","Other sectors","2410","B_102000","OILSHALE","TOTOTHER",{"$f":"PrefilledData!Q20","v":0},null,0,"P","","",null,null,null,null,null,null,null,null,null,null,null,null,null,null,null,null,null,null,null,null,null,null,null,null,null,null,null,null,null,null,null,null,null,null,null,null,null,null,null,null,null,null,null,null,null,null,null,null,null,null,null,null,null,null,null,null,null,null,null,null,null,null,null,null,null,null,null,null,null,null,null,null,null,null,null,null,null,null,null,null,null,null,null,null,null,null,null,null,null,null,null,null,null,null,null,null,null,null,null,null,null,null,null,null,null,null,0,"P","","ZZ","S2000","ENERGUSE","OTHSECT","_Z","_Z","_Z","_Z","_Z","WEIGHT","_Z","KT"]
["kt","Hard coal","Indigenous production","2111","B_100100",null,null,{"$f":"SUM(H2,H19,H36)","v":0},{"$f":"SUM(PrefilledData!C64:N64)","v":0},{"$f":"SUM(J2,J19,J36)","v":0},"P",{"$f":"IF(ISERROR(J291/H291),\"\",(J291/H291)-1)","v":""},{"$f":"IF(ISERROR(J291/I291),\"\",(J291/I291)-1)","v":""},null,null,null,null,null,null,null,null,null,null,null,null,null,null,null,null,null,null,null,null,null,null,null,null,null,null,null,null,null,null,null,null,null,null,null,null,null,null,null,null,null,null,null,null,null,null,null,null,null,null,null,null,null,null,null,null,null,null,null,null,null,null,null,null,null,null,null,null,null,null,null,null,null,null,null,null,null,null,null,null,null,null,null,null,null,null,null,null,null,null,null,null,null,null,null,null,null,null,null,null,null,null,null,null,null,null,0,"P","","ZZ","C0100","PRODUCT","INDPROD","_Z","_Z","_Z","_Z","_Z","WEIGHT","_Z","KT"]
["kt","Hard coal","From other sources","2111","B_100200",null,null,{"$f":"SUM(H3,H20,H37)","v":0},{"$f":"SUM(PrefilledData!C65:N65)","v":0},{"$f":"SUM(J3,J20,J37)","v":0},"P",{"$f":"IF(ISERROR(J292/H292),\"\",(J292/H292)-1)","v":""},{"$f":"IF(ISERROR(J292/I292),\"\",(J292/I292)-1)","v":""},null,null,null,null,null,null,null,null,null,null,null,null,null,null,null,null,null,null,null,null,null,null,null,null,null,null,null,null,null,null,null,null,null,null,null,null,null,null,null,null,null,null,null,null,null,null,null,null,null,null,null,null,null,null,null,null,null,null,null,null,null,null,null,null,null,null,null,null,null,null,null,null,null,null,null,null,null,null,null,null,null,null,null,null,null,null,null,null,null,null,null,null,null,null,null,null,null,null,null,null,null,null,null,null,null,null,0,"P","","ZZ","C0100","SUPPLY","OSOURCES","_Z","_Z","_Z","_Z","_Z","WEIGHT","_Z","KT"]
["kt","Hard coal","Total imports (Balance)","2111","B_100300",null,null,0,{"$f":"SUM(PrefilledData!C66:N66)","v":0},0,"P","","",null,null,null,null,null,null,null,null,null,null,null,null,null,null,null,null,null,null,null,null,null,null,null,null,null,null,null,null,null,null,null,null,null,null,null,null,null,null,null,null,null,null,null,null,null,null,null,null,null,null,null,null,null,null,null,null,null,null,null,null,null,null,null,null,null,null,null,null,null,null,null,null,null,null,null,null,null,null,null,null,null,null,null,null,null,null,null,null,null,null,null,null,null,null,null,null,null,null,null,null,null,null,null,null,null,null,0,"P","","ZZ","C0100","IMPORTS","TOTIMPSB","_Z","_Z","_Z","_Z","_Z","WEIGHT","_Z","KT"]
["kt","Hard coal","Total exports (Balance)","2111","B_100500",null,null,0,{"$f":"SUM(PrefilledData!C67:N67)","v":0},0,"P","","",null,null,null,null,null,null,null,null,null,null,null,null,null,null,null,null,null,null,null,null,null,null,null,null,null,null,null,null,null,null,null,null,null,null,null,null,null,null,null,null,null,null,null,null,null,null,null,null,null,null,null,null,null,null,null,null,null,null,null,null,null,null,null,null,null,null,null,null,null,null,null,null,null,null,null,null,null,null,null,null,null,null,null,null,null,null,null,null,null,null,null,null,null,null,null,null,null,null,null,null,null,null,null,null,null,null,0,"P","","ZZ","C0100","EXPORTS","TOTEXPSB","_Z","_Z","_Z","_Z","_Z","WEIGHT","_Z","KT"]
["kt","Hard coal","Stock changes (National territory)","2111","B_100400",null,null,0,{"$f":"SUM(PrefilledData!C68:N68)","v":0},0,"P","","",null,null,null,null,null,null,null,null,null,null,null,null,null,null,null,null,null,null,null,null,null,null,null,null,null,null,null,null,null,null,null,null,null,null,null,null,null,null,null,null,null,null,null,null,null,null,null,null,null,null,null,null,null,null,null,null,null,null,null,null,null,null,null,null,null,null,null,null,null,null,null,null,null,null,null,null,null,null,null,null,null,null,null,null,null,null,null,null,null,null,null,null,null,null,null,null,null,null,null,null,null,null,null,null,null,null,0,"P","","ZZ","C0100","STOCKS","STOCKCH","_Z","_Z","NATTER","_Z","_Z","WEIGHT","_Z","KT"]
["kt","Hard coal","Inland consumption (Calculated)",null,null,null,null,0,{"$f":"I291+I292+I293-I294+I295","v":0},0,"P","","",null,null,null,null,null,null,null,null,null,null,null,null,null,null,null,null,null,null,null,null,null,null,null,null,null,null,null,null,null,null,null,null,null,null,null,null,null,null,null,null,null,null,null,null,null,null,null,null,null,null,null,null,null,null,null,null,null,null,null,null,null,null,null,null,null,null,null,null,null,null,null,null,null,null,null,null,null,null,null,null,null,null,null,null,null,null,null,null,null,null,null,null,null,null,null,null,null,null,null,null,null,null,null,null,null,null,0,"P","","ZZ","C0100","SUPPLY","INLDEMC","_Z","_Z","_Z","_Z","_Z","WEIGHT","_Z","KT"]
["kt","Hard coal","Statistical Difference",null,null,null,null,0,null,0,"P",null,null,null,null,null,null,null,null,null,null,null,null,null,null,null,null,null,null,null,null,null,null,null,null,null,null,null,null,null,null,null,null,null,null,null,null,null,null,null,null,null,null,null,null,null,null,null,null,null,null,null,null,null,null,null,null,null,null,null,null,null,null,null,null,null,null,null,null,null,null,null,null,null,null,null,null,null,null,null,null,null,null,null,null,null,null,null,null,null,null,null,null,null,null,null,null,null,null,null,null,null,null,null,null,null,null,null,null,0,"P","","ZZ","C0100","STATDIFF","_Z","_Z","_Z","_Z","_Z","_Z","WEIGHT","_Z","KT"]
["kt","Hard coal","Inland consumption (Observed)","2111","B_105200",null,null,0,null,0,"P","","",null,null,null,null,null,null,null,null,null,null,null,null,null,null,null,null,null,null,null,null,null,null,null,null,null,null,null,null,null,null,null,null,null,null,null,null,null,null,null,null,null,null,null,null,null,null,null,null,null,null,null,null,null,null,null,null,null,null,null,null,null,null,null,null,null,null,null,null,null,null,null,null,null,null,null,null,null,null,null,null,null,null,null,null,null,null,null,null,null,null,null,null,null,null,null,null,null,null,null,null,null,null,null,null,null,null,0,"P","","ZZ","C0100","DEMAND","INLDEMO","_Z","_Z","_Z","_Z","_Z","WEIGHT","_Z","KT"]
["kt","Hard coal","Transformation sector","2111",null,null,null,0,null,0,"P","","",null,null,null,null,null,null,null,null,null,null,null,null,null,null,null,null,null,null,null,null,null,null,null,null,null,null,null,null,null,null,null,null,null,null,null,null,null,null,null,null,null,null,null,null,null,null,null,null,null,null,null,null,null,null,null,null,null,null,null,null,null,null,null,null,null,null,null,null,null,null,null,null,null,null,null,null,null,null,null,null,null,null,null,null,null,null,null,null,null,null,null,null,null,null,null,null,null,null,null,null,null,null,null,null,null,null,0,"P","","ZZ","C0100","TRANSFOR","TOTRANSF","_Z","_Z","_Z","_Z","_Z","WEIGHT","_Z","KT"]
["kt","Hard coal","Energy sector","2111",null,null,null,0,null,0,"P","","",null,null,null,null,null,null,null,null,null,null,null,null,null,null,null,null,null,null,null,null,null,null,null,null,null,null,null,null,null,null,null,null,null,null,null,null,null,null,null,null,null,null,null,null,null,null,null,null,null,null,null,null,null,null,null,null,null,null,null,null,null,null,null,null,null,null,null,null,null,null,null,null,null,null,null,null,null,null,null,null,null,null,null,null,null,null,null,null,null,null,null,null,null,null,null,null,null,null,null,null,null,null,null,null,null,null,0,"P","","ZZ","C0100","ENERGUSE","ENERSECT","_Z","_Z","_Z","_Z","_Z","WEIGHT","_Z","KT"]
["kt","Hard coal","Distribution losses","2111",null,null,null,0,null,0,"P","","",null,null,null,null,null,null,null,null,null,null,null,null,null,null,null,null,null,null,null,null,null,null,null,null,null,null,null,null,null,null,null,null,null,null,null,null,null,null,null,null,null,null,null,null,null,null,null,null,null,null,null,null,null,null,null,null,null,null,null,null,null,null,null,null,null,null,null,null,null,null,null,null,null,null,null,null,null,null,null,null,null,null,null,null,null,null,null,null,null,null,null,null,null,null,null,null,null,null,null,null,null,null,null,null,null,null,0,"P","","ZZ","C0100","LOSSES","DISTLOSS","_Z","_Z","_Z","_Z","_Z","WEIGHT","_Z","KT"]
["kt","Hard coal","Total final consumption",null,null,null,null,{"$f":"H303+H304","v":0},null,0,"P","","",null,null,null,null,null,null,null,null,null,null,null,null,null,null,null,null,null,null,null,null,null,null,null,null,null,null,null,null,null,null,null,null,null,null,null,null,null,null,null,null,null,null,null,null,null,null,null,null,null,null,null,null,null,null,null,null,null,null,null,null,null,null,null,null,null,null,null,null,null,null,null,null,null,null,null,null,null,null,null,null,null,null,null,null,null,null,null,null,null,null,null,null,null,null,null,null,null,null,null,null,null,null,null,null,null,null,0,"P","","ZZ","C0100","CONSUMPT","FINCONS","_Z","_Z","_Z","_Z","_Z","WEIGHT","_Z","KT"]
["kt","Hard coal","Total final non-energy consumption","2111",null,null,null,0,null,0,"P","","",null,null,null,null,null,null,null,null,null,null,null,null,null,null,null,null,null,null,null,null,null,null,null,null,null,null,null,null,null,null,null,null,null,null,null,null,null,null,null,null,null,null,null,null,null,null,null,null,null,null,null,null,null,null,null,null,null,null,null,null,null,null,null,null,null,null,null,null,null,null,null,null,null,null,null,null,null,null,null,null,null,null,null,null,null,null,null,null,null,null,null,null,null,null,null,null,null,null,null,null,null,null,null,null,null,null,0,"P","","ZZ","C0100","NONENUSE","_T","_Z","_Z","_Z","_Z","_Z","WEIGHT","_Z","KT"]
["kt","Hard coal","Total final energy consumption","2111",null,null,null,{"$f":"SUM(H305:H307)","v":0},null,0,"P","","",null,null,null,null,null,null,null,null,null,null,null,null,null,null,null,null,null,null,null,null,null,null,null,null,null,null,null,null,null,null,null,null,null,null,null,null,null,null,null,null,null,null,null,null,null,null,null,null,null,null,null,null,null,null,null,null,null,null,null,null,null,null,null,null,null,null,null,null,null,null,null,null,null,null,null,null,null,null,null,null,null,null,null,null,null,null,null,null,null,null,null,null,null,null,null,null,null,null,null,null,null,null,null,null,null,null,0,"P","","ZZ","C0100","ENERGUSE","FINCONS","_Z","_Z","_Z","_Z","_Z","WEIGHT","_Z","KT"]
["kt","Hard coal","Industry sector","2111",null,null,null,0,null,0,"P","","",null,null,null,null,null,null,null,null,null,null,null,null,null,null,null,null,null,null,null,null,null,null,null,null,null,null,null,null,null,null,null,null,null,null,null,null,null,null,null,null,null,null,null,null,null,null,null,null,null,null,null,null,null,null,null,null,null,null,null,null,null,null,null,null,null,null,null,null,null,null,null,null,null,null,null,null,null,null,null,null,null,null,null,null,null,null,null,null,null,null,null,null,null,null,null,null,null,null,null,null,null,null,null,null,null,null,0,"P","","ZZ","C0100","ENERGUSE","INDUSTRY","_Z","_Z","_Z","_Z","_Z","WEIGHT","_Z","KT"]
["kt","Hard coal","Transport sector","2111",null,null,null,0,null,0,"P","","",null,null,null,null,null,null,null,null,null,null,null,null,null,null,null,null,null,null,null,null,null,null,null,null,null,null,null,null,null,null,null,null,null,null,null,null,null,null,null,null,null,null,null,null,null,null,null,null,null,null,null,null,null,null,null,null,null,null,null,null,null,null,null,null,null,null,null,null,null,null,null,null,null,null,null,null,null,null,null,null,null,null,null,null,null,null,null,null,null,null,null,null,null,null,null,null,null,null,null,null,null,null,null,null,null,null,0,"P","","ZZ","C0100","ENERGUSE","TRANSPOR","_Z","_Z","_Z","_Z","_Z","WEIGHT","_Z","KT"]
["kt","Hard coal","Other sectors","2111",null,null,null,0,null,0,"P","","",null,null,null,null,null,null,null,null,null,null,null,null,null,null,null,null,null,null,null,null,null,null,null,null,null,null,null,null,null,null,null,null,null,null,null,null,null,null,null,null,null,null,null,null,null,null,null,null,null,null,null,null,null,null,null,null,null,null,null,null,null,null,null,null,null,null,null,null,null,null,null,null,null,null,null,null,null,null,null,null,null,null,null,null,null,null,null,null,null,null,null,null,null,null,null,null,null,null,null,null,null,null,null,null,null,null,0,"P","","ZZ","C0100","ENERGUSE","OTHSECT","_Z","_Z","_Z","_Z","_Z","WEIGHT","_Z","KT"]
["kt","Brown coal","Indigenous production","2210","B_100100",null,null,{"$f":"SUM(H53,H70)","v":0},{"$f":"SUM(PrefilledData!C70:N70)","v":0},{"$f":"SUM(J53,J70)","v":0},"P",{"$f":"IF(ISERROR(J308/H308),\"\",(J308/H308)-1)","v":""},{"$f":"IF(ISERROR(J308/I308),\"\",(J308/I308)-1)","v":""},null,null,null,null,null,null,null,null,null,null,null,null,null,null,null,null,null,null,null,null,null,null,null,null,null,null,null,null,null,null,null,null,null,null,null,null,null,null,null,null,null,null,null,null,null,null,null,null,null,null,null,null,null,null,null,null,null,null,null,null,null,null,null,null,null,null,null,null,null,null,null,null,null,null,null,null,null,null,null,null,null,null,null,null,null,null,null,null,null,null,null,null,null,null,null,null,null,null,null,null,null,null,null,null,null,null,0,"P","","ZZ","C0200","PRODUCT","INDPROD","_Z","_Z","_Z","_Z","_Z","WEIGHT","_Z","KT"]
["kt","Brown coal","From other sources","2210","B_100200",null,null,{"$f":"SUM(H54,H71)","v":0},{"$f":"SUM(PrefilledData!C71:N71)","v":0},{"$f":"SUM(J54,J71)","v":0},"P",{"$f":"IF(ISERROR(J309/H309),\"\",(J309/H309)-1)","v":""},{"$f":"IF(ISERROR(J309/I309),\"\",(J309/I309)-1)","v":""},null,null,null,null,null,null,null,null,null,null,null,null,null,null,null,null,null,null,null,null,null,null,null,null,null,null,null,null,null,null,null,null,null,null,null,null,null,null,null,null,null,null,null,null,null,null,null,null,null,null,null,null,null,null,null,null,null,null,null,null,null,null,null,null,null,null,null,null,null,null,null,null,null,null,null,null,null,null,null,null,null,null,null,null,null,null,null,null,null,null,null,null,null,null,null,null,null,null,null,null,null,null,null,null,null,null,0,"P","","ZZ","C0200","SUPPLY","OSOURCES","_Z","_Z","_Z","_Z","_Z","WEIGHT","_Z","KT"]
["kt","Brown coal","Total imports (Balance)","2210","B_100300",null,null,0,{"$f":"SUM(PrefilledData!C72:N72)","v":0},0,"P","","",null,null,null,null,null,null,null,null,null,null,null,null,null,null,null,null,null,null,null,null,null,null,null,null,null,null,null,null,null,null,null,null,null,null,null,null,null,null,null,null,null,null,null,null,null,null,null,null,null,null,null,null,null,null,null,null,null,null,null,null,null,null,null,null,null,null,null,null,null,null,null,null,null,null,null,null,null,null,null,null,null,null,null,null,null,null,null,null,null,null,null,null,null,null,null,null,null,null,null,null,null,null,null,null,null,null,0,"P","","ZZ","C0200","IMPORTS","TOTIMPSB","_Z","_Z","_Z","_Z","_Z","WEIGHT","_Z","KT"]
["kt","Brown coal","Total exports (Balance)","2210","B_100500",null,null,0,{"$f":"SUM(PrefilledData!C73:N73)","v":0},0,"P","","",null,null,null,null,null,null,null,null,null,null,null,null,null,null,null,null,null,null,null,null,null,null,null,null,null,null,null,null,null,null,null,null,null,null,null,null,null,null,null,null,null,null,null,null,null,null,null,null,null,null,null,null,null,null,null,null,null,null,null,null,null,null,null,null,null,null,null,null,null,null,null,null,null,null,null,null,null,null,null,null,null,null,null,null,null,null,null,null,null,null,null,null,null,null,null,null,null,null,null,null,null,null,null,null,null,null,0,"P","","ZZ","C0200","EXPORTS","TOTEXPSB","_Z","_Z","_Z","_Z","_Z","WEIGHT","_Z","KT"]
["kt","Brown coal","Stock changes (National territory)","2210","B_100400",null,null,0,{"$f":"SUM(PrefilledData!C74:N74)","v":0},0,"P","","",null,null,null,null,null,null,null,null,null,null,null,null,null,null,null,null,null,null,null,null,null,null,null,null,null,null,null,null,null,null,null,null,null,null,null,null,null,null,null,null,null,null,null,null,null,null,null,null,null,null,null,null,null,null,null,null,null,null,null,null,null,null,null,null,null,null,null,null,null,null,null,null,null,null,null,null,null,null,null,null,null,null,null,null,null,null,null,null,null,null,null,null,null,null,null,null,null,null,null,null,null,null,null,null,null,null,0,"P","","ZZ","C0200","STOCKS","STOCKCH","_Z","_Z","NATTER","_Z","_Z","WEIGHT","_Z","KT"]
["kt","Brown coal","Inland consumption (Calculated)",null,null,null,null,0,{"$f":"I308+I309+I310-I311+I312","v":0},0,"P","","",null,null,null,null,null,null,null,null,null,null,null,null,null,null,null,null,null,null,null,null,null,null,null,null,null,null,null,null,null,null,null,null,null,null,null,null,null,null,null,null,null,null,null,null,null,null,null,null,null,null,null,null,null,null,null,null,null,null,null,null,null,null,null,null,null,null,null,null,null,null,null,null,null,null,null,null,null,null,null,null,null,null,null,null,null,null,null,null,null,null,null,null,null,null,null,null,null,null,null,null,null,null,null,null,null,null,0,"P","","ZZ","C0200","SUPPLY","INLDEMC","_Z","_Z","_Z","_Z","_Z","WEIGHT","_Z","KT"]
["kt","Brown coal","Statistical Difference",null,null,null,null,0,null,0,"P",null,null,null,null,null,null,null,null,null,null,null,null,null,null,null,null,null,null,null,null,null,null,null,null,null,null,null,null,null,null,null,null,null,null,null,null,null,null,null,null,null,null,null,null,null,null,null,null,null,null,null,null,null,null,null,null,null,null,null,null,null,null,null,null,null,null,null,null,null,null,null,null,null,null,null,null,null,null,null,null,null,null,null,null,null,null,null,null,null,null,null,null,null,null,null,null,null,null,null,null,null,null,null,null,null,null,null,null,0,"P","","ZZ","C0200","STATDIFF","_Z","_Z","_Z","_Z","_Z","_Z","WEIGHT","_Z","KT"]
["kt","Brown coal","Inland consumption (Observed)","2210",null,null,null,0,null,0,"P","","",null,null,null,null,null,null,null,null,null,null,null,null,null,null,null,null,null,null,null,null,null,null,null,null,null,null,null,null,null,null,null,null,null,null,null,null,null,null,null,null,null,null,null,null,null,null,null,null,null,null,null,null,null,null,null,null,null,null,null,null,null,null,null,null,null,null,null,null,null,null,null,null,null,null,null,null,null,null,null,null,null,null,null,null,null,null,null,null,null,null,null,null,null,null,null,null,null,null,null,null,null,null,null,null,null,null,0,"P","","ZZ","C0200","DEMAND","INLDEMO","_Z","_Z","_Z","_Z","_Z","WEIGHT","_Z","KT"]
["kt","Brown coal","Transformation sector","2210",null,null,null,0,null,0,"P","","",null,null,null,null,null,null,null,null,null,null,null,null,null,null,null,null,null,null,null,null,null,null,null,null,null,null,null,null,null,null,null,null,null,null,null,null,null,null,null,null,null,null,null,null,null,null,null,null,null,null,null,null,null,null,null,null,null,null,null,null,null,null,null,null,null,null,null,null,null,null,null,null,null,null,null,null,null,null,null,null,null,null,null,null,null,null,null,null,null,null,null,null,null,null,null,null,null,null,null,null,null,null,null,null,null,null,0,"P","","ZZ","C0200","TRANSFOR","TOTRANSF","_Z","_Z","_Z","_Z","_Z","WEIGHT","_Z","KT"]
["kt","Brown coal","Energy sector","2210",null,null,null,0,null,0,"P","","",null,null,null,null,null,null,null,null,null,null,null,null,null,null,null,null,null,null,null,null,null,null,null,null,null,null,null,null,null,null,null,null,null,null,null,null,null,null,null,null,null,null,null,null,null,null,null,null,null,null,null,null,null,null,null,null,null,null,null,null,null,null,null,null,null,null,null,null,null,null,null,null,null,null,null,null,null,null,null,null,null,null,null,null,null,null,null,null,null,null,null,null,null,null,null,null,null,null,null,null,null,null,null,null,null,null,0,"P","","ZZ","C0200","ENERGUSE","ENERSECT","_Z","_Z","_Z","_Z","_Z","WEIGHT","_Z","KT"]
["kt","Brown coal","Distribution losses","2210",null,null,null,0,null,0,"P","","",null,null,null,null,null,null,null,null,null,null,null,null,null,null,null,null,null,null,null,null,null,null,null,null,null,null,null,null,null,null,null,null,null,null,null,null,null,null,null,null,null,null,null,null,null,null,null,null,null,null,null,null,null,null,null,null,null,null,null,null,null,null,null,null,null,null,null,null,null,null,null,null,null,null,null,null,null,null,null,null,null,null,null,null,null,null,null,null,null,null,null,null,null,null,null,null,null,null,null,null,null,null,null,null,null,null,0,"P","","ZZ","C0200","LOSSES","DISTLOSS","_Z","_Z","_Z","_Z","_Z","WEIGHT","_Z","KT"]
["kt","Brown coal","Total final consumption",null,null,null,null,{"$f":"H320+H321","v":0},null,0,"P","","",null,null,null,null,null,null,null,null,null,null,null,null,null,null,null,null,null,null,null,null,null,null,null,null,null,null,null,null,null,null,null,null,null,null,null,null,null,null,null,null,null,null,null,null,null,null,null,null,null,null,null,null,null,null,null,null,null,null,null,null,null,null,null,null,null,null,null,null,null,null,null,null,null,null,null,null,null,null,null,null,null,null,null,null,null,null,null,null,null,null,null,null,null,null,null,null,null,null,null,null,null,null,null,null,null,null,0,"P","","ZZ","C0200","CONSUMPT","FINCONS","_Z","_Z","_Z","_Z","_Z","WEIGHT","_Z","KT"]
["kt","Brown coal","Total final non-energy consumption","2210",null,null,null,0,null,0,"P","","",null,null,null,null,null,null,null,null,null,null,null,null,null,null,null,null,null,null,null,null,null,null,null,null,null,null,null,null,null,null,null,null,null,null,null,null,null,null,null,null,null,null,null,null,null,null,null,null,null,null,null,null,null,null,null,null,null,null,null,null,null,null,null,null,null,null,null,null,null,null,null,null,null,null,null,null,null,null,null,null,null,null,null,null,null,null,null,null,null,null,null,null,null,null,null,null,null,null,null,null,null,null,null,null,null,null,0,"P","","ZZ","C0200","NONENUSE","_T","_Z","_Z","_Z","_Z","_Z","WEIGHT","_Z","KT"]
["kt","Brown coal","Total final energy consumption","2210",null,null,null,{"$f":"SUM(H322:H324)","v":0},null,0,"P","","",null,null,null,null,null,null,null,null,null,null,null,null,null,null,null,null,null,null,null,null,null,null,null,null,null,null,null,null,null,null,null,null,null,null,null,null,null,null,null,null,null,null,null,null,null,null,null,null,null,null,null,null,null,null,null,null,null,null,null,null,null,null,null,null,null,null,null,null,null,null,null,null,null,null,null,null,null,null,null,null,null,null,null,null,null,null,null,null,null,null,null,null,null,null,null,null,null,null,null,null,null,null,null,null,null,null,0,"P","","ZZ","C0200","ENERGUSE","FINCONS","_Z","_Z","_Z","_Z","_Z","WEIGHT","_Z","KT"]
["kt","Brown coal","Industry sector","2210",null,null,null,0,null,0,"P","","",null,null,null,null,null,null,null,null,null,null,null,null,null,null,null,null,null,null,null,null,null,null,null,null,null,null,null,null,null,null,null,null,null,null,null,null,null,null,null,null,null,null,null,null,null,null,null,null,null,null,null,null,null,null,null,null,null,null,null,null,null,null,null,null,null,null,null,null,null,null,null,null,null,null,null,null,null,null,null,null,null,null,null,null,null,null,null,null,null,null,null,null,null,null,null,null,null,null,null,null,null,null,null,null,null,null,0,"P","",{"$f":"$S$1","v":"ZZ"},"C0200","ENERGUSE","INDUSTRY","_Z","_Z","_Z","_Z","_Z","WEIGHT","_Z","KT"]
["kt","Brown coal","Transport sector","2210",null,null,null,0,null,0,"P","","",null,null,null,null,null,null,null,null,null,null,null,null,null,null,null,null,null,null,null,null,null,null,null,null,null,null,null,null,null,null,null,null,null,null,null,null,null,null,null,null,null,null,null,null,null,null,null,null,null,null,null,null,null,null,null,null,null,null,null,null,null,null,null,null,null,null,null,null,null,null,null,null,null,null,null,null,null,null,null,null,null,null,null,null,null,null,null,null,null,null,null,null,null,null,null,null,null,null,null,null,null,null,null,null,null,null,{"$f":"IF(K323=\"O\",\"NaN\",ROUND(J323,3))","v":0},{"$f":"IF(K323=\"\",\"A\",K323)","v":"P"},{"$f":"LEFT(TRIM(N323),255)","v":""},{"$f":"$S$1","v":"ZZ"},"C0200","ENERGUSE","TRANSPOR","_Z","_Z","_Z","_Z","_Z","WEIGHT","_Z","KT"]
["kt","Brown coal","Other sectors","2210",null,null,null,0,null,0,"P","","",null,null,null,null,null,null,null,null,null,null,null,null,null,null,null,null,null,null,null,null,null,null,null,null,null,null,null,null,null,null,null,null,null,null,null,null,null,null,null,null,null,null,null,null,null,null,null,null,null,null,null,null,null,null,null,null,null,null,null,null,null,null,null,null,null,null,null,null,null,null,null,null,null,null,null,null,null,null,null,null,null,null,null,null,null,null,null,null,null,null,null,null,null,null,null,null,null,null,null,null,null,null,null,null,null,null,{"$f":"IF(K324=\"O\",\"NaN\",ROUND(J324,3))","v":0},{"$f":"IF(K324=\"\",\"A\",K324)","v":"P"},{"$f":"LEFT(TRIM(N324),255)","v":""},{"$f":"$S$1","v":"ZZ"},"C0200","ENERGUSE","OTHSECT","_Z","_Z","_Z","_Z","_Z","WEIGHT","_Z","KT"]

{"sheet":"PREFILLED-ANNUAL","index":5,"n_rows":39,"n_cols":19,"rows_kept":39,"cut":false,"hidden":true,"merged":[]}
[]
[null,"units:","kt","kt","kt","kt","kt","kt","kt","kt","kt","kt","TJ GCV","TJ GCV","TJ GCV","TJ GCV","kt","kt","kt"]
[null,{"$f":"COLUMN!Q1-1&\" prefilled from annual data\"","v":"2019 prefilled from annual data"},"Anthracite","Coking coal","Other bituminous coal","Sub-bituminous coal","Lignite","Patent fuel","Coke oven coke","Gas coke","Coal tar","BKB","Gas works gas","Coke oven gas","Blast furnace gas","Other recovered gases","Peat","Peat products","Oil shale and oil sands"]
[null,"Indigenous production",{"$f":"COLUMN!H2","v":0},{"$f":"COLUMN!H19","v":0},{"$f":"COLUMN!H36","v":0},{"$f":"COLUMN!H53","v":0},{"$f":"COLUMN!H70","v":0},{"$f":"COLUMN!H87","v":0},{"$f":"COLUMN!H104","v":0},{"$f":"COLUMN!H121","v":0},{"$f":"COLUMN!H138","v":0},{"$f":"COLUMN!H155","v":0},{"$f":"COLUMN!H172","v":0},{"$f":"COLUMN!H189","v":0},{"$f":"COLUMN!H206","v":0},{"$f":"COLUMN!H223","v":0},{"$f":"COLUMN!H240","v":0},{"$f":"COLUMN!H257","v":0},{"$f":"COLUMN!H274","v":0}]
[null,"From other sources",{"$f":"COLUMN!H3","v":0},{"$f":"COLUMN!H20","v":0},{"$f":"COLUMN!H37","v":0},{"$f":"COLUMN!H54","v":0},{"$f":"COLUMN!H71","v":0},{"$f":"COLUMN!H88","v":0},{"$f":"COLUMN!H105","v":0},{"$f":"COLUMN!H122","v":0},{"$f":"COLUMN!H139","v":0},{"$f":"COLUMN!H156","v":0},{"$f":"COLUMN!H173","v":0},{"$f":"COLUMN!H190","v":0},{"$f":"COLUMN!H207","v":0},{"$f":"COLUMN!H224","v":0},{"$f":"COLUMN!H241","v":0},{"$f":"COLUMN!H258","v":0},{"$f":"COLUMN!H275","v":0}]
[null,"Total imports (Balance)",{"$f":"COLUMN!H4","v":0},{"$f":"COLUMN!H21","v":0},{"$f":"COLUMN!H38","v":0},{"$f":"COLUMN!H55","v":0},{"$f":"COLUMN!H72","v":0},{"$f":"COLUMN!H89","v":0},{"$f":"COLUMN!H106","v":0},{"$f":"COLUMN!H123","v":0},{"$f":"COLUMN!H140","v":0},{"$f":"COLUMN!H157","v":0},{"$f":"COLUMN!H174","v":0},{"$f":"COLUMN!H191","v":0},{"$f":"COLUMN!H208","v":0},{"$f":"COLUMN!H225","v":0},{"$f":"COLUMN!H242","v":0},{"$f":"COLUMN!H259","v":0},{"$f":"COLUMN!H276","v":0}]
[null,"Total exports (Balance)",{"$f":"COLUMN!H5","v":0},{"$f":"COLUMN!H22","v":0},{"$f":"COLUMN!H39","v":0},{"$f":"COLUMN!H56","v":0},{"$f":"COLUMN!H73","v":0},{"$f":"COLUMN!H90","v":0},{"$f":"COLUMN!H107","v":0},{"$f":"COLUMN!H124","v":0},{"$f":"COLUMN!H141","v":0},{"$f":"COLUMN!H158","v":0},{"$f":"COLUMN!H175","v":0},{"$f":"COLUMN!H192","v":0},{"$f":"COLUMN!H209","v":0},{"$f":"COLUMN!H226","v":0},{"$f":"COLUMN!H243","v":0},{"$f":"COLUMN!H260","v":0},{"$f":"COLUMN!H277","v":0}]
[null,"Stock changes (National territory)",{"$f":"COLUMN!H6","v":0},{"$f":"COLUMN!H23","v":0},{"$f":"COLUMN!H40","v":0},{"$f":"COLUMN!H57","v":0},{"$f":"COLUMN!H74","v":0},{"$f":"COLUMN!H91","v":0},{"$f":"COLUMN!H108","v":0},{"$f":"COLUMN!H125","v":0},{"$f":"COLUMN!H142","v":0},{"$f":"COLUMN!H159","v":0},{"$f":"COLUMN!H176","v":0},{"$f":"COLUMN!H193","v":0},{"$f":"COLUMN!H210","v":0},{"$f":"COLUMN!H227","v":0},{"$f":"COLUMN!H244","v":0},{"$f":"COLUMN!H261","v":0},{"$f":"COLUMN!H278","v":0}]
[null,"Inland consumption (Calculated)",{"$f":"C4+C5+C6-C7+C8","v":0},0,0,0,0,0,0,0,0,0,0,0,0,0,0,0,0]
[null,"Statistical Difference",{"$f":"C9-C11","v":0},{"$f":"D9-D11","v":0},0,0,0,0,0,0,0,0,0,0,0,0,0,0,0]
[null,"Inland consumption (Observed)",{"$f":"COLUMN!H9","v":0},{"$f":"COLUMN!H26","v":0},{"$f":"COLUMN!H43","v":0},{"$f":"COLUMN!H60","v":0},{"$f":"COLUMN!H77","v":0},{"$f":"COLUMN!H94","v":0},{"$f":"COLUMN!H111","v":0},{"$f":"COLUMN!H128","v":0},{"$f":"COLUMN!H145","v":0},{"$f":"COLUMN!H162","v":0},{"$f":"COLUMN!H179","v":0},{"$f":"COLUMN!H196","v":0},{"$f":"COLUMN!H213","v":0},{"$f":"COLUMN!H230","v":0},{"$f":"COLUMN!H247","v":0},{"$f":"COLUMN!H264","v":0},{"$f":"COLUMN!H281","v":0}]
[null,"Transformation sector",{"$f":"COLUMN!H10","v":0},{"$f":"COLUMN!H27","v":0},{"$f":"COLUMN!H44","v":0},{"$f":"COLUMN!H61","v":0},{"$f":"COLUMN!H78","v":0},{"$f":"COLUMN!H95","v":0},{"$f":"COLUMN!H112","v":0},{"$f":"COLUMN!H129","v":0},{"$f":"COLUMN!H146","v":0},{"$f":"COLUMN!H163","v":0},{"$f":"COLUMN!H180","v":0},{"$f":"COLUMN!H197","v":0},{"$f":"COLUMN!H214","v":0},{"$f":"COLUMN!H231","v":0},{"$f":"COLUMN!H248","v":0},{"$f":"COLUMN!H265","v":0},{"$f":"COLUMN!H282","v":0}]
[null,"Energy sector",{"$f":"COLUMN!H11","v":0},{"$f":"COLUMN!H28","v":0},{"$f":"COLUMN!H45","v":0},{"$f":"COLUMN!H62","v":0},{"$f":"COLUMN!H79","v":0},{"$f":"COLUMN!H96","v":0},{"$f":"COLUMN!H113","v":0},{"$f":"COLUMN!H130","v":0},{"$f":"COLUMN!H147","v":0},{"$f":"COLUMN!H164","v":0},{"$f":"COLUMN!H181","v":0},{"$f":"COLUMN!H198","v":0},{"$f":"COLUMN!H215","v":0},{"$f":"COLUMN!H232","v":0},{"$f":"COLUMN!H249","v":0},{"$f":"COLUMN!H266","v":0},{"$f":"COLUMN!H283","v":0}]
[null,"Distribution losses",{"$f":"COLUMN!H12","v":0},{"$f":"COLUMN!H29","v":0},{"$f":"COLUMN!H46","v":0},{"$f":"COLUMN!H63","v":0},{"$f":"COLUMN!H80","v":0},{"$f":"COLUMN!H97","v":0},{"$f":"COLUMN!H114","v":0},{"$f":"COLUMN!H131","v":0},{"$f":"COLUMN!H148","v":0},{"$f":"COLUMN!H165","v":0},{"$f":"COLUMN!H182","v":0},{"$f":"COLUMN!H199","v":0},{"$f":"COLUMN!H216","v":0},{"$f":"COLUMN!H233","v":0},{"$f":"COLUMN!H250","v":0},{"$f":"COLUMN!H267","v":0},{"$f":"COLUMN!H284","v":0}]
[null,"Total final consumption",{"$f":"COLUMN!H13","v":0},{"$f":"COLUMN!H30","v":0},{"$f":"COLUMN!H47","v":0},{"$f":"COLUMN!H64","v":0},{"$f":"COLUMN!H81","v":0},{"$f":"COLUMN!H98","v":0},{"$f":"COLUMN!H115","v":0},{"$f":"COLUMN!H132","v":0},{"$f":"COLUMN!H149","v":0},{"$f":"COLUMN!H166","v":0},{"$f":"COLUMN!H183","v":0},{"$f":"COLUMN!H200","v":0},{"$f":"COLUMN!H217","v":0},{"$f":"COLUMN!H234","v":0},{"$f":"COLUMN!H251","v":0},{"$f":"COLUMN!H268","v":0},{"$f":"COLUMN!H285","v":0}]
[null,"Total final non-energy consumption",{"$f":"COLUMN!H14","v":0},{"$f":"COLUMN!H31","v":0},{"$f":"COLUMN!H48","v":0},{"$f":"COLUMN!H65","v":0},{"$f":"COLUMN!H82","v":0},{"$f":"COLUMN!H99","v":0},{"$f":"COLUMN!H116","v":0},{"$f":"COLUMN!H133","v":0},{"$f":"COLUMN!H150","v":0},{"$f":"COLUMN!H167","v":0},{"$f":"COLUMN!H184","v":0},{"$f":"COLUMN!H201","v":0},{"$f":"COLUMN!H218","v":0},{"$f":"COLUMN!H235","v":0},{"$f":"COLUMN!H252","v":0},{"$f":"COLUMN!H269","v":0},{"$f":"COLUMN!H286","v":0}]
[null,"Total final energy consumption",{"$f":"COLUMN!H15","v":0},{"$f":"COLUMN!H32","v":0},{"$f":"COLUMN!H49","v":0},{"$f":"COLUMN!H66","v":0},{"$f":"COLUMN!H83","v":0},{"$f":"COLUMN!H100","v":0},{"$f":"COLUMN!H117","v":0},{"$f":"COLUMN!H134","v":0},{"$f":"COLUMN!H151","v":0},{"$f":"COLUMN!H168","v":0},{"$f":"COLUMN!H185","v":0},{"$f":"COLUMN!H202","v":0},{"$f":"COLUMN!H219","v":0},{"$f":"COLUMN!H236","v":0},{"$f":"COLUMN!H253","v":0},{"$f":"COLUMN!H270","v":0},{"$f":"COLUMN!H287","v":0}]
[null,"Industry sector",{"$f":"COLUMN!H16","v":0},{"$f":"COLUMN!H33","v":0},{"$f":"COLUMN!H50","v":0},{"$f":"COLUMN!H67","v":0},{"$f":"COLUMN!H84","v":0},{"$f":"COLUMN!H101","v":0},{"$f":"COLUMN!H118","v":0},{"$f":"COLUMN!H135","v":0},{"$f":"COLUMN!H152","v":0},{"$f":"COLUMN!H169","v":0},{"$f":"COLUMN!H186","v":0},{"$f":"COLUMN!H203","v":0},{"$f":"COLUMN!H220","v":0},{"$f":"COLUMN!H237","v":0},{"$f":"COLUMN!H254","v":0},{"$f":"COLUMN!H271","v":0},{"$f":"COLUMN!H288","v":0}]
[null,"Transport sector",{"$f":"COLUMN!H17","v":0},{"$f":"COLUMN!H34","v":0},{"$f":"COLUMN!H51","v":0},{"$f":"COLUMN!H68","v":0},{"$f":"COLUMN!H85","v":0},{"$f":"COLUMN!H102","v":0},{"$f":"COLUMN!H119","v":0},{"$f":"COLUMN!H136","v":0},{"$f":"COLUMN!H153","v":0},{"$f":"COLUMN!H170","v":0},{"$f":"COLUMN!H187","v":0},{"$f":"COLUMN!H204","v":0},{"$f":"COLUMN!H221","v":0},{"$f":"COLUMN!H238","v":0},{"$f":"COLUMN!H255","v":0},{"$f":"COLUMN!H272","v":0},{"$f":"COLUMN!H289","v":0}]
[null,"Other sectors",{"$f":"COLUMN!H18","v":0},{"$f":"COLUMN!H35","v":0},{"$f":"COLUMN!H52","v":0},{"$f":"COLUMN!H69","v":0},{"$f":"COLUMN!H86","v":0},{"$f":"COLUMN!H103","v":0},{"$f":"COLUMN!H120","v":0},{"$f":"COLUMN!H137","v":0},{"$f":"COLUMN!H154","v":0},{"$f":"COLUMN!H171","v":0},{"$f":"COLUMN!H188","v":0},{"$f":"COLUMN!H205","v":0},{"$f":"COLUMN!H222","v":0},{"$f":"COLUMN!H239","v":0},{"$f":"COLUMN!H256","v":0},{"$f":"COLUMN!H273","v":0},{"$f":"COLUMN!H290","v":0}]
[]
[null,"Growth rates","Anthracite","Coking coal","Other bituminous coal","Sub-bituminous coal","Lignite","Patent fuel","Coke oven coke","Gas coke","Coal tar","BKB","Gas works gas","Coke oven gas","Blast furnace gas","Other recovered gases","Peat","Peat products","Oil shale and oil sands"]
[null,"Indigenous production",{"$f":"IF(ISERROR(('TABLES-FORMS'!C4-'PREFILLED-ANNUAL'!C4)/('PREFILLED-ANNUAL'!C4)),\"\",('TABLES-FORMS'!C4-'PREFILLED-ANNUAL'!C4)/('PREFILLED-ANNUAL'!C4))","v":""},{"$f":"IF(ISERROR(('TABLES-FORMS'!D4-'PREFILLED-ANNUAL'!D4)/('PREFILLED-ANNUAL'!D4)),\"\",('TABLES-FORMS'!D4-'PREFILLED-ANNUAL'!D4)/('PREFILLED-ANNUAL'!D4))","v":""},{"$f":"IF(ISERROR(('TABLES-FORMS'!E4-'PREFILLED-ANNUAL'!E4)/('PREFILLED-ANNUAL'!E4)),\"\",('TABLES-FORMS'!E4-'PREFILLED-ANNUAL'!E4)/('PREFILLED-ANNUAL'!E4))","v":""},{"$f":"IF(ISERROR(('TABLES-FORMS'!F4-'PREFILLED-ANNUAL'!F4)/('PREFILLED-ANNUAL'!F4)),\"\",('TABLES-FORMS'!F4-'PREFILLED-ANNUAL'!F4)/('PREFILLED-ANNUAL'!F4))","v":""},{"$f":"IF(ISERROR(('TABLES-FORMS'!G4-'PREFILLED-ANNUAL'!G4)/('PREFILLED-ANNUAL'!G4)),\"\",('TABLES-FORMS'!G4-'PREFILLED-ANNUAL'!G4)/('PREFILLED-ANNUAL'!G4))","v":""},{"$f":"IF(ISERROR(('TABLES-FORMS'!H4-'PREFILLED-ANNUAL'!H4)/('PREFILLED-ANNUAL'!H4)),\"\",('TABLES-FORMS'!H4-'PREFILLED-ANNUAL'!H4)/('PREFILLED-ANNUAL'!H4))","v":""},{"$f":"IF(ISERROR(('TABLES-FORMS'!I4-'PREFILLED-ANNUAL'!I4)/('PREFILLED-ANNUAL'!I4)),\"\",('TABLES-FORMS'!I4-'PREFILLED-ANNUAL'!I4)/('PREFILLED-ANNUAL'!I4))","v":""},{"$f":"IF(ISERROR(('TABLES-FORMS'!J4-'PREFILLED-ANNUAL'!J4)/('PREFILLED-ANNUAL'!J4)),\"\",('TABLES-FORMS'!J4-'PREFILLED-ANNUAL'!J4)/('PREFILLED-ANNUAL'!J4))","v":""},{"$f":"IF(ISERROR(('TABLES-FORMS'!K4-'PREFILLED-ANNUAL'!K4)/('PREFILLED-ANNUAL'!K4)),\"\",('TABLES-FORMS'!K4-'PREFILLED-ANNUAL'!K4)/('PREFILLED-ANNUAL'!K4))","v":""},{"$f":"IF(ISERROR(('TABLES-FORMS'!L4-'PREFILLED-ANNUAL'!L4)/('PREFILLED-ANNUAL'!L4)),\"\",('TABLES-FORMS'!L4-'PREFILLED-ANNUAL'!L4)/('PREFILLED-ANNUAL'!L4))","v":""},{"$f":"IF(ISERROR(('TABLES-FORMS'!M4-'PREFILLED-ANNUAL'!M4)/('PREFILLED-ANNUAL'!M4)),\"\",('TABLES-FORMS'!M4-'PREFILLED-ANNUAL'!M4)/('PREFILLED-ANNUAL'!M4))","v":""},{"$f":"IF(ISERROR(('TABLES-FORMS'!N4-'PREFILLED-ANNUAL'!N4)/('PREFILLED-ANNUAL'!N4)),\"\",('TABLES-FORMS'!N4-'PREFILLED-ANNUAL'!N4)/('PREFILLED-ANNUAL'!N4))","v":""},{"$f":"IF(ISERROR(('TABLES-FORMS'!O4-'PREFILLED-ANNUAL'!O4)/('PREFILLED-ANNUAL'!O4)),\"\",('TABLES-FORMS'!O4-'PREFILLED-ANNUAL'!O4)/('PREFILLED-ANNUAL'!O4))","v":""},{"$f":"IF(ISERROR(('TABLES-FORMS'!P4-'PREFILLED-ANNUAL'!P4)/('PREFILLED-ANNUAL'!P4)),\"\",('TABLES-FORMS'!P4-'PREFILLED-ANNUAL'!P4)/('PREFILLED-ANNUAL'!P4))","v":""},{"$f":"IF(ISERROR(('TABLES-FORMS'!Q4-'PREFILLED-ANNUAL'!Q4)/('PREFILLED-ANNUAL'!Q4)),\"\",('TABLES-FORMS'!Q4-'PREFILLED-ANNUAL'!Q4)/('PREFILLED-ANNUAL'!Q4))","v":""},{"$f":"IF(ISERROR(('TABLES-FORMS'!R4-'PREFILLED-ANNUAL'!R4)/('PREFILLED-ANNUAL'!R4)),\"\",('TABLES-FORMS'!R4-'PREFILLED-ANNUAL'!R4)/('PREFILLED-ANNUAL'!R4))","v":""},{"$f":"IF(ISERROR(('TABLES-FORMS'!S4-'PREFILLED-ANNUAL'!S4)/('PREFILLED-ANNUAL'!S4)),\"\",('TABLES-FORMS'!S4-'PREFILLED-ANNUAL'!S4)/('PREFILLED-ANNUAL'!S4))","v":""}]
[null,"From other sources",{"$f":"IF(ISERROR(('TABLES-FORMS'!C5-'PREFILLED-ANNUAL'!C5)/('PREFILLED-ANNUAL'!C5)),\"\",('TABLES-FORMS'!C5-'PREFILLED-ANNUAL'!C5)/('PREFILLED-ANNUAL'!C5))","v":""},{"$f":"IF(ISERROR(('TABLES-FORMS'!D5-'PREFILLED-ANNUAL'!D5)/('PREFILLED-ANNUAL'!D5)),\"\",('TABLES-FORMS'!D5-'PREFILLED-ANNUAL'!D5)/('PREFILLED-ANNUAL'!D5))","v":""},{"$f":"IF(ISERROR(('TABLES-FORMS'!E5-'PREFILLED-ANNUAL'!E5)/('PREFILLED-ANNUAL'!E5)),\"\",('TABLES-FORMS'!E5-'PREFILLED-ANNUAL'!E5)/('PREFILLED-ANNUAL'!E5))","v":""},{"$f":"IF(ISERROR(('TABLES-FORMS'!F5-'PREFILLED-ANNUAL'!F5)/('PREFILLED-ANNUAL'!F5)),\"\",('TABLES-FORMS'!F5-'PREFILLED-ANNUAL'!F5)/('PREFILLED-ANNUAL'!F5))","v":""},{"$f":"IF(ISERROR(('TABLES-FORMS'!G5-'PREFILLED-ANNUAL'!G5)/('PREFILLED-ANNUAL'!G5)),\"\",('TABLES-FORMS'!G5-'PREFILLED-ANNUAL'!G5)/('PREFILLED-ANNUAL'!G5))","v":""},{"$f":"IF(ISERROR(('TABLES-FORMS'!H5-'PREFILLED-ANNUAL'!H5)/('PREFILLED-ANNUAL'!H5)),\"\",('TABLES-FORMS'!H5-'PREFILLED-ANNUAL'!H5)/('PREFILLED-ANNUAL'!H5))","v":""},{"$f":"IF(ISERROR(('TABLES-FORMS'!I5-'PREFILLED-ANNUAL'!I5)/('PREFILLED-ANNUAL'!I5)),\"\",('TABLES-FORMS'!I5-'PREFILLED-ANNUAL'!I5)/('PREFILLED-ANNUAL'!I5))","v":""},{"$f":"IF(ISERROR(('TABLES-FORMS'!J5-'PREFILLED-ANNUAL'!J5)/('PREFILLED-ANNUAL'!J5)),\"\",('TABLES-FORMS'!J5-'PREFILLED-ANNUAL'!J5)/('PREFILLED-ANNUAL'!J5))","v":""},{"$f":"IF(ISERROR(('TABLES-FORMS'!K5-'PREFILLED-ANNUAL'!K5)/('PREFILLED-ANNUAL'!K5)),\"\",('TABLES-FORMS'!K5-'PREFILLED-ANNUAL'!K5)/('PREFILLED-ANNUAL'!K5))","v":""},{"$f":"IF(ISERROR(('TABLES-FORMS'!L5-'PREFILLED-ANNUAL'!L5)/('PREFILLED-ANNUAL'!L5)),\"\",('TABLES-FORMS'!L5-'PREFILLED-ANNUAL'!L5)/('PREFILLED-ANNUAL'!L5))","v":""},{"$f":"IF(ISERROR(('TABLES-FORMS'!M5-'PREFILLED-ANNUAL'!M5)/('PREFILLED-ANNUAL'!M5)),\"\",('TABLES-FORMS'!M5-'PREFILLED-ANNUAL'!M5)/('PREFILLED-ANNUAL'!M5))","v":""},{"$f":"IF(ISERROR(('TABLES-FORMS'!N5-'PREFILLED-ANNUAL'!N5)/('PREFILLED-ANNUAL'!N5)),\"\",('TABLES-FORMS'!N5-'PREFILLED-ANNUAL'!N5)/('PREFILLED-ANNUAL'!N5))","v":""},{"$f":"IF(ISERROR(('TABLES-FORMS'!O5-'PREFILLED-ANNUAL'!O5)/('PREFILLED-ANNUAL'!O5)),\"\",('TABLES-FORMS'!O5-'PREFILLED-ANNUAL'!O5)/('PREFILLED-ANNUAL'!O5))","v":""},{"$f":"IF(ISERROR(('TABLES-FORMS'!P5-'PREFILLED-ANNUAL'!P5)/('PREFILLED-ANNUAL'!P5)),\"\",('TABLES-FORMS'!P5-'PREFILLED-ANNUAL'!P5)/('PREFILLED-ANNUAL'!P5))","v":""},{"$f":"IF(ISERROR(('TABLES-FORMS'!Q5-'PREFILLED-ANNUAL'!Q5)/('PREFILLED-ANNUAL'!Q5)),\"\",('TABLES-FORMS'!Q5-'PREFILLED-ANNUAL'!Q5)/('PREFILLED-ANNUAL'!Q5))","v":""},{"$f":"IF(ISERROR(('TABLES-FORMS'!R5-'PREFILLED-ANNUAL'!R5)/('PREFILLED-ANNUAL'!R5)),\"\",('TABLES-FORMS'!R5-'PREFILLED-ANNUAL'!R5)/('PREFILLED-ANNUAL'!R5))","v":""},{"$f":"IF(ISERROR(('TABLES-FORMS'!S5-'PREFILLED-ANNUAL'!S5)/('PREFILLED-ANNUAL'!S5)),\"\",('TABLES-FORMS'!S5-'PREFILLED-ANNUAL'!S5)/('PREFILLED-ANNUAL'!S5))","v":""}]
[null,"Total imports (Balance)",{"$f":"IF(ISERROR(('TABLES-FORMS'!C6-'PREFILLED-ANNUAL'!C6)/('PREFILLED-ANNUAL'!C6)),\"\",('TABLES-FORMS'!C6-'PREFILLED-ANNUAL'!C6)/('PREFILLED-ANNUAL'!C6))","v":""},{"$f":"IF(ISERROR(('TABLES-FORMS'!D6-'PREFILLED-ANNUAL'!D6)/('PREFILLED-ANNUAL'!D6)),\"\",('TABLES-FORMS'!D6-'PREFILLED-ANNUAL'!D6)/('PREFILLED-ANNUAL'!D6))","v":""},{"$f":"IF(ISERROR(('TABLES-FORMS'!E6-'PREFILLED-ANNUAL'!E6)/('PREFILLED-ANNUAL'!E6)),\"\",('TABLES-FORMS'!E6-'PREFILLED-ANNUAL'!E6)/('PREFILLED-ANNUAL'!E6))","v":""},{"$f":"IF(ISERROR(('TABLES-FORMS'!F6-'PREFILLED-ANNUAL'!F6)/('PREFILLED-ANNUAL'!F6)),\"\",('TABLES-FORMS'!F6-'PREFILLED-ANNUAL'!F6)/('PREFILLED-ANNUAL'!F6))","v":""},{"$f":"IF(ISERROR(('TABLES-FORMS'!G6-'PREFILLED-ANNUAL'!G6)/('PREFILLED-ANNUAL'!G6)),\"\",('TABLES-FORMS'!G6-'PREFILLED-ANNUAL'!G6)/('PREFILLED-ANNUAL'!G6))","v":""},{"$f":"IF(ISERROR(('TABLES-FORMS'!H6-'PREFILLED-ANNUAL'!H6)/('PREFILLED-ANNUAL'!H6)),\"\",('TABLES-FORMS'!H6-'PREFILLED-ANNUAL'!H6)/('PREFILLED-ANNUAL'!H6))","v":""},{"$f":"IF(ISERROR(('TABLES-FORMS'!I6-'PREFILLED-ANNUAL'!I6)/('PREFILLED-ANNUAL'!I6)),\"\",('TABLES-FORMS'!I6-'PREFILLED-ANNUAL'!I6)/('PREFILLED-ANNUAL'!I6))","v":""},{"$f":"IF(ISERROR(('TABLES-FORMS'!J6-'PREFILLED-ANNUAL'!J6)/('PREFILLED-ANNUAL'!J6)),\"\",('TABLES-FORMS'!J6-'PREFILLED-ANNUAL'!J6)/('PREFILLED-ANNUAL'!J6))","v":""},{"$f":"IF(ISERROR(('TABLES-FORMS'!K6-'PREFILLED-ANNUAL'!K6)/('PREFILLED-ANNUAL'!K6)),\"\",('TABLES-FORMS'!K6-'PREFILLED-ANNUAL'!K6)/('PREFILLED-ANNUAL'!K6))","v":""},{"$f":"IF(ISERROR(('TABLES-FORMS'!L6-'PREFILLED-ANNUAL'!L6)/('PREFILLED-ANNUAL'!L6)),\"\",('TABLES-FORMS'!L6-'PREFILLED-ANNUAL'!L6)/('PREFILLED-ANNUAL'!L6))","v":""},{"$f":"IF(ISERROR(('TABLES-FORMS'!M6-'PREFILLED-ANNUAL'!M6)/('PREFILLED-ANNUAL'!M6)),\"\",('TABLES-FORMS'!M6-'PREFILLED-ANNUAL'!M6)/('PREFILLED-ANNUAL'!M6))","v":""},{"$f":"IF(ISERROR(('TABLES-FORMS'!N6-'PREFILLED-ANNUAL'!N6)/('PREFILLED-ANNUAL'!N6)),\"\",('TABLES-FORMS'!N6-'PREFILLED-ANNUAL'!N6)/('PREFILLED-ANNUAL'!N6))","v":""},{"$f":"IF(ISERROR(('TABLES-FORMS'!O6-'PREFILLED-ANNUAL'!O6)/('PREFILLED-ANNUAL'!O6)),\"\",('TABLES-FORMS'!O6-'PREFILLED-ANNUAL'!O6)/('PREFILLED-ANNUAL'!O6))","v":""},{"$f":"IF(ISERROR(('TABLES-FORMS'!P6-'PREFILLED-ANNUAL'!P6)/('PREFILLED-ANNUAL'!P6)),\"\",('TABLES-FORMS'!P6-'PREFILLED-ANNUAL'!P6)/('PREFILLED-ANNUAL'!P6))","v":""},{"$f":"IF(ISERROR(('TABLES-FORMS'!Q6-'PREFILLED-ANNUAL'!Q6)/('PREFILLED-ANNUAL'!Q6)),\"\",('TABLES-FORMS'!Q6-'PREFILLED-ANNUAL'!Q6)/('PREFILLED-ANNUAL'!Q6))","v":""},{"$f":"IF(ISERROR(('TABLES-FORMS'!R6-'PREFILLED-ANNUAL'!R6)/('PREFILLED-ANNUAL'!R6)),\"\",('TABLES-FORMS'!R6-'PREFILLED-ANNUAL'!R6)/('PREFILLED-ANNUAL'!R6))","v":""},{"$f":"IF(ISERROR(('TABLES-FORMS'!S6-'PREFILLED-ANNUAL'!S6)/('PREFILLED-ANNUAL'!S6)),\"\",('TABLES-FORMS'!S6-'PREFILLED-ANNUAL'!S6)/('PREFILLED-ANNUAL'!S6))","v":""}]
[null,"Total exports (Balance)",{"$f":"IF(ISERROR(('TABLES-FORMS'!C7-'PREFILLED-ANNUAL'!C7)/('PREFILLED-ANNUAL'!C7)),\"\",('TABLES-FORMS'!C7-'PREFILLED-ANNUAL'!C7)/('PREFILLED-ANNUAL'!C7))","v":""},{"$f":"IF(ISERROR(('TABLES-FORMS'!D7-'PREFILLED-ANNUAL'!D7)/('PREFILLED-ANNUAL'!D7)),\"\",('TABLES-FORMS'!D7-'PREFILLED-ANNUAL'!D7)/('PREFILLED-ANNUAL'!D7))","v":""},{"$f":"IF(ISERROR(('TABLES-FORMS'!E7-'PREFILLED-ANNUAL'!E7)/('PREFILLED-ANNUAL'!E7)),\"\",('TABLES-FORMS'!E7-'PREFILLED-ANNUAL'!E7)/('PREFILLED-ANNUAL'!E7))","v":""},{"$f":"IF(ISERROR(('TABLES-FORMS'!F7-'PREFILLED-ANNUAL'!F7)/('PREFILLED-ANNUAL'!F7)),\"\",('TABLES-FORMS'!F7-'PREFILLED-ANNUAL'!F7)/('PREFILLED-ANNUAL'!F7))","v":""},{"$f":"IF(ISERROR(('TABLES-FORMS'!G7-'PREFILLED-ANNUAL'!G7)/('PREFILLED-ANNUAL'!G7)),\"\",('TABLES-FORMS'!G7-'PREFILLED-ANNUAL'!G7)/('PREFILLED-ANNUAL'!G7))","v":""},{"$f":"IF(ISERROR(('TABLES-FORMS'!H7-'PREFILLED-ANNUAL'!H7)/('PREFILLED-ANNUAL'!H7)),\"\",('TABLES-FORMS'!H7-'PREFILLED-ANNUAL'!H7)/('PREFILLED-ANNUAL'!H7))","v":""},{"$f":"IF(ISERROR(('TABLES-FORMS'!I7-'PREFILLED-ANNUAL'!I7)/('PREFILLED-ANNUAL'!I7)),\"\",('TABLES-FORMS'!I7-'PREFILLED-ANNUAL'!I7)/('PREFILLED-ANNUAL'!I7))","v":""},{"$f":"IF(ISERROR(('TABLES-FORMS'!J7-'PREFILLED-ANNUAL'!J7)/('PREFILLED-ANNUAL'!J7)),\"\",('TABLES-FORMS'!J7-'PREFILLED-ANNUAL'!J7)/('PREFILLED-ANNUAL'!J7))","v":""},{"$f":"IF(ISERROR(('TABLES-FORMS'!K7-'PREFILLED-ANNUAL'!K7)/('PREFILLED-ANNUAL'!K7)),\"\",('TABLES-FORMS'!K7-'PREFILLED-ANNUAL'!K7)/('PREFILLED-ANNUAL'!K7))","v":""},{"$f":"IF(ISERROR(('TABLES-FORMS'!L7-'PREFILLED-ANNUAL'!L7)/('PREFILLED-ANNUAL'!L7)),\"\",('TABLES-FORMS'!L7-'PREFILLED-ANNUAL'!L7)/('PREFILLED-ANNUAL'!L7))","v":""},{"$f":"IF(ISERROR(('TABLES-FORMS'!M7-'PREFILLED-ANNUAL'!M7)/('PREFILLED-ANNUAL'!M7)),\"\",('TABLES-FORMS'!M7-'PREFILLED-ANNUAL'!M7)/('PREFILLED-ANNUAL'!M7))","v":""},{"$f":"IF(ISERROR(('TABLES-FORMS'!N7-'PREFILLED-ANNUAL'!N7)/('PREFILLED-ANNUAL'!N7)),\"\",('TABLES-FORMS'!N7-'PREFILLED-ANNUAL'!N7)/('PREFILLED-ANNUAL'!N7))","v":""},{"$f":"IF(ISERROR(('TABLES-FORMS'!O7-'PREFILLED-ANNUAL'!O7)/('PREFILLED-ANNUAL'!O7)),\"\",('TABLES-FORMS'!O7-'PREFILLED-ANNUAL'!O7)/('PREFILLED-ANNUAL'!O7))","v":""},{"$f":"IF(ISERROR(('TABLES-FORMS'!P7-'PREFILLED-ANNUAL'!P7)/('PREFILLED-ANNUAL'!P7)),\"\",('TABLES-FORMS'!P7-'PREFILLED-ANNUAL'!P7)/('PREFILLED-ANNUAL'!P7))","v":""},{"$f":"IF(ISERROR(('TABLES-FORMS'!Q7-'PREFILLED-ANNUAL'!Q7)/('PREFILLED-ANNUAL'!Q7)),\"\",('TABLES-FORMS'!Q7-'PREFILLED-ANNUAL'!Q7)/('PREFILLED-ANNUAL'!Q7))","v":""},{"$f":"IF(ISERROR(('TABLES-FORMS'!R7-'PREFILLED-ANNUAL'!R7)/('PREFILLED-ANNUAL'!R7)),\"\",('TABLES-FORMS'!R7-'PREFILLED-ANNUAL'!R7)/('PREFILLED-ANNUAL'!R7))","v":""},{"$f":"IF(ISERROR(('TABLES-FORMS'!S7-'PREFILLED-ANNUAL'!S7)/('PREFILLED-ANNUAL'!S7)),\"\",('TABLES-FORMS'!S7-'PREFILLED-ANNUAL'!S7)/('PREFILLED-ANNUAL'!S7))","v":""}]
[null,"Stock changes (National territory)",{"$f":"IF(ISERROR(('TABLES-FORMS'!C8-'PREFILLED-ANNUAL'!C8)/('PREFILLED-ANNUAL'!C8)),\"\",('TABLES-FORMS'!C8-'PREFILLED-ANNUAL'!C8)/('PREFILLED-ANNUAL'!C8))","v":""},{"$f":"IF(ISERROR(('TABLES-FORMS'!D8-'PREFILLED-ANNUAL'!D8)/('PREFILLED-ANNUAL'!D8)),\"\",('TABLES-FORMS'!D8-'PREFILLED-ANNUAL'!D8)/('PREFILLED-ANNUAL'!D8))","v":""},{"$f":"IF(ISERROR(('TABLES-FORMS'!E8-'PREFILLED-ANNUAL'!E8)/('PREFILLED-ANNUAL'!E8)),\"\",('TABLES-FORMS'!E8-'PREFILLED-ANNUAL'!E8)/('PREFILLED-ANNUAL'!E8))","v":""},{"$f":"IF(ISERROR(('TABLES-FORMS'!F8-'PREFILLED-ANNUAL'!F8)/('PREFILLED-ANNUAL'!F8)),\"\",('TABLES-FORMS'!F8-'PREFILLED-ANNUAL'!F8)/('PREFILLED-ANNUAL'!F8))","v":""},{"$f":"IF(ISERROR(('TABLES-FORMS'!G8-'PREFILLED-ANNUAL'!G8)/('PREFILLED-ANNUAL'!G8)),\"\",('TABLES-FORMS'!G8-'PREFILLED-ANNUAL'!G8)/('PREFILLED-ANNUAL'!G8))","v":""},{"$f":"IF(ISERROR(('TABLES-FORMS'!H8-'PREFILLED-ANNUAL'!H8)/('PREFILLED-ANNUAL'!H8)),\"\",('TABLES-FORMS'!H8-'PREFILLED-ANNUAL'!H8)/('PREFILLED-ANNUAL'!H8))","v":""},{"$f":"IF(ISERROR(('TABLES-FORMS'!I8-'PREFILLED-ANNUAL'!I8)/('PREFILLED-ANNUAL'!I8)),\"\",('TABLES-FORMS'!I8-'PREFILLED-ANNUAL'!I8)/('PREFILLED-ANNUAL'!I8))","v":""},{"$f":"IF(ISERROR(('TABLES-FORMS'!J8-'PREFILLED-ANNUAL'!J8)/('PREFILLED-ANNUAL'!J8)),\"\",('TABLES-FORMS'!J8-'PREFILLED-ANNUAL'!J8)/('PREFILLED-ANNUAL'!J8))","v":""},{"$f":"IF(ISERROR(('TABLES-FORMS'!K8-'PREFILLED-ANNUAL'!K8)/('PREFILLED-ANNUAL'!K8)),\"\",('TABLES-FORMS'!K8-'PREFILLED-ANNUAL'!K8)/('PREFILLED-ANNUAL'!K8))","v":""},{"$f":"IF(ISERROR(('TABLES-FORMS'!L8-'PREFILLED-ANNUAL'!L8)/('PREFILLED-ANNUAL'!L8)),\"\",('TABLES-FORMS'!L8-'PREFILLED-ANNUAL'!L8)/('PREFILLED-ANNUAL'!L8))","v":""},{"$f":"IF(ISERROR(('TABLES-FORMS'!M8-'PREFILLED-ANNUAL'!M8)/('PREFILLED-ANNUAL'!M8)),\"\",('TABLES-FORMS'!M8-'PREFILLED-ANNUAL'!M8)/('PREFILLED-ANNUAL'!M8))","v":""},{"$f":"IF(ISERROR(('TABLES-FORMS'!N8-'PREFILLED-ANNUAL'!N8)/('PREFILLED-ANNUAL'!N8)),\"\",('TABLES-FORMS'!N8-'PREFILLED-ANNUAL'!N8)/('PREFILLED-ANNUAL'!N8))","v":""},{"$f":"IF(ISERROR(('TABLES-FORMS'!O8-'PREFILLED-ANNUAL'!O8)/('PREFILLED-ANNUAL'!O8)),\"\",('TABLES-FORMS'!O8-'PREFILLED-ANNUAL'!O8)/('PREFILLED-ANNUAL'!O8))","v":""},{"$f":"IF(ISERROR(('TABLES-FORMS'!P8-'PREFILLED-ANNUAL'!P8)/('PREFILLED-ANNUAL'!P8)),\"\",('TABLES-FORMS'!P8-'PREFILLED-ANNUAL'!P8)/('PREFILLED-ANNUAL'!P8))","v":""},{"$f":"IF(ISERROR(('TABLES-FORMS'!Q8-'PREFILLED-ANNUAL'!Q8)/('PREFILLED-ANNUAL'!Q8)),\"\",('TABLES-FORMS'!Q8-'PREFILLED-ANNUAL'!Q8)/('PREFILLED-ANNUAL'!Q8))","v":""},{"$f":"IF(ISERROR(('TABLES-FORMS'!R8-'PREFILLED-ANNUAL'!R8)/('PREFILLED-ANNUAL'!R8)),\"\",('TABLES-FORMS'!R8-'PREFILLED-ANNUAL'!R8)/('PREFILLED-ANNUAL'!R8))","v":""},{"$f":"IF(ISERROR(('TABLES-FORMS'!S8-'PREFILLED-ANNUAL'!S8)/('PREFILLED-ANNUAL'!S8)),\"\",('TABLES-FORMS'!S8-'PREFILLED-ANNUAL'!S8)/('PREFILLED-ANNUAL'!S8))","v":""}]
[null,"Inland consumption (Calculated)",{"$f":"IF(ISERROR(('TABLES-FORMS'!C9-'PREFILLED-ANNUAL'!C9)/('PREFILLED-ANNUAL'!C9)),\"\",('TABLES-FORMS'!C9-'PREFILLED-ANNUAL'!C9)/('PREFILLED-ANNUAL'!C9))","v":""},{"$f":"IF(ISERROR(('TABLES-FORMS'!D9-'PREFILLED-ANNUAL'!D9)/('PREFILLED-ANNUAL'!D9)),\"\",('TABLES-FORMS'!D9-'PREFILLED-ANNUAL'!D9)/('PREFILLED-ANNUAL'!D9))","v":""},{"$f":"IF(ISERROR(('TABLES-FORMS'!E9-'PREFILLED-ANNUAL'!E9)/('PREFILLED-ANNUAL'!E9)),\"\",('TABLES-FORMS'!E9-'PREFILLED-ANNUAL'!E9)/('PREFILLED-ANNUAL'!E9))","v":""},{"$f":"IF(ISERROR(('TABLES-FORMS'!F9-'PREFILLED-ANNUAL'!F9)/('PREFILLED-ANNUAL'!F9)),\"\",('TABLES-FORMS'!F9-'PREFILLED-ANNUAL'!F9)/('PREFILLED-ANNUAL'!F9))","v":""},{"$f":"IF(ISERROR(('TABLES-FORMS'!G9-'PREFILLED-ANNUAL'!G9)/('PREFILLED-ANNUAL'!G9)),\"\",('TABLES-FORMS'!G9-'PREFILLED-ANNUAL'!G9)/('PREFILLED-ANNUAL'!G9))","v":""},{"$f":"IF(ISERROR(('TABLES-FORMS'!H9-'PREFILLED-ANNUAL'!H9)/('PREFILLED-ANNUAL'!H9)),\"\",('TABLES-FORMS'!H9-'PREFILLED-ANNUAL'!H9)/('PREFILLED-ANNUAL'!H9))","v":""},{"$f":"IF(ISERROR(('TABLES-FORMS'!I9-'PREFILLED-ANNUAL'!I9)/('PREFILLED-ANNUAL'!I9)),\"\",('TABLES-FORMS'!I9-'PREFILLED-ANNUAL'!I9)/('PREFILLED-ANNUAL'!I9))","v":""},{"$f":"IF(ISERROR(('TABLES-FORMS'!J9-'PREFILLED-ANNUAL'!J9)/('PREFILLED-ANNUAL'!J9)),\"\",('TABLES-FORMS'!J9-'PREFILLED-ANNUAL'!J9)/('PREFILLED-ANNUAL'!J9))","v":""},{"$f":"IF(ISERROR(('TABLES-FORMS'!K9-'PREFILLED-ANNUAL'!K9)/('PREFILLED-ANNUAL'!K9)),\"\",('TABLES-FORMS'!K9-'PREFILLED-ANNUAL'!K9)/('PREFILLED-ANNUAL'!K9))","v":""},{"$f":"IF(ISERROR(('TABLES-FORMS'!L9-'PREFILLED-ANNUAL'!L9)/('PREFILLED-ANNUAL'!L9)),\"\",('TABLES-FORMS'!L9-'PREFILLED-ANNUAL'!L9)/('PREFILLED-ANNUAL'!L9))","v":""},{"$f":"IF(ISERROR(('TABLES-FORMS'!M9-'PREFILLED-ANNUAL'!M9)/('PREFILLED-ANNUAL'!M9)),\"\",('TABLES-FORMS'!M9-'PREFILLED-ANNUAL'!M9)/('PREFILLED-ANNUAL'!M9))","v":""},{"$f":"IF(ISERROR(('TABLES-FORMS'!N9-'PREFILLED-ANNUAL'!N9)/('PREFILLED-ANNUAL'!N9)),\"\",('TABLES-FORMS'!N9-'PREFILLED-ANNUAL'!N9)/('PREFILLED-ANNUAL'!N9))","v":""},{"$f":"IF(ISERROR(('TABLES-FORMS'!O9-'PREFILLED-ANNUAL'!O9)/('PREFILLED-ANNUAL'!O9)),\"\",('TABLES-FORMS'!O9-'PREFILLED-ANNUAL'!O9)/('PREFILLED-ANNUAL'!O9))","v":""},{"$f":"IF(ISERROR(('TABLES-FORMS'!P9-'PREFILLED-ANNUAL'!P9)/('PREFILLED-ANNUAL'!P9)),\"\",('TABLES-FORMS'!P9-'PREFILLED-ANNUAL'!P9)/('PREFILLED-ANNUAL'!P9))","v":""},{"$f":"IF(ISERROR(('TABLES-FORMS'!Q9-'PREFILLED-ANNUAL'!Q9)/('PREFILLED-ANNUAL'!Q9)),\"\",('TABLES-FORMS'!Q9-'PREFILLED-ANNUAL'!Q9)/('PREFILLED-ANNUAL'!Q9))","v":""},{"$f":"IF(ISERROR(('TABLES-FORMS'!R9-'PREFILLED-ANNUAL'!R9)/('PREFILLED-ANNUAL'!R9)),\"\",('TABLES-FORMS'!R9-'PREFILLED-ANNUAL'!R9)/('PREFILLED-ANNUAL'!R9))","v":""},{"$f":"IF(ISERROR(('TABLES-FORMS'!S9-'PREFILLED-ANNUAL'!S9)/('PREFILLED-ANNUAL'!S9)),\"\",('TABLES-FORMS'!S9-'PREFILLED-ANNUAL'!S9)/('PREFILLED-ANNUAL'!S9))","v":""}]
[null,"Statistical Difference",{"$f":"IF(ISERROR(('TABLES-FORMS'!C10-'PREFILLED-ANNUAL'!C10)/('PREFILLED-ANNUAL'!C10)),\"\",('TABLES-FORMS'!C10-'PREFILLED-ANNUAL'!C10)/('PREFILLED-ANNUAL'!C10))","v":""},{"$f":"IF(ISERROR(('TABLES-FORMS'!D10-'PREFILLED-ANNUAL'!D10)/('PREFILLED-ANNUAL'!D10)),\"\",('TABLES-FORMS'!D10-'PREFILLED-ANNUAL'!D10)/('PREFILLED-ANNUAL'!D10))","v":""},{"$f":"IF(ISERROR(('TABLES-FORMS'!E10-'PREFILLED-ANNUAL'!E10)/('PREFILLED-ANNUAL'!E10)),\"\",('TABLES-FORMS'!E10-'PREFILLED-ANNUAL'!E10)/('PREFILLED-ANNUAL'!E10))","v":""},{"$f":"IF(ISERROR(('TABLES-FORMS'!F10-'PREFILLED-ANNUAL'!F10)/('PREFILLED-ANNUAL'!F10)),\"\",('TABLES-FORMS'!F10-'PREFILLED-ANNUAL'!F10)/('PREFILLED-ANNUAL'!F10))","v":""},{"$f":"IF(ISERROR(('TABLES-FORMS'!G10-'PREFILLED-ANNUAL'!G10)/('PREFILLED-ANNUAL'!G10)),\"\",('TABLES-FORMS'!G10-'PREFILLED-ANNUAL'!G10)/('PREFILLED-ANNUAL'!G10))","v":""},{"$f":"IF(ISERROR(('TABLES-FORMS'!H10-'PREFILLED-ANNUAL'!H10)/('PREFILLED-ANNUAL'!H10)),\"\",('TABLES-FORMS'!H10-'PREFILLED-ANNUAL'!H10)/('PREFILLED-ANNUAL'!H10))","v":""},{"$f":"IF(ISERROR(('TABLES-FORMS'!I10-'PREFILLED-ANNUAL'!I10)/('PREFILLED-ANNUAL'!I10)),\"\",('TABLES-FORMS'!I10-'PREFILLED-ANNUAL'!I10)/('PREFILLED-ANNUAL'!I10))","v":""},{"$f":"IF(ISERROR(('TABLES-FORMS'!J10-'PREFILLED-ANNUAL'!J10)/('PREFILLED-ANNUAL'!J10)),\"\",('TABLES-FORMS'!J10-'PREFILLED-ANNUAL'!J10)/('PREFILLED-ANNUAL'!J10))","v":""},{"$f":"IF(ISERROR(('TABLES-FORMS'!K10-'PREFILLED-ANNUAL'!K10)/('PREFILLED-ANNUAL'!K10)),\"\",('TABLES-FORMS'!K10-'PREFILLED-ANNUAL'!K10)/('PREFILLED-ANNUAL'!K10))","v":""},{"$f":"IF(ISERROR(('TABLES-FORMS'!L10-'PREFILLED-ANNUAL'!L10)/('PREFILLED-ANNUAL'!L10)),\"\",('TABLES-FORMS'!L10-'PREFILLED-ANNUAL'!L10)/('PREFILLED-ANNUAL'!L10))","v":""},{"$f":"IF(ISERROR(('TABLES-FORMS'!M10-'PREFILLED-ANNUAL'!M10)/('PREFILLED-ANNUAL'!M10)),\"\",('TABLES-FORMS'!M10-'PREFILLED-ANNUAL'!M10)/('PREFILLED-ANNUAL'!M10))","v":""},{"$f":"IF(ISERROR(('TABLES-FORMS'!N10-'PREFILLED-ANNUAL'!N10)/('PREFILLED-ANNUAL'!N10)),\"\",('TABLES-FORMS'!N10-'PREFILLED-ANNUAL'!N10)/('PREFILLED-ANNUAL'!N10))","v":""},{"$f":"IF(ISERROR(('TABLES-FORMS'!O10-'PREFILLED-ANNUAL'!O10)/('PREFILLED-ANNUAL'!O10)),\"\",('TABLES-FORMS'!O10-'PREFILLED-ANNUAL'!O10)/('PREFILLED-ANNUAL'!O10))","v":""},{"$f":"IF(ISERROR(('TABLES-FORMS'!P10-'PREFILLED-ANNUAL'!P10)/('PREFILLED-ANNUAL'!P10)),\"\",('TABLES-FORMS'!P10-'PREFILLED-ANNUAL'!P10)/('PREFILLED-ANNUAL'!P10))","v":""},{"$f":"IF(ISERROR(('TABLES-FORMS'!Q10-'PREFILLED-ANNUAL'!Q10)/('PREFILLED-ANNUAL'!Q10)),\"\",('TABLES-FORMS'!Q10-'PREFILLED-ANNUAL'!Q10)/('PREFILLED-ANNUAL'!Q10))","v":""},{"$f":"IF(ISERROR(('TABLES-FORMS'!R10-'PREFILLED-ANNUAL'!R10)/('PREFILLED-ANNUAL'!R10)),\"\",('TABLES-FORMS'!R10-'PREFILLED-ANNUAL'!R10)/('PREFILLED-ANNUAL'!R10))","v":""},{"$f":"IF(ISERROR(('TABLES-FORMS'!S10-'PREFILLED-ANNUAL'!S10)/('PREFILLED-ANNUAL'!S10)),\"\",('TABLES-FORMS'!S10-'PREFILLED-ANNUAL'!S10)/('PREFILLED-ANNUAL'!S10))","v":""}]
[null,"Inland consumption (Observed)",{"$f":"IF(ISERROR(('TABLES-FORMS'!C11-'PREFILLED-ANNUAL'!C11)/('PREFILLED-ANNUAL'!C11)),\"\",('TABLES-FORMS'!C11-'PREFILLED-ANNUAL'!C11)/('PREFILLED-ANNUAL'!C11))","v":""},{"$f":"IF(ISERROR(('TABLES-FORMS'!D11-'PREFILLED-ANNUAL'!D11)/('PREFILLED-ANNUAL'!D11)),\"\",('TABLES-FORMS'!D11-'PREFILLED-ANNUAL'!D11)/('PREFILLED-ANNUAL'!D11))","v":""},{"$f":"IF(ISERROR(('TABLES-FORMS'!E11-'PREFILLED-ANNUAL'!E11)/('PREFILLED-ANNUAL'!E11)),\"\",('TABLES-FORMS'!E11-'PREFILLED-ANNUAL'!E11)/('PREFILLED-ANNUAL'!E11))","v":""},{"$f":"IF(ISERROR(('TABLES-FORMS'!F11-'PREFILLED-ANNUAL'!F11)/('PREFILLED-ANNUAL'!F11)),\"\",('TABLES-FORMS'!F11-'PREFILLED-ANNUAL'!F11)/('PREFILLED-ANNUAL'!F11))","v":""},{"$f":"IF(ISERROR(('TABLES-FORMS'!G11-'PREFILLED-ANNUAL'!G11)/('PREFILLED-ANNUAL'!G11)),\"\",('TABLES-FORMS'!G11-'PREFILLED-ANNUAL'!G11)/('PREFILLED-ANNUAL'!G11))","v":""},{"$f":"IF(ISERROR(('TABLES-FORMS'!H11-'PREFILLED-ANNUAL'!H11)/('PREFILLED-ANNUAL'!H11)),\"\",('TABLES-FORMS'!H11-'PREFILLED-ANNUAL'!H11)/('PREFILLED-ANNUAL'!H11))","v":""},{"$f":"IF(ISERROR(('TABLES-FORMS'!I11-'PREFILLED-ANNUAL'!I11)/('PREFILLED-ANNUAL'!I11)),\"\",('TABLES-FORMS'!I11-'PREFILLED-ANNUAL'!I11)/('PREFILLED-ANNUAL'!I11))","v":""},{"$f":"IF(ISERROR(('TABLES-FORMS'!J11-'PREFILLED-ANNUAL'!J11)/('PREFILLED-ANNUAL'!J11)),\"\",('TABLES-FORMS'!J11-'PREFILLED-ANNUAL'!J11)/('PREFILLED-ANNUAL'!J11))","v":""},{"$f":"IF(ISERROR(('TABLES-FORMS'!K11-'PREFILLED-ANNUAL'!K11)/('PREFILLED-ANNUAL'!K11)),\"\",('TABLES-FORMS'!K11-'PREFILLED-ANNUAL'!K11)/('PREFILLED-ANNUAL'!K11))","v":""},{"$f":"IF(ISERROR(('TABLES-FORMS'!L11-'PREFILLED-ANNUAL'!L11)/('PREFILLED-ANNUAL'!L11)),\"\",('TABLES-FORMS'!L11-'PREFILLED-ANNUAL'!L11)/('PREFILLED-ANNUAL'!L11))","v":""},{"$f":"IF(ISERROR(('TABLES-FORMS'!M11-'PREFILLED-ANNUAL'!M11)/('PREFILLED-ANNUAL'!M11)),\"\",('TABLES-FORMS'!M11-'PREFILLED-ANNUAL'!M11)/('PREFILLED-ANNUAL'!M11))","v":""},{"$f":"IF(ISERROR(('TABLES-FORMS'!N11-'PREFILLED-ANNUAL'!N11)/('PREFILLED-ANNUAL'!N11)),\"\",('TABLES-FORMS'!N11-'PREFILLED-ANNUAL'!N11)/('PREFILLED-ANNUAL'!N11))","v":""},{"$f":"IF(ISERROR(('TABLES-FORMS'!O11-'PREFILLED-ANNUAL'!O11)/('PREFILLED-ANNUAL'!O11)),\"\",('TABLES-FORMS'!O11-'PREFILLED-ANNUAL'!O11)/('PREFILLED-ANNUAL'!O11))","v":""},{"$f":"IF(ISERROR(('TABLES-FORMS'!P11-'PREFILLED-ANNUAL'!P11)/('PREFILLED-ANNUAL'!P11)),\"\",('TABLES-FORMS'!P11-'PREFILLED-ANNUAL'!P11)/('PREFILLED-ANNUAL'!P11))","v":""},{"$f":"IF(ISERROR(('TABLES-FORMS'!Q11-'PREFILLED-ANNUAL'!Q11)/('PREFILLED-ANNUAL'!Q11)),\"\",('TABLES-FORMS'!Q11-'PREFILLED-ANNUAL'!Q11)/('PREFILLED-ANNUAL'!Q11))","v":""},{"$f":"IF(ISERROR(('TABLES-FORMS'!R11-'PREFILLED-ANNUAL'!R11)/('PREFILLED-ANNUAL'!R11)),\"\",('TABLES-FORMS'!R11-'PREFILLED-ANNUAL'!R11)/('PREFILLED-ANNUAL'!R11))","v":""},{"$f":"IF(ISERROR(('TABLES-FORMS'!S11-'PREFILLED-ANNUAL'!S11)/('PREFILLED-ANNUAL'!S11)),\"\",('TABLES-FORMS'!S11-'PREFILLED-ANNUAL'!S11)/('PREFILLED-ANNUAL'!S11))","v":""}]
[null,"Transformation sector",{"$f":"IF(ISERROR(('TABLES-FORMS'!C12-'PREFILLED-ANNUAL'!C12)/('PREFILLED-ANNUAL'!C12)),\"\",('TABLES-FORMS'!C12-'PREFILLED-ANNUAL'!C12)/('PREFILLED-ANNUAL'!C12))","v":""},{"$f":"IF(ISERROR(('TABLES-FORMS'!D12-'PREFILLED-ANNUAL'!D12)/('PREFILLED-ANNUAL'!D12)),\"\",('TABLES-FORMS'!D12-'PREFILLED-ANNUAL'!D12)/('PREFILLED-ANNUAL'!D12))","v":""},{"$f":"IF(ISERROR(('TABLES-FORMS'!E12-'PREFILLED-ANNUAL'!E12)/('PREFILLED-ANNUAL'!E12)),\"\",('TABLES-FORMS'!E12-'PREFILLED-ANNUAL'!E12)/('PREFILLED-ANNUAL'!E12))","v":""},{"$f":"IF(ISERROR(('TABLES-FORMS'!F12-'PREFILLED-ANNUAL'!F12)/('PREFILLED-ANNUAL'!F12)),\"\",('TABLES-FORMS'!F12-'PREFILLED-ANNUAL'!F12)/('PREFILLED-ANNUAL'!F12))","v":""},{"$f":"IF(ISERROR(('TABLES-FORMS'!G12-'PREFILLED-ANNUAL'!G12)/('PREFILLED-ANNUAL'!G12)),\"\",('TABLES-FORMS'!G12-'PREFILLED-ANNUAL'!G12)/('PREFILLED-ANNUAL'!G12))","v":""},{"$f":"IF(ISERROR(('TABLES-FORMS'!H12-'PREFILLED-ANNUAL'!H12)/('PREFILLED-ANNUAL'!H12)),\"\",('TABLES-FORMS'!H12-'PREFILLED-ANNUAL'!H12)/('PREFILLED-ANNUAL'!H12))","v":""},{"$f":"IF(ISERROR(('TABLES-FORMS'!I12-'PREFILLED-ANNUAL'!I12)/('PREFILLED-ANNUAL'!I12)),\"\",('TABLES-FORMS'!I12-'PREFILLED-ANNUAL'!I12)/('PREFILLED-ANNUAL'!I12))","v":""},{"$f":"IF(ISERROR(('TABLES-FORMS'!J12-'PREFILLED-ANNUAL'!J12)/('PREFILLED-ANNUAL'!J12)),\"\",('TABLES-FORMS'!J12-'PREFILLED-ANNUAL'!J12)/('PREFILLED-ANNUAL'!J12))","v":""},{"$f":"IF(ISERROR(('TABLES-FORMS'!K12-'PREFILLED-ANNUAL'!K12)/('PREFILLED-ANNUAL'!K12)),\"\",('TABLES-FORMS'!K12-'PREFILLED-ANNUAL'!K12)/('PREFILLED-ANNUAL'!K12))","v":""},{"$f":"IF(ISERROR(('TABLES-FORMS'!L12-'PREFILLED-ANNUAL'!L12)/('PREFILLED-ANNUAL'!L12)),\"\",('TABLES-FORMS'!L12-'PREFILLED-ANNUAL'!L12)/('PREFILLED-ANNUAL'!L12))","v":""},{"$f":"IF(ISERROR(('TABLES-FORMS'!M12-'PREFILLED-ANNUAL'!M12)/('PREFILLED-ANNUAL'!M12)),\"\",('TABLES-FORMS'!M12-'PREFILLED-ANNUAL'!M12)/('PREFILLED-ANNUAL'!M12))","v":""},{"$f":"IF(ISERROR(('TABLES-FORMS'!N12-'PREFILLED-ANNUAL'!N12)/('PREFILLED-ANNUAL'!N12)),\"\",('TABLES-FORMS'!N12-'PREFILLED-ANNUAL'!N12)/('PREFILLED-ANNUAL'!N12))","v":""},{"$f":"IF(ISERROR(('TABLES-FORMS'!O12-'PREFILLED-ANNUAL'!O12)/('PREFILLED-ANNUAL'!O12)),\"\",('TABLES-FORMS'!O12-'PREFILLED-ANNUAL'!O12)/('PREFILLED-ANNUAL'!O12))","v":""},{"$f":"IF(ISERROR(('TABLES-FORMS'!P12-'PREFILLED-ANNUAL'!P12)/('PREFILLED-ANNUAL'!P12)),\"\",('TABLES-FORMS'!P12-'PREFILLED-ANNUAL'!P12)/('PREFILLED-ANNUAL'!P12))","v":""},{"$f":"IF(ISERROR(('TABLES-FORMS'!Q12-'PREFILLED-ANNUAL'!Q12)/('PREFILLED-ANNUAL'!Q12)),\"\",('TABLES-FORMS'!Q12-'PREFILLED-ANNUAL'!Q12)/('PREFILLED-ANNUAL'!Q12))","v":""},{"$f":"IF(ISERROR(('TABLES-FORMS'!R12-'PREFILLED-ANNUAL'!R12)/('PREFILLED-ANNUAL'!R12)),\"\",('TABLES-FORMS'!R12-'PREFILLED-ANNUAL'!R12)/('PREFILLED-ANNUAL'!R12))","v":""},{"$f":"IF(ISERROR(('TABLES-FORMS'!S12-'PREFILLED-ANNUAL'!S12)/('PREFILLED-ANNUAL'!S12)),\"\",('TABLES-FORMS'!S12-'PREFILLED-ANNUAL'!S12)/('PREFILLED-ANNUAL'!S12))","v":""}]
[null,"Energy sector",{"$f":"IF(ISERROR(('TABLES-FORMS'!C13-'PREFILLED-ANNUAL'!C13)/('PREFILLED-ANNUAL'!C13)),\"\",('TABLES-FORMS'!C13-'PREFILLED-ANNUAL'!C13)/('PREFILLED-ANNUAL'!C13))","v":""},{"$f":"IF(ISERROR(('TABLES-FORMS'!D13-'PREFILLED-ANNUAL'!D13)/('PREFILLED-ANNUAL'!D13)),\"\",('TABLES-FORMS'!D13-'PREFILLED-ANNUAL'!D13)/('PREFILLED-ANNUAL'!D13))","v":""},{"$f":"IF(ISERROR(('TABLES-FORMS'!E13-'PREFILLED-ANNUAL'!E13)/('PREFILLED-ANNUAL'!E13)),\"\",('TABLES-FORMS'!E13-'PREFILLED-ANNUAL'!E13)/('PREFILLED-ANNUAL'!E13))","v":""},{"$f":"IF(ISERROR(('TABLES-FORMS'!F13-'PREFILLED-ANNUAL'!F13)/('PREFILLED-ANNUAL'!F13)),\"\",('TABLES-FORMS'!F13-'PREFILLED-ANNUAL'!F13)/('PREFILLED-ANNUAL'!F13))","v":""},{"$f":"IF(ISERROR(('TABLES-FORMS'!G13-'PREFILLED-ANNUAL'!G13)/('PREFILLED-ANNUAL'!G13)),\"\",('TABLES-FORMS'!G13-'PREFILLED-ANNUAL'!G13)/('PREFILLED-ANNUAL'!G13))","v":""},{"$f":"IF(ISERROR(('TABLES-FORMS'!H13-'PREFILLED-ANNUAL'!H13)/('PREFILLED-ANNUAL'!H13)),\"\",('TABLES-FORMS'!H13-'PREFILLED-ANNUAL'!H13)/('PREFILLED-ANNUAL'!H13))","v":""},{"$f":"IF(ISERROR(('TABLES-FORMS'!I13-'PREFILLED-ANNUAL'!I13)/('PREFILLED-ANNUAL'!I13)),\"\",('TABLES-FORMS'!I13-'PREFILLED-ANNUAL'!I13)/('PREFILLED-ANNUAL'!I13))","v":""},{"$f":"IF(ISERROR(('TABLES-FORMS'!J13-'PREFILLED-ANNUAL'!J13)/('PREFILLED-ANNUAL'!J13)),\"\",('TABLES-FORMS'!J13-'PREFILLED-ANNUAL'!J13)/('PREFILLED-ANNUAL'!J13))","v":""},{"$f":"IF(ISERROR(('TABLES-FORMS'!K13-'PREFILLED-ANNUAL'!K13)/('PREFILLED-ANNUAL'!K13)),\"\",('TABLES-FORMS'!K13-'PREFILLED-ANNUAL'!K13)/('PREFILLED-ANNUAL'!K13))","v":""},{"$f":"IF(ISERROR(('TABLES-FORMS'!L13-'PREFILLED-ANNUAL'!L13)/('PREFILLED-ANNUAL'!L13)),\"\",('TABLES-FORMS'!L13-'PREFILLED-ANNUAL'!L13)/('PREFILLED-ANNUAL'!L13))","v":""},{"$f":"IF(ISERROR(('TABLES-FORMS'!M13-'PREFILLED-ANNUAL'!M13)/('PREFILLED-ANNUAL'!M13)),\"\",('TABLES-FORMS'!M13-'PREFILLED-ANNUAL'!M13)/('PREFILLED-ANNUAL'!M13))","v":""},{"$f":"IF(ISERROR(('TABLES-FORMS'!N13-'PREFILLED-ANNUAL'!N13)/('PREFILLED-ANNUAL'!N13)),\"\",('TABLES-FORMS'!N13-'PREFILLED-ANNUAL'!N13)/('PREFILLED-ANNUAL'!N13))","v":""},{"$f":"IF(ISERROR(('TABLES-FORMS'!O13-'PREFILLED-ANNUAL'!O13)/('PREFILLED-ANNUAL'!O13)),\"\",('TABLES-FORMS'!O13-'PREFILLED-ANNUAL'!O13)/('PREFILLED-ANNUAL'!O13))","v":""},{"$f":"IF(ISERROR(('TABLES-FORMS'!P13-'PREFILLED-ANNUAL'!P13)/('PREFILLED-ANNUAL'!P13)),\"\",('TABLES-FORMS'!P13-'PREFILLED-ANNUAL'!P13)/('PREFILLED-ANNUAL'!P13))","v":""},{"$f":"IF(ISERROR(('TABLES-FORMS'!Q13-'PREFILLED-ANNUAL'!Q13)/('PREFILLED-ANNUAL'!Q13)),\"\",('TABLES-FORMS'!Q13-'PREFILLED-ANNUAL'!Q13)/('PREFILLED-ANNUAL'!Q13))","v":""},{"$f":"IF(ISERROR(('TABLES-FORMS'!R13-'PREFILLED-ANNUAL'!R13)/('PREFILLED-ANNUAL'!R13)),\"\",('TABLES-FORMS'!R13-'PREFILLED-ANNUAL'!R13)/('PREFILLED-ANNUAL'!R13))","v":""},{"$f":"IF(ISERROR(('TABLES-FORMS'!S13-'PREFILLED-ANNUAL'!S13)/('PREFILLED-ANNUAL'!S13)),\"\",('TABLES-FORMS'!S13-'PREFILLED-ANNUAL'!S13)/('PREFILLED-ANNUAL'!S13))","v":""}]
[null,"Distribution losses",{"$f":"IF(ISERROR(('TABLES-FORMS'!C14-'PREFILLED-ANNUAL'!C14)/('PREFILLED-ANNUAL'!C14)),\"\",('TABLES-FORMS'!C14-'PREFILLED-ANNUAL'!C14)/('PREFILLED-ANNUAL'!C14))","v":""},{"$f":"IF(ISERROR(('TABLES-FORMS'!D14-'PREFILLED-ANNUAL'!D14)/('PREFILLED-ANNUAL'!D14)),\"\",('TABLES-FORMS'!D14-'PREFILLED-ANNUAL'!D14)/('PREFILLED-ANNUAL'!D14))","v":""},{"$f":"IF(ISERROR(('TABLES-FORMS'!E14-'PREFILLED-ANNUAL'!E14)/('PREFILLED-ANNUAL'!E14)),\"\",('TABLES-FORMS'!E14-'PREFILLED-ANNUAL'!E14)/('PREFILLED-ANNUAL'!E14))","v":""},{"$f":"IF(ISERROR(('TABLES-FORMS'!F14-'PREFILLED-ANNUAL'!F14)/('PREFILLED-ANNUAL'!F14)),\"\",('TABLES-FORMS'!F14-'PREFILLED-ANNUAL'!F14)/('PREFILLED-ANNUAL'!F14))","v":""},{"$f":"IF(ISERROR(('TABLES-FORMS'!G14-'PREFILLED-ANNUAL'!G14)/('PREFILLED-ANNUAL'!G14)),\"\",('TABLES-FORMS'!G14-'PREFILLED-ANNUAL'!G14)/('PREFILLED-ANNUAL'!G14))","v":""},{"$f":"IF(ISERROR(('TABLES-FORMS'!H14-'PREFILLED-ANNUAL'!H14)/('PREFILLED-ANNUAL'!H14)),\"\",('TABLES-FORMS'!H14-'PREFILLED-ANNUAL'!H14)/('PREFILLED-ANNUAL'!H14))","v":""},{"$f":"IF(ISERROR(('TABLES-FORMS'!I14-'PREFILLED-ANNUAL'!I14)/('PREFILLED-ANNUAL'!I14)),\"\",('TABLES-FORMS'!I14-'PREFILLED-ANNUAL'!I14)/('PREFILLED-ANNUAL'!I14))","v":""},{"$f":"IF(ISERROR(('TABLES-FORMS'!J14-'PREFILLED-ANNUAL'!J14)/('PREFILLED-ANNUAL'!J14)),\"\",('TABLES-FORMS'!J14-'PREFILLED-ANNUAL'!J14)/('PREFILLED-ANNUAL'!J14))","v":""},{"$f":"IF(ISERROR(('TABLES-FORMS'!K14-'PREFILLED-ANNUAL'!K14)/('PREFILLED-ANNUAL'!K14)),\"\",('TABLES-FORMS'!K14-'PREFILLED-ANNUAL'!K14)/('PREFILLED-ANNUAL'!K14))","v":""},{"$f":"IF(ISERROR(('TABLES-FORMS'!L14-'PREFILLED-ANNUAL'!L14)/('PREFILLED-ANNUAL'!L14)),\"\",('TABLES-FORMS'!L14-'PREFILLED-ANNUAL'!L14)/('PREFILLED-ANNUAL'!L14))","v":""},{"$f":"IF(ISERROR(('TABLES-FORMS'!M14-'PREFILLED-ANNUAL'!M14)/('PREFILLED-ANNUAL'!M14)),\"\",('TABLES-FORMS'!M14-'PREFILLED-ANNUAL'!M14)/('PREFILLED-ANNUAL'!M14))","v":""},{"$f":"IF(ISERROR(('TABLES-FORMS'!N14-'PREFILLED-ANNUAL'!N14)/('PREFILLED-ANNUAL'!N14)),\"\",('TABLES-FORMS'!N14-'PREFILLED-ANNUAL'!N14)/('PREFILLED-ANNUAL'!N14))","v":""},{"$f":"IF(ISERROR(('TABLES-FORMS'!O14-'PREFILLED-ANNUAL'!O14)/('PREFILLED-ANNUAL'!O14)),\"\",('TABLES-FORMS'!O14-'PREFILLED-ANNUAL'!O14)/('PREFILLED-ANNUAL'!O14))","v":""},{"$f":"IF(ISERROR(('TABLES-FORMS'!P14-'PREFILLED-ANNUAL'!P14)/('PREFILLED-ANNUAL'!P14)),\"\",('TABLES-FORMS'!P14-'PREFILLED-ANNUAL'!P14)/('PREFILLED-ANNUAL'!P14))","v":""},{"$f":"IF(ISERROR(('TABLES-FORMS'!Q14-'PREFILLED-ANNUAL'!Q14)/('PREFILLED-ANNUAL'!Q14)),\"\",('TABLES-FORMS'!Q14-'PREFILLED-ANNUAL'!Q14)/('PREFILLED-ANNUAL'!Q14))","v":""},{"$f":"IF(ISERROR(('TABLES-FORMS'!R14-'PREFILLED-ANNUAL'!R14)/('PREFILLED-ANNUAL'!R14)),\"\",('TABLES-FORMS'!R14-'PREFILLED-ANNUAL'!R14)/('PREFILLED-ANNUAL'!R14))","v":""},{"$f":"IF(ISERROR(('TABLES-FORMS'!S14-'PREFILLED-ANNUAL'!S14)/('PREFILLED-ANNUAL'!S14)),\"\",('TABLES-FORMS'!S14-'PREFILLED-ANNUAL'!S14)/('PREFILLED-ANNUAL'!S14))","v":""}]
[null,"Total final consumption",{"$f":"IF(ISERROR(('TABLES-FORMS'!C15-'PREFILLED-ANNUAL'!C15)/('PREFILLED-ANNUAL'!C15)),\"\",('TABLES-FORMS'!C15-'PREFILLED-ANNUAL'!C15)/('PREFILLED-ANNUAL'!C15))","v":""},{"$f":"IF(ISERROR(('TABLES-FORMS'!D15-'PREFILLED-ANNUAL'!D15)/('PREFILLED-ANNUAL'!D15)),\"\",('TABLES-FORMS'!D15-'PREFILLED-ANNUAL'!D15)/('PREFILLED-ANNUAL'!D15))","v":""},{"$f":"IF(ISERROR(('TABLES-FORMS'!E15-'PREFILLED-ANNUAL'!E15)/('PREFILLED-ANNUAL'!E15)),\"\",('TABLES-FORMS'!E15-'PREFILLED-ANNUAL'!E15)/('PREFILLED-ANNUAL'!E15))","v":""},{"$f":"IF(ISERROR(('TABLES-FORMS'!F15-'PREFILLED-ANNUAL'!F15)/('PREFILLED-ANNUAL'!F15)),\"\",('TABLES-FORMS'!F15-'PREFILLED-ANNUAL'!F15)/('PREFILLED-ANNUAL'!F15))","v":""},{"$f":"IF(ISERROR(('TABLES-FORMS'!G15-'PREFILLED-ANNUAL'!G15)/('PREFILLED-ANNUAL'!G15)),\"\",('TABLES-FORMS'!G15-'PREFILLED-ANNUAL'!G15)/('PREFILLED-ANNUAL'!G15))","v":""},{"$f":"IF(ISERROR(('TABLES-FORMS'!H15-'PREFILLED-ANNUAL'!H15)/('PREFILLED-ANNUAL'!H15)),\"\",('TABLES-FORMS'!H15-'PREFILLED-ANNUAL'!H15)/('PREFILLED-ANNUAL'!H15))","v":""},{"$f":"IF(ISERROR(('TABLES-FORMS'!I15-'PREFILLED-ANNUAL'!I15)/('PREFILLED-ANNUAL'!I15)),\"\",('TABLES-FORMS'!I15-'PREFILLED-ANNUAL'!I15)/('PREFILLED-ANNUAL'!I15))","v":""},{"$f":"IF(ISERROR(('TABLES-FORMS'!J15-'PREFILLED-ANNUAL'!J15)/('PREFILLED-ANNUAL'!J15)),\"\",('TABLES-FORMS'!J15-'PREFILLED-ANNUAL'!J15)/('PREFILLED-ANNUAL'!J15))","v":""},{"$f":"IF(ISERROR(('TABLES-FORMS'!K15-'PREFILLED-ANNUAL'!K15)/('PREFILLED-ANNUAL'!K15)),\"\",('TABLES-FORMS'!K15-'PREFILLED-ANNUAL'!K15)/('PREFILLED-ANNUAL'!K15))","v":""},{"$f":"IF(ISERROR(('TABLES-FORMS'!L15-'PREFILLED-ANNUAL'!L15)/('PREFILLED-ANNUAL'!L15)),\"\",('TABLES-FORMS'!L15-'PREFILLED-ANNUAL'!L15)/('PREFILLED-ANNUAL'!L15))","v":""},{"$f":"IF(ISERROR(('TABLES-FORMS'!M15-'PREFILLED-ANNUAL'!M15)/('PREFILLED-ANNUAL'!M15)),\"\",('TABLES-FORMS'!M15-'PREFILLED-ANNUAL'!M15)/('PREFILLED-ANNUAL'!M15))","v":""},{"$f":"IF(ISERROR(('TABLES-FORMS'!N15-'PREFILLED-ANNUAL'!N15)/('PREFILLED-ANNUAL'!N15)),\"\",('TABLES-FORMS'!N15-'PREFILLED-ANNUAL'!N15)/('PREFILLED-ANNUAL'!N15))","v":""},{"$f":"IF(ISERROR(('TABLES-FORMS'!O15-'PREFILLED-ANNUAL'!O15)/('PREFILLED-ANNUAL'!O15)),\"\",('TABLES-FORMS'!O15-'PREFILLED-ANNUAL'!O15)/('PREFILLED-ANNUAL'!O15))","v":""},{"$f":"IF(ISERROR(('TABLES-FORMS'!P15-'PREFILLED-ANNUAL'!P15)/('PREFILLED-ANNUAL'!P15)),\"\",('TABLES-FORMS'!P15-'PREFILLED-ANNUAL'!P15)/('PREFILLED-ANNUAL'!P15))","v":""},{"$f":"IF(ISERROR(('TABLES-FORMS'!Q15-'PREFILLED-ANNUAL'!Q15)/('PREFILLED-ANNUAL'!Q15)),\"\",('TABLES-FORMS'!Q15-'PREFILLED-ANNUAL'!Q15)/('PREFILLED-ANNUAL'!Q15))","v":""},{"$f":"IF(ISERROR(('TABLES-FORMS'!R15-'PREFILLED-ANNUAL'!R15)/('PREFILLED-ANNUAL'!R15)),\"\",('TABLES-FORMS'!R15-'PREFILLED-ANNUAL'!R15)/('PREFILLED-ANNUAL'!R15))","v":""},{"$f":"IF(ISERROR(('TABLES-FORMS'!S15-'PREFILLED-ANNUAL'!S15)/('PREFILLED-ANNUAL'!S15)),\"\",('TABLES-FORMS'!S15-'PREFILLED-ANNUAL'!S15)/('PREFILLED-ANNUAL'!S15))","v":""}]
[null,"Total final non-energy consumption",{"$f":"IF(ISERROR(('TABLES-FORMS'!C16-'PREFILLED-ANNUAL'!C16)/('PREFILLED-ANNUAL'!C16)),\"\",('TABLES-FORMS'!C16-'PREFILLED-ANNUAL'!C16)/('PREFILLED-ANNUAL'!C16))","v":""},{"$f":"IF(ISERROR(('TABLES-FORMS'!D16-'PREFILLED-ANNUAL'!D16)/('PREFILLED-ANNUAL'!D16)),\"\",('TABLES-FORMS'!D16-'PREFILLED-ANNUAL'!D16)/('PREFILLED-ANNUAL'!D16))","v":""},{"$f":"IF(ISERROR(('TABLES-FORMS'!E16-'PREFILLED-ANNUAL'!E16)/('PREFILLED-ANNUAL'!E16)),\"\",('TABLES-FORMS'!E16-'PREFILLED-ANNUAL'!E16)/('PREFILLED-ANNUAL'!E16))","v":""},{"$f":"IF(ISERROR(('TABLES-FORMS'!F16-'PREFILLED-ANNUAL'!F16)/('PREFILLED-ANNUAL'!F16)),\"\",('TABLES-FORMS'!F16-'PREFILLED-ANNUAL'!F16)/('PREFILLED-ANNUAL'!F16))","v":""},{"$f":"IF(ISERROR(('TABLES-FORMS'!G16-'PREFILLED-ANNUAL'!G16)/('PREFILLED-ANNUAL'!G16)),\"\",('TABLES-FORMS'!G16-'PREFILLED-ANNUAL'!G16)/('PREFILLED-ANNUAL'!G16))","v":""},{"$f":"IF(ISERROR(('TABLES-FORMS'!H16-'PREFILLED-ANNUAL'!H16)/('PREFILLED-ANNUAL'!H16)),\"\",('TABLES-FORMS'!H16-'PREFILLED-ANNUAL'!H16)/('PREFILLED-ANNUAL'!H16))","v":""},{"$f":"IF(ISERROR(('TABLES-FORMS'!I16-'PREFILLED-ANNUAL'!I16)/('PREFILLED-ANNUAL'!I16)),\"\",('TABLES-FORMS'!I16-'PREFILLED-ANNUAL'!I16)/('PREFILLED-ANNUAL'!I16))","v":""},{"$f":"IF(ISERROR(('TABLES-FORMS'!J16-'PREFILLED-ANNUAL'!J16)/('PREFILLED-ANNUAL'!J16)),\"\",('TABLES-FORMS'!J16-'PREFILLED-ANNUAL'!J16)/('PREFILLED-ANNUAL'!J16))","v":""},{"$f":"IF(ISERROR(('TABLES-FORMS'!K16-'PREFILLED-ANNUAL'!K16)/('PREFILLED-ANNUAL'!K16)),\"\",('TABLES-FORMS'!K16-'PREFILLED-ANNUAL'!K16)/('PREFILLED-ANNUAL'!K16))","v":""},{"$f":"IF(ISERROR(('TABLES-FORMS'!L16-'PREFILLED-ANNUAL'!L16)/('PREFILLED-ANNUAL'!L16)),\"\",('TABLES-FORMS'!L16-'PREFILLED-ANNUAL'!L16)/('PREFILLED-ANNUAL'!L16))","v":""},{"$f":"IF(ISERROR(('TABLES-FORMS'!M16-'PREFILLED-ANNUAL'!M16)/('PREFILLED-ANNUAL'!M16)),\"\",('TABLES-FORMS'!M16-'PREFILLED-ANNUAL'!M16)/('PREFILLED-ANNUAL'!M16))","v":""},{"$f":"IF(ISERROR(('TABLES-FORMS'!N16-'PREFILLED-ANNUAL'!N16)/('PREFILLED-ANNUAL'!N16)),\"\",('TABLES-FORMS'!N16-'PREFILLED-ANNUAL'!N16)/('PREFILLED-ANNUAL'!N16))","v":""},{"$f":"IF(ISERROR(('TABLES-FORMS'!O16-'PREFILLED-ANNUAL'!O16)/('PREFILLED-ANNUAL'!O16)),\"\",('TABLES-FORMS'!O16-'PREFILLED-ANNUAL'!O16)/('PREFILLED-ANNUAL'!O16))","v":""},{"$f":"IF(ISERROR(('TABLES-FORMS'!P16-'PREFILLED-ANNUAL'!P16)/('PREFILLED-ANNUAL'!P16)),\"\",('TABLES-FORMS'!P16-'PREFILLED-ANNUAL'!P16)/('PREFILLED-ANNUAL'!P16))","v":""},{"$f":"IF(ISERROR(('TABLES-FORMS'!Q16-'PREFILLED-ANNUAL'!Q16)/('PREFILLED-ANNUAL'!Q16)),\"\",('TABLES-FORMS'!Q16-'PREFILLED-ANNUAL'!Q16)/('PREFILLED-ANNUAL'!Q16))","v":""},{"$f":"IF(ISERROR(('TABLES-FORMS'!R16-'PREFILLED-ANNUAL'!R16)/('PREFILLED-ANNUAL'!R16)),\"\",('TABLES-FORMS'!R16-'PREFILLED-ANNUAL'!R16)/('PREFILLED-ANNUAL'!R16))","v":""},{"$f":"IF(ISERROR(('TABLES-FORMS'!S16-'PREFILLED-ANNUAL'!S16)/('PREFILLED-ANNUAL'!S16)),\"\",('TABLES-FORMS'!S16-'PREFILLED-ANNUAL'!S16)/('PREFILLED-ANNUAL'!S16))","v":""}]
[null,"Total final energy consumption",{"$f":"IF(ISERROR(('TABLES-FORMS'!C17-'PREFILLED-ANNUAL'!C17)/('PREFILLED-ANNUAL'!C17)),\"\",('TABLES-FORMS'!C17-'PREFILLED-ANNUAL'!C17)/('PREFILLED-ANNUAL'!C17))","v":""},{"$f":"IF(ISERROR(('TABLES-FORMS'!D17-'PREFILLED-ANNUAL'!D17)/('PREFILLED-ANNUAL'!D17)),\"\",('TABLES-FORMS'!D17-'PREFILLED-ANNUAL'!D17)/('PREFILLED-ANNUAL'!D17))","v":""},{"$f":"IF(ISERROR(('TABLES-FORMS'!E17-'PREFILLED-ANNUAL'!E17)/('PREFILLED-ANNUAL'!E17)),\"\",('TABLES-FORMS'!E17-'PREFILLED-ANNUAL'!E17)/('PREFILLED-ANNUAL'!E17))","v":""},{"$f":"IF(ISERROR(('TABLES-FORMS'!F17-'PREFILLED-ANNUAL'!F17)/('PREFILLED-ANNUAL'!F17)),\"\",('TABLES-FORMS'!F17-'PREFILLED-ANNUAL'!F17)/('PREFILLED-ANNUAL'!F17))","v":""},{"$f":"IF(ISERROR(('TABLES-FORMS'!G17-'PREFILLED-ANNUAL'!G17)/('PREFILLED-ANNUAL'!G17)),\"\",('TABLES-FORMS'!G17-'PREFILLED-ANNUAL'!G17)/('PREFILLED-ANNUAL'!G17))","v":""},{"$f":"IF(ISERROR(('TABLES-FORMS'!H17-'PREFILLED-ANNUAL'!H17)/('PREFILLED-ANNUAL'!H17)),\"\",('TABLES-FORMS'!H17-'PREFILLED-ANNUAL'!H17)/('PREFILLED-ANNUAL'!H17))","v":""},{"$f":"IF(ISERROR(('TABLES-FORMS'!I17-'PREFILLED-ANNUAL'!I17)/('PREFILLED-ANNUAL'!I17)),\"\",('TABLES-FORMS'!I17-'PREFILLED-ANNUAL'!I17)/('PREFILLED-ANNUAL'!I17))","v":""},{"$f":"IF(ISERROR(('TABLES-FORMS'!J17-'PREFILLED-ANNUAL'!J17)/('PREFILLED-ANNUAL'!J17)),\"\",('TABLES-FORMS'!J17-'PREFILLED-ANNUAL'!J17)/('PREFILLED-ANNUAL'!J17))","v":""},{"$f":"IF(ISERROR(('TABLES-FORMS'!K17-'PREFILLED-ANNUAL'!K17)/('PREFILLED-ANNUAL'!K17)),\"\",('TABLES-FORMS'!K17-'PREFILLED-ANNUAL'!K17)/('PREFILLED-ANNUAL'!K17))","v":""},{"$f":"IF(ISERROR(('TABLES-FORMS'!L17-'PREFILLED-ANNUAL'!L17)/('PREFILLED-ANNUAL'!L17)),\"\",('TABLES-FORMS'!L17-'PREFILLED-ANNUAL'!L17)/('PREFILLED-ANNUAL'!L17))","v":""},{"$f":"IF(ISERROR(('TABLES-FORMS'!M17-'PREFILLED-ANNUAL'!M17)/('PREFILLED-ANNUAL'!M17)),\"\",('TABLES-FORMS'!M17-'PREFILLED-ANNUAL'!M17)/('PREFILLED-ANNUAL'!M17))","v":""},{"$f":"IF(ISERROR(('TABLES-FORMS'!N17-'PREFILLED-ANNUAL'!N17)/('PREFILLED-ANNUAL'!N17)),\"\",('TABLES-FORMS'!N17-'PREFILLED-ANNUAL'!N17)/('PREFILLED-ANNUAL'!N17))","v":""},{"$f":"IF(ISERROR(('TABLES-FORMS'!O17-'PREFILLED-ANNUAL'!O17)/('PREFILLED-ANNUAL'!O17)),\"\",('TABLES-FORMS'!O17-'PREFILLED-ANNUAL'!O17)/('PREFILLED-ANNUAL'!O17))","v":""},{"$f":"IF(ISERROR(('TABLES-FORMS'!P17-'PREFILLED-ANNUAL'!P17)/('PREFILLED-ANNUAL'!P17)),\"\",('TABLES-FORMS'!P17-'PREFILLED-ANNUAL'!P17)/('PREFILLED-ANNUAL'!P17))","v":""},{"$f":"IF(ISERROR(('TABLES-FORMS'!Q17-'PREFILLED-ANNUAL'!Q17)/('PREFILLED-ANNUAL'!Q17)),\"\",('TABLES-FORMS'!Q17-'PREFILLED-ANNUAL'!Q17)/('PREFILLED-ANNUAL'!Q17))","v":""},{"$f":"IF(ISERROR(('TABLES-FORMS'!R17-'PREFILLED-ANNUAL'!R17)/('PREFILLED-ANNUAL'!R17)),\"\",('TABLES-FORMS'!R17-'PREFILLED-ANNUAL'!R17)/('PREFILLED-ANNUAL'!R17))","v":""},{"$f":"IF(ISERROR(('TABLES-FORMS'!S17-'PREFILLED-ANNUAL'!S17)/('PREFILLED-ANNUAL'!S17)),\"\",('TABLES-FORMS'!S17-'PREFILLED-ANNUAL'!S17)/('PREFILLED-ANNUAL'!S17))","v":""}]
[null,"Industry sector",{"$f":"IF(ISERROR(('TABLES-FORMS'!C18-'PREFILLED-ANNUAL'!C18)/('PREFILLED-ANNUAL'!C18)),\"\",('TABLES-FORMS'!C18-'PREFILLED-ANNUAL'!C18)/('PREFILLED-ANNUAL'!C18))","v":""},{"$f":"IF(ISERROR(('TABLES-FORMS'!D18-'PREFILLED-ANNUAL'!D18)/('PREFILLED-ANNUAL'!D18)),\"\",('TABLES-FORMS'!D18-'PREFILLED-ANNUAL'!D18)/('PREFILLED-ANNUAL'!D18))","v":""},{"$f":"IF(ISERROR(('TABLES-FORMS'!E18-'PREFILLED-ANNUAL'!E18)/('PREFILLED-ANNUAL'!E18)),\"\",('TABLES-FORMS'!E18-'PREFILLED-ANNUAL'!E18)/('PREFILLED-ANNUAL'!E18))","v":""},{"$f":"IF(ISERROR(('TABLES-FORMS'!F18-'PREFILLED-ANNUAL'!F18)/('PREFILLED-ANNUAL'!F18)),\"\",('TABLES-FORMS'!F18-'PREFILLED-ANNUAL'!F18)/('PREFILLED-ANNUAL'!F18))","v":""},{"$f":"IF(ISERROR(('TABLES-FORMS'!G18-'PREFILLED-ANNUAL'!G18)/('PREFILLED-ANNUAL'!G18)),\"\",('TABLES-FORMS'!G18-'PREFILLED-ANNUAL'!G18)/('PREFILLED-ANNUAL'!G18))","v":""},{"$f":"IF(ISERROR(('TABLES-FORMS'!H18-'PREFILLED-ANNUAL'!H18)/('PREFILLED-ANNUAL'!H18)),\"\",('TABLES-FORMS'!H18-'PREFILLED-ANNUAL'!H18)/('PREFILLED-ANNUAL'!H18))","v":""},{"$f":"IF(ISERROR(('TABLES-FORMS'!I18-'PREFILLED-ANNUAL'!I18)/('PREFILLED-ANNUAL'!I18)),\"\",('TABLES-FORMS'!I18-'PREFILLED-ANNUAL'!I18)/('PREFILLED-ANNUAL'!I18))","v":""},{"$f":"IF(ISERROR(('TABLES-FORMS'!J18-'PREFILLED-ANNUAL'!J18)/('PREFILLED-ANNUAL'!J18)),\"\",('TABLES-FORMS'!J18-'PREFILLED-ANNUAL'!J18)/('PREFILLED-ANNUAL'!J18))","v":""},{"$f":"IF(ISERROR(('TABLES-FORMS'!K18-'PREFILLED-ANNUAL'!K18)/('PREFILLED-ANNUAL'!K18)),\"\",('TABLES-FORMS'!K18-'PREFILLED-ANNUAL'!K18)/('PREFILLED-ANNUAL'!K18))","v":""},{"$f":"IF(ISERROR(('TABLES-FORMS'!L18-'PREFILLED-ANNUAL'!L18)/('PREFILLED-ANNUAL'!L18)),\"\",('TABLES-FORMS'!L18-'PREFILLED-ANNUAL'!L18)/('PREFILLED-ANNUAL'!L18))","v":""},{"$f":"IF(ISERROR(('TABLES-FORMS'!M18-'PREFILLED-ANNUAL'!M18)/('PREFILLED-ANNUAL'!M18)),\"\",('TABLES-FORMS'!M18-'PREFILLED-ANNUAL'!M18)/('PREFILLED-ANNUAL'!M18))","v":""},{"$f":"IF(ISERROR(('TABLES-FORMS'!N18-'PREFILLED-ANNUAL'!N18)/('PREFILLED-ANNUAL'!N18)),\"\",('TABLES-FORMS'!N18-'PREFILLED-ANNUAL'!N18)/('PREFILLED-ANNUAL'!N18))","v":""},{"$f":"IF(ISERROR(('TABLES-FORMS'!O18-'PREFILLED-ANNUAL'!O18)/('PREFILLED-ANNUAL'!O18)),\"\",('TABLES-FORMS'!O18-'PREFILLED-ANNUAL'!O18)/('PREFILLED-ANNUAL'!O18))","v":""},{"$f":"IF(ISERROR(('TABLES-FORMS'!P18-'PREFILLED-ANNUAL'!P18)/('PREFILLED-ANNUAL'!P18)),\"\",('TABLES-FORMS'!P18-'PREFILLED-ANNUAL'!P18)/('PREFILLED-ANNUAL'!P18))","v":""},{"$f":"IF(ISERROR(('TABLES-FORMS'!Q18-'PREFILLED-ANNUAL'!Q18)/('PREFILLED-ANNUAL'!Q18)),\"\",('TABLES-FORMS'!Q18-'PREFILLED-ANNUAL'!Q18)/('PREFILLED-ANNUAL'!Q18))","v":""},{"$f":"IF(ISERROR(('TABLES-FORMS'!R18-'PREFILLED-ANNUAL'!R18)/('PREFILLED-ANNUAL'!R18)),\"\",('TABLES-FORMS'!R18-'PREFILLED-ANNUAL'!R18)/('PREFILLED-ANNUAL'!R18))","v":""},{"$f":"IF(ISERROR(('TABLES-FORMS'!S18-'PREFILLED-ANNUAL'!S18)/('PREFILLED-ANNUAL'!S18)),\"\",('TABLES-FORMS'!S18-'PREFILLED-ANNUAL'!S18)/('PREFILLED-ANNUAL'!S18))","v":""}]
[null,"Transport sector",{"$f":"IF(ISERROR(('TABLES-FORMS'!C19-'PREFILLED-ANNUAL'!C19)/('PREFILLED-ANNUAL'!C19)),\"\",('TABLES-FORMS'!C19-'PREFILLED-ANNUAL'!C19)/('PREFILLED-ANNUAL'!C19))","v":""},{"$f":"IF(ISERROR(('TABLES-FORMS'!D19-'PREFILLED-ANNUAL'!D19)/('PREFILLED-ANNUAL'!D19)),\"\",('TABLES-FORMS'!D19-'PREFILLED-ANNUAL'!D19)/('PREFILLED-ANNUAL'!D19))","v":""},{"$f":"IF(ISERROR(('TABLES-FORMS'!E19-'PREFILLED-ANNUAL'!E19)/('PREFILLED-ANNUAL'!E19)),\"\",('TABLES-FORMS'!E19-'PREFILLED-ANNUAL'!E19)/('PREFILLED-ANNUAL'!E19))","v":""},{"$f":"IF(ISERROR(('TABLES-FORMS'!F19-'PREFILLED-ANNUAL'!F19)/('PREFILLED-ANNUAL'!F19)),\"\",('TABLES-FORMS'!F19-'PREFILLED-ANNUAL'!F19)/('PREFILLED-ANNUAL'!F19))","v":""},{"$f":"IF(ISERROR(('TABLES-FORMS'!G19-'PREFILLED-ANNUAL'!G19)/('PREFILLED-ANNUAL'!G19)),\"\",('TABLES-FORMS'!G19-'PREFILLED-ANNUAL'!G19)/('PREFILLED-ANNUAL'!G19))","v":""},{"$f":"IF(ISERROR(('TABLES-FORMS'!H19-'PREFILLED-ANNUAL'!H19)/('PREFILLED-ANNUAL'!H19)),\"\",('TABLES-FORMS'!H19-'PREFILLED-ANNUAL'!H19)/('PREFILLED-ANNUAL'!H19))","v":""},{"$f":"IF(ISERROR(('TABLES-FORMS'!I19-'PREFILLED-ANNUAL'!I19)/('PREFILLED-ANNUAL'!I19)),\"\",('TABLES-FORMS'!I19-'PREFILLED-ANNUAL'!I19)/('PREFILLED-ANNUAL'!I19))","v":""},{"$f":"IF(ISERROR(('TABLES-FORMS'!J19-'PREFILLED-ANNUAL'!J19)/('PREFILLED-ANNUAL'!J19)),\"\",('TABLES-FORMS'!J19-'PREFILLED-ANNUAL'!J19)/('PREFILLED-ANNUAL'!J19))","v":""},{"$f":"IF(ISERROR(('TABLES-FORMS'!K19-'PREFILLED-ANNUAL'!K19)/('PREFILLED-ANNUAL'!K19)),\"\",('TABLES-FORMS'!K19-'PREFILLED-ANNUAL'!K19)/('PREFILLED-ANNUAL'!K19))","v":""},{"$f":"IF(ISERROR(('TABLES-FORMS'!L19-'PREFILLED-ANNUAL'!L19)/('PREFILLED-ANNUAL'!L19)),\"\",('TABLES-FORMS'!L19-'PREFILLED-ANNUAL'!L19)/('PREFILLED-ANNUAL'!L19))","v":""},{"$f":"IF(ISERROR(('TABLES-FORMS'!M19-'PREFILLED-ANNUAL'!M19)/('PREFILLED-ANNUAL'!M19)),\"\",('TABLES-FORMS'!M19-'PREFILLED-ANNUAL'!M19)/('PREFILLED-ANNUAL'!M19))","v":""},{"$f":"IF(ISERROR(('TABLES-FORMS'!N19-'PREFILLED-ANNUAL'!N19)/('PREFILLED-ANNUAL'!N19)),\"\",('TABLES-FORMS'!N19-'PREFILLED-ANNUAL'!N19)/('PREFILLED-ANNUAL'!N19))","v":""},{"$f":"IF(ISERROR(('TABLES-FORMS'!O19-'PREFILLED-ANNUAL'!O19)/('PREFILLED-ANNUAL'!O19)),\"\",('TABLES-FORMS'!O19-'PREFILLED-ANNUAL'!O19)/('PREFILLED-ANNUAL'!O19))","v":""},{"$f":"IF(ISERROR(('TABLES-FORMS'!P19-'PREFILLED-ANNUAL'!P19)/('PREFILLED-ANNUAL'!P19)),\"\",('TABLES-FORMS'!P19-'PREFILLED-ANNUAL'!P19)/('PREFILLED-ANNUAL'!P19))","v":""},{"$f":"IF(ISERROR(('TABLES-FORMS'!Q19-'PREFILLED-ANNUAL'!Q19)/('PREFILLED-ANNUAL'!Q19)),\"\",('TABLES-FORMS'!Q19-'PREFILLED-ANNUAL'!Q19)/('PREFILLED-ANNUAL'!Q19))","v":""},{"$f":"IF(ISERROR(('TABLES-FORMS'!R19-'PREFILLED-ANNUAL'!R19)/('PREFILLED-ANNUAL'!R19)),\"\",('TABLES-FORMS'!R19-'PREFILLED-ANNUAL'!R19)/('PREFILLED-ANNUAL'!R19))","v":""},{"$f":"IF(ISERROR(('TABLES-FORMS'!S19-'PREFILLED-ANNUAL'!S19)/('PREFILLED-ANNUAL'!S19)),\"\",('TABLES-FORMS'!S19-'PREFILLED-ANNUAL'!S19)/('PREFILLED-ANNUAL'!S19))","v":""}]
[null,"Other sectors",{"$f":"IF(ISERROR(('TABLES-FORMS'!C20-'PREFILLED-ANNUAL'!C20)/('PREFILLED-ANNUAL'!C20)),\"\",('TABLES-FORMS'!C20-'PREFILLED-ANNUAL'!C20)/('PREFILLED-ANNUAL'!C20))","v":""},{"$f":"IF(ISERROR(('TABLES-FORMS'!D20-'PREFILLED-ANNUAL'!D20)/('PREFILLED-ANNUAL'!D20)),\"\",('TABLES-FORMS'!D20-'PREFILLED-ANNUAL'!D20)/('PREFILLED-ANNUAL'!D20))","v":""},{"$f":"IF(ISERROR(('TABLES-FORMS'!E20-'PREFILLED-ANNUAL'!E20)/('PREFILLED-ANNUAL'!E20)),\"\",('TABLES-FORMS'!E20-'PREFILLED-ANNUAL'!E20)/('PREFILLED-ANNUAL'!E20))","v":""},{"$f":"IF(ISERROR(('TABLES-FORMS'!F20-'PREFILLED-ANNUAL'!F20)/('PREFILLED-ANNUAL'!F20)),\"\",('TABLES-FORMS'!F20-'PREFILLED-ANNUAL'!F20)/('PREFILLED-ANNUAL'!F20))","v":""},{"$f":"IF(ISERROR(('TABLES-FORMS'!G20-'PREFILLED-ANNUAL'!G20)/('PREFILLED-ANNUAL'!G20)),\"\",('TABLES-FORMS'!G20-'PREFILLED-ANNUAL'!G20)/('PREFILLED-ANNUAL'!G20))","v":""},{"$f":"IF(ISERROR(('TABLES-FORMS'!H20-'PREFILLED-ANNUAL'!H20)/('PREFILLED-ANNUAL'!H20)),\"\",('TABLES-FORMS'!H20-'PREFILLED-ANNUAL'!H20)/('PREFILLED-ANNUAL'!H20))","v":""},{"$f":"IF(ISERROR(('TABLES-FORMS'!I20-'PREFILLED-ANNUAL'!I20)/('PREFILLED-ANNUAL'!I20)),\"\",('TABLES-FORMS'!I20-'PREFILLED-ANNUAL'!I20)/('PREFILLED-ANNUAL'!I20))","v":""},{"$f":"IF(ISERROR(('TABLES-FORMS'!J20-'PREFILLED-ANNUAL'!J20)/('PREFILLED-ANNUAL'!J20)),\"\",('TABLES-FORMS'!J20-'PREFILLED-ANNUAL'!J20)/('PREFILLED-ANNUAL'!J20))","v":""},{"$f":"IF(ISERROR(('TABLES-FORMS'!K20-'PREFILLED-ANNUAL'!K20)/('PREFILLED-ANNUAL'!K20)),\"\",('TABLES-FORMS'!K20-'PREFILLED-ANNUAL'!K20)/('PREFILLED-ANNUAL'!K20))","v":""},{"$f":"IF(ISERROR(('TABLES-FORMS'!L20-'PREFILLED-ANNUAL'!L20)/('PREFILLED-ANNUAL'!L20)),\"\",('TABLES-FORMS'!L20-'PREFILLED-ANNUAL'!L20)/('PREFILLED-ANNUAL'!L20))","v":""},{"$f":"IF(ISERROR(('TABLES-FORMS'!M20-'PREFILLED-ANNUAL'!M20)/('PREFILLED-ANNUAL'!M20)),\"\",('TABLES-FORMS'!M20-'PREFILLED-ANNUAL'!M20)/('PREFILLED-ANNUAL'!M20))","v":""},{"$f":"IF(ISERROR(('TABLES-FORMS'!N20-'PREFILLED-ANNUAL'!N20)/('PREFILLED-ANNUAL'!N20)),\"\",('TABLES-FORMS'!N20-'PREFILLED-ANNUAL'!N20)/('PREFILLED-ANNUAL'!N20))","v":""},{"$f":"IF(ISERROR(('TABLES-FORMS'!O20-'PREFILLED-ANNUAL'!O20)/('PREFILLED-ANNUAL'!O20)),\"\",('TABLES-FORMS'!O20-'PREFILLED-ANNUAL'!O20)/('PREFILLED-ANNUAL'!O20))","v":""},{"$f":"IF(ISERROR(('TABLES-FORMS'!P20-'PREFILLED-ANNUAL'!P20)/('PREFILLED-ANNUAL'!P20)),\"\",('TABLES-FORMS'!P20-'PREFILLED-ANNUAL'!P20)/('PREFILLED-ANNUAL'!P20))","v":""},{"$f":"IF(ISERROR(('TABLES-FORMS'!Q20-'PREFILLED-ANNUAL'!Q20)/('PREFILLED-ANNUAL'!Q20)),\"\",('TABLES-FORMS'!Q20-'PREFILLED-ANNUAL'!Q20)/('PREFILLED-ANNUAL'!Q20))","v":""},{"$f":"IF(ISERROR(('TABLES-FORMS'!R20-'PREFILLED-ANNUAL'!R20)/('PREFILLED-ANNUAL'!R20)),\"\",('TABLES-FORMS'!R20-'PREFILLED-ANNUAL'!R20)/('PREFILLED-ANNUAL'!R20))","v":""},{"$f":"IF(ISERROR(('TABLES-FORMS'!S20-'PREFILLED-ANNUAL'!S20)/('PREFILLED-ANNUAL'!S20)),\"\",('TABLES-FORMS'!S20-'PREFILLED-ANNUAL'!S20)/('PREFILLED-ANNUAL'!S20))","v":""}]

{"sheet":"PREFILLED-MONTHLY","index":6,"n_rows":21,"n_cols":7,"rows_kept":21,"cut":false,"hidden":true,"merged":[]}
[]
[null,"unit: kt (thousand tons)"]
[null,{"$f":"COLUMN!Q1&\" prefilled from monthly data\"","v":"2020 prefilled from monthly data"},"Hard coal","Brown coal","Coke oven coke","Peat","Oil shale and oil sands"]
[null,"Indigenous production",{"$f":"COLUMN!I291","v":0},{"$f":"COLUMN!I308","v":0},{"$f":"COLUMN!I104","v":0},{"$f":"COLUMN!I240","v":0},{"$f":"COLUMN!I274","v":0}]
[null,"From other sources",{"$f":"COLUMN!I292","v":0}]
[null,"Total imports (Balance)",{"$f":"COLUMN!I293","v":0},{"$f":"COLUMN!I310","v":0},{"$f":"COLUMN!I106","v":0},{"$f":"COLUMN!I242","v":0},{"$f":"COLUMN!I276","v":0}]
[null,"Total exports (Balance)",{"$f":"COLUMN!I294","v":0},{"$f":"COLUMN!I311","v":0},{"$f":"COLUMN!I107","v":0},{"$f":"COLUMN!I243","v":0},{"$f":"COLUMN!I277","v":0}]
[null,"Stock changes (National territory)",{"$f":"COLUMN!I295","v":0},{"$f":"COLUMN!I312","v":0},{"$f":"COLUMN!I108","v":0},{"$f":"COLUMN!I244","v":0},{"$f":"COLUMN!I278","v":0}]
[null,"Inland consumption (Calculated)",{"$f":"C4+C5+C6-C7+C8","v":0},{"$f":"D4+D5+D6-D7+D8","v":0},{"$f":"E4+E5+E6-E7+E8","v":0},{"$f":"F4+F5+F6-F7+F8","v":0},{"$f":"G4+G5+G6-G7+G8","v":0}]
[]
[]
[null,"Growth rates","Hard coal","Brown coal","Coke oven coke","Peat","Oil shale and oil sands"]
[null,"Indigenous production",{"$f":"IF(ISERROR((('TABLES-FORMS'!C4+'TABLES-FORMS'!D4+'TABLES-FORMS'!E4)-'PREFILLED-MONTHLY'!C4)/('PREFILLED-MONTHLY'!C4)),\"\",(('TABLES-FORMS'!C4+'TABLES-FORMS'!D4+'TABLES-FORMS'!E4)-'PREFILLED-MONTHLY'!C4)/('PREFILLED-MONTHLY'!C4))","v":""},{"$f":"IF(ISERROR((('TABLES-FORMS'!F4+'TABLES-FORMS'!G4)-'PREFILLED-MONTHLY'!D4)/('PREFILLED-MONTHLY'!D4)),\"\",(('TABLES-FORMS'!F4+'TABLES-FORMS'!G4)-'PREFILLED-MONTHLY'!D4)/('PREFILLED-MONTHLY'!D4))","v":""},{"$f":"IF(ISERROR(('TABLES-FORMS'!I4-'PREFILLED-MONTHLY'!E4)/('PREFILLED-MONTHLY'!E4)),\"\",('TABLES-FORMS'!I4-'PREFILLED-MONTHLY'!E4)/('PREFILLED-MONTHLY'!E4))","v":""},{"$f":"IF(ISERROR(('TABLES-FORMS'!Q4-'PREFILLED-MONTHLY'!F4)/('PREFILLED-MONTHLY'!F4)),\"\",('TABLES-FORMS'!Q4-'PREFILLED-MONTHLY'!F4)/('PREFILLED-MONTHLY'!F4))","v":""},{"$f":"IF(ISERROR(('TABLES-FORMS'!S4-'PREFILLED-MONTHLY'!G4)/('PREFILLED-MONTHLY'!G4)),\"\",('TABLES-FORMS'!S4-'PREFILLED-MONTHLY'!G4)/('PREFILLED-MONTHLY'!G4))","v":""}]
[null,"From other sources",{"$f":"IF(ISERROR((('TABLES-FORMS'!C5+'TABLES-FORMS'!D5+'TABLES-FORMS'!E5)-'PREFILLED-MONTHLY'!C5)/('PREFILLED-MONTHLY'!C5)),\"\",(('TABLES-FORMS'!C5+'TABLES-FORMS'!D5+'TABLES-FORMS'!E5)-'PREFILLED-MONTHLY'!C5)/('PREFILLED-MONTHLY'!C5))","v":""},{"$f":"IF(ISERROR((('TABLES-FORMS'!F5+'TABLES-FORMS'!G5)-'PREFILLED-MONTHLY'!D5)/('PREFILLED-MONTHLY'!D5)),\"\",(('TABLES-FORMS'!F5+'TABLES-FORMS'!G5)-'PREFILLED-MONTHLY'!D5)/('PREFILLED-MONTHLY'!D5))","v":""},{"$f":"IF(ISERROR(('TABLES-FORMS'!I5-'PREFILLED-MONTHLY'!E5)/('PREFILLED-MONTHLY'!E5)),\"\",('TABLES-FORMS'!I5-'PREFILLED-MONTHLY'!E5)/('PREFILLED-MONTHLY'!E5))","v":""},{"$f":"IF(ISERROR(('TABLES-FORMS'!Q5-'PREFILLED-MONTHLY'!F5)/('PREFILLED-MONTHLY'!F5)),\"\",('TABLES-FORMS'!Q5-'PREFILLED-MONTHLY'!F5)/('PREFILLED-MONTHLY'!F5))","v":""},{"$f":"IF(ISERROR(('TABLES-FORMS'!S5-'PREFILLED-MONTHLY'!G5)/('PREFILLED-MONTHLY'!G5)),\"\",('TABLES-FORMS'!S5-'PREFILLED-MONTHLY'!G5)/('PREFILLED-MONTHLY'!G5))","v":""}]
[null,"Total imports (Balance)",{"$f":"IF(ISERROR((('TABLES-FORMS'!C6+'TABLES-FORMS'!D6+'TABLES-FORMS'!E6)-'PREFILLED-MONTHLY'!C6)/('PREFILLED-MONTHLY'!C6)),\"\",(('TABLES-FORMS'!C6+'TABLES-FORMS'!D6+'TABLES-FORMS'!E6)-'PREFILLED-MONTHLY'!C6)/('PREFILLED-MONTHLY'!C6))","v":""},{"$f":"IF(ISERROR((('TABLES-FORMS'!F6+'TABLES-FORMS'!G6)-'PREFILLED-MONTHLY'!D6)/('PREFILLED-MONTHLY'!D6)),\"\",(('TABLES-FORMS'!F6+'TABLES-FORMS'!G6)-'PREFILLED-MONTHLY'!D6)/('PREFILLED-MONTHLY'!D6))","v":""},{"$f":"IF(ISERROR(('TABLES-FORMS'!I6-'PREFILLED-MONTHLY'!E6)/('PREFILLED-MONTHLY'!E6)),\"\",('TABLES-FORMS'!I6-'PREFILLED-MONTHLY'!E6)/('PREFILLED-MONTHLY'!E6))","v":""},{"$f":"IF(ISERROR(('TABLES-FORMS'!Q6-'PREFILLED-MONTHLY'!F6)/('PREFILLED-MONTHLY'!F6)),\"\",('TABLES-FORMS'!Q6-'PREFILLED-MONTHLY'!F6)/('PREFILLED-MONTHLY'!F6))","v":""},{"$f":"IF(ISERROR(('TABLES-FORMS'!S6-'PREFILLED-MONTHLY'!G6)/('PREFILLED-MONTHLY'!G6)),\"\",('TABLES-FORMS'!S6-'PREFILLED-MONTHLY'!G6)/('PREFILLED-MONTHLY'!G6))","v":""}]
[null,"Total exports (Balance)",{"$f":"IF(ISERROR((('TABLES-FORMS'!C7+'TABLES-FORMS'!D7+'TABLES-FORMS'!E7)-'PREFILLED-MONTHLY'!C7)/('PREFILLED-MONTHLY'!C7)),\"\",(('TABLES-FORMS'!C7+'TABLES-FORMS'!D7+'TABLES-FORMS'!E7)-'PREFILLED-MONTHLY'!C7)/('PREFILLED-MONTHLY'!C7))","v":""},{"$f":"IF(ISERROR((('TABLES-FORMS'!F7+'TABLES-FORMS'!G7)-'PREFILLED-MONTHLY'!D7)/('PREFILLED-MONTHLY'!D7)),\"\",(('TABLES-FORMS'!F7+'TABLES-FORMS'!G7)-'PREFILLED-MONTHLY'!D7)/('PREFILLED-MONTHLY'!D7))","v":""},{"$f":"IF(ISERROR(('TABLES-FORMS'!I7-'PREFILLED-MONTHLY'!E7)/('PREFILLED-MONTHLY'!E7)),\"\",('TABLES-FORMS'!I7-'PREFILLED-MONTHLY'!E7)/('PREFILLED-MONTHLY'!E7))","v":""},{"$f":"IF(ISERROR(('TABLES-FORMS'!Q7-'PREFILLED-MONTHLY'!F7)/('PREFILLED-MONTHLY'!F7)),\"\",('TABLES-FORMS'!Q7-'PREFILLED-MONTHLY'!F7)/('PREFILLED-MONTHLY'!F7))","v":""},{"$f":"IF(ISERROR(('TABLES-FORMS'!S7-'PREFILLED-MONTHLY'!G7)/('PREFILLED-MONTHLY'!G7)),\"\",('TABLES-FORMS'!S7-'PREFILLED-MONTHLY'!G7)/('PREFILLED-MONTHLY'!G7))","v":""}]
[null,"Stock changes (National territory)"]
[null,"Inland consumption (Calculated)",{"$f":"IF(ISERROR((('TABLES-FORMS'!C9+'TABLES-FORMS'!D9+'TABLES-FORMS'!E9)-'PREFILLED-MONTHLY'!C9)/('PREFILLED-MONTHLY'!C9)),\"\",(('TABLES-FORMS'!C9+'TABLES-FORMS'!D9+'TABLES-FORMS'!E9)-'PREFILLED-MONTHLY'!C9)/('PREFILLED-MONTHLY'!C9))","v":""},{"$f":"IF(ISERROR((('TABLES-FORMS'!F9+'TABLES-FORMS'!G9)-'PREFILLED-MONTHLY'!D9)/('PREFILLED-MONTHLY'!D9)),\"\",(('TABLES-FORMS'!F9+'TABLES-FORMS'!G9)-'PREFILLED-MONTHLY'!D9)/('PREFILLED-MONTHLY'!D9))","v":""},{"$f":"IF(ISERROR(('TABLES-FORMS'!I9-'PREFILLED-MONTHLY'!E9)/('PREFILLED-MONTHLY'!E9)),\"\",('TABLES-FORMS'!I9-'PREFILLED-MONTHLY'!E9)/('PREFILLED-MONTHLY'!E9))","v":""},{"$f":"IF(ISERROR(('TABLES-FORMS'!Q9-'PREFILLED-MONTHLY'!F9)/('PREFILLED-MONTHLY'!F9)),\"\",('TABLES-FORMS'!Q9-'PREFILLED-MONTHLY'!F9)/('PREFILLED-MONTHLY'!F9))","v":""},{"$f":"IF(ISERROR(('TABLES-FORMS'!S9-'PREFILLED-MONTHLY'!G9)/('PREFILLED-MONTHLY'!G9)),\"\",('TABLES-FORMS'!S9-'PREFILLED-MONTHLY'!G9)/('PREFILLED-MONTHLY'!G9))","v":""}]
[]
[]
[null,null,"SPECIFIC FORMULAS - do not drag across whole area"]

{"sheet":"LoadedData","index":7,"n_rows":344,"n_cols":22,"rows_kept":344,"cut":false,"hidden":true,"merged":[]}
[]
[null,null,null,null,null,null,null,null,null,null,null,null,null,null,null,null,"Anthracite","Indigenous production",{"$f":"OFFSET($E$4,MATCH(V2,$O$5:$O$344,0),0)","v":0},"INDPROD","ANTCOAL",{"$f":"T2&U2","v":"INDPRODANTCOAL"}]
[null,null,null,null,null,null,null,null,null,null,"Errors:",{"$f":"COUNTIF(L4:L344,\"Error\") + COUNTIF(K4:K344,\"Error\")","v":357},null,null,null,null,"Anthracite","From other sources",{"$f":"OFFSET($E$4,MATCH(V3,$O$5:$O$344,0),0)","v":0},"OSOURCES","ANTCOAL",{"$f":"T3&U3","v":"OSOURCESANTCOAL"}]
[null,null,null,null,null,null,null,null,null,null,null,null,null,null,null,null,"Anthracite","Total imports (Balance)",0,"TOTIMPSB","ANTCOAL","TOTIMPSBANTCOAL"]
[null,null,null,null,null,null,null,"INDPROD","ANTCOAL",null,{"$f":"IF(B5=M5,\"OK\",\"Error\")","v":"Error"},{"$f":"IF(C5=N5,\"OK\",\"Error\")","v":"Error"},"Anthracite\n[000 t]","Indigenous production",{"$f":"H5&I5","v":"INDPRODANTCOAL"},null,"Anthracite","Total exports (Balance)",0,"TOTEXPSB","ANTCOAL","TOTEXPSBANTCOAL"]
[null,null,null,null,null,null,null,"OSOURCES","ANTCOAL",null,{"$f":"IF(B6=M6,\"OK\",\"Error\")","v":"OK"},{"$f":"IF(C6=N6,\"OK\",\"Error\")","v":"Error"},null,"From other sources",{"$f":"H6&I6","v":"OSOURCESANTCOAL"},null,"Anthracite","Stock changes (National territory)",0,"STCHANAT","ANTCOAL","STCHANATANTCOAL"]
[null,null,null,null,null,null,null,"TOTIMPSB","ANTCOAL",null,"OK","Error",null,"Total imports (Balance)","TOTIMPSBANTCOAL",null,"Anthracite","Inland consumption (Calculated)",null,null,"ANTCOAL","ANTCOAL"]
[null,null,null,null,null,null,null,"TOTEXPSB","ANTCOAL",null,"OK","Error",null,"Total exports (Balance)","TOTEXPSBANTCOAL",null,"Anthracite","Statistical Difference",null,null,"ANTCOAL","ANTCOAL"]
[null,null,null,null,null,null,null,"STCHANAT","ANTCOAL",null,"OK","Error",null,"Stock changes (National territory)","STCHANATANTCOAL",null,"Anthracite","Inland consumption (Observed)",null,null,"ANTCOAL","ANTCOAL"]
[null,null,null,null,null,null,null,"INDCONC","ANTCOAL",null,"OK","Error",null,"Inland consumption (calculated)","INDCONCANTCOAL",null,"Anthracite","Transformation sector",0,"TOTTRANF","ANTCOAL","TOTTRANFANTCOAL"]
[null,null,null,null,null,null,null,"STATDIFF","ANTCOAL",null,"OK","Error",null,"Statistical Difference","STATDIFFANTCOAL",null,"Anthracite","Energy sector",0,"TOTENGY","ANTCOAL","TOTENGYANTCOAL"]
[null,null,null,null,null,null,null,null,"ANTCOAL",null,"OK","Error",null,"Inland consumption (Observed)","ANTCOAL",null,"Anthracite","Distribution losses",0,"DISTLOSS","ANTCOAL","DISTLOSSANTCOAL"]
[null,null,null,null,null,null,null,"TOTTRANF","ANTCOAL",null,"OK","Error",null,"    Transformation sector","TOTTRANFANTCOAL",null,"Anthracite","Total final consumption",0,"FINCONS","ANTCOAL","FINCONSANTCOAL"]
[null,null,null,null,null,null,null,"MTOELEHEAT","ANTCOAL",null,"OK","Error",null,"        Of which: input to electricity and heat generation","MTOELEHEATANTCOAL",null,"Anthracite","Total final non-energy consumption",0,"NONENUSE","ANTCOAL","NONENUSEANTCOAL"]
[null,null,null,null,null,null,null,"TOTENGY","ANTCOAL",null,"OK","Error",null,"    Energy sector","TOTENGYANTCOAL",null,"Anthracite","Total final energy consumption",0,"FINECONS","ANTCOAL","FINECONSANTCOAL"]
[null,null,null,null,null,null,null,"DISTLOSS","ANTCOAL",null,"OK","Error",null,"    Distribution losses","DISTLOSSANTCOAL",null,"Anthracite","Industry sector",0,"TOTIND","ANTCOAL","TOTINDANTCOAL"]
[null,null,null,null,null,null,null,"FINCONS","ANTCOAL",null,"OK","Error",null,"    Total final consumption","FINCONSANTCOAL",null,"Anthracite","Transport sector",0,"TOTTRANS","ANTCOAL","TOTTRANSANTCOAL"]
[null,null,null,null,null,null,null,"NONENUSE","ANTCOAL",null,"OK","Error",null,"        Total final non-energy consumption","NONENUSEANTCOAL",null,"Anthracite","Other sectors",0,"TOTOTHER","ANTCOAL","TOTOTHERANTCOAL"]
[null,null,null,null,null,null,null,"FINECONS","ANTCOAL",null,"OK","Error",null,"        Total final energy consumption","FINECONSANTCOAL",null,"Coking coal","Indigenous production",{"$f":"OFFSET($E$4,MATCH(V19,$O$5:$O$344,0),0)","v":0},"INDPROD","COKCOAL",{"$f":"T19&U19","v":"INDPRODCOKCOAL"}]
[null,null,null,null,null,null,null,"TOTIND","ANTCOAL",null,"OK","Error",null,"            Industry sector","TOTINDANTCOAL",null,"Coking coal","From other sources",{"$f":"OFFSET($E$4,MATCH(V20,$O$5:$O$344,0),0)","v":0},"OSOURCES","COKCOAL",{"$f":"T20&U20","v":"OSOURCESCOKCOAL"}]
[null,null,null,null,null,null,null,"TOTTRANS","ANTCOAL",null,"OK","Error",null,"            Transport sector","TOTTRANSANTCOAL",null,"Coking coal","Total imports (Balance)",0,"TOTIMPSB","COKCOAL","TOTIMPSBCOKCOAL"]
[null,null,null,null,null,null,null,"TOTOTHER","ANTCOAL",null,"OK","Error",null,"            Other sectors","TOTOTHERANTCOAL",null,"Coking coal","Total exports (Balance)",0,"TOTEXPSB","COKCOAL","TOTEXPSBCOKCOAL"]
[null,null,null,null,null,null,null,"RESIDENT","ANTCOAL",null,"OK","Error",null,"                Of which: Residential   ","RESIDENTANTCOAL",null,"Coking coal","Stock changes (National territory)",0,"STCHANAT","COKCOAL","STCHANATCOKCOAL"]
[null,null,null,null,null,null,null,"COMMPUB","ANTCOAL",null,"OK","Error",null,"                Of which: Commercial and public services   ","COMMPUBANTCOAL",null,"Coking coal","Inland consumption (Calculated)",null,null,"COKCOAL","COKCOAL"]
[null,null,null,null,null,null,null,"INDPROD","COKCOAL",null,"Error","Error","Coking coal\n[000 t]","Indigenous production","INDPRODCOKCOAL",null,"Coking coal","Statistical Difference",null,null,"COKCOAL","COKCOAL"]
[null,null,null,null,null,null,null,"OSOURCES","COKCOAL",null,"OK","Error",null,"From other sources","OSOURCESCOKCOAL",null,"Coking coal","Inland consumption (Observed)",null,null,"COKCOAL","COKCOAL"]
[null,null,null,null,null,null,null,"TOTIMPSB","COKCOAL",null,"OK","Error",null,"Total imports (Balance)","TOTIMPSBCOKCOAL",null,"Coking coal","Transformation sector",{"$f":"OFFSET($E$4,MATCH(V27,$O$5:$O$344,0),0)","v":0},"TOTTRANF","COKCOAL","TOTTRANFCOKCOAL"]
[null,null,null,null,null,null,null,"TOTEXPSB","COKCOAL",null,"OK","Error",null,"Total exports (Balance)","TOTEXPSBCOKCOAL",null,"Coking coal","Energy sector",0,"TOTENGY","COKCOAL","TOTENGYCOKCOAL"]
[null,null,null,null,null,null,null,"STCHANAT","COKCOAL",null,"OK","Error",null,"Stock changes (National territory)","STCHANATCOKCOAL",null,"Coking coal","Distribution losses",0,"DISTLOSS","COKCOAL","DISTLOSSCOKCOAL"]
[null,null,null,null,null,null,null,"INDCONC","COKCOAL",null,"OK","Error",null,"Inland consumption (calculated)","INDCONCCOKCOAL",null,"Coking coal","Total final consumption",0,"FINCONS","COKCOAL","FINCONSCOKCOAL"]
[null,null,null,null,null,null,null,"STATDIFF","COKCOAL",null,"OK","Error",null,"Statistical Difference","STATDIFFCOKCOAL",null,"Coking coal","Total final non-energy consumption",0,"NONENUSE","COKCOAL","NONENUSECOKCOAL"]
[null,null,null,null,null,null,null,null,"COKCOAL",null,"OK","Error",null,"Inland consumption (Observed)","COKCOAL",null,"Coking coal","Total final energy consumption",0,"FINECONS","COKCOAL","FINECONSCOKCOAL"]
[null,null,null,null,null,null,null,"TOTTRANF","COKCOAL",null,"OK","Error",null,"    Transformation sector","TOTTRANFCOKCOAL",null,"Coking coal","Industry sector",0,"TOTIND","COKCOAL","TOTINDCOKCOAL"]
[null,null,null,null,null,null,null,"MTOELEHEAT","COKCOAL",null,"OK","Error",null,"        Of which: input to electricity and heat generation","MTOELEHEATCOKCOAL",null,"Coking coal","Transport sector",0,"TOTTRANS","COKCOAL","TOTTRANSCOKCOAL"]
[null,null,null,null,null,null,null,"TOTENGY","COKCOAL",null,"OK","Error",null,"    Energy sector","TOTENGYCOKCOAL",null,"Coking coal","Other sectors",0,"TOTOTHER","COKCOAL","TOTOTHERCOKCOAL"]
[null,null,null,null,null,null,null,"DISTLOSS","COKCOAL",null,"OK","Error",null,"    Distribution losses","DISTLOSSCOKCOAL",null,"Other bituminous coal","Indigenous production",0,"INDPROD","BITCOAL","INDPRODBITCOAL"]
[null,null,null,null,null,null,null,"FINCONS","COKCOAL",null,"OK","Error",null,"    Total final consumption","FINCONSCOKCOAL",null,"Other bituminous coal","From other sources",0,"OSOURCES","BITCOAL",{"$f":"T37&U37","v":"OSOURCESBITCOAL"}]
[null,null,null,null,null,null,null,"NONENUSE","COKCOAL",null,"OK","Error",null,"        Total final non-energy consumption","NONENUSECOKCOAL",null,"Other bituminous coal","Total imports (Balance)",0,"TOTIMPSB","BITCOAL","TOTIMPSBBITCOAL"]
[null,null,null,null,null,null,null,"FINECONS","COKCOAL",null,"OK","Error",null,"        Total final energy consumption","FINECONSCOKCOAL",null,"Other bituminous coal","Total exports (Balance)",0,"TOTEXPSB","BITCOAL","TOTEXPSBBITCOAL"]
[null,null,null,null,null,null,null,"TOTIND","COKCOAL",null,"OK","Error",null,"            Industry sector","TOTINDCOKCOAL",null,"Other bituminous coal","Stock changes (National territory)",0,"STCHANAT","BITCOAL","STCHANATBITCOAL"]
[null,null,null,null,null,null,null,"TOTTRANS","COKCOAL",null,"OK","Error",null,"            Transport sector","TOTTRANSCOKCOAL",null,"Other bituminous coal","Inland consumption (Calculated)",null,null,"BITCOAL","BITCOAL"]
[null,null,null,null,null,null,null,"TOTOTHER","COKCOAL",null,"OK","Error",null,"            Other sectors","TOTOTHERCOKCOAL",null,"Other bituminous coal","Statistical Difference",null,null,"BITCOAL","BITCOAL"]
[null,null,null,null,null,null,null,"RESIDENT","COKCOAL",null,"OK","Error",null,"                Of which: Residential   ","RESIDENTCOKCOAL",null,"Other bituminous coal","Inland consumption (Observed)",null,null,"BITCOAL","BITCOAL"]
[null,null,null,null,null,null,null,"COMMPUB","COKCOAL",null,"OK","Error",null,"                Of which: Commercial and public services   ","COMMPUBCOKCOAL",null,"Other bituminous coal","Transformation sector",{"$f":"OFFSET($E$4,MATCH(V44,$O$5:$O$344,0),0)","v":0},"TOTTRANF","BITCOAL","TOTTRANFBITCOAL"]
[null,null,null,null,null,null,null,"INDPROD","BITCOAL",null,"Error","Error","Other bituminous coal\n[000 t]","Indigenous production","INDPRODBITCOAL",null,"Other bituminous coal","Energy sector",0,"TOTENGY","BITCOAL","TOTENGYBITCOAL"]
[null,null,null,null,null,null,null,"OSOURCES","BITCOAL",null,"OK","Error",null,"From other sources","OSOURCESBITCOAL",null,"Other bituminous coal","Distribution losses",0,"DISTLOSS","BITCOAL","DISTLOSSBITCOAL"]
[null,null,null,null,null,null,null,"TOTIMPSB","BITCOAL",null,"OK","Error",null,"Total imports (Balance)","TOTIMPSBBITCOAL",null,"Other bituminous coal","Total final consumption",0,"FINCONS","BITCOAL","FINCONSBITCOAL"]
[null,null,null,null,null,null,null,"TOTEXPSB","BITCOAL",null,"OK","Error",null,"Total exports (Balance)","TOTEXPSBBITCOAL",null,"Other bituminous coal","Total final non-energy consumption",0,"NONENUSE","BITCOAL","NONENUSEBITCOAL"]
[null,null,null,null,null,null,null,"STCHANAT","BITCOAL",null,"OK","Error",null,"Stock changes (National territory)","STCHANATBITCOAL",null,"Other bituminous coal","Total final energy consumption",0,"FINECONS","BITCOAL","FINECONSBITCOAL"]
[null,null,null,null,null,null,null,"INDCONC","BITCOAL",null,"OK","Error",null,"Inland consumption (calculated)","INDCONCBITCOAL",null,"Other bituminous coal","Industry sector",0,"TOTIND","BITCOAL","TOTINDBITCOAL"]
[null,null,null,null,null,null,null,"STATDIFF","BITCOAL",null,"OK","Error",null,"Statistical Difference","STATDIFFBITCOAL",null,"Other bituminous coal","Transport sector",0,"TOTTRANS","BITCOAL","TOTTRANSBITCOAL"]
[null,null,null,null,null,null,null,null,"BITCOAL",null,"OK","Error",null,"Inland consumption (Observed)","BITCOAL",null,"Other bituminous coal","Other sectors",0,"TOTOTHER","BITCOAL","TOTOTHERBITCOAL"]
[null,null,null,null,null,null,null,"TOTTRANF","BITCOAL",null,"OK","Error",null,"    Transformation sector","TOTTRANFBITCOAL",null,"Sub-bituminous coal","Indigenous production",0,"INDPROD","SUBCOAL","INDPRODSUBCOAL"]
[null,null,null,null,null,null,null,"MTOELEHEAT","BITCOAL",null,"OK","Error",null,"        Of which: input to electricity and heat generation","MTOELEHEATBITCOAL",null,"Sub-bituminous coal","From other sources",0,"OSOURCES","SUBCOAL","OSOURCESSUBCOAL"]
[null,null,null,null,null,null,null,"TOTENGY","BITCOAL",null,"OK","Error",null,"    Energy sector","TOTENGYBITCOAL",null,"Sub-bituminous coal","Total imports (Balance)",0,"TOTIMPSB","SUBCOAL","TOTIMPSBSUBCOAL"]
[null,null,null,null,null,null,null,"DISTLOSS","BITCOAL",null,"OK","Error",null,"    Distribution losses","DISTLOSSBITCOAL",null,"Sub-bituminous coal","Total exports (Balance)",0,"TOTEXPSB","SUBCOAL","TOTEXPSBSUBCOAL"]
[null,null,null,null,null,null,null,"FINCONS","BITCOAL",null,"OK","Error",null,"    Total final consumption","FINCONSBITCOAL",null,"Sub-bituminous coal","Stock changes (National territory)",0,"STCHANAT","SUBCOAL","STCHANATSUBCOAL"]
[null,null,null,null,null,null,null,"NONENUSE","BITCOAL",null,"OK","Error",null,"        Total final non-energy consumption","NONENUSEBITCOAL",null,"Sub-bituminous coal","Inland consumption (Calculated)",null,null,"SUBCOAL","SUBCOAL"]
[null,null,null,null,null,null,null,"FINECONS","BITCOAL",null,"OK","Error",null,"        Total final energy consumption","FINECONSBITCOAL",null,"Sub-bituminous coal","Statistical Difference",null,null,"SUBCOAL","SUBCOAL"]
[null,null,null,null,null,null,null,"TOTIND","BITCOAL",null,"OK","Error",null,"            Industry sector","TOTINDBITCOAL",null,"Sub-bituminous coal","Inland consumption (Observed)",null,null,"SUBCOAL","SUBCOAL"]
[null,null,null,null,null,null,null,"TOTTRANS","BITCOAL",null,"OK","Error",null,"            Transport sector","TOTTRANSBITCOAL",null,"Sub-bituminous coal","Transformation sector",{"$f":"OFFSET($E$4,MATCH(V61,$O$5:$O$344,0),0)","v":0},"TOTTRANF","SUBCOAL","TOTTRANFSUBCOAL"]
[null,null,null,null,null,null,null,"TOTOTHER","BITCOAL",null,"OK","Error",null,"            Other sectors","TOTOTHERBITCOAL",null,"Sub-bituminous coal","Energy sector",0,"TOTENGY","SUBCOAL","TOTENGYSUBCOAL"]
[null,null,null,null,null,null,null,"RESIDENT","BITCOAL",null,"OK","Error",null,"                Of which: Residential   ","RESIDENTBITCOAL",null,"Sub-bituminous coal","Distribution losses",0,"DISTLOSS","SUBCOAL","DISTLOSSSUBCOAL"]
[null,null,null,null,null,null,null,"COMMPUB","BITCOAL",null,"OK","Error",null,"                Of which: Commercial and public services   ","COMMPUBBITCOAL",null,"Sub-bituminous coal","Total final consumption",0,"FINCONS","SUBCOAL","FINCONSSUBCOAL"]
[null,null,null,null,null,null,null,"INDPROD","SUBCOAL",null,"Error","Error","Sub-bituminous coal\n[000 t]","Indigenous production","INDPRODSUBCOAL",null,"Sub-bituminous coal","Total final non-energy consumption",0,"NONENUSE","SUBCOAL","NONENUSESUBCOAL"]
[null,null,null,null,null,null,null,"OSOURCES","SUBCOAL",null,"OK","Error",null,"From other sources","OSOURCESSUBCOAL",null,"Sub-bituminous coal","Total final energy consumption",0,"FINECONS","SUBCOAL","FINECONSSUBCOAL"]
[null,null,null,null,null,null,null,"TOTIMPSB","SUBCOAL",null,"OK","Error",null,"Total imports (Balance)","TOTIMPSBSUBCOAL",null,"Sub-bituminous coal","Industry sector",0,"TOTIND","SUBCOAL","TOTINDSUBCOAL"]
[null,null,null,null,null,null,null,"TOTEXPSB","SUBCOAL",null,"OK","Error",null,"Total exports (Balance)","TOTEXPSBSUBCOAL",null,"Sub-bituminous coal","Transport sector",0,"TOTTRANS","SUBCOAL","TOTTRANSSUBCOAL"]
[null,null,null,null,null,null,null,"STCHANAT","SUBCOAL",null,"OK","Error",null,"Stock changes (National territory)","STCHANATSUBCOAL",null,"Sub-bituminous coal","Other sectors",0,"TOTOTHER","SUBCOAL","TOTOTHERSUBCOAL"]
[null,null,null,null,null,null,null,"INDCONC","SUBCOAL",null,{"$f":"IF(B70=M70,\"OK\",\"Error\")","v":"OK"},{"$f":"IF(C70=N70,\"OK\",\"Error\")","v":"Error"},null,"Inland consumption (calculated)",{"$f":"H70&I70","v":"INDCONCSUBCOAL"},null,"Lignite","Indigenous production",0,"INDPROD","LIGNITE","INDPRODLIGNITE"]
[null,null,null,null,null,null,null,"STATDIFF","SUBCOAL",null,"OK","Error",null,"Statistical Difference","STATDIFFSUBCOAL",null,"Lignite","From other sources",0,"OSOURCES","LIGNITE","OSOURCESLIGNITE"]
[null,null,null,null,null,null,null,null,"SUBCOAL",null,"OK","Error",null,"Inland consumption (Observed)","SUBCOAL",null,"Lignite","Total imports (Balance)",0,"TOTIMPSB","LIGNITE","TOTIMPSBLIGNITE"]
[null,null,null,null,null,null,null,"TOTTRANF","SUBCOAL",null,"OK","Error",null,"    Transformation sector","TOTTRANFSUBCOAL",null,"Lignite","Total exports (Balance)",0,"TOTEXPSB","LIGNITE","TOTEXPSBLIGNITE"]
[null,null,null,null,null,null,null,"MTOELEHEAT","SUBCOAL",null,"OK","Error",null,"        Of which: input to electricity and heat generation","MTOELEHEATSUBCOAL",null,"Lignite","Stock changes (National territory)",0,"STCHANAT","LIGNITE","STCHANATLIGNITE"]
[null,null,null,null,null,null,null,"TOTENGY","SUBCOAL",null,"OK","Error",null,"    Energy sector","TOTENGYSUBCOAL",null,"Lignite","Inland consumption (Calculated)",null,null,"LIGNITE","LIGNITE"]
[null,null,null,null,null,null,null,"DISTLOSS","SUBCOAL",null,"OK","Error",null,"    Distribution losses","DISTLOSSSUBCOAL",null,"Lignite","Statistical Difference",null,null,"LIGNITE","LIGNITE"]
[null,null,null,null,null,null,null,"FINCONS","SUBCOAL",null,"OK","Error",null,"    Total final consumption","FINCONSSUBCOAL",null,"Lignite","Inland consumption (Observed)",null,null,"LIGNITE","LIGNITE"]
[null,null,null,null,null,null,null,"NONENUSE","SUBCOAL",null,"OK","Error",null,"        Total final non-energy consumption","NONENUSESUBCOAL",null,"Lignite","Transformation sector",{"$f":"OFFSET($E$4,MATCH(V78,$O$5:$O$344,0),0)","v":0},"TOTTRANF","LIGNITE","TOTTRANFLIGNITE"]
[null,null,null,null,null,null,null,"FINECONS","SUBCOAL",null,"OK","Error",null,"        Total final energy consumption","FINECONSSUBCOAL",null,"Lignite","Energy sector",0,"TOTENGY","LIGNITE","TOTENGYLIGNITE"]
[null,null,null,null,null,null,null,"TOTIND","SUBCOAL",null,"OK","Error",null,"            Industry sector","TOTINDSUBCOAL",null,"Lignite","Distribution losses",0,"DISTLOSS","LIGNITE","DISTLOSSLIGNITE"]
[null,null,null,null,null,null,null,"TOTTRANS","SUBCOAL",null,"OK","Error",null,"            Transport sector","TOTTRANSSUBCOAL",null,"Lignite","Total final consumption",0,"FINCONS","LIGNITE","FINCONSLIGNITE"]
[null,null,null,null,null,null,null,"TOTOTHER","SUBCOAL",null,"OK","Error",null,"            Other sectors","TOTOTHERSUBCOAL",null,"Lignite","Total final non-energy consumption",0,"NONENUSE","LIGNITE","NONENUSELIGNITE"]
[null,null,null,null,null,null,null,"RESIDENT","SUBCOAL",null,"OK","Error",null,"                Of which: Residential   ","RESIDENTSUBCOAL",null,"Lignite","Total final energy consumption",0,"FINECONS","LIGNITE","FINECONSLIGNITE"]
[null,null,null,null,null,null,null,"COMMPUB","SUBCOAL",null,"OK","Error",null,"                Of which: Commercial and public services   ","COMMPUBSUBCOAL",null,"Lignite","Industry sector",0,"TOTIND","LIGNITE","TOTINDLIGNITE"]
[null,null,null,null,null,null,null,"INDPROD","LIGNITE",null,"Error","Error","Lignite\n[000 t]","Indigenous production","INDPRODLIGNITE",null,"Lignite","Transport sector",0,"TOTTRANS","LIGNITE","TOTTRANSLIGNITE"]
[null,null,null,null,null,null,null,"OSOURCES","LIGNITE",null,"OK","Error",null,"From other sources","OSOURCESLIGNITE",null,"Lignite","Other sectors",0,"TOTOTHER","LIGNITE","TOTOTHERLIGNITE"]
[null,null,null,null,null,null,null,"TOTIMPSB","LIGNITE",null,"OK","Error",null,"Total imports (Balance)","TOTIMPSBLIGNITE",null,"Patent fuel","Indigenous production",0,"INDPROD","PATFUEL","INDPRODPATFUEL"]
[null,null,null,null,null,null,null,"TOTEXPSB","LIGNITE",null,"OK","Error",null,"Total exports (Balance)","TOTEXPSBLIGNITE",null,"Patent fuel","From other sources",0,"OSOURCES","PATFUEL","OSOURCESPATFUEL"]
[null,null,null,null,null,null,null,"STCHANAT","LIGNITE",null,"OK","Error",null,"Stock changes (National territory)","STCHANATLIGNITE",null,"Patent fuel","Total imports (Balance)",0,"TOTIMPSB","PATFUEL","TOTIMPSBPATFUEL"]
[null,null,null,null,null,null,null,"INDCONC","LIGNITE",null,"OK","Error",null,"Inland consumption (calculated)","INDCONCLIGNITE",null,"Patent fuel","Total exports (Balance)",0,"TOTEXPSB","PATFUEL","TOTEXPSBPATFUEL"]
[null,null,null,null,null,null,null,"STATDIFF","LIGNITE",null,"OK","Error",null,"Statistical Difference","STATDIFFLIGNITE",null,"Patent fuel","Stock changes (National territory)",0,"STCHANAT","PATFUEL","STCHANATPATFUEL"]
[null,null,null,null,null,null,null,null,"LIGNITE",null,"OK","Error",null,"Inland consumption (Observed)","LIGNITE",null,"Patent fuel","Inland consumption (Calculated)",null,null,"PATFUEL","PATFUEL"]
[null,null,null,null,null,null,null,"TOTTRANF","LIGNITE",null,"OK","Error",null,"    Transformation sector","TOTTRANFLIGNITE",null,"Patent fuel","Statistical Difference",null,null,"PATFUEL","PATFUEL"]
[null,null,null,null,null,null,null,"MTOELEHEAT","LIGNITE",null,"OK","Error",null,"        Of which: input to electricity and heat generation","MTOELEHEATLIGNITE",null,"Patent fuel","Inland consumption (Observed)",null,null,"PATFUEL","PATFUEL"]
[null,null,null,null,null,null,null,"TOTENGY","LIGNITE",null,"OK","Error",null,"    Energy sector","TOTENGYLIGNITE",null,"Patent fuel","Transformation sector",{"$f":"OFFSET($E$4,MATCH(V95,$O$5:$O$344,0),0)","v":0},"TOTTRANF","PATFUEL","TOTTRANFPATFUEL"]
[null,null,null,null,null,null,null,"DISTLOSS","LIGNITE",null,"OK","Error",null,"    Distribution losses","DISTLOSSLIGNITE",null,"Patent fuel","Energy sector",0,"TOTENGY","PATFUEL","TOTENGYPATFUEL"]
[null,null,null,null,null,null,null,"FINCONS","LIGNITE",null,"OK","Error",null,"    Total final consumption","FINCONSLIGNITE",null,"Patent fuel","Distribution losses",0,"DISTLOSS","PATFUEL","DISTLOSSPATFUEL"]
[null,null,null,null,null,null,null,"NONENUSE","LIGNITE",null,"OK","Error",null,"        Total final non-energy consumption","NONENUSELIGNITE",null,"Patent fuel","Total final consumption",0,"FINCONS","PATFUEL","FINCONSPATFUEL"]
[null,null,null,null,null,null,null,"FINECONS","LIGNITE",null,"OK","Error",null,"        Total final energy consumption","FINECONSLIGNITE",null,"Patent fuel","Total final non-energy consumption",0,"NONENUSE","PATFUEL","NONENUSEPATFUEL"]
[null,null,null,null,null,null,null,"TOTIND","LIGNITE",null,"OK","Error",null,"            Industry sector","TOTINDLIGNITE",null,"Patent fuel","Total final energy consumption",0,"FINECONS","PATFUEL","FINECONSPATFUEL"]
[null,null,null,null,null,null,null,"TOTTRANS","LIGNITE",null,"OK","Error",null,"            Transport sector","TOTTRANSLIGNITE",null,"Patent fuel","Industry sector",0,"TOTIND","PATFUEL",{"$f":"T101&U101","v":"TOTINDPATFUEL"}]
[null,null,null,null,null,null,null,"TOTOTHER","LIGNITE",null,"OK","Error",null,"            Other sectors","TOTOTHERLIGNITE",null,"Patent fuel","Transport sector",0,"TOTTRANS","PATFUEL","TOTTRANSPATFUEL"]
[null,null,null,null,null,null,null,"RESIDENT","LIGNITE",null,"OK","Error",null,"                Of which: Residential   ","RESIDENTLIGNITE",null,"Patent fuel","Other sectors",0,"TOTOTHER","PATFUEL","TOTOTHERPATFUEL"]
[null,null,null,null,null,null,null,"COMMPUB","LIGNITE",null,"OK","Error",null,"                Of which: Commercial and public services   ","COMMPUBLIGNITE",null,"Coke oven coke","Indigenous production",0,"INDPROD","OVENCOKE","INDPRODOVENCOKE"]
[null,null,null,null,null,null,null,"INDPROD","PATFUEL",null,"Error","Error","Patent fuel\n[000 t]","Indigenous production","INDPRODPATFUEL",null,"Coke oven coke","From other sources",0,"OSOURCES","OVENCOKE","OSOURCESOVENCOKE"]
[null,null,null,null,null,null,null,"OSOURCES","PATFUEL",null,"OK","Error",null,"From other sources","OSOURCESPATFUEL",null,"Coke oven coke","Total imports (Balance)",0,"TOTIMPSB","OVENCOKE","TOTIMPSBOVENCOKE"]
[null,null,null,null,null,null,null,"TOTIMPSB","PATFUEL",null,"OK","Error",null,"Total imports (Balance)","TOTIMPSBPATFUEL",null,"Coke oven coke","Total exports (Balance)",0,"TOTEXPSB","OVENCOKE","TOTEXPSBOVENCOKE"]
[null,null,null,null,null,null,null,"TOTEXPSB","PATFUEL",null,"OK","Error",null,"Total exports (Balance)","TOTEXPSBPATFUEL",null,"Coke oven coke","Stock changes (National territory)",0,"STCHANAT","OVENCOKE","STCHANATOVENCOKE"]
[null,null,null,null,null,null,null,"STCHANAT","PATFUEL",null,"OK","Error",null,"Stock changes (National territory)","STCHANATPATFUEL",null,"Coke oven coke","Inland consumption (Calculated)",null,null,"OVENCOKE","OVENCOKE"]
[null,null,null,null,null,null,null,"INDCONC","PATFUEL",null,"OK","Error",null,"Inland consumption (calculated)","INDCONCPATFUEL",null,"Coke oven coke","Statistical Difference",null,null,"OVENCOKE","OVENCOKE"]
[null,null,null,null,null,null,null,"STATDIFF","PATFUEL",null,"OK","Error",null,"Statistical Difference","STATDIFFPATFUEL",null,"Coke oven coke","Inland consumption (Observed)",null,null,"OVENCOKE","OVENCOKE"]
[null,null,null,null,null,null,null,null,"PATFUEL",null,"OK","Error",null,"Inland consumption (Observed)","PATFUEL",null,"Coke oven coke","Transformation sector",{"$f":"OFFSET($E$4,MATCH(V112,$O$5:$O$344,0),0)","v":0},"TOTTRANF","OVENCOKE","TOTTRANFOVENCOKE"]
[null,null,null,null,null,null,null,"TOTTRANF","PATFUEL",null,"OK","Error",null,"    Transformation sector","TOTTRANFPATFUEL",null,"Coke oven coke","Energy sector",0,"TOTENGY","OVENCOKE","TOTENGYOVENCOKE"]
[null,null,null,null,null,null,null,"MTOELEHEAT","PATFUEL",null,"OK","Error",null,"        Of which: input to electricity and heat generation","MTOELEHEATPATFUEL",null,"Coke oven coke","Distribution losses",0,"DISTLOSS","OVENCOKE","DISTLOSSOVENCOKE"]
[null,null,null,null,null,null,null,"TOTENGY","PATFUEL",null,"OK","Error",null,"    Energy sector","TOTENGYPATFUEL",null,"Coke oven coke","Total final consumption",0,"FINCONS","OVENCOKE","FINCONSOVENCOKE"]
[null,null,null,null,null,null,null,"DISTLOSS","PATFUEL",null,"OK","Error",null,"    Distribution losses","DISTLOSSPATFUEL",null,"Coke oven coke","Total final non-energy consumption",0,"NONENUSE","OVENCOKE","NONENUSEOVENCOKE"]
[null,null,null,null,null,null,null,"FINCONS","PATFUEL",null,"OK","Error",null,"    Total final consumption","FINCONSPATFUEL",null,"Coke oven coke","Total final energy consumption",0,"FINECONS","OVENCOKE","FINECONSOVENCOKE"]
[null,null,null,null,null,null,null,"NONENUSE","PATFUEL",null,"OK","Error",null,"        Total final non-energy consumption","NONENUSEPATFUEL",null,"Coke oven coke","Industry sector",0,"TOTIND","OVENCOKE","TOTINDOVENCOKE"]
[null,null,null,null,null,null,null,"FINECONS","PATFUEL",null,"OK","Error",null,"        Total final energy consumption","FINECONSPATFUEL",null,"Coke oven coke","Transport sector",0,"TOTTRANS","OVENCOKE","TOTTRANSOVENCOKE"]
[null,null,null,null,null,null,null,"TOTIND","PATFUEL",null,"OK","Error",null,"            Industry sector","TOTINDPATFUEL",null,"Coke oven coke","Other sectors",0,"TOTOTHER","OVENCOKE","TOTOTHEROVENCOKE"]
[null,null,null,null,null,null,null,"TOTTRANS","PATFUEL",null,"OK","Error",null,"            Transport sector","TOTTRANSPATFUEL",null,"Gas coke","Indigenous production",0,"INDPROD","GASCOKE","INDPRODGASCOKE"]
[null,null,null,null,null,null,null,"TOTOTHER","PATFUEL",null,"OK","Error",null,"            Other sectors","TOTOTHERPATFUEL",null,"Gas coke","From other sources",0,"OSOURCES","GASCOKE","OSOURCESGASCOKE"]
[null,null,null,null,null,null,null,"RESIDENT","PATFUEL",null,"OK","Error",null,"                Of which: Residential   ","RESIDENTPATFUEL",null,"Gas coke","Total imports (Balance)",0,"TOTIMPSB","GASCOKE","TOTIMPSBGASCOKE"]
[null,null,null,null,null,null,null,"COMMPUB","PATFUEL",null,"OK","Error",null,"                Of which: Commercial and public services   ","COMMPUBPATFUEL",null,"Gas coke","Total exports (Balance)",0,"TOTEXPSB","GASCOKE","TOTEXPSBGASCOKE"]
[null,null,null,null,null,null,null,"INDPROD","OVENCOKE",null,"Error","Error","Coke oven coke\n[000 t]","Indigenous production","INDPRODOVENCOKE",null,"Gas coke","Stock changes (National territory)",0,"STCHANAT","GASCOKE","STCHANATGASCOKE"]
[null,null,null,null,null,null,null,"OSOURCES","OVENCOKE",null,"OK","Error",null,"From other sources","OSOURCESOVENCOKE",null,"Gas coke","Inland consumption (Calculated)",null,null,"GASCOKE","GASCOKE"]
[null,null,null,null,null,null,null,"TOTIMPSB","OVENCOKE",null,"OK","Error",null,"Total imports (Balance)","TOTIMPSBOVENCOKE",null,"Gas coke","Statistical Difference",null,null,"GASCOKE","GASCOKE"]
[null,null,null,null,null,null,null,"TOTEXPSB","OVENCOKE",null,"OK","Error",null,"Total exports (Balance)","TOTEXPSBOVENCOKE",null,"Gas coke","Inland consumption (Observed)",null,null,"GASCOKE","GASCOKE"]
[null,null,null,null,null,null,null,"STCHANAT","OVENCOKE",null,"OK","Error",null,"Stock changes (National territory)","STCHANATOVENCOKE",null,"Gas coke","Transformation sector",{"$f":"OFFSET($E$4,MATCH(V129,$O$5:$O$344,0),0)","v":0},"TOTTRANF","GASCOKE","TOTTRANFGASCOKE"]
[null,null,null,null,null,null,null,"INDCONC","OVENCOKE",null,"OK","Error",null,"Inland consumption (calculated)","INDCONCOVENCOKE",null,"Gas coke","Energy sector",0,"TOTENGY","GASCOKE","TOTENGYGASCOKE"]
[null,null,null,null,null,null,null,"STATDIFF","OVENCOKE",null,"OK","Error",null,"Statistical Difference","STATDIFFOVENCOKE",null,"Gas coke","Distribution losses",0,"DISTLOSS","GASCOKE","DISTLOSSGASCOKE"]
[null,null,null,null,null,null,null,null,"OVENCOKE",null,"OK","Error",null,"Inland consumption (Observed)","OVENCOKE",null,"Gas coke","Total final consumption",0,"FINCONS","GASCOKE","FINCONSGASCOKE"]
[null,null,null,null,null,null,null,"TOTTRANF","OVENCOKE",null,"OK","Error",null,"    Transformation sector","TOTTRANFOVENCOKE",null,"Gas coke","Total final non-energy consumption",0,"NONENUSE","GASCOKE","NONENUSEGASCOKE"]
[null,null,null,null,null,null,null,"MTOELEHEAT","OVENCOKE",null,{"$f":"IF(B134=M134,\"OK\",\"Error\")","v":"OK"},{"$f":"IF(C134=N134,\"OK\",\"Error\")","v":"Error"},null,"        Of which: input to electricity and heat generation",{"$f":"H134&I134","v":"MTOELEHEATOVENCOKE"},null,"Gas coke","Total final energy consumption",0,"FINECONS","GASCOKE","FINECONSGASCOKE"]
[null,null,null,null,null,null,null,"TOTENGY","OVENCOKE",null,"OK","Error",null,"    Energy sector","TOTENGYOVENCOKE",null,"Gas coke","Industry sector",0,"TOTIND","GASCOKE","TOTINDGASCOKE"]
[null,null,null,null,null,null,null,"DISTLOSS","OVENCOKE",null,"OK","Error",null,"    Distribution losses","DISTLOSSOVENCOKE",null,"Gas coke","Transport sector",0,"TOTTRANS","GASCOKE","TOTTRANSGASCOKE"]
[null,null,null,null,null,null,null,"FINCONS","OVENCOKE",null,"OK","Error",null,"    Total final consumption","FINCONSOVENCOKE",null,"Gas coke","Other sectors",0,"TOTOTHER","GASCOKE","TOTOTHERGASCOKE"]
[null,null,null,null,null,null,null,"NONENUSE","OVENCOKE",null,"OK","Error",null,"        Total final non-energy consumption","NONENUSEOVENCOKE",null,"Coal tar","Indigenous production",0,"INDPROD","COALTAR","INDPRODCOALTAR"]
[null,null,null,null,null,null,null,"FINECONS","OVENCOKE",null,"OK","Error",null,"        Total final energy consumption","FINECONSOVENCOKE",null,"Coal tar","From other sources",0,"OSOURCES","COALTAR","OSOURCESCOALTAR"]
[null,null,null,null,null,null,null,"TOTIND","OVENCOKE",null,"OK","Error",null,"            Industry sector","TOTINDOVENCOKE",null,"Coal tar","Total imports (Balance)",0,"TOTIMPSB","COALTAR","TOTIMPSBCOALTAR"]
[null,null,null,null,null,null,null,"TOTTRANS","OVENCOKE",null,"OK","Error",null,"            Transport sector","TOTTRANSOVENCOKE",null,"Coal tar","Total exports (Balance)",0,"TOTEXPSB","COALTAR","TOTEXPSBCOALTAR"]
[null,null,null,null,null,null,null,"TOTOTHER","OVENCOKE",null,"OK","Error",null,"            Other sectors","TOTOTHEROVENCOKE",null,"Coal tar","Stock changes (National territory)",0,"STCHANAT","COALTAR","STCHANATCOALTAR"]
[null,null,null,null,null,null,null,"RESIDENT","OVENCOKE",null,"OK","Error",null,"                Of which: Residential   ","RESIDENTOVENCOKE",null,"Coal tar","Inland consumption (Calculated)",null,null,"COALTAR","COALTAR"]
[null,null,null,null,null,null,null,"COMMPUB","OVENCOKE",null,"OK","Error",null,"                Of which: Commercial and public services   ","COMMPUBOVENCOKE",null,"Coal tar","Statistical Difference",null,null,"COALTAR","COALTAR"]
[null,null,null,null,null,null,null,"INDPROD","GASCOKE",null,"Error","Error","Gas coke\n[000 t]","Indigenous production","INDPRODGASCOKE",null,"Coal tar","Inland consumption (Observed)",null,null,"COALTAR","COALTAR"]
[null,null,null,null,null,null,null,"OSOURCES","GASCOKE",null,"OK","Error",null,"From other sources","OSOURCESGASCOKE",null,"Coal tar","Transformation sector",{"$f":"OFFSET($E$4,MATCH(V146,$O$5:$O$344,0),0)","v":0},"TOTTRANF","COALTAR","TOTTRANFCOALTAR"]
[null,null,null,null,null,null,null,"TOTIMPSB","GASCOKE",null,"OK","Error",null,"Total imports (Balance)","TOTIMPSBGASCOKE",null,"Coal tar","Energy sector",0,"TOTENGY","COALTAR","TOTENGYCOALTAR"]
[null,null,null,null,null,null,null,"TOTEXPSB","GASCOKE",null,"OK","Error",null,"Total exports (Balance)","TOTEXPSBGASCOKE",null,"Coal tar","Distribution losses",0,"DISTLOSS","COALTAR","DISTLOSSCOALTAR"]
[null,null,null,null,null,null,null,"STCHANAT","GASCOKE",null,"OK","Error",null,"Stock changes (National territory)","STCHANATGASCOKE",null,"Coal tar","Total final consumption",0,"FINCONS","COALTAR","FINCONSCOALTAR"]
[null,null,null,null,null,null,null,"INDCONC","GASCOKE",null,"OK","Error",null,"Inland consumption (calculated)","INDCONCGASCOKE",null,"Coal tar","Total final non-energy consumption",0,"NONENUSE","COALTAR","NONENUSECOALTAR"]
[null,null,null,null,null,null,null,"STATDIFF","GASCOKE",null,"OK","Error",null,"Statistical Difference","STATDIFFGASCOKE",null,"Coal tar","Total final energy consumption",0,"FINECONS","COALTAR","FINECONSCOALTAR"]
[null,null,null,null,null,null,null,null,"GASCOKE",null,"OK","Error",null,"Inland consumption (Observed)","GASCOKE",null,"Coal tar","Industry sector",0,"TOTIND","COALTAR","TOTINDCOALTAR"]
[null,null,null,null,null,null,null,"TOTTRANF","GASCOKE",null,"OK","Error",null,"    Transformation sector","TOTTRANFGASCOKE",null,"Coal tar","Transport sector",0,"TOTTRANS","COALTAR","TOTTRANSCOALTAR"]
[null,null,null,null,null,null,null,"MTOELEHEAT","GASCOKE",null,"OK","Error",null,"        Of which: input to electricity and heat generation","MTOELEHEATGASCOKE",null,"Coal tar","Other sectors",0,"TOTOTHER","COALTAR","TOTOTHERCOALTAR"]
[null,null,null,null,null,null,null,"TOTENGY","GASCOKE",null,"OK","Error",null,"    Energy sector","TOTENGYGASCOKE",null,"BKB","Indigenous production",0,"INDPROD","BKB","INDPRODBKB"]
[null,null,null,null,null,null,null,"DISTLOSS","GASCOKE",null,"OK","Error",null,"    Distribution losses","DISTLOSSGASCOKE",null,"BKB","From other sources",0,"OSOURCES","BKB","OSOURCESBKB"]
[null,null,null,null,null,null,null,"FINCONS","GASCOKE",null,"OK","Error",null,"    Total final consumption","FINCONSGASCOKE",null,"BKB","Total imports (Balance)",0,"TOTIMPSB","BKB","TOTIMPSBBKB"]
[null,null,null,null,null,null,null,"NONENUSE","GASCOKE",null,"OK","Error",null,"        Total final non-energy consumption","NONENUSEGASCOKE",null,"BKB","Total exports (Balance)",0,"TOTEXPSB","BKB","TOTEXPSBBKB"]
[null,null,null,null,null,null,null,"FINECONS","GASCOKE",null,"OK","Error",null,"        Total final energy consumption","FINECONSGASCOKE",null,"BKB","Stock changes (National territory)",0,"STCHANAT","BKB","STCHANATBKB"]
[null,null,null,null,null,null,null,"TOTIND","GASCOKE",null,"OK","Error",null,"            Industry sector","TOTINDGASCOKE",null,"BKB","Inland consumption (Calculated)",null,null,"BKB","BKB"]
[null,null,null,null,null,null,null,"TOTTRANS","GASCOKE",null,"OK","Error",null,"            Transport sector","TOTTRANSGASCOKE",null,"BKB","Statistical Difference",null,null,"BKB","BKB"]
[null,null,null,null,null,null,null,"TOTOTHER","GASCOKE",null,"OK","Error",null,"            Other sectors","TOTOTHERGASCOKE",null,"BKB","Inland consumption (Observed)",null,null,"BKB","BKB"]
[null,null,null,null,null,null,null,"RESIDENT","GASCOKE",null,"OK","Error",null,"                Of which: Residential   ","RESIDENTGASCOKE",null,"BKB","Transformation sector",{"$f":"OFFSET($E$4,MATCH(V163,$O$5:$O$344,0),0)","v":0},"TOTTRANF","BKB","TOTTRANFBKB"]
[null,null,null,null,null,null,null,"COMMPUB","GASCOKE",null,"OK","Error",null,"                Of which: Commercial and public services   ","COMMPUBGASCOKE",null,"BKB","Energy sector",0,"TOTENGY","BKB","TOTENGYBKB"]
[null,null,null,null,null,null,null,"INDPROD","COALTAR",null,"Error","Error","Coal tar\n[000 t]","Indigenous production","INDPRODCOALTAR",null,"BKB","Distribution losses",0,"DISTLOSS","BKB",{"$f":"T165&U165","v":"DISTLOSSBKB"}]
[null,null,null,null,null,null,null,"OSOURCES","COALTAR",null,"OK","Error",null,"From other sources","OSOURCESCOALTAR",null,"BKB","Total final consumption",0,"FINCONS","BKB","FINCONSBKB"]
[null,null,null,null,null,null,null,"TOTIMPSB","COALTAR",null,"OK","Error",null,"Total imports (Balance)","TOTIMPSBCOALTAR",null,"BKB","Total final non-energy consumption",0,"NONENUSE","BKB","NONENUSEBKB"]
[null,null,null,null,null,null,null,"TOTEXPSB","COALTAR",null,"OK","Error",null,"Total exports (Balance)","TOTEXPSBCOALTAR",null,"BKB","Total final energy consumption",0,"FINECONS","BKB","FINECONSBKB"]
[null,null,null,null,null,null,null,"STCHANAT","COALTAR",null,"OK","Error",null,"Stock changes (National territory)","STCHANATCOALTAR",null,"BKB","Industry sector",0,"TOTIND","BKB","TOTINDBKB"]
[null,null,null,null,null,null,null,"INDCONC","COALTAR",null,"OK","Error",null,"Inland consumption (calculated)","INDCONCCOALTAR",null,"BKB","Transport sector",0,"TOTTRANS","BKB","TOTTRANSBKB"]
[null,null,null,null,null,null,null,"STATDIFF","COALTAR",null,"OK","Error",null,"Statistical Difference","STATDIFFCOALTAR",null,"BKB","Other sectors",0,"TOTOTHER","BKB","TOTOTHERBKB"]
[null,null,null,null,null,null,null,null,"COALTAR",null,"OK","Error",null,"Inland consumption (Observed)","COALTAR",null,"Gas works gas","Indigenous production",0,"INDPROD","GASWKSGS","INDPRODGASWKSGS"]
[null,null,null,null,null,null,null,"TOTTRANF","COALTAR",null,"OK","Error",null,"    Transformation sector","TOTTRANFCOALTAR",null,"Gas works gas","From other sources",0,"OSOURCES","GASWKSGS","OSOURCESGASWKSGS"]
[null,null,null,null,null,null,null,"MTOELEHEAT","COALTAR",null,"OK","Error",null,"        Of which: input to electricity and heat generation","MTOELEHEATCOALTAR",null,"Gas works gas","Total imports (Balance)",0,"TOTIMPSB","GASWKSGS","TOTIMPSBGASWKSGS"]
[null,null,null,null,null,null,null,"TOTENGY","COALTAR",null,"OK","Error",null,"    Energy sector","TOTENGYCOALTAR",null,"Gas works gas","Total exports (Balance)",0,"TOTEXPSB","GASWKSGS","TOTEXPSBGASWKSGS"]
[null,null,null,null,null,null,null,"DISTLOSS","COALTAR",null,"OK","Error",null,"    Distribution losses","DISTLOSSCOALTAR",null,"Gas works gas","Stock changes (National territory)",0,"STCHANAT","GASWKSGS","STCHANATGASWKSGS"]
[null,null,null,null,null,null,null,"FINCONS","COALTAR",null,"OK","Error",null,"    Total final consumption","FINCONSCOALTAR",null,"Gas works gas","Inland consumption (Calculated)",null,null,"GASWKSGS","GASWKSGS"]
[null,null,null,null,null,null,null,"NONENUSE","COALTAR",null,"OK","Error",null,"        Total final non-energy consumption","NONENUSECOALTAR",null,"Gas works gas","Statistical Difference",null,null,"GASWKSGS","GASWKSGS"]
[null,null,null,null,null,null,null,"FINECONS","COALTAR",null,"OK","Error",null,"        Total final energy consumption","FINECONSCOALTAR",null,"Gas works gas","Inland consumption (Observed)",null,null,"GASWKSGS","GASWKSGS"]
[null,null,null,null,null,null,null,"TOTIND","COALTAR",null,"OK","Error",null,"            Industry sector","TOTINDCOALTAR",null,"Gas works gas","Transformation sector",{"$f":"OFFSET($E$4,MATCH(V180,$O$5:$O$344,0),0)","v":0},"TOTTRANF","GASWKSGS","TOTTRANFGASWKSGS"]
[null,null,null,null,null,null,null,"TOTTRANS","COALTAR",null,"OK","Error",null,"            Transport sector","TOTTRANSCOALTAR",null,"Gas works gas","Energy sector",0,"TOTENGY","GASWKSGS","TOTENGYGASWKSGS"]
[null,null,null,null,null,null,null,"TOTOTHER","COALTAR",null,"OK","Error",null,"            Other sectors","TOTOTHERCOALTAR",null,"Gas works gas","Distribution losses",0,"DISTLOSS","GASWKSGS","DISTLOSSGASWKSGS"]
[null,null,null,null,null,null,null,"RESIDENT","COALTAR",null,"OK","Error",null,"                Of which: Residential   ","RESIDENTCOALTAR",null,"Gas works gas","Total final consumption",0,"FINCONS","GASWKSGS","FINCONSGASWKSGS"]
[null,null,null,null,null,null,null,"COMMPUB","COALTAR",null,"OK","Error",null,"                Of which: Commercial and public services   ","COMMPUBCOALTAR",null,"Gas works gas","Total final non-energy consumption",0,"NONENUSE","GASWKSGS","NONENUSEGASWKSGS"]
[null,null,null,null,null,null,null,"INDPROD","BKB",null,"Error","Error","BKB\n[000 t]","Indigenous production","INDPRODBKB",null,"Gas works gas","Total final energy consumption",0,"FINECONS","GASWKSGS","FINECONSGASWKSGS"]
[null,null,null,null,null,null,null,"OSOURCES","BKB",null,"OK","Error",null,"From other sources","OSOURCESBKB",null,"Gas works gas","Industry sector",0,"TOTIND","GASWKSGS","TOTINDGASWKSGS"]
[null,null,null,null,null,null,null,"TOTIMPSB","BKB",null,"OK","Error",null,"Total imports (Balance)","TOTIMPSBBKB",null,"Gas works gas","Transport sector",0,"TOTTRANS","GASWKSGS","TOTTRANSGASWKSGS"]
[null,null,null,null,null,null,null,"TOTEXPSB","BKB",null,"OK","Error",null,"Total exports (Balance)","TOTEXPSBBKB",null,"Gas works gas","Other sectors",0,"TOTOTHER","GASWKSGS","TOTOTHERGASWKSGS"]
[null,null,null,null,null,null,null,"STCHANAT","BKB",null,"OK","Error",null,"Stock changes (National territory)","STCHANATBKB",null,"Coke oven gas","Indigenous production",0,"INDPROD","COKEOVGS","INDPRODCOKEOVGS"]
[null,null,null,null,null,null,null,"INDCONC","BKB",null,"OK","Error",null,"Inland consumption (calculated)","INDCONCBKB",null,"Coke oven gas","From other sources",0,"OSOURCES","COKEOVGS","OSOURCESCOKEOVGS"]
[null,null,null,null,null,null,null,"STATDIFF","BKB",null,"OK","Error",null,"Statistical Difference","STATDIFFBKB",null,"Coke oven gas","Total imports (Balance)",0,"TOTIMPSB","COKEOVGS","TOTIMPSBCOKEOVGS"]
[null,null,null,null,null,null,null,null,"BKB",null,"OK","Error",null,"Inland consumption (Observed)","BKB",null,"Coke oven gas","Total exports (Balance)",0,"TOTEXPSB","COKEOVGS","TOTEXPSBCOKEOVGS"]
[null,null,null,null,null,null,null,"TOTTRANF","BKB",null,"OK","Error",null,"    Transformation sector","TOTTRANFBKB",null,"Coke oven gas","Stock changes (National territory)",0,"STCHANAT","COKEOVGS","STCHANATCOKEOVGS"]
[null,null,null,null,null,null,null,"MTOELEHEAT","BKB",null,"OK","Error",null,"        Of which: input to electricity and heat generation","MTOELEHEATBKB",null,"Coke oven gas","Inland consumption (Calculated)",null,null,"COKEOVGS","COKEOVGS"]
[null,null,null,null,null,null,null,"TOTENGY","BKB",null,"OK","Error",null,"    Energy sector","TOTENGYBKB",null,"Coke oven gas","Statistical Difference",null,null,"COKEOVGS","COKEOVGS"]
[null,null,null,null,null,null,null,"DISTLOSS","BKB",null,"OK","Error",null,"    Distribution losses","DISTLOSSBKB",null,"Coke oven gas","Inland consumption (Observed)",null,null,"COKEOVGS","COKEOVGS"]
[null,null,null,null,null,null,null,"FINCONS","BKB",null,"OK","Error",null,"    Total final consumption","FINCONSBKB",null,"Coke oven gas","Transformation sector",{"$f":"OFFSET($E$4,MATCH(V197,$O$5:$O$344,0),0)","v":0},"TOTTRANF","COKEOVGS","TOTTRANFCOKEOVGS"]
[null,null,null,null,null,null,null,"NONENUSE","BKB",null,{"$f":"IF(B198=M198,\"OK\",\"Error\")","v":"OK"},{"$f":"IF(C198=N198,\"OK\",\"Error\")","v":"Error"},null,"        Total final non-energy consumption",{"$f":"H198&I198","v":"NONENUSEBKB"},null,"Coke oven gas","Energy sector",0,"TOTENGY","COKEOVGS","TOTENGYCOKEOVGS"]
[null,null,null,null,null,null,null,"FINECONS","BKB",null,"OK","Error",null,"        Total final energy consumption","FINECONSBKB",null,"Coke oven gas","Distribution losses",0,"DISTLOSS","COKEOVGS","DISTLOSSCOKEOVGS"]
[null,null,null,null,null,null,null,"TOTIND","BKB",null,"OK","Error",null,"            Industry sector","TOTINDBKB",null,"Coke oven gas","Total final consumption",0,"FINCONS","COKEOVGS","FINCONSCOKEOVGS"]
[null,null,null,null,null,null,null,"TOTTRANS","BKB",null,"OK","Error",null,"            Transport sector","TOTTRANSBKB",null,"Coke oven gas","Total final non-energy consumption",0,"NONENUSE","COKEOVGS","NONENUSECOKEOVGS"]
[null,null,null,null,null,null,null,"TOTOTHER","BKB",null,"OK","Error",null,"            Other sectors","TOTOTHERBKB",null,"Coke oven gas","Total final energy consumption",0,"FINECONS","COKEOVGS","FINECONSCOKEOVGS"]
[null,null,null,null,null,null,null,"RESIDENT","BKB",null,"OK","Error",null,"                Of which: Residential   ","RESIDENTBKB",null,"Coke oven gas","Industry sector",0,"TOTIND","COKEOVGS","TOTINDCOKEOVGS"]
[null,null,null,null,null,null,null,"COMMPUB","BKB",null,"OK","Error",null,"                Of which: Commercial and public services   ","COMMPUBBKB",null,"Coke oven gas","Transport sector",0,"TOTTRANS","COKEOVGS","TOTTRANSCOKEOVGS"]
[null,null,null,null,null,null,null,"INDPROD","GASWKSGS",null,"Error","Error","Gas works gas\n[TJ gross]","Indigenous production","INDPRODGASWKSGS",null,"Coke oven gas","Other sectors",0,"TOTOTHER","COKEOVGS","TOTOTHERCOKEOVGS"]
[null,null,null,null,null,null,null,"OSOURCES","GASWKSGS",null,"OK","Error",null,"From other sources","OSOURCESGASWKSGS",null,"Blast furnace gas","Indigenous production",0,"INDPROD","BLFURGS","INDPRODBLFURGS"]
[null,null,null,null,null,null,null,"TOTIMPSB","GASWKSGS",null,"OK","Error",null,"Total imports (Balance)","TOTIMPSBGASWKSGS",null,"Blast furnace gas","From other sources",0,"OSOURCES","BLFURGS","OSOURCESBLFURGS"]
[null,null,null,null,null,null,null,"TOTEXPSB","GASWKSGS",null,"OK","Error",null,"Total exports (Balance)","TOTEXPSBGASWKSGS",null,"Blast furnace gas","Total imports (Balance)",0,"TOTIMPSB","BLFURGS","TOTIMPSBBLFURGS"]
[null,null,null,null,null,null,null,"STCHANAT","GASWKSGS",null,"OK","Error",null,"Stock changes (National territory)","STCHANATGASWKSGS",null,"Blast furnace gas","Total exports (Balance)",0,"TOTEXPSB","BLFURGS","TOTEXPSBBLFURGS"]
[null,null,null,null,null,null,null,"INDCONC","GASWKSGS",null,"OK","Error",null,"Inland consumption (calculated)","INDCONCGASWKSGS",null,"Blast furnace gas","Stock changes (National territory)",0,"STCHANAT","BLFURGS","STCHANATBLFURGS"]
[null,null,null,null,null,null,null,"STATDIFF","GASWKSGS",null,"OK","Error",null,"Statistical Difference","STATDIFFGASWKSGS",null,"Blast furnace gas","Inland consumption (Calculated)",null,null,"BLFURGS","BLFURGS"]
[null,null,null,null,null,null,null,null,"GASWKSGS",null,"OK","Error",null,"Inland consumption (Observed)","GASWKSGS",null,"Blast furnace gas","Statistical Difference",null,null,"BLFURGS","BLFURGS"]
[null,null,null,null,null,null,null,"TOTTRANF","GASWKSGS",null,"OK","Error",null,"    Transformation sector","TOTTRANFGASWKSGS",null,"Blast furnace gas","Inland consumption (Observed)",null,null,"BLFURGS","BLFURGS"]
[null,null,null,null,null,null,null,"MTOELEHEAT","GASWKSGS",null,"OK","Error",null,"        Of which: input to electricity and heat generation","MTOELEHEATGASWKSGS",null,"Blast furnace gas","Transformation sector",{"$f":"OFFSET($E$4,MATCH(V214,$O$5:$O$344,0),0)","v":0},"TOTTRANF","BLFURGS","TOTTRANFBLFURGS"]
[null,null,null,null,null,null,null,"TOTENGY","GASWKSGS",null,"OK","Error",null,"    Energy sector","TOTENGYGASWKSGS",null,"Blast furnace gas","Energy sector",0,"TOTENGY","BLFURGS","TOTENGYBLFURGS"]
[null,null,null,null,null,null,null,"DISTLOSS","GASWKSGS",null,"OK","Error",null,"    Distribution losses","DISTLOSSGASWKSGS",null,"Blast furnace gas","Distribution losses",0,"DISTLOSS","BLFURGS","DISTLOSSBLFURGS"]
[null,null,null,null,null,null,null,"FINCONS","GASWKSGS",null,"OK","Error",null,"    Total final consumption","FINCONSGASWKSGS",null,"Blast furnace gas","Total final consumption",0,"FINCONS","BLFURGS","FINCONSBLFURGS"]
[null,null,null,null,null,null,null,"NONENUSE","GASWKSGS",null,"OK","Error",null,"        Total final non-energy consumption","NONENUSEGASWKSGS",null,"Blast furnace gas","Total final non-energy consumption",0,"NONENUSE","BLFURGS","NONENUSEBLFURGS"]
[null,null,null,null,null,null,null,"FINECONS","GASWKSGS",null,"OK","Error",null,"        Total final energy consumption","FINECONSGASWKSGS",null,"Blast furnace gas","Total final energy consumption",0,"FINECONS","BLFURGS","FINECONSBLFURGS"]
[null,null,null,null,null,null,null,"TOTIND","GASWKSGS",null,"OK","Error",null,"            Industry sector","TOTINDGASWKSGS",null,"Blast furnace gas","Industry sector",0,"TOTIND","BLFURGS","TOTINDBLFURGS"]
[null,null,null,null,null,null,null,"TOTTRANS","GASWKSGS",null,"OK","Error",null,"            Transport sector","TOTTRANSGASWKSGS",null,"Blast furnace gas","Transport sector",0,"TOTTRANS","BLFURGS","TOTTRANSBLFURGS"]
[null,null,null,null,null,null,null,"TOTOTHER","GASWKSGS",null,"OK","Error",null,"            Other sectors","TOTOTHERGASWKSGS",null,"Blast furnace gas","Other sectors",0,"TOTOTHER","BLFURGS","TOTOTHERBLFURGS"]
[null,null,null,null,null,null,null,"RESIDENT","GASWKSGS",null,"OK","Error",null,"                Of which: Residential   ","RESIDENTGASWKSGS",null,"Other recovered gases","Indigenous production",0,"INDPROD","OGASES","INDPRODOGASES"]
[null,null,null,null,null,null,null,"COMMPUB","GASWKSGS",null,"OK","Error",null,"                Of which: Commercial and public services   ","COMMPUBGASWKSGS",null,"Other recovered gases","From other sources",0,"OSOURCES","OGASES","OSOURCESOGASES"]
[null,null,null,null,null,null,null,"INDPROD","COKEOVGS",null,"Error","Error","Coke oven gas\n[TJ gross]","Indigenous production","INDPRODCOKEOVGS",null,"Other recovered gases","Total imports (Balance)",0,"TOTIMPSB","OGASES","TOTIMPSBOGASES"]
[null,null,null,null,null,null,null,"OSOURCES","COKEOVGS",null,"OK","Error",null,"From other sources","OSOURCESCOKEOVGS",null,"Other recovered gases","Total exports (Balance)",0,"TOTEXPSB","OGASES","TOTEXPSBOGASES"]
[null,null,null,null,null,null,null,"TOTIMPSB","COKEOVGS",null,"OK","Error",null,"Total imports (Balance)","TOTIMPSBCOKEOVGS",null,"Other recovered gases","Stock changes (National territory)",0,"STCHANAT","OGASES","STCHANATOGASES"]
[null,null,null,null,null,null,null,"TOTEXPSB","COKEOVGS",null,"OK","Error",null,"Total exports (Balance)","TOTEXPSBCOKEOVGS",null,"Other recovered gases","Inland consumption (Calculated)",null,null,"OGASES","OGASES"]
[null,null,null,null,null,null,null,"STCHANAT","COKEOVGS",null,"OK","Error",null,"Stock changes (National territory)","STCHANATCOKEOVGS",null,"Other recovered gases","Statistical Difference",null,null,"OGASES",{"$f":"T229&U229","v":"OGASES"}]
[null,null,null,null,null,null,null,"INDCONC","COKEOVGS",null,"OK","Error",null,"Inland consumption (calculated)","INDCONCCOKEOVGS",null,"Other recovered gases","Inland consumption (Observed)",null,null,"OGASES","OGASES"]
[null,null,null,null,null,null,null,"STATDIFF","COKEOVGS",null,"OK","Error",null,"Statistical Difference","STATDIFFCOKEOVGS",null,"Other recovered gases","Transformation sector",{"$f":"OFFSET($E$4,MATCH(V231,$O$5:$O$344,0),0)","v":0},"TOTTRANF","OGASES","TOTTRANFOGASES"]
[null,null,null,null,null,null,null,null,"COKEOVGS",null,"OK","Error",null,"Inland consumption (Observed)","COKEOVGS",null,"Other recovered gases","Energy sector",0,"TOTENGY","OGASES","TOTENGYOGASES"]
[null,null,null,null,null,null,null,"TOTTRANF","COKEOVGS",null,"OK","Error",null,"    Transformation sector","TOTTRANFCOKEOVGS",null,"Other recovered gases","Distribution losses",0,"DISTLOSS","OGASES","DISTLOSSOGASES"]
[null,null,null,null,null,null,null,"MTOELEHEAT","COKEOVGS",null,"OK","Error",null,"        Of which: input to electricity and heat generation","MTOELEHEATCOKEOVGS",null,"Other recovered gases","Total final consumption",0,"FINCONS","OGASES","FINCONSOGASES"]
[null,null,null,null,null,null,null,"TOTENGY","COKEOVGS",null,"OK","Error",null,"    Energy sector","TOTENGYCOKEOVGS",null,"Other recovered gases","Total final non-energy consumption",0,"NONENUSE","OGASES","NONENUSEOGASES"]
[null,null,null,null,null,null,null,"DISTLOSS","COKEOVGS",null,"OK","Error",null,"    Distribution losses","DISTLOSSCOKEOVGS",null,"Other recovered gases","Total final energy consumption",0,"FINECONS","OGASES","FINECONSOGASES"]
[null,null,null,null,null,null,null,"FINCONS","COKEOVGS",null,"OK","Error",null,"    Total final consumption","FINCONSCOKEOVGS",null,"Other recovered gases","Industry sector",0,"TOTIND","OGASES","TOTINDOGASES"]
[null,null,null,null,null,null,null,"NONENUSE","COKEOVGS",null,"OK","Error",null,"        Total final non-energy consumption","NONENUSECOKEOVGS",null,"Other recovered gases","Transport sector",0,"TOTTRANS","OGASES","TOTTRANSOGASES"]
[null,null,null,null,null,null,null,"FINECONS","COKEOVGS",null,"OK","Error",null,"        Total final energy consumption","FINECONSCOKEOVGS",null,"Other recovered gases","Other sectors",0,"TOTOTHER","OGASES","TOTOTHEROGASES"]
[null,null,null,null,null,null,null,"TOTIND","COKEOVGS",null,"OK","Error",null,"            Industry sector","TOTINDCOKEOVGS",null,"Peat","Indigenous production",0,"INDPROD","PEAT","INDPRODPEAT"]
[null,null,null,null,null,null,null,"TOTTRANS","COKEOVGS",null,"OK","Error",null,"            Transport sector","TOTTRANSCOKEOVGS",null,"Peat","From other sources",0,"OSOURCES","PEAT","OSOURCESPEAT"]
[null,null,null,null,null,null,null,"TOTOTHER","COKEOVGS",null,"OK","Error",null,"            Other sectors","TOTOTHERCOKEOVGS",null,"Peat","Total imports (Balance)",0,"TOTIMPSB","PEAT","TOTIMPSBPEAT"]
[null,null,null,null,null,null,null,"RESIDENT","COKEOVGS",null,"OK","Error",null,"                Of which: Residential   ","RESIDENTCOKEOVGS",null,"Peat","Total exports (Balance)",0,"TOTEXPSB","PEAT","TOTEXPSBPEAT"]
[null,null,null,null,null,null,null,"COMMPUB","COKEOVGS",null,"OK","Error",null,"                Of which: Commercial and public services   ","COMMPUBCOKEOVGS",null,"Peat","Stock changes (National territory)",0,"STCHANAT","PEAT","STCHANATPEAT"]
[null,null,null,null,null,null,null,"INDPROD","BLFURGS",null,"Error","Error","Blast furnace gas\n[TJ gross]","Indigenous production","INDPRODBLFURGS",null,"Peat","Inland consumption (Calculated)",null,null,"PEAT","PEAT"]
[null,null,null,null,null,null,null,"OSOURCES","BLFURGS",null,"OK","Error",null,"From other sources","OSOURCESBLFURGS",null,"Peat","Statistical Difference",null,null,"PEAT","PEAT"]
[null,null,null,null,null,null,null,"TOTIMPSB","BLFURGS",null,"OK","Error",null,"Total imports (Balance)","TOTIMPSBBLFURGS",null,"Peat","Inland consumption (Observed)",null,null,"PEAT","PEAT"]
[null,null,null,null,null,null,null,"TOTEXPSB","BLFURGS",null,"OK","Error",null,"Total exports (Balance)","TOTEXPSBBLFURGS",null,"Peat","Transformation sector",{"$f":"OFFSET($E$4,MATCH(V248,$O$5:$O$344,0),0)","v":0},"TOTTRANF","PEAT","TOTTRANFPEAT"]
[null,null,null,null,null,null,null,"STCHANAT","BLFURGS",null,"OK","Error",null,"Stock changes (National territory)","STCHANATBLFURGS",null,"Peat","Energy sector",0,"TOTENGY","PEAT","TOTENGYPEAT"]
[null,null,null,null,null,null,null,"INDCONC","BLFURGS",null,"OK","Error",null,"Inland consumption (calculated)","INDCONCBLFURGS",null,"Peat","Distribution losses",0,"DISTLOSS","PEAT","DISTLOSSPEAT"]
[null,null,null,null,null,null,null,"STATDIFF","BLFURGS",null,"OK","Error",null,"Statistical Difference","STATDIFFBLFURGS",null,"Peat","Total final consumption",0,"FINCONS","PEAT","FINCONSPEAT"]
[null,null,null,null,null,null,null,null,"BLFURGS",null,"OK","Error",null,"Inland consumption (Observed)","BLFURGS",null,"Peat","Total final non-energy consumption",0,"NONENUSE","PEAT","NONENUSEPEAT"]
[null,null,null,null,null,null,null,"TOTTRANF","BLFURGS",null,"OK","Error",null,"    Transformation sector","TOTTRANFBLFURGS",null,"Peat","Total final energy consumption",0,"FINECONS","PEAT","FINECONSPEAT"]
[null,null,null,null,null,null,null,"MTOELEHEAT","BLFURGS",null,"OK","Error",null,"        Of which: input to electricity and heat generation","MTOELEHEATBLFURGS",null,"Peat","Industry sector",0,"TOTIND","PEAT","TOTINDPEAT"]
[null,null,null,null,null,null,null,"TOTENGY","BLFURGS",null,"OK","Error",null,"    Energy sector","TOTENGYBLFURGS",null,"Peat","Transport sector",0,"TOTTRANS","PEAT","TOTTRANSPEAT"]
[null,null,null,null,null,null,null,"DISTLOSS","BLFURGS",null,"OK","Error",null,"    Distribution losses","DISTLOSSBLFURGS",null,"Peat","Other sectors",0,"TOTOTHER","PEAT","TOTOTHERPEAT"]
[null,null,null,null,null,null,null,"FINCONS","BLFURGS",null,"OK","Error",null,"    Total final consumption","FINCONSBLFURGS",null,"Peat products","Indigenous production",0,"INDPROD","PEATPROD","INDPRODPEATPROD"]
[null,null,null,null,null,null,null,"NONENUSE","BLFURGS",null,"OK","Error",null,"        Total final non-energy consumption","NONENUSEBLFURGS",null,"Peat products","From other sources",0,"OSOURCES","PEATPROD","OSOURCESPEATPROD"]
[null,null,null,null,null,null,null,"FINECONS","BLFURGS",null,"OK","Error",null,"        Total final energy consumption","FINECONSBLFURGS",null,"Peat products","Total imports (Balance)",0,"TOTIMPSB","PEATPROD","TOTIMPSBPEATPROD"]
[null,null,null,null,null,null,null,"TOTIND","BLFURGS",null,"OK","Error",null,"            Industry sector","TOTINDBLFURGS",null,"Peat products","Total exports (Balance)",0,"TOTEXPSB","PEATPROD","TOTEXPSBPEATPROD"]
[null,null,null,null,null,null,null,"TOTTRANS","BLFURGS",null,"OK","Error",null,"            Transport sector","TOTTRANSBLFURGS",null,"Peat products","Stock changes (National territory)",0,"STCHANAT","PEATPROD","STCHANATPEATPROD"]
[null,null,null,null,null,null,null,"TOTOTHER","BLFURGS",null,{"$f":"IF(B262=M262,\"OK\",\"Error\")","v":"OK"},{"$f":"IF(C262=N262,\"OK\",\"Error\")","v":"Error"},null,"            Other sectors",{"$f":"H262&I262","v":"TOTOTHERBLFURGS"},null,"Peat products","Inland consumption (Calculated)",null,null,"PEATPROD","PEATPROD"]
[null,null,null,null,null,null,null,"RESIDENT","BLFURGS",null,"OK","Error",null,"                Of which: Residential   ","RESIDENTBLFURGS",null,"Peat products","Statistical Difference",null,null,"PEATPROD","PEATPROD"]
[null,null,null,null,null,null,null,"COMMPUB","BLFURGS",null,"OK","Error",null,"                Of which: Commercial and public services   ","COMMPUBBLFURGS",null,"Peat products","Inland consumption (Observed)",null,null,"PEATPROD","PEATPROD"]
[null,null,null,null,null,null,null,"INDPROD","OGASES",null,"Error","Error","Other recovered gases\n[TJ gross]","Indigenous production","INDPRODOGASES",null,"Peat products","Transformation sector",{"$f":"OFFSET($E$4,MATCH(V265,$O$5:$O$344,0),0)","v":0},"TOTTRANF","PEATPROD","TOTTRANFPEATPROD"]
[null,null,null,null,null,null,null,"OSOURCES","OGASES",null,"OK","Error",null,"From other sources","OSOURCESOGASES",null,"Peat products","Energy sector",0,"TOTENGY","PEATPROD","TOTENGYPEATPROD"]
[null,null,null,null,null,null,null,"TOTIMPSB","OGASES",null,"OK","Error",null,"Total imports (Balance)","TOTIMPSBOGASES",null,"Peat products","Distribution losses",0,"DISTLOSS","PEATPROD","DISTLOSSPEATPROD"]
[null,null,null,null,null,null,null,"TOTEXPSB","OGASES",null,"OK","Error",null,"Total exports (Balance)","TOTEXPSBOGASES",null,"Peat products","Total final consumption",0,"FINCONS","PEATPROD","FINCONSPEATPROD"]
[null,null,null,null,null,null,null,"STCHANAT","OGASES",null,"OK","Error",null,"Stock changes (National territory)","STCHANATOGASES",null,"Peat products","Total final non-energy consumption",0,"NONENUSE","PEATPROD","NONENUSEPEATPROD"]
[null,null,null,null,null,null,null,"INDCONC","OGASES",null,"OK","Error",null,"Inland consumption (calculated)","INDCONCOGASES",null,"Peat products","Total final energy consumption",0,"FINECONS","PEATPROD","FINECONSPEATPROD"]
[null,null,null,null,null,null,null,"STATDIFF","OGASES",null,"OK","Error",null,"Statistical Difference","STATDIFFOGASES",null,"Peat products","Industry sector",0,"TOTIND","PEATPROD","TOTINDPEATPROD"]
[null,null,null,null,null,null,null,null,"OGASES",null,"OK","Error",null,"Inland consumption (Observed)","OGASES",null,"Peat products","Transport sector",0,"TOTTRANS","PEATPROD","TOTTRANSPEATPROD"]
[null,null,null,null,null,null,null,"TOTTRANF","OGASES",null,"OK","Error",null,"    Transformation sector","TOTTRANFOGASES",null,"Peat products","Other sectors",0,"TOTOTHER","PEATPROD","TOTOTHERPEATPROD"]
[null,null,null,null,null,null,null,"MTOELEHEAT","OGASES",null,"OK","Error",null,"        Of which: input to electricity and heat generation","MTOELEHEATOGASES",null,"Oil shale and oil sands","Indigenous production",0,"INDPROD","OILSHALE","INDPRODOILSHALE"]
[null,null,null,null,null,null,null,"TOTENGY","OGASES",null,"OK","Error",null,"    Energy sector","TOTENGYOGASES",null,"Oil shale and oil sands","From other sources",0,"OSOURCES","OILSHALE","OSOURCESOILSHALE"]
[null,null,null,null,null,null,null,"DISTLOSS","OGASES",null,"OK","Error",null,"    Distribution losses","DISTLOSSOGASES",null,"Oil shale and oil sands","Total imports (Balance)",0,"TOTIMPSB","OILSHALE","TOTIMPSBOILSHALE"]
[null,null,null,null,null,null,null,"FINCONS","OGASES",null,"OK","Error",null,"    Total final consumption","FINCONSOGASES",null,"Oil shale and oil sands","Total exports (Balance)",0,"TOTEXPSB","OILSHALE","TOTEXPSBOILSHALE"]
[null,null,null,null,null,null,null,"NONENUSE","OGASES",null,"OK","Error",null,"        Total final non-energy consumption","NONENUSEOGASES",null,"Oil shale and oil sands","Stock changes (National territory)",0,"STCHANAT","OILSHALE","STCHANATOILSHALE"]
[null,null,null,null,null,null,null,"FINECONS","OGASES",null,"OK","Error",null,"        Total final energy consumption","FINECONSOGASES",null,"Oil shale and oil sands","Inland consumption (Calculated)",null,null,"OILSHALE","OILSHALE"]
[null,null,null,null,null,null,null,"TOTIND","OGASES",null,"OK","Error",null,"            Industry sector","TOTINDOGASES",null,"Oil shale and oil sands","Statistical Difference",null,null,"OILSHALE","OILSHALE"]
[null,null,null,null,null,null,null,"TOTTRANS","OGASES",null,"OK","Error",null,"            Transport sector","TOTTRANSOGASES",null,"Oil shale and oil sands","Inland consumption (Observed)",null,null,"OILSHALE","OILSHALE"]
[null,null,null,null,null,null,null,"TOTOTHER","OGASES",null,"OK","Error",null,"            Other sectors","TOTOTHEROGASES",null,"Oil shale and oil sands","Transformation sector",{"$f":"OFFSET($E$4,MATCH(V282,$O$5:$O$344,0),0)","v":0},"TOTTRANF","OILSHALE","TOTTRANFOILSHALE"]
[null,null,null,null,null,null,null,"RESIDENT","OGASES",null,"OK","Error",null,"                Of which: Residential   ","RESIDENTOGASES",null,"Oil shale and oil sands","Energy sector",0,"TOTENGY","OILSHALE","TOTENGYOILSHALE"]
[null,null,null,null,null,null,null,"COMMPUB","OGASES",null,"OK","Error",null,"                Of which: Commercial and public services   ","COMMPUBOGASES",null,"Oil shale and oil sands","Distribution losses",0,"DISTLOSS","OILSHALE","DISTLOSSOILSHALE"]
[null,null,null,null,null,null,null,"INDPROD","PEAT",null,"Error","Error","Peat\n[000 t]","Indigenous production","INDPRODPEAT",null,"Oil shale and oil sands","Total final consumption",0,"FINCONS","OILSHALE","FINCONSOILSHALE"]
[null,null,null,null,null,null,null,"OSOURCES","PEAT",null,"OK","Error",null,"From other sources","OSOURCESPEAT",null,"Oil shale and oil sands","Total final non-energy consumption",0,"NONENUSE","OILSHALE","NONENUSEOILSHALE"]
[null,null,null,null,null,null,null,"TOTIMPSB","PEAT",null,"OK","Error",null,"Total imports (Balance)","TOTIMPSBPEAT",null,"Oil shale and oil sands","Total final energy consumption",0,"FINECONS","OILSHALE","FINECONSOILSHALE"]
[null,null,null,null,null,null,null,"TOTEXPSB","PEAT",null,"OK","Error",null,"Total exports (Balance)","TOTEXPSBPEAT",null,"Oil shale and oil sands","Industry sector",0,"TOTIND","OILSHALE","TOTINDOILSHALE"]
[null,null,null,null,null,null,null,"STCHANAT","PEAT",null,"OK","Error",null,"Stock changes (National territory)","STCHANATPEAT",null,"Oil shale and oil sands","Transport sector",0,"TOTTRANS","OILSHALE","TOTTRANSOILSHALE"]
[null,null,null,null,null,null,null,"INDCONC","PEAT",null,"OK","Error",null,"Inland consumption (calculated)","INDCONCPEAT",null,"Oil shale and oil sands","Other sectors",0,"TOTOTHER","OILSHALE","TOTOTHEROILSHALE"]
[null,null,null,null,null,null,null,"STATDIFF","PEAT",null,"OK","Error",null,"Statistical Difference","STATDIFFPEAT"]
[null,null,null,null,null,null,null,null,"PEAT",null,"OK","Error",null,"Inland consumption (Observed)","PEAT"]
[null,null,null,null,null,null,null,"TOTTRANF","PEAT",null,"OK","Error",null,"    Transformation sector","TOTTRANFPEAT"]
[null,null,null,null,null,null,null,"MTOELEHEAT","PEAT",null,"OK","Error",null,"        Of which: input to electricity and heat generation","MTOELEHEATPEAT"]
[null,null,null,null,null,null,null,"TOTENGY","PEAT",null,"OK","Error",null,"    Energy sector","TOTENGYPEAT"]
[null,null,null,null,null,null,null,"DISTLOSS","PEAT",null,"OK","Error",null,"    Distribution losses","DISTLOSSPEAT"]
[null,null,null,null,null,null,null,"FINCONS","PEAT",null,"OK","Error",null,"    Total final consumption","FINCONSPEAT"]
[null,null,null,null,null,null,null,"NONENUSE","PEAT",null,"OK","Error",null,"        Total final non-energy consumption","NONENUSEPEAT"]
[null,null,null,null,null,null,null,"FINECONS","PEAT",null,"OK","Error",null,"        Total final energy consumption","FINECONSPEAT"]
[null,null,null,null,null,null,null,"TOTIND","PEAT",null,"OK","Error",null,"            Industry sector","TOTINDPEAT"]
[null,null,null,null,null,null,null,"TOTTRANS","PEAT",null,"OK","Error",null,"            Transport sector","TOTTRANSPEAT"]
[null,null,null,null,null,null,null,"TOTOTHER","PEAT",null,"OK","Error",null,"            Other sectors","TOTOTHERPEAT"]
[null,null,null,null,null,null,null,"RESIDENT","PEAT",null,"OK","Error",null,"                Of which: Residential   ","RESIDENTPEAT"]
[null,null,null,null,null,null,null,"COMMPUB","PEAT",null,"OK","Error",null,"                Of which: Commercial and public services   ","COMMPUBPEAT"]
[null,null,null,null,null,null,null,"INDPROD","PEATPROD",null,"Error","Error","Peat Products\n[000 t]","Indigenous production","INDPRODPEATPROD"]
[null,null,null,null,null,null,null,"OSOURCES","PEATPROD",null,"OK","Error",null,"From other sources","OSOURCESPEATPROD"]
[null,null,null,null,null,null,null,"TOTIMPSB","PEATPROD",null,"OK","Error",null,"Total imports (Balance)","TOTIMPSBPEATPROD"]
[null,null,null,null,null,null,null,"TOTEXPSB","PEATPROD",null,"OK","Error",null,"Total exports (Balance)","TOTEXPSBPEATPROD"]
[null,null,null,null,null,null,null,"STCHANAT","PEATPROD",null,"OK","Error",null,"Stock changes (National territory)","STCHANATPEATPROD"]
[null,null,null,null,null,null,null,"INDCONC","PEATPROD",null,"OK","Error",null,"Inland consumption (calculated)","INDCONCPEATPROD"]
[null,null,null,null,null,null,null,"STATDIFF","PEATPROD",null,"OK","Error",null,"Statistical Difference","STATDIFFPEATPROD"]
[null,null,null,null,null,null,null,null,"PEATPROD",null,"OK","Error",null,"Inland consumption (Observed)","PEATPROD"]
[null,null,null,null,null,null,null,"TOTTRANF","PEATPROD",null,"OK","Error",null,"    Transformation sector","TOTTRANFPEATPROD"]
[null,null,null,null,null,null,null,"MTOELEHEAT","PEATPROD",null,"OK","Error",null,"        Of which: input to electricity and heat generation","MTOELEHEATPEATPROD"]
[null,null,null,null,null,null,null,"TOTENGY","PEATPROD",null,"OK","Error",null,"    Energy sector","TOTENGYPEATPROD"]
[null,null,null,null,null,null,null,"DISTLOSS","PEATPROD",null,"OK","Error",null,"    Distribution losses","DISTLOSSPEATPROD"]
[null,null,null,null,null,null,null,"FINCONS","PEATPROD",null,"OK","Error",null,"    Total final consumption","FINCONSPEATPROD"]
[null,null,null,null,null,null,null,"NONENUSE","PEATPROD",null,"OK","Error",null,"        Total final non-energy consumption","NONENUSEPEATPROD"]
[null,null,null,null,null,null,null,"FINECONS","PEATPROD",null,"OK","Error",null,"        Total final energy consumption","FINECONSPEATPROD"]
[null,null,null,null,null,null,null,"TOTIND","PEATPROD",null,"OK","Error",null,"            Industry sector","TOTINDPEATPROD"]
[null,null,null,null,null,null,null,"TOTTRANS","PEATPROD",null,"OK","Error",null,"            Transport sector","TOTTRANSPEATPROD"]
[null,null,null,null,null,null,null,"TOTOTHER","PEATPROD",null,"OK","Error",null,"            Other sectors","TOTOTHERPEATPROD"]
[null,null,null,null,null,null,null,"RESIDENT","PEATPROD",null,"OK","Error",null,"                Of which: Residential   ","RESIDENTPEATPROD"]
[null,null,null,null,null,null,null,"COMMPUB","PEATPROD",null,"OK","Error",null,"                Of which: Commercial and public services   ","COMMPUBPEATPROD"]
[null,null,null,null,null,null,null,"INDPROD","OILSHALE",null,"Error","Error","Oil shale and   oil sands\n[000 t]","Indigenous production","INDPRODOILSHALE"]
[null,null,null,null,null,null,null,"OSOURCES","OILSHALE",null,{"$f":"IF(B326=M326,\"OK\",\"Error\")","v":"OK"},{"$f":"IF(C326=N326,\"OK\",\"Error\")","v":"Error"},null,"From other sources",{"$f":"H326&I326","v":"OSOURCESOILSHALE"}]
[null,null,null,null,null,null,null,"TOTIMPSB","OILSHALE",null,"OK","Error",null,"Total imports (Balance)","TOTIMPSBOILSHALE"]
[null,null,null,null,null,null,null,"TOTEXPSB","OILSHALE",null,"OK","Error",null,"Total exports (Balance)","TOTEXPSBOILSHALE"]
[null,null,null,null,null,null,null,"STCHANAT","OILSHALE",null,"OK","Error",null,"Stock changes (National territory)","STCHANATOILSHALE"]
[null,null,null,null,null,null,null,"INDCONC","OILSHALE",null,"OK","Error",null,"Inland consumption (calculated)","INDCONCOILSHALE"]
[null,null,null,null,null,null,null,"STATDIFF","OILSHALE",null,"OK","Error",null,"Statistical Difference","STATDIFFOILSHALE"]
[null,null,null,null,null,null,null,null,"OILSHALE",null,"OK","Error",null,"Inland consumption (Observed)","OILSHALE"]
[null,null,null,null,null,null,null,"TOTTRANF","OILSHALE",null,"OK","Error",null,"    Transformation sector","TOTTRANFOILSHALE"]
[null,null,null,null,null,null,null,"MTOELEHEAT","OILSHALE",null,"OK","Error",null,"        Of which: input to electricity and heat generation","MTOELEHEATOILSHALE"]
[null,null,null,null,null,null,null,"TOTENGY","OILSHALE",null,"OK","Error",null,"    Energy sector","TOTENGYOILSHALE"]
[null,null,null,null,null,null,null,"DISTLOSS","OILSHALE",null,"OK","Error",null,"    Distribution losses","DISTLOSSOILSHALE"]
[null,null,null,null,null,null,null,"FINCONS","OILSHALE",null,"OK","Error",null,"    Total final consumption","FINCONSOILSHALE"]
[null,null,null,null,null,null,null,"NONENUSE","OILSHALE",null,"OK","Error",null,"        Total final non-energy consumption","NONENUSEOILSHALE"]
[null,null,null,null,null,null,null,"FINECONS","OILSHALE",null,"OK","Error",null,"        Total final energy consumption","FINECONSOILSHALE"]
[null,null,null,null,null,null,null,"TOTIND","OILSHALE",null,"OK","Error",null,"            Industry sector","TOTINDOILSHALE"]
[null,null,null,null,null,null,null,"TOTTRANS","OILSHALE",null,"OK","Error",null,"            Transport sector","TOTTRANSOILSHALE"]
[null,null,null,null,null,null,null,"TOTOTHER","OILSHALE",null,"OK","Error",null,"            Other sectors","TOTOTHEROILSHALE"]
[null,null,null,null,null,null,null,"RESIDENT","OILSHALE",null,"OK","Error",null,"                Of which: Residential   ","RESIDENTOILSHALE"]
[null,null,null,null,null,null,null,"COMMPUB","OILSHALE",null,"OK","Error",null,"                Of which: Commercial and public services   ","COMMPUBOILSHALE"]

{"sheet":"PrefilledData","index":8,"n_rows":0,"n_cols":0,"rows_kept":0,"cut":false,"hidden":true,"merged":[]}

{"sheet":"Parameter_mapping","index":9,"n_rows":2,"n_cols":2,"rows_kept":2,"cut":false,"hidden":true,"merged":[]}
["Data sheet","Parameter sheet"]
["COLUMN","Parameters"]

{"sheet":"Parameters","index":10,"n_rows":21,"n_cols":7,"rows_kept":21,"cut":false,"hidden":true,"merged":[]}
["Element","Type","PosType","Position",null,"DataStart","DP2"]
["QUEST_SOURCE","DIM","FIX","A_MINICOA",null,"DataEnd","DP325"]
["FREQ","DIM","FIX","A",null,"SkipIncompleteKeys","true"]
["REF_AREA","DIM","COLUMN","DS"]
["ENERGY_PRODUCT","DIM","COLUMN","DT"]
["MAIN_FLOW","DIM","COLUMN","DU"]
["FLOW_BREAKDOWN","DIM","COLUMN","DV"]
["PLANT_TECH","DIM","COLUMN","DW"]
["PLANT_TYPE","DIM","COLUMN","DX"]
["STOCKS","DIM","COLUMN","DY"]
["INFRASTRUCTURE_IND","DIM","COLUMN","DZ"]
["VIS_A_VIS_AREA","DIM","COLUMN","EA"]
["MEASURE_VALUE_TYPE","DIM","COLUMN","EB"]
["TIME_PERIOD","DIM","CELL","J1"]
["FACILITY_ID","DIM","COLUMN","EC"]
["UNIT_MEASURE","DIM","COLUMN","ED"]
["OBS_STATUS","ATT","COLUMN","DQ"]
["CONF_STATUS","ATT","SKIP"]
["COMMENT_OBS","ATT","COLUMN","DR"]
["FACILITY_TYPE","ATT","SKIP"]
["FACILITY_NAME","ATT","SKIP"]